Workbook

Sheet PPT Reimbursement Calculator
C1: INSTRUCTIONS
A2: County: | C2: Step 1: Select a county. | D2: =COUNTIF(Detail!$B:$B, $B$9) -> 0
A4: Municipality Type: | C4: Step 2: Select a municipality type.
A6: Municipality: | C6: Step 3: Select a municipality. | H6: =_xlfn.IFNA(INDEX(Detail!$B:B, MATCH('PPT Reimbursement Calculator'!B6&'PPT Reimbursement Calculator'!D6&'PPT Reimbursement Calculator'!F6, Detail!A:A, 0)), "") -> 
C7: Step 4: Click Enter to calculate.
A9: Municipality Code:
A11: MUNICIPALITY CODE | B11: MILLAGE NAME | C11: MILLAGE PURPOSE | D11: MILLAGE TYPE | E11: LOWEST MILLAGE RATE 2012 to 2016 | F11: TOTAL 2017 ESSENTIAL SERVICES DISTRIBUTION | G11: TOTAL 2017 SMALL TAXPAYER EXEMPTION LOSS DISTRIBUTION | H11: QUALIFIED LOSS DISTRIBUTION at 100% | I11: QUALIFIED LOSS DISTRIBUTION OVER 100% | J11: TOTAL 2017 REIMBURSEMENT | K11: November 2017 Distribution | L11: February 2018 Distribution
A12: =IF($B$9 = "", "", IF(ROWS(A$12:A12) > $D$2, "", INDEX(Detail!B$4:B$45913, SMALL(IF(Detail!$B$4:$B$45913=$B$9, ROW(Detail!$B$4:$B$45913)-ROW(Detail!$B$4)+1), ROWS(A$12:A12))))) ->  | B12: =IF($B$9 = "", "", IF(ROWS(B$12:B12) > $D$2, "", INDEX(Detail!E$4:E$45913, SMALL(IF(Detail!$B$4:$B$45913=$B$9, ROW(Detail!$B$4:$B$45913)-ROW(Detail!$B$4)+1), ROWS(B$12:B12))))) ->  | C12: =IF($B$9 = "", "", IF(ROWS(C$12:C12) > $D$2, "", INDEX(Detail!F$4:F$45913, SMALL(IF(Detail!$B$4:$B$45913=$B$9, ROW(Detail!$B$4:$B$45913)-ROW(Detail!$B$4)+1), ROWS(C$12:C12))))) ->  | D12: =IF($B$9 = "", "", IF(ROWS(D$12:D12) > $D$2, "", INDEX(Detail!G$4:G$45913, SMALL(IF(Detail!$B$4:$B$45913=$B$9, ROW(Detail!$B$4:$B$45913)-ROW(Detail!$B$4)+1), ROWS(D$12:D12))))) ->  | E12: =IF($B$9 = "", "", IF(ROWS(E$12:E12) > $D$2, "", INDEX(Detail!H$4:H$45913, SMALL(IF(Detail!$B$4:$B$45913=$B$9, ROW(Detail!$B$4:$B$45913)-ROW(Detail!$B$4)+1), ROWS(E$12:E12))))) ->  | F12: =IF($B$9 = "", "", IF(ROWS(F$12:F12) > $D$2, "", INDEX(Detail!K$4:K$45913, SMALL(IF(Detail!$B$4:$B$45913=$B$9, ROW(Detail!$B$4:$B$45913)-ROW(Detail!$B$4)+1), ROWS(F$12:F12))))) ->  | G12: =IF($B$9 = "", "", IF(ROWS(G$12:G12) > $D$2, "", INDEX(Detail!N$4:N$45913, SMALL(IF(Detail!$B$4:$B$45913=$B$9, ROW(Detail!$B$4:$B$45913)-ROW(Detail!$B$4)+1), ROWS(G$12:G12))))) ->  | H12: =IF($B$9 = "", "", IF(ROWS(H$12:H12) > $D$2, "", INDEX(Detail!O$4:O$45913, SMALL(IF(Detail!$B$4:$B$45913=$B$9, ROW(Detail!$B$4:$B$45913)-ROW(Detail!$B$4)+1), ROWS(H$12:H12))))) ->  | I12: =IF($B$9 = "", "", IF(ROWS(I$12:I12) > $D$2, "", INDEX(Detail!Q$4:Q$45913, SMALL(IF(Detail!$B$4:$B$45913=$B$9, ROW(Detail!$B$4:$B$45913)-ROW(Detail!$B$4)+1), ROWS(I$12:I12))))) ->  | J12: =IF($B$9 = "", "", IF(ROWS(J$12:J12) > $D$2, "", INDEX(Detail!U$4:U$45913, SMALL(IF(Detail!$B$4:$B$45913=$B$9, ROW(Detail!$B$4:$B$45913)-ROW(Detail!$B$4)+1), ROWS(J$12:J12))))) ->  | K12: =IF($B$9 = "", "", IF(ROWS(K$12:K12) > $D$2, "", INDEX(Detail!W$4:W$45913, SMALL(IF(Detail!$B$4:$B$45913=$B$9, ROW(Detail!$B$4:$B$45913)-ROW(Detail!$B$4)+1), ROWS(K$12:K12))))) ->  | L12: =IF($B$9 = "", "", IF(ROWS(L$12:L12) > $D$2, "", INDEX(Detail!X$4:X$45913, SMALL(IF(Detail!$B$4:$B$45913=$B$9, ROW(Detail!$B$4:$B$45913)-ROW(Detail!$B$4)+1), ROWS(L$12:L12))))) -> 
A13: =IF($B$9 = "", "", IF(ROWS(A$12:A13) > $D$2, "", INDEX(Detail!B$4:B$45913, SMALL(IF(Detail!$B$4:$B$45913=$B$9, ROW(Detail!$B$4:$B$45913)-ROW(Detail!$B$4)+1), ROWS(A$12:A13))))) ->  | B13: =IF($B$9 = "", "", IF(ROWS(B$12:B13) > $D$2, "", INDEX(Detail!E$4:E$45913, SMALL(IF(Detail!$B$4:$B$45913=$B$9, ROW(Detail!$B$4:$B$45913)-ROW(Detail!$B$4)+1), ROWS(B$12:B13))))) ->  | C13: =IF($B$9 = "", "", IF(ROWS(C$12:C13) > $D$2, "", INDEX(Detail!F$4:F$45913, SMALL(IF(Detail!$B$4:$B$45913=$B$9, ROW(Detail!$B$4:$B$45913)-ROW(Detail!$B$4)+1), ROWS(C$12:C13))))) ->  | D13: =IF($B$9 = "", "", IF(ROWS(D$12:D13) > $D$2, "", INDEX(Detail!G$4:G$45913, SMALL(IF(Detail!$B$4:$B$45913=$B$9, ROW(Detail!$B$4:$B$45913)-ROW(Detail!$B$4)+1), ROWS(D$12:D13))))) ->  | E13: =IF($B$9 = "", "", IF(ROWS(E$12:E13) > $D$2, "", INDEX(Detail!H$4:H$45913, SMALL(IF(Detail!$B$4:$B$45913=$B$9, ROW(Detail!$B$4:$B$45913)-ROW(Detail!$B$4)+1), ROWS(E$12:E13))))) ->  | F13: =IF($B$9 = "", "", IF(ROWS(F$12:F13) > $D$2, "", INDEX(Detail!K$4:K$45913, SMALL(IF(Detail!$B$4:$B$45913=$B$9, ROW(Detail!$B$4:$B$45913)-ROW(Detail!$B$4)+1), ROWS(F$12:F13))))) ->  | G13: =IF($B$9 = "", "", IF(ROWS(G$12:G13) > $D$2, "", INDEX(Detail!N$4:N$45913, SMALL(IF(Detail!$B$4:$B$45913=$B$9, ROW(Detail!$B$4:$B$45913)-ROW(Detail!$B$4)+1), ROWS(G$12:G13))))) ->  | H13: =IF($B$9 = "", "", IF(ROWS(H$12:H13) > $D$2, "", INDEX(Detail!O$4:O$45913, SMALL(IF(Detail!$B$4:$B$45913=$B$9, ROW(Detail!$B$4:$B$45913)-ROW(Detail!$B$4)+1), ROWS(H$12:H13))))) ->  | I13: =IF($B$9 = "", "", IF(ROWS(I$12:I13) > $D$2, "", INDEX(Detail!Q$4:Q$45913, SMALL(IF(Detail!$B$4:$B$45913=$B$9, ROW(Detail!$B$4:$B$45913)-ROW(Detail!$B$4)+1), ROWS(I$12:I13))))) ->  | J13: =IF($B$9 = "", "", IF(ROWS(J$12:J13) > $D$2, "", INDEX(Detail!U$4:U$45913, SMALL(IF(Detail!$B$4:$B$45913=$B$9, ROW(Detail!$B$4:$B$45913)-ROW(Detail!$B$4)+1), ROWS(J$12:J13))))) ->  | K13: =IF($B$9 = "", "", IF(ROWS(K$12:K13) > $D$2, "", INDEX(Detail!W$4:W$45913, SMALL(IF(Detail!$B$4:$B$45913=$B$9, ROW(Detail!$B$4:$B$45913)-ROW(Detail!$B$4)+1), ROWS(K$12:K13))))) ->  | L13: =IF($B$9 = "", "", IF(ROWS(L$12:L13) > $D$2, "", INDEX(Detail!X$4:X$45913, SMALL(IF(Detail!$B$4:$B$45913=$B$9, ROW(Detail!$B$4:$B$45913)-ROW(Detail!$B$4)+1), ROWS(L$12:L13))))) -> 
A14: =IF($B$9 = "", "", IF(ROWS(A$12:A14) > $D$2, "", INDEX(Detail!B$4:B$45913, SMALL(IF(Detail!$B$4:$B$45913=$B$9, ROW(Detail!$B$4:$B$45913)-ROW(Detail!$B$4)+1), ROWS(A$12:A14))))) ->  | B14: =IF($B$9 = "", "", IF(ROWS(B$12:B14) > $D$2, "", INDEX(Detail!E$4:E$45913, SMALL(IF(Detail!$B$4:$B$45913=$B$9, ROW(Detail!$B$4:$B$45913)-ROW(Detail!$B$4)+1), ROWS(B$12:B14))))) ->  | C14: =IF($B$9 = "", "", IF(ROWS(C$12:C14) > $D$2, "", INDEX(Detail!F$4:F$45913, SMALL(IF(Detail!$B$4:$B$45913=$B$9, ROW(Detail!$B$4:$B$45913)-ROW(Detail!$B$4)+1), ROWS(C$12:C14))))) ->  | D14: =IF($B$9 = "", "", IF(ROWS(D$12:D14) > $D$2, "", INDEX(Detail!G$4:G$45913, SMALL(IF(Detail!$B$4:$B$45913=$B$9, ROW(Detail!$B$4:$B$45913)-ROW(Detail!$B$4)+1), ROWS(D$12:D14))))) ->  | E14: =IF($B$9 = "", "", IF(ROWS(E$12:E14) > $D$2, "", INDEX(Detail!H$4:H$45913, SMALL(IF(Detail!$B$4:$B$45913=$B$9, ROW(Detail!$B$4:$B$45913)-ROW(Detail!$B$4)+1), ROWS(E$12:E14))))) ->  | F14: =IF($B$9 = "", "", IF(ROWS(F$12:F14) > $D$2, "", INDEX(Detail!K$4:K$45913, SMALL(IF(Detail!$B$4:$B$45913=$B$9, ROW(Detail!$B$4:$B$45913)-ROW(Detail!$B$4)+1), ROWS(F$12:F14))))) ->  | G14: =IF($B$9 = "", "", IF(ROWS(G$12:G14) > $D$2, "", INDEX(Detail!N$4:N$45913, SMALL(IF(Detail!$B$4:$B$45913=$B$9, ROW(Detail!$B$4:$B$45913)-ROW(Detail!$B$4)+1), ROWS(G$12:G14))))) ->  | H14: =IF($B$9 = "", "", IF(ROWS(H$12:H14) > $D$2, "", INDEX(Detail!O$4:O$45913, SMALL(IF(Detail!$B$4:$B$45913=$B$9, ROW(Detail!$B$4:$B$45913)-ROW(Detail!$B$4)+1), ROWS(H$12:H14))))) ->  | I14: =IF($B$9 = "", "", IF(ROWS(I$12:I14) > $D$2, "", INDEX(Detail!Q$4:Q$45913, SMALL(IF(Detail!$B$4:$B$45913=$B$9, ROW(Detail!$B$4:$B$45913)-ROW(Detail!$B$4)+1), ROWS(I$12:I14))))) ->  | J14: =IF($B$9 = "", "", IF(ROWS(J$12:J14) > $D$2, "", INDEX(Detail!U$4:U$45913, SMALL(IF(Detail!$B$4:$B$45913=$B$9, ROW(Detail!$B$4:$B$45913)-ROW(Detail!$B$4)+1), ROWS(J$12:J14))))) ->  | K14: =IF($B$9 = "", "", IF(ROWS(K$12:K14) > $D$2, "", INDEX(Detail!W$4:W$45913, SMALL(IF(Detail!$B$4:$B$45913=$B$9, ROW(Detail!$B$4:$B$45913)-ROW(Detail!$B$4)+1), ROWS(K$12:K14))))) ->  | L14: =IF($B$9 = "", "", IF(ROWS(L$12:L14) > $D$2, "", INDEX(Detail!X$4:X$45913, SMALL(IF(Detail!$B$4:$B$45913=$B$9, ROW(Detail!$B$4:$B$45913)-ROW(Detail!$B$4)+1), ROWS(L$12:L14))))) -> 
A15: =IF($B$9 = "", "", IF(ROWS(A$12:A15) > $D$2, "", INDEX(Detail!B$4:B$45913, SMALL(IF(Detail!$B$4:$B$45913=$B$9, ROW(Detail!$B$4:$B$45913)-ROW(Detail!$B$4)+1), ROWS(A$12:A15))))) ->  | B15: =IF($B$9 = "", "", IF(ROWS(B$12:B15) > $D$2, "", INDEX(Detail!E$4:E$45913, SMALL(IF(Detail!$B$4:$B$45913=$B$9, ROW(Detail!$B$4:$B$45913)-ROW(Detail!$B$4)+1), ROWS(B$12:B15))))) ->  | C15: =IF($B$9 = "", "", IF(ROWS(C$12:C15) > $D$2, "", INDEX(Detail!F$4:F$45913, SMALL(IF(Detail!$B$4:$B$45913=$B$9, ROW(Detail!$B$4:$B$45913)-ROW(Detail!$B$4)+1), ROWS(C$12:C15))))) ->  | D15: =IF($B$9 = "", "", IF(ROWS(D$12:D15) > $D$2, "", INDEX(Detail!G$4:G$45913, SMALL(IF(Detail!$B$4:$B$45913=$B$9, ROW(Detail!$B$4:$B$45913)-ROW(Detail!$B$4)+1), ROWS(D$12:D15))))) ->  | E15: =IF($B$9 = "", "", IF(ROWS(E$12:E15) > $D$2, "", INDEX(Detail!H$4:H$45913, SMALL(IF(Detail!$B$4:$B$45913=$B$9, ROW(Detail!$B$4:$B$45913)-ROW(Detail!$B$4)+1), ROWS(E$12:E15))))) ->  | F15: =IF($B$9 = "", "", IF(ROWS(F$12:F15) > $D$2, "", INDEX(Detail!K$4:K$45913, SMALL(IF(Detail!$B$4:$B$45913=$B$9, ROW(Detail!$B$4:$B$45913)-ROW(Detail!$B$4)+1), ROWS(F$12:F15))))) ->  | G15: =IF($B$9 = "", "", IF(ROWS(G$12:G15) > $D$2, "", INDEX(Detail!N$4:N$45913, SMALL(IF(Detail!$B$4:$B$45913=$B$9, ROW(Detail!$B$4:$B$45913)-ROW(Detail!$B$4)+1), ROWS(G$12:G15))))) ->  | H15: =IF($B$9 = "", "", IF(ROWS(H$12:H15) > $D$2, "", INDEX(Detail!O$4:O$45913, SMALL(IF(Detail!$B$4:$B$45913=$B$9, ROW(Detail!$B$4:$B$45913)-ROW(Detail!$B$4)+1), ROWS(H$12:H15))))) ->  | I15: =IF($B$9 = "", "", IF(ROWS(I$12:I15) > $D$2, "", INDEX(Detail!Q$4:Q$45913, SMALL(IF(Detail!$B$4:$B$45913=$B$9, ROW(Detail!$B$4:$B$45913)-ROW(Detail!$B$4)+1), ROWS(I$12:I15))))) ->  | J15: =IF($B$9 = "", "", IF(ROWS(J$12:J15) > $D$2, "", INDEX(Detail!U$4:U$45913, SMALL(IF(Detail!$B$4:$B$45913=$B$9, ROW(Detail!$B$4:$B$45913)-ROW(Detail!$B$4)+1), ROWS(J$12:J15))))) ->  | K15: =IF($B$9 = "", "", IF(ROWS(K$12:K15) > $D$2, "", INDEX(Detail!W$4:W$45913, SMALL(IF(Detail!$B$4:$B$45913=$B$9, ROW(Detail!$B$4:$B$45913)-ROW(Detail!$B$4)+1), ROWS(K$12:K15))))) ->  | L15: =IF($B$9 = "", "", IF(ROWS(L$12:L15) > $D$2, "", INDEX(Detail!X$4:X$45913, SMALL(IF(Detail!$B$4:$B$45913=$B$9, ROW(Detail!$B$4:$B$45913)-ROW(Detail!$B$4)+1), ROWS(L$12:L15))))) -> 
A16: =IF($B$9 = "", "", IF(ROWS(A$12:A16) > $D$2, "", INDEX(Detail!B$4:B$45913, SMALL(IF(Detail!$B$4:$B$45913=$B$9, ROW(Detail!$B$4:$B$45913)-ROW(Detail!$B$4)+1), ROWS(A$12:A16))))) ->  | B16: =IF($B$9 = "", "", IF(ROWS(B$12:B16) > $D$2, "", INDEX(Detail!E$4:E$45913, SMALL(IF(Detail!$B$4:$B$45913=$B$9, ROW(Detail!$B$4:$B$45913)-ROW(Detail!$B$4)+1), ROWS(B$12:B16))))) ->  | C16: =IF($B$9 = "", "", IF(ROWS(C$12:C16) > $D$2, "", INDEX(Detail!F$4:F$45913, SMALL(IF(Detail!$B$4:$B$45913=$B$9, ROW(Detail!$B$4:$B$45913)-ROW(Detail!$B$4)+1), ROWS(C$12:C16))))) ->  | D16: =IF($B$9 = "", "", IF(ROWS(D$12:D16) > $D$2, "", INDEX(Detail!G$4:G$45913, SMALL(IF(Detail!$B$4:$B$45913=$B$9, ROW(Detail!$B$4:$B$45913)-ROW(Detail!$B$4)+1), ROWS(D$12:D16))))) ->  | E16: =IF($B$9 = "", "", IF(ROWS(E$12:E16) > $D$2, "", INDEX(Detail!H$4:H$45913, SMALL(IF(Detail!$B$4:$B$45913=$B$9, ROW(Detail!$B$4:$B$45913)-ROW(Detail!$B$4)+1), ROWS(E$12:E16))))) ->  | F16: =IF($B$9 = "", "", IF(ROWS(F$12:F16) > $D$2, "", INDEX(Detail!K$4:K$45913, SMALL(IF(Detail!$B$4:$B$45913=$B$9, ROW(Detail!$B$4:$B$45913)-ROW(Detail!$B$4)+1), ROWS(F$12:F16))))) ->  | G16: =IF($B$9 = "", "", IF(ROWS(G$12:G16) > $D$2, "", INDEX(Detail!N$4:N$45913, SMALL(IF(Detail!$B$4:$B$45913=$B$9, ROW(Detail!$B$4:$B$45913)-ROW(Detail!$B$4)+1), ROWS(G$12:G16))))) ->  | H16: =IF($B$9 = "", "", IF(ROWS(H$12:H16) > $D$2, "", INDEX(Detail!O$4:O$45913, SMALL(IF(Detail!$B$4:$B$45913=$B$9, ROW(Detail!$B$4:$B$45913)-ROW(Detail!$B$4)+1), ROWS(H$12:H16))))) ->  | I16: =IF($B$9 = "", "", IF(ROWS(I$12:I16) > $D$2, "", INDEX(Detail!Q$4:Q$45913, SMALL(IF(Detail!$B$4:$B$45913=$B$9, ROW(Detail!$B$4:$B$45913)-ROW(Detail!$B$4)+1), ROWS(I$12:I16))))) ->  | J16: =IF($B$9 = "", "", IF(ROWS(J$12:J16) > $D$2, "", INDEX(Detail!U$4:U$45913, SMALL(IF(Detail!$B$4:$B$45913=$B$9, ROW(Detail!$B$4:$B$45913)-ROW(Detail!$B$4)+1), ROWS(J$12:J16))))) ->  | K16: =IF($B$9 = "", "", IF(ROWS(K$12:K16) > $D$2, "", INDEX(Detail!W$4:W$45913, SMALL(IF(Detail!$B$4:$B$45913=$B$9, ROW(Detail!$B$4:$B$45913)-ROW(Detail!$B$4)+1), ROWS(K$12:K16))))) ->  | L16: =IF($B$9 = "", "", IF(ROWS(L$12:L16) > $D$2, "", INDEX(Detail!X$4:X$45913, SMALL(IF(Detail!$B$4:$B$45913=$B$9, ROW(Detail!$B$4:$B$45913)-ROW(Detail!$B$4)+1), ROWS(L$12:L16))))) -> 
A17: =IF($B$9 = "", "", IF(ROWS(A$12:A17) > $D$2, "", INDEX(Detail!B$4:B$45913, SMALL(IF(Detail!$B$4:$B$45913=$B$9, ROW(Detail!$B$4:$B$45913)-ROW(Detail!$B$4)+1), ROWS(A$12:A17))))) ->  | B17: =IF($B$9 = "", "", IF(ROWS(B$12:B17) > $D$2, "", INDEX(Detail!E$4:E$45913, SMALL(IF(Detail!$B$4:$B$45913=$B$9, ROW(Detail!$B$4:$B$45913)-ROW(Detail!$B$4)+1), ROWS(B$12:B17))))) ->  | C17: =IF($B$9 = "", "", IF(ROWS(C$12:C17) > $D$2, "", INDEX(Detail!F$4:F$45913, SMALL(IF(Detail!$B$4:$B$45913=$B$9, ROW(Detail!$B$4:$B$45913)-ROW(Detail!$B$4)+1), ROWS(C$12:C17))))) ->  | D17: =IF($B$9 = "", "", IF(ROWS(D$12:D17) > $D$2, "", INDEX(Detail!G$4:G$45913, SMALL(IF(Detail!$B$4:$B$45913=$B$9, ROW(Detail!$B$4:$B$45913)-ROW(Detail!$B$4)+1), ROWS(D$12:D17))))) ->  | E17: =IF($B$9 = "", "", IF(ROWS(E$12:E17) > $D$2, "", INDEX(Detail!H$4:H$45913, SMALL(IF(Detail!$B$4:$B$45913=$B$9, ROW(Detail!$B$4:$B$45913)-ROW(Detail!$B$4)+1), ROWS(E$12:E17))))) ->  | F17: =IF($B$9 = "", "", IF(ROWS(F$12:F17) > $D$2, "", INDEX(Detail!K$4:K$45913, SMALL(IF(Detail!$B$4:$B$45913=$B$9, ROW(Detail!$B$4:$B$45913)-ROW(Detail!$B$4)+1), ROWS(F$12:F17))))) ->  | G17: =IF($B$9 = "", "", IF(ROWS(G$12:G17) > $D$2, "", INDEX(Detail!N$4:N$45913, SMALL(IF(Detail!$B$4:$B$45913=$B$9, ROW(Detail!$B$4:$B$45913)-ROW(Detail!$B$4)+1), ROWS(G$12:G17))))) ->  | H17: =IF($B$9 = "", "", IF(ROWS(H$12:H17) > $D$2, "", INDEX(Detail!O$4:O$45913, SMALL(IF(Detail!$B$4:$B$45913=$B$9, ROW(Detail!$B$4:$B$45913)-ROW(Detail!$B$4)+1), ROWS(H$12:H17))))) ->  | I17: =IF($B$9 = "", "", IF(ROWS(I$12:I17) > $D$2, "", INDEX(Detail!Q$4:Q$45913, SMALL(IF(Detail!$B$4:$B$45913=$B$9, ROW(Detail!$B$4:$B$45913)-ROW(Detail!$B$4)+1), ROWS(I$12:I17))))) ->  | J17: =IF($B$9 = "", "", IF(ROWS(J$12:J17) > $D$2, "", INDEX(Detail!U$4:U$45913, SMALL(IF(Detail!$B$4:$B$45913=$B$9, ROW(Detail!$B$4:$B$45913)-ROW(Detail!$B$4)+1), ROWS(J$12:J17))))) ->  | K17: =IF($B$9 = "", "", IF(ROWS(K$12:K17) > $D$2, "", INDEX(Detail!W$4:W$45913, SMALL(IF(Detail!$B$4:$B$45913=$B$9, ROW(Detail!$B$4:$B$45913)-ROW(Detail!$B$4)+1), ROWS(K$12:K17))))) ->  | L17: =IF($B$9 = "", "", IF(ROWS(L$12:L17) > $D$2, "", INDEX(Detail!X$4:X$45913, SMALL(IF(Detail!$B$4:$B$45913=$B$9, ROW(Detail!$B$4:$B$45913)-ROW(Detail!$B$4)+1), ROWS(L$12:L17))))) -> 
A18: =IF($B$9 = "", "", IF(ROWS(A$12:A18) > $D$2, "", INDEX(Detail!B$4:B$45913, SMALL(IF(Detail!$B$4:$B$45913=$B$9, ROW(Detail!$B$4:$B$45913)-ROW(Detail!$B$4)+1), ROWS(A$12:A18))))) ->  | B18: =IF($B$9 = "", "", IF(ROWS(B$12:B18) > $D$2, "", INDEX(Detail!E$4:E$45913, SMALL(IF(Detail!$B$4:$B$45913=$B$9, ROW(Detail!$B$4:$B$45913)-ROW(Detail!$B$4)+1), ROWS(B$12:B18))))) ->  | C18: =IF($B$9 = "", "", IF(ROWS(C$12:C18) > $D$2, "", INDEX(Detail!F$4:F$45913, SMALL(IF(Detail!$B$4:$B$45913=$B$9, ROW(Detail!$B$4:$B$45913)-ROW(Detail!$B$4)+1), ROWS(C$12:C18))))) ->  | D18: =IF($B$9 = "", "", IF(ROWS(D$12:D18) > $D$2, "", INDEX(Detail!G$4:G$45913, SMALL(IF(Detail!$B$4:$B$45913=$B$9, ROW(Detail!$B$4:$B$45913)-ROW(Detail!$B$4)+1), ROWS(D$12:D18))))) ->  | E18: =IF($B$9 = "", "", IF(ROWS(E$12:E18) > $D$2, "", INDEX(Detail!H$4:H$45913, SMALL(IF(Detail!$B$4:$B$45913=$B$9, ROW(Detail!$B$4:$B$45913)-ROW(Detail!$B$4)+1), ROWS(E$12:E18))))) ->  | F18: =IF($B$9 = "", "", IF(ROWS(F$12:F18) > $D$2, "", INDEX(Detail!K$4:K$45913, SMALL(IF(Detail!$B$4:$B$45913=$B$9, ROW(Detail!$B$4:$B$45913)-ROW(Detail!$B$4)+1), ROWS(F$12:F18))))) ->  | G18: =IF($B$9 = "", "", IF(ROWS(G$12:G18) > $D$2, "", INDEX(Detail!N$4:N$45913, SMALL(IF(Detail!$B$4:$B$45913=$B$9, ROW(Detail!$B$4:$B$45913)-ROW(Detail!$B$4)+1), ROWS(G$12:G18))))) ->  | H18: =IF($B$9 = "", "", IF(ROWS(H$12:H18) > $D$2, "", INDEX(Detail!O$4:O$45913, SMALL(IF(Detail!$B$4:$B$45913=$B$9, ROW(Detail!$B$4:$B$45913)-ROW(Detail!$B$4)+1), ROWS(H$12:H18))))) ->  | I18: =IF($B$9 = "", "", IF(ROWS(I$12:I18) > $D$2, "", INDEX(Detail!Q$4:Q$45913, SMALL(IF(Detail!$B$4:$B$45913=$B$9, ROW(Detail!$B$4:$B$45913)-ROW(Detail!$B$4)+1), ROWS(I$12:I18))))) ->  | J18: =IF($B$9 = "", "", IF(ROWS(J$12:J18) > $D$2, "", INDEX(Detail!U$4:U$45913, SMALL(IF(Detail!$B$4:$B$45913=$B$9, ROW(Detail!$B$4:$B$45913)-ROW(Detail!$B$4)+1), ROWS(J$12:J18))))) ->  | K18: =IF($B$9 = "", "", IF(ROWS(K$12:K18) > $D$2, "", INDEX(Detail!W$4:W$45913, SMALL(IF(Detail!$B$4:$B$45913=$B$9, ROW(Detail!$B$4:$B$45913)-ROW(Detail!$B$4)+1), ROWS(K$12:K18))))) ->  | L18: =IF($B$9 = "", "", IF(ROWS(L$12:L18) > $D$2, "", INDEX(Detail!X$4:X$45913, SMALL(IF(Detail!$B$4:$B$45913=$B$9, ROW(Detail!$B$4:$B$45913)-ROW(Detail!$B$4)+1), ROWS(L$12:L18))))) -> 
A19: =IF($B$9 = "", "", IF(ROWS(A$12:A19) > $D$2, "", INDEX(Detail!B$4:B$45913, SMALL(IF(Detail!$B$4:$B$45913=$B$9, ROW(Detail!$B$4:$B$45913)-ROW(Detail!$B$4)+1), ROWS(A$12:A19))))) ->  | B19: =IF($B$9 = "", "", IF(ROWS(B$12:B19) > $D$2, "", INDEX(Detail!E$4:E$45913, SMALL(IF(Detail!$B$4:$B$45913=$B$9, ROW(Detail!$B$4:$B$45913)-ROW(Detail!$B$4)+1), ROWS(B$12:B19))))) ->  | C19: =IF($B$9 = "", "", IF(ROWS(C$12:C19) > $D$2, "", INDEX(Detail!F$4:F$45913, SMALL(IF(Detail!$B$4:$B$45913=$B$9, ROW(Detail!$B$4:$B$45913)-ROW(Detail!$B$4)+1), ROWS(C$12:C19))))) ->  | D19: =IF($B$9 = "", "", IF(ROWS(D$12:D19) > $D$2, "", INDEX(Detail!G$4:G$45913, SMALL(IF(Detail!$B$4:$B$45913=$B$9, ROW(Detail!$B$4:$B$45913)-ROW(Detail!$B$4)+1), ROWS(D$12:D19))))) ->  | E19: =IF($B$9 = "", "", IF(ROWS(E$12:E19) > $D$2, "", INDEX(Detail!H$4:H$45913, SMALL(IF(Detail!$B$4:$B$45913=$B$9, ROW(Detail!$B$4:$B$45913)-ROW(Detail!$B$4)+1), ROWS(E$12:E19))))) ->  | F19: =IF($B$9 = "", "", IF(ROWS(F$12:F19) > $D$2, "", INDEX(Detail!K$4:K$45913, SMALL(IF(Detail!$B$4:$B$45913=$B$9, ROW(Detail!$B$4:$B$45913)-ROW(Detail!$B$4)+1), ROWS(F$12:F19))))) ->  | G19: =IF($B$9 = "", "", IF(ROWS(G$12:G19) > $D$2, "", INDEX(Detail!N$4:N$45913, SMALL(IF(Detail!$B$4:$B$45913=$B$9, ROW(Detail!$B$4:$B$45913)-ROW(Detail!$B$4)+1), ROWS(G$12:G19))))) ->  | H19: =IF($B$9 = "", "", IF(ROWS(H$12:H19) > $D$2, "", INDEX(Detail!O$4:O$45913, SMALL(IF(Detail!$B$4:$B$45913=$B$9, ROW(Detail!$B$4:$B$45913)-ROW(Detail!$B$4)+1), ROWS(H$12:H19))))) ->  | I19: =IF($B$9 = "", "", IF(ROWS(I$12:I19) > $D$2, "", INDEX(Detail!Q$4:Q$45913, SMALL(IF(Detail!$B$4:$B$45913=$B$9, ROW(Detail!$B$4:$B$45913)-ROW(Detail!$B$4)+1), ROWS(I$12:I19))))) ->  | J19: =IF($B$9 = "", "", IF(ROWS(J$12:J19) > $D$2, "", INDEX(Detail!U$4:U$45913, SMALL(IF(Detail!$B$4:$B$45913=$B$9, ROW(Detail!$B$4:$B$45913)-ROW(Detail!$B$4)+1), ROWS(J$12:J19))))) ->  | K19: =IF($B$9 = "", "", IF(ROWS(K$12:K19) > $D$2, "", INDEX(Detail!W$4:W$45913, SMALL(IF(Detail!$B$4:$B$45913=$B$9, ROW(Detail!$B$4:$B$45913)-ROW(Detail!$B$4)+1), ROWS(K$12:K19))))) ->  | L19: =IF($B$9 = "", "", IF(ROWS(L$12:L19) > $D$2, "", INDEX(Detail!X$4:X$45913, SMALL(IF(Detail!$B$4:$B$45913=$B$9, ROW(Detail!$B$4:$B$45913)-ROW(Detail!$B$4)+1), ROWS(L$12:L19))))) -> 
A20: =IF($B$9 = "", "", IF(ROWS(A$12:A20) > $D$2, "", INDEX(Detail!B$4:B$45913, SMALL(IF(Detail!$B$4:$B$45913=$B$9, ROW(Detail!$B$4:$B$45913)-ROW(Detail!$B$4)+1), ROWS(A$12:A20))))) ->  | B20: =IF($B$9 = "", "", IF(ROWS(B$12:B20) > $D$2, "", INDEX(Detail!E$4:E$45913, SMALL(IF(Detail!$B$4:$B$45913=$B$9, ROW(Detail!$B$4:$B$45913)-ROW(Detail!$B$4)+1), ROWS(B$12:B20))))) ->  | C20: =IF($B$9 = "", "", IF(ROWS(C$12:C20) > $D$2, "", INDEX(Detail!F$4:F$45913, SMALL(IF(Detail!$B$4:$B$45913=$B$9, ROW(Detail!$B$4:$B$45913)-ROW(Detail!$B$4)+1), ROWS(C$12:C20))))) ->  | D20: =IF($B$9 = "", "", IF(ROWS(D$12:D20) > $D$2, "", INDEX(Detail!G$4:G$45913, SMALL(IF(Detail!$B$4:$B$45913=$B$9, ROW(Detail!$B$4:$B$45913)-ROW(Detail!$B$4)+1), ROWS(D$12:D20))))) ->  | E20: =IF($B$9 = "", "", IF(ROWS(E$12:E20) > $D$2, "", INDEX(Detail!H$4:H$45913, SMALL(IF(Detail!$B$4:$B$45913=$B$9, ROW(Detail!$B$4:$B$45913)-ROW(Detail!$B$4)+1), ROWS(E$12:E20))))) ->  | F20: =IF($B$9 = "", "", IF(ROWS(F$12:F20) > $D$2, "", INDEX(Detail!K$4:K$45913, SMALL(IF(Detail!$B$4:$B$45913=$B$9, ROW(Detail!$B$4:$B$45913)-ROW(Detail!$B$4)+1), ROWS(F$12:F20))))) ->  | G20: =IF($B$9 = "", "", IF(ROWS(G$12:G20) > $D$2, "", INDEX(Detail!N$4:N$45913, SMALL(IF(Detail!$B$4:$B$45913=$B$9, ROW(Detail!$B$4:$B$45913)-ROW(Detail!$B$4)+1), ROWS(G$12:G20))))) ->  | H20: =IF($B$9 = "", "", IF(ROWS(H$12:H20) > $D$2, "", INDEX(Detail!O$4:O$45913, SMALL(IF(Detail!$B$4:$B$45913=$B$9, ROW(Detail!$B$4:$B$45913)-ROW(Detail!$B$4)+1), ROWS(H$12:H20))))) ->  | I20: =IF($B$9 = "", "", IF(ROWS(I$12:I20) > $D$2, "", INDEX(Detail!Q$4:Q$45913, SMALL(IF(Detail!$B$4:$B$45913=$B$9, ROW(Detail!$B$4:$B$45913)-ROW(Detail!$B$4)+1), ROWS(I$12:I20))))) ->  | J20: =IF($B$9 = "", "", IF(ROWS(J$12:J20) > $D$2, "", INDEX(Detail!U$4:U$45913, SMALL(IF(Detail!$B$4:$B$45913=$B$9, ROW(Detail!$B$4:$B$45913)-ROW(Detail!$B$4)+1), ROWS(J$12:J20))))) ->  | K20: =IF($B$9 = "", "", IF(ROWS(K$12:K20) > $D$2, "", INDEX(Detail!W$4:W$45913, SMALL(IF(Detail!$B$4:$B$45913=$B$9, ROW(Detail!$B$4:$B$45913)-ROW(Detail!$B$4)+1), ROWS(K$12:K20))))) ->  | L20: =IF($B$9 = "", "", IF(ROWS(L$12:L20) > $D$2, "", INDEX(Detail!X$4:X$45913, SMALL(IF(Detail!$B$4:$B$45913=$B$9, ROW(Detail!$B$4:$B$45913)-ROW(Detail!$B$4)+1), ROWS(L$12:L20))))) -> 
A21: =IF($B$9 = "", "", IF(ROWS(A$12:A21) > $D$2, "", INDEX(Detail!B$4:B$45913, SMALL(IF(Detail!$B$4:$B$45913=$B$9, ROW(Detail!$B$4:$B$45913)-ROW(Detail!$B$4)+1), ROWS(A$12:A21))))) ->  | B21: =IF($B$9 = "", "", IF(ROWS(B$12:B21) > $D$2, "", INDEX(Detail!E$4:E$45913, SMALL(IF(Detail!$B$4:$B$45913=$B$9, ROW(Detail!$B$4:$B$45913)-ROW(Detail!$B$4)+1), ROWS(B$12:B21))))) ->  | C21: =IF($B$9 = "", "", IF(ROWS(C$12:C21) > $D$2, "", INDEX(Detail!F$4:F$45913, SMALL(IF(Detail!$B$4:$B$45913=$B$9, ROW(Detail!$B$4:$B$45913)-ROW(Detail!$B$4)+1), ROWS(C$12:C21))))) ->  | D21: =IF($B$9 = "", "", IF(ROWS(D$12:D21) > $D$2, "", INDEX(Detail!G$4:G$45913, SMALL(IF(Detail!$B$4:$B$45913=$B$9, ROW(Detail!$B$4:$B$45913)-ROW(Detail!$B$4)+1), ROWS(D$12:D21))))) ->  | E21: =IF($B$9 = "", "", IF(ROWS(E$12:E21) > $D$2, "", INDEX(Detail!H$4:H$45913, SMALL(IF(Detail!$B$4:$B$45913=$B$9, ROW(Detail!$B$4:$B$45913)-ROW(Detail!$B$4)+1), ROWS(E$12:E21))))) ->  | F21: =IF($B$9 = "", "", IF(ROWS(F$12:F21) > $D$2, "", INDEX(Detail!K$4:K$45913, SMALL(IF(Detail!$B$4:$B$45913=$B$9, ROW(Detail!$B$4:$B$45913)-ROW(Detail!$B$4)+1), ROWS(F$12:F21))))) ->  | G21: =IF($B$9 = "", "", IF(ROWS(G$12:G21) > $D$2, "", INDEX(Detail!N$4:N$45913, SMALL(IF(Detail!$B$4:$B$45913=$B$9, ROW(Detail!$B$4:$B$45913)-ROW(Detail!$B$4)+1), ROWS(G$12:G21))))) ->  | H21: =IF($B$9 = "", "", IF(ROWS(H$12:H21) > $D$2, "", INDEX(Detail!O$4:O$45913, SMALL(IF(Detail!$B$4:$B$45913=$B$9, ROW(Detail!$B$4:$B$45913)-ROW(Detail!$B$4)+1), ROWS(H$12:H21))))) ->  | I21: =IF($B$9 = "", "", IF(ROWS(I$12:I21) > $D$2, "", INDEX(Detail!Q$4:Q$45913, SMALL(IF(Detail!$B$4:$B$45913=$B$9, ROW(Detail!$B$4:$B$45913)-ROW(Detail!$B$4)+1), ROWS(I$12:I21))))) ->  | J21: =IF($B$9 = "", "", IF(ROWS(J$12:J21) > $D$2, "", INDEX(Detail!U$4:U$45913, SMALL(IF(Detail!$B$4:$B$45913=$B$9, ROW(Detail!$B$4:$B$45913)-ROW(Detail!$B$4)+1), ROWS(J$12:J21))))) ->  | K21: =IF($B$9 = "", "", IF(ROWS(K$12:K21) > $D$2, "", INDEX(Detail!W$4:W$45913, SMALL(IF(Detail!$B$4:$B$45913=$B$9, ROW(Detail!$B$4:$B$45913)-ROW(Detail!$B$4)+1), ROWS(K$12:K21))))) ->  | L21: =IF($B$9 = "", "", IF(ROWS(L$12:L21) > $D$2, "", INDEX(Detail!X$4:X$45913, SMALL(IF(Detail!$B$4:$B$45913=$B$9, ROW(Detail!$B$4:$B$45913)-ROW(Detail!$B$4)+1), ROWS(L$12:L21))))) -> 
A22: =IF($B$9 = "", "", IF(ROWS(A$12:A22) > $D$2, "", INDEX(Detail!B$4:B$45913, SMALL(IF(Detail!$B$4:$B$45913=$B$9, ROW(Detail!$B$4:$B$45913)-ROW(Detail!$B$4)+1), ROWS(A$12:A22))))) ->  | B22: =IF($B$9 = "", "", IF(ROWS(B$12:B22) > $D$2, "", INDEX(Detail!E$4:E$45913, SMALL(IF(Detail!$B$4:$B$45913=$B$9, ROW(Detail!$B$4:$B$45913)-ROW(Detail!$B$4)+1), ROWS(B$12:B22))))) ->  | C22: =IF($B$9 = "", "", IF(ROWS(C$12:C22) > $D$2, "", INDEX(Detail!F$4:F$45913, SMALL(IF(Detail!$B$4:$B$45913=$B$9, ROW(Detail!$B$4:$B$45913)-ROW(Detail!$B$4)+1), ROWS(C$12:C22))))) ->  | D22: =IF($B$9 = "", "", IF(ROWS(D$12:D22) > $D$2, "", INDEX(Detail!G$4:G$45913, SMALL(IF(Detail!$B$4:$B$45913=$B$9, ROW(Detail!$B$4:$B$45913)-ROW(Detail!$B$4)+1), ROWS(D$12:D22))))) ->  | E22: =IF($B$9 = "", "", IF(ROWS(E$12:E22) > $D$2, "", INDEX(Detail!H$4:H$45913, SMALL(IF(Detail!$B$4:$B$45913=$B$9, ROW(Detail!$B$4:$B$45913)-ROW(Detail!$B$4)+1), ROWS(E$12:E22))))) ->  | F22: =IF($B$9 = "", "", IF(ROWS(F$12:F22) > $D$2, "", INDEX(Detail!K$4:K$45913, SMALL(IF(Detail!$B$4:$B$45913=$B$9, ROW(Detail!$B$4:$B$45913)-ROW(Detail!$B$4)+1), ROWS(F$12:F22))))) ->  | G22: =IF($B$9 = "", "", IF(ROWS(G$12:G22) > $D$2, "", INDEX(Detail!N$4:N$45913, SMALL(IF(Detail!$B$4:$B$45913=$B$9, ROW(Detail!$B$4:$B$45913)-ROW(Detail!$B$4)+1), ROWS(G$12:G22))))) ->  | H22: =IF($B$9 = "", "", IF(ROWS(H$12:H22) > $D$2, "", INDEX(Detail!O$4:O$45913, SMALL(IF(Detail!$B$4:$B$45913=$B$9, ROW(Detail!$B$4:$B$45913)-ROW(Detail!$B$4)+1), ROWS(H$12:H22))))) ->  | I22: =IF($B$9 = "", "", IF(ROWS(I$12:I22) > $D$2, "", INDEX(Detail!Q$4:Q$45913, SMALL(IF(Detail!$B$4:$B$45913=$B$9, ROW(Detail!$B$4:$B$45913)-ROW(Detail!$B$4)+1), ROWS(I$12:I22))))) ->  | J22: =IF($B$9 = "", "", IF(ROWS(J$12:J22) > $D$2, "", INDEX(Detail!U$4:U$45913, SMALL(IF(Detail!$B$4:$B$45913=$B$9, ROW(Detail!$B$4:$B$45913)-ROW(Detail!$B$4)+1), ROWS(J$12:J22))))) ->  | K22: =IF($B$9 = "", "", IF(ROWS(K$12:K22) > $D$2, "", INDEX(Detail!W$4:W$45913, SMALL(IF(Detail!$B$4:$B$45913=$B$9, ROW(Detail!$B$4:$B$45913)-ROW(Detail!$B$4)+1), ROWS(K$12:K22))))) ->  | L22: =IF($B$9 = "", "", IF(ROWS(L$12:L22) > $D$2, "", INDEX(Detail!X$4:X$45913, SMALL(IF(Detail!$B$4:$B$45913=$B$9, ROW(Detail!$B$4:$B$45913)-ROW(Detail!$B$4)+1), ROWS(L$12:L22))))) -> 
A23: =IF($B$9 = "", "", IF(ROWS(A$12:A23) > $D$2, "", INDEX(Detail!B$4:B$45913, SMALL(IF(Detail!$B$4:$B$45913=$B$9, ROW(Detail!$B$4:$B$45913)-ROW(Detail!$B$4)+1), ROWS(A$12:A23))))) ->  | B23: =IF($B$9 = "", "", IF(ROWS(B$12:B23) > $D$2, "", INDEX(Detail!E$4:E$45913, SMALL(IF(Detail!$B$4:$B$45913=$B$9, ROW(Detail!$B$4:$B$45913)-ROW(Detail!$B$4)+1), ROWS(B$12:B23))))) ->  | C23: =IF($B$9 = "", "", IF(ROWS(C$12:C23) > $D$2, "", INDEX(Detail!F$4:F$45913, SMALL(IF(Detail!$B$4:$B$45913=$B$9, ROW(Detail!$B$4:$B$45913)-ROW(Detail!$B$4)+1), ROWS(C$12:C23))))) ->  | D23: =IF($B$9 = "", "", IF(ROWS(D$12:D23) > $D$2, "", INDEX(Detail!G$4:G$45913, SMALL(IF(Detail!$B$4:$B$45913=$B$9, ROW(Detail!$B$4:$B$45913)-ROW(Detail!$B$4)+1), ROWS(D$12:D23))))) ->  | E23: =IF($B$9 = "", "", IF(ROWS(E$12:E23) > $D$2, "", INDEX(Detail!H$4:H$45913, SMALL(IF(Detail!$B$4:$B$45913=$B$9, ROW(Detail!$B$4:$B$45913)-ROW(Detail!$B$4)+1), ROWS(E$12:E23))))) ->  | F23: =IF($B$9 = "", "", IF(ROWS(F$12:F23) > $D$2, "", INDEX(Detail!K$4:K$45913, SMALL(IF(Detail!$B$4:$B$45913=$B$9, ROW(Detail!$B$4:$B$45913)-ROW(Detail!$B$4)+1), ROWS(F$12:F23))))) ->  | G23: =IF($B$9 = "", "", IF(ROWS(G$12:G23) > $D$2, "", INDEX(Detail!N$4:N$45913, SMALL(IF(Detail!$B$4:$B$45913=$B$9, ROW(Detail!$B$4:$B$45913)-ROW(Detail!$B$4)+1), ROWS(G$12:G23))))) ->  | H23: =IF($B$9 = "", "", IF(ROWS(H$12:H23) > $D$2, "", INDEX(Detail!O$4:O$45913, SMALL(IF(Detail!$B$4:$B$45913=$B$9, ROW(Detail!$B$4:$B$45913)-ROW(Detail!$B$4)+1), ROWS(H$12:H23))))) ->  | I23: =IF($B$9 = "", "", IF(ROWS(I$12:I23) > $D$2, "", INDEX(Detail!Q$4:Q$45913, SMALL(IF(Detail!$B$4:$B$45913=$B$9, ROW(Detail!$B$4:$B$45913)-ROW(Detail!$B$4)+1), ROWS(I$12:I23))))) ->  | J23: =IF($B$9 = "", "", IF(ROWS(J$12:J23) > $D$2, "", INDEX(Detail!U$4:U$45913, SMALL(IF(Detail!$B$4:$B$45913=$B$9, ROW(Detail!$B$4:$B$45913)-ROW(Detail!$B$4)+1), ROWS(J$12:J23))))) ->  | K23: =IF($B$9 = "", "", IF(ROWS(K$12:K23) > $D$2, "", INDEX(Detail!W$4:W$45913, SMALL(IF(Detail!$B$4:$B$45913=$B$9, ROW(Detail!$B$4:$B$45913)-ROW(Detail!$B$4)+1), ROWS(K$12:K23))))) ->  | L23: =IF($B$9 = "", "", IF(ROWS(L$12:L23) > $D$2, "", INDEX(Detail!X$4:X$45913, SMALL(IF(Detail!$B$4:$B$45913=$B$9, ROW(Detail!$B$4:$B$45913)-ROW(Detail!$B$4)+1), ROWS(L$12:L23))))) -> 
A24: =IF($B$9 = "", "", IF(ROWS(A$12:A24) > $D$2, "", INDEX(Detail!B$4:B$45913, SMALL(IF(Detail!$B$4:$B$45913=$B$9, ROW(Detail!$B$4:$B$45913)-ROW(Detail!$B$4)+1), ROWS(A$12:A24))))) ->  | B24: =IF($B$9 = "", "", IF(ROWS(B$12:B24) > $D$2, "", INDEX(Detail!E$4:E$45913, SMALL(IF(Detail!$B$4:$B$45913=$B$9, ROW(Detail!$B$4:$B$45913)-ROW(Detail!$B$4)+1), ROWS(B$12:B24))))) ->  | C24: =IF($B$9 = "", "", IF(ROWS(C$12:C24) > $D$2, "", INDEX(Detail!F$4:F$45913, SMALL(IF(Detail!$B$4:$B$45913=$B$9, ROW(Detail!$B$4:$B$45913)-ROW(Detail!$B$4)+1), ROWS(C$12:C24))))) ->  | D24: =IF($B$9 = "", "", IF(ROWS(D$12:D24) > $D$2, "", INDEX(Detail!G$4:G$45913, SMALL(IF(Detail!$B$4:$B$45913=$B$9, ROW(Detail!$B$4:$B$45913)-ROW(Detail!$B$4)+1), ROWS(D$12:D24))))) ->  | E24: =IF($B$9 = "", "", IF(ROWS(E$12:E24) > $D$2, "", INDEX(Detail!H$4:H$45913, SMALL(IF(Detail!$B$4:$B$45913=$B$9, ROW(Detail!$B$4:$B$45913)-ROW(Detail!$B$4)+1), ROWS(E$12:E24))))) ->  | F24: =IF($B$9 = "", "", IF(ROWS(F$12:F24) > $D$2, "", INDEX(Detail!K$4:K$45913, SMALL(IF(Detail!$B$4:$B$45913=$B$9, ROW(Detail!$B$4:$B$45913)-ROW(Detail!$B$4)+1), ROWS(F$12:F24))))) ->  | G24: =IF($B$9 = "", "", IF(ROWS(G$12:G24) > $D$2, "", INDEX(Detail!N$4:N$45913, SMALL(IF(Detail!$B$4:$B$45913=$B$9, ROW(Detail!$B$4:$B$45913)-ROW(Detail!$B$4)+1), ROWS(G$12:G24))))) ->  | H24: =IF($B$9 = "", "", IF(ROWS(H$12:H24) > $D$2, "", INDEX(Detail!O$4:O$45913, SMALL(IF(Detail!$B$4:$B$45913=$B$9, ROW(Detail!$B$4:$B$45913)-ROW(Detail!$B$4)+1), ROWS(H$12:H24))))) ->  | I24: =IF($B$9 = "", "", IF(ROWS(I$12:I24) > $D$2, "", INDEX(Detail!Q$4:Q$45913, SMALL(IF(Detail!$B$4:$B$45913=$B$9, ROW(Detail!$B$4:$B$45913)-ROW(Detail!$B$4)+1), ROWS(I$12:I24))))) ->  | J24: =IF($B$9 = "", "", IF(ROWS(J$12:J24) > $D$2, "", INDEX(Detail!U$4:U$45913, SMALL(IF(Detail!$B$4:$B$45913=$B$9, ROW(Detail!$B$4:$B$45913)-ROW(Detail!$B$4)+1), ROWS(J$12:J24))))) ->  | K24: =IF($B$9 = "", "", IF(ROWS(K$12:K24) > $D$2, "", INDEX(Detail!W$4:W$45913, SMALL(IF(Detail!$B$4:$B$45913=$B$9, ROW(Detail!$B$4:$B$45913)-ROW(Detail!$B$4)+1), ROWS(K$12:K24))))) ->  | L24: =IF($B$9 = "", "", IF(ROWS(L$12:L24) > $D$2, "", INDEX(Detail!X$4:X$45913, SMALL(IF(Detail!$B$4:$B$45913=$B$9, ROW(Detail!$B$4:$B$45913)-ROW(Detail!$B$4)+1), ROWS(L$12:L24))))) -> 
A25: =IF($B$9 = "", "", IF(ROWS(A$12:A25) > $D$2, "", INDEX(Detail!B$4:B$45913, SMALL(IF(Detail!$B$4:$B$45913=$B$9, ROW(Detail!$B$4:$B$45913)-ROW(Detail!$B$4)+1), ROWS(A$12:A25))))) ->  | B25: =IF($B$9 = "", "", IF(ROWS(B$12:B25) > $D$2, "", INDEX(Detail!E$4:E$45913, SMALL(IF(Detail!$B$4:$B$45913=$B$9, ROW(Detail!$B$4:$B$45913)-ROW(Detail!$B$4)+1), ROWS(B$12:B25))))) ->  | C25: =IF($B$9 = "", "", IF(ROWS(C$12:C25) > $D$2, "", INDEX(Detail!F$4:F$45913, SMALL(IF(Detail!$B$4:$B$45913=$B$9, ROW(Detail!$B$4:$B$45913)-ROW(Detail!$B$4)+1), ROWS(C$12:C25))))) ->  | D25: =IF($B$9 = "", "", IF(ROWS(D$12:D25) > $D$2, "", INDEX(Detail!G$4:G$45913, SMALL(IF(Detail!$B$4:$B$45913=$B$9, ROW(Detail!$B$4:$B$45913)-ROW(Detail!$B$4)+1), ROWS(D$12:D25))))) ->  | E25: =IF($B$9 = "", "", IF(ROWS(E$12:E25) > $D$2, "", INDEX(Detail!H$4:H$45913, SMALL(IF(Detail!$B$4:$B$45913=$B$9, ROW(Detail!$B$4:$B$45913)-ROW(Detail!$B$4)+1), ROWS(E$12:E25))))) ->  | F25: =IF($B$9 = "", "", IF(ROWS(F$12:F25) > $D$2, "", INDEX(Detail!K$4:K$45913, SMALL(IF(Detail!$B$4:$B$45913=$B$9, ROW(Detail!$B$4:$B$45913)-ROW(Detail!$B$4)+1), ROWS(F$12:F25))))) ->  | G25: =IF($B$9 = "", "", IF(ROWS(G$12:G25) > $D$2, "", INDEX(Detail!N$4:N$45913, SMALL(IF(Detail!$B$4:$B$45913=$B$9, ROW(Detail!$B$4:$B$45913)-ROW(Detail!$B$4)+1), ROWS(G$12:G25))))) ->  | H25: =IF($B$9 = "", "", IF(ROWS(H$12:H25) > $D$2, "", INDEX(Detail!O$4:O$45913, SMALL(IF(Detail!$B$4:$B$45913=$B$9, ROW(Detail!$B$4:$B$45913)-ROW(Detail!$B$4)+1), ROWS(H$12:H25))))) ->  | I25: =IF($B$9 = "", "", IF(ROWS(I$12:I25) > $D$2, "", INDEX(Detail!Q$4:Q$45913, SMALL(IF(Detail!$B$4:$B$45913=$B$9, ROW(Detail!$B$4:$B$45913)-ROW(Detail!$B$4)+1), ROWS(I$12:I25))))) ->  | J25: =IF($B$9 = "", "", IF(ROWS(J$12:J25) > $D$2, "", INDEX(Detail!U$4:U$45913, SMALL(IF(Detail!$B$4:$B$45913=$B$9, ROW(Detail!$B$4:$B$45913)-ROW(Detail!$B$4)+1), ROWS(J$12:J25))))) ->  | K25: =IF($B$9 = "", "", IF(ROWS(K$12:K25) > $D$2, "", INDEX(Detail!W$4:W$45913, SMALL(IF(Detail!$B$4:$B$45913=$B$9, ROW(Detail!$B$4:$B$45913)-ROW(Detail!$B$4)+1), ROWS(K$12:K25))))) ->  | L25: =IF($B$9 = "", "", IF(ROWS(L$12:L25) > $D$2, "", INDEX(Detail!X$4:X$45913, SMALL(IF(Detail!$B$4:$B$45913=$B$9, ROW(Detail!$B$4:$B$45913)-ROW(Detail!$B$4)+1), ROWS(L$12:L25))))) -> 
A26: =IF($B$9 = "", "", IF(ROWS(A$12:A26) > $D$2, "", INDEX(Detail!B$4:B$45913, SMALL(IF(Detail!$B$4:$B$45913=$B$9, ROW(Detail!$B$4:$B$45913)-ROW(Detail!$B$4)+1), ROWS(A$12:A26))))) ->  | B26: =IF($B$9 = "", "", IF(ROWS(B$12:B26) > $D$2, "", INDEX(Detail!E$4:E$45913, SMALL(IF(Detail!$B$4:$B$45913=$B$9, ROW(Detail!$B$4:$B$45913)-ROW(Detail!$B$4)+1), ROWS(B$12:B26))))) ->  | C26: =IF($B$9 = "", "", IF(ROWS(C$12:C26) > $D$2, "", INDEX(Detail!F$4:F$45913, SMALL(IF(Detail!$B$4:$B$45913=$B$9, ROW(Detail!$B$4:$B$45913)-ROW(Detail!$B$4)+1), ROWS(C$12:C26))))) ->  | D26: =IF($B$9 = "", "", IF(ROWS(D$12:D26) > $D$2, "", INDEX(Detail!G$4:G$45913, SMALL(IF(Detail!$B$4:$B$45913=$B$9, ROW(Detail!$B$4:$B$45913)-ROW(Detail!$B$4)+1), ROWS(D$12:D26))))) ->  | E26: =IF($B$9 = "", "", IF(ROWS(E$12:E26) > $D$2, "", INDEX(Detail!H$4:H$45913, SMALL(IF(Detail!$B$4:$B$45913=$B$9, ROW(Detail!$B$4:$B$45913)-ROW(Detail!$B$4)+1), ROWS(E$12:E26))))) ->  | F26: =IF($B$9 = "", "", IF(ROWS(F$12:F26) > $D$2, "", INDEX(Detail!K$4:K$45913, SMALL(IF(Detail!$B$4:$B$45913=$B$9, ROW(Detail!$B$4:$B$45913)-ROW(Detail!$B$4)+1), ROWS(F$12:F26))))) ->  | G26: =IF($B$9 = "", "", IF(ROWS(G$12:G26) > $D$2, "", INDEX(Detail!N$4:N$45913, SMALL(IF(Detail!$B$4:$B$45913=$B$9, ROW(Detail!$B$4:$B$45913)-ROW(Detail!$B$4)+1), ROWS(G$12:G26))))) ->  | H26: =IF($B$9 = "", "", IF(ROWS(H$12:H26) > $D$2, "", INDEX(Detail!O$4:O$45913, SMALL(IF(Detail!$B$4:$B$45913=$B$9, ROW(Detail!$B$4:$B$45913)-ROW(Detail!$B$4)+1), ROWS(H$12:H26))))) ->  | I26: =IF($B$9 = "", "", IF(ROWS(I$12:I26) > $D$2, "", INDEX(Detail!Q$4:Q$45913, SMALL(IF(Detail!$B$4:$B$45913=$B$9, ROW(Detail!$B$4:$B$45913)-ROW(Detail!$B$4)+1), ROWS(I$12:I26))))) ->  | J26: =IF($B$9 = "", "", IF(ROWS(J$12:J26) > $D$2, "", INDEX(Detail!U$4:U$45913, SMALL(IF(Detail!$B$4:$B$45913=$B$9, ROW(Detail!$B$4:$B$45913)-ROW(Detail!$B$4)+1), ROWS(J$12:J26))))) ->  | K26: =IF($B$9 = "", "", IF(ROWS(K$12:K26) > $D$2, "", INDEX(Detail!W$4:W$45913, SMALL(IF(Detail!$B$4:$B$45913=$B$9, ROW(Detail!$B$4:$B$45913)-ROW(Detail!$B$4)+1), ROWS(K$12:K26))))) ->  | L26: =IF($B$9 = "", "", IF(ROWS(L$12:L26) > $D$2, "", INDEX(Detail!X$4:X$45913, SMALL(IF(Detail!$B$4:$B$45913=$B$9, ROW(Detail!$B$4:$B$45913)-ROW(Detail!$B$4)+1), ROWS(L$12:L26))))) -> 
A27: =IF($B$9 = "", "", IF(ROWS(A$12:A27) > $D$2, "", INDEX(Detail!B$4:B$45913, SMALL(IF(Detail!$B$4:$B$45913=$B$9, ROW(Detail!$B$4:$B$45913)-ROW(Detail!$B$4)+1), ROWS(A$12:A27))))) ->  | B27: =IF($B$9 = "", "", IF(ROWS(B$12:B27) > $D$2, "", INDEX(Detail!E$4:E$45913, SMALL(IF(Detail!$B$4:$B$45913=$B$9, ROW(Detail!$B$4:$B$45913)-ROW(Detail!$B$4)+1), ROWS(B$12:B27))))) ->  | C27: =IF($B$9 = "", "", IF(ROWS(C$12:C27) > $D$2, "", INDEX(Detail!F$4:F$45913, SMALL(IF(Detail!$B$4:$B$45913=$B$9, ROW(Detail!$B$4:$B$45913)-ROW(Detail!$B$4)+1), ROWS(C$12:C27))))) ->  | D27: =IF($B$9 = "", "", IF(ROWS(D$12:D27) > $D$2, "", INDEX(Detail!G$4:G$45913, SMALL(IF(Detail!$B$4:$B$45913=$B$9, ROW(Detail!$B$4:$B$45913)-ROW(Detail!$B$4)+1), ROWS(D$12:D27))))) ->  | E27: =IF($B$9 = "", "", IF(ROWS(E$12:E27) > $D$2, "", INDEX(Detail!H$4:H$45913, SMALL(IF(Detail!$B$4:$B$45913=$B$9, ROW(Detail!$B$4:$B$45913)-ROW(Detail!$B$4)+1), ROWS(E$12:E27))))) ->  | F27: =IF($B$9 = "", "", IF(ROWS(F$12:F27) > $D$2, "", INDEX(Detail!K$4:K$45913, SMALL(IF(Detail!$B$4:$B$45913=$B$9, ROW(Detail!$B$4:$B$45913)-ROW(Detail!$B$4)+1), ROWS(F$12:F27))))) ->  | G27: =IF($B$9 = "", "", IF(ROWS(G$12:G27) > $D$2, "", INDEX(Detail!N$4:N$45913, SMALL(IF(Detail!$B$4:$B$45913=$B$9, ROW(Detail!$B$4:$B$45913)-ROW(Detail!$B$4)+1), ROWS(G$12:G27))))) ->  | H27: =IF($B$9 = "", "", IF(ROWS(H$12:H27) > $D$2, "", INDEX(Detail!O$4:O$45913, SMALL(IF(Detail!$B$4:$B$45913=$B$9, ROW(Detail!$B$4:$B$45913)-ROW(Detail!$B$4)+1), ROWS(H$12:H27))))) ->  | I27: =IF($B$9 = "", "", IF(ROWS(I$12:I27) > $D$2, "", INDEX(Detail!Q$4:Q$45913, SMALL(IF(Detail!$B$4:$B$45913=$B$9, ROW(Detail!$B$4:$B$45913)-ROW(Detail!$B$4)+1), ROWS(I$12:I27))))) ->  | J27: =IF($B$9 = "", "", IF(ROWS(J$12:J27) > $D$2, "", INDEX(Detail!U$4:U$45913, SMALL(IF(Detail!$B$4:$B$45913=$B$9, ROW(Detail!$B$4:$B$45913)-ROW(Detail!$B$4)+1), ROWS(J$12:J27))))) ->  | K27: =IF($B$9 = "", "", IF(ROWS(K$12:K27) > $D$2, "", INDEX(Detail!W$4:W$45913, SMALL(IF(Detail!$B$4:$B$45913=$B$9, ROW(Detail!$B$4:$B$45913)-ROW(Detail!$B$4)+1), ROWS(K$12:K27))))) ->  | L27: =IF($B$9 = "", "", IF(ROWS(L$12:L27) > $D$2, "", INDEX(Detail!X$4:X$45913, SMALL(IF(Detail!$B$4:$B$45913=$B$9, ROW(Detail!$B$4:$B$45913)-ROW(Detail!$B$4)+1), ROWS(L$12:L27))))) -> 
A28: =IF($B$9 = "", "", IF(ROWS(A$12:A28) > $D$2, "", INDEX(Detail!B$4:B$45913, SMALL(IF(Detail!$B$4:$B$45913=$B$9, ROW(Detail!$B$4:$B$45913)-ROW(Detail!$B$4)+1), ROWS(A$12:A28))))) ->  | B28: =IF($B$9 = "", "", IF(ROWS(B$12:B28) > $D$2, "", INDEX(Detail!E$4:E$45913, SMALL(IF(Detail!$B$4:$B$45913=$B$9, ROW(Detail!$B$4:$B$45913)-ROW(Detail!$B$4)+1), ROWS(B$12:B28))))) ->  | C28: =IF($B$9 = "", "", IF(ROWS(C$12:C28) > $D$2, "", INDEX(Detail!F$4:F$45913, SMALL(IF(Detail!$B$4:$B$45913=$B$9, ROW(Detail!$B$4:$B$45913)-ROW(Detail!$B$4)+1), ROWS(C$12:C28))))) ->  | D28: =IF($B$9 = "", "", IF(ROWS(D$12:D28) > $D$2, "", INDEX(Detail!G$4:G$45913, SMALL(IF(Detail!$B$4:$B$45913=$B$9, ROW(Detail!$B$4:$B$45913)-ROW(Detail!$B$4)+1), ROWS(D$12:D28))))) ->  | E28: =IF($B$9 = "", "", IF(ROWS(E$12:E28) > $D$2, "", INDEX(Detail!H$4:H$45913, SMALL(IF(Detail!$B$4:$B$45913=$B$9, ROW(Detail!$B$4:$B$45913)-ROW(Detail!$B$4)+1), ROWS(E$12:E28))))) ->  | F28: =IF($B$9 = "", "", IF(ROWS(F$12:F28) > $D$2, "", INDEX(Detail!K$4:K$45913, SMALL(IF(Detail!$B$4:$B$45913=$B$9, ROW(Detail!$B$4:$B$45913)-ROW(Detail!$B$4)+1), ROWS(F$12:F28))))) ->  | G28: =IF($B$9 = "", "", IF(ROWS(G$12:G28) > $D$2, "", INDEX(Detail!N$4:N$45913, SMALL(IF(Detail!$B$4:$B$45913=$B$9, ROW(Detail!$B$4:$B$45913)-ROW(Detail!$B$4)+1), ROWS(G$12:G28))))) ->  | H28: =IF($B$9 = "", "", IF(ROWS(H$12:H28) > $D$2, "", INDEX(Detail!O$4:O$45913, SMALL(IF(Detail!$B$4:$B$45913=$B$9, ROW(Detail!$B$4:$B$45913)-ROW(Detail!$B$4)+1), ROWS(H$12:H28))))) ->  | I28: =IF($B$9 = "", "", IF(ROWS(I$12:I28) > $D$2, "", INDEX(Detail!Q$4:Q$45913, SMALL(IF(Detail!$B$4:$B$45913=$B$9, ROW(Detail!$B$4:$B$45913)-ROW(Detail!$B$4)+1), ROWS(I$12:I28))))) ->  | J28: =IF($B$9 = "", "", IF(ROWS(J$12:J28) > $D$2, "", INDEX(Detail!U$4:U$45913, SMALL(IF(Detail!$B$4:$B$45913=$B$9, ROW(Detail!$B$4:$B$45913)-ROW(Detail!$B$4)+1), ROWS(J$12:J28))))) ->  | K28: =IF($B$9 = "", "", IF(ROWS(K$12:K28) > $D$2, "", INDEX(Detail!W$4:W$45913, SMALL(IF(Detail!$B$4:$B$45913=$B$9, ROW(Detail!$B$4:$B$45913)-ROW(Detail!$B$4)+1), ROWS(K$12:K28))))) ->  | L28: =IF($B$9 = "", "", IF(ROWS(L$12:L28) > $D$2, "", INDEX(Detail!X$4:X$45913, SMALL(IF(Detail!$B$4:$B$45913=$B$9, ROW(Detail!$B$4:$B$45913)-ROW(Detail!$B$4)+1), ROWS(L$12:L28))))) -> 
A29: =IF($B$9 = "", "", IF(ROWS(A$12:A29) > $D$2, "", INDEX(Detail!B$4:B$45913, SMALL(IF(Detail!$B$4:$B$45913=$B$9, ROW(Detail!$B$4:$B$45913)-ROW(Detail!$B$4)+1), ROWS(A$12:A29))))) ->  | B29: =IF($B$9 = "", "", IF(ROWS(B$12:B29) > $D$2, "", INDEX(Detail!E$4:E$45913, SMALL(IF(Detail!$B$4:$B$45913=$B$9, ROW(Detail!$B$4:$B$45913)-ROW(Detail!$B$4)+1), ROWS(B$12:B29))))) ->  | C29: =IF($B$9 = "", "", IF(ROWS(C$12:C29) > $D$2, "", INDEX(Detail!F$4:F$45913, SMALL(IF(Detail!$B$4:$B$45913=$B$9, ROW(Detail!$B$4:$B$45913)-ROW(Detail!$B$4)+1), ROWS(C$12:C29))))) ->  | D29: =IF($B$9 = "", "", IF(ROWS(D$12:D29) > $D$2, "", INDEX(Detail!G$4:G$45913, SMALL(IF(Detail!$B$4:$B$45913=$B$9, ROW(Detail!$B$4:$B$45913)-ROW(Detail!$B$4)+1), ROWS(D$12:D29))))) ->  | E29: =IF($B$9 = "", "", IF(ROWS(E$12:E29) > $D$2, "", INDEX(Detail!H$4:H$45913, SMALL(IF(Detail!$B$4:$B$45913=$B$9, ROW(Detail!$B$4:$B$45913)-ROW(Detail!$B$4)+1), ROWS(E$12:E29))))) ->  | F29: =IF($B$9 = "", "", IF(ROWS(F$12:F29) > $D$2, "", INDEX(Detail!K$4:K$45913, SMALL(IF(Detail!$B$4:$B$45913=$B$9, ROW(Detail!$B$4:$B$45913)-ROW(Detail!$B$4)+1), ROWS(F$12:F29))))) ->  | G29: =IF($B$9 = "", "", IF(ROWS(G$12:G29) > $D$2, "", INDEX(Detail!N$4:N$45913, SMALL(IF(Detail!$B$4:$B$45913=$B$9, ROW(Detail!$B$4:$B$45913)-ROW(Detail!$B$4)+1), ROWS(G$12:G29))))) ->  | H29: =IF($B$9 = "", "", IF(ROWS(H$12:H29) > $D$2, "", INDEX(Detail!O$4:O$45913, SMALL(IF(Detail!$B$4:$B$45913=$B$9, ROW(Detail!$B$4:$B$45913)-ROW(Detail!$B$4)+1), ROWS(H$12:H29))))) ->  | I29: =IF($B$9 = "", "", IF(ROWS(I$12:I29) > $D$2, "", INDEX(Detail!Q$4:Q$45913, SMALL(IF(Detail!$B$4:$B$45913=$B$9, ROW(Detail!$B$4:$B$45913)-ROW(Detail!$B$4)+1), ROWS(I$12:I29))))) ->  | J29: =IF($B$9 = "", "", IF(ROWS(J$12:J29) > $D$2, "", INDEX(Detail!U$4:U$45913, SMALL(IF(Detail!$B$4:$B$45913=$B$9, ROW(Detail!$B$4:$B$45913)-ROW(Detail!$B$4)+1), ROWS(J$12:J29))))) ->  | K29: =IF($B$9 = "", "", IF(ROWS(K$12:K29) > $D$2, "", INDEX(Detail!W$4:W$45913, SMALL(IF(Detail!$B$4:$B$45913=$B$9, ROW(Detail!$B$4:$B$45913)-ROW(Detail!$B$4)+1), ROWS(K$12:K29))))) ->  | L29: =IF($B$9 = "", "", IF(ROWS(L$12:L29) > $D$2, "", INDEX(Detail!X$4:X$45913, SMALL(IF(Detail!$B$4:$B$45913=$B$9, ROW(Detail!$B$4:$B$45913)-ROW(Detail!$B$4)+1), ROWS(L$12:L29))))) -> 
A30: =IF($B$9 = "", "", IF(ROWS(A$12:A30) > $D$2, "", INDEX(Detail!B$4:B$45913, SMALL(IF(Detail!$B$4:$B$45913=$B$9, ROW(Detail!$B$4:$B$45913)-ROW(Detail!$B$4)+1), ROWS(A$12:A30))))) ->  | B30: =IF($B$9 = "", "", IF(ROWS(B$12:B30) > $D$2, "", INDEX(Detail!E$4:E$45913, SMALL(IF(Detail!$B$4:$B$45913=$B$9, ROW(Detail!$B$4:$B$45913)-ROW(Detail!$B$4)+1), ROWS(B$12:B30))))) ->  | C30: =IF($B$9 = "", "", IF(ROWS(C$12:C30) > $D$2, "", INDEX(Detail!F$4:F$45913, SMALL(IF(Detail!$B$4:$B$45913=$B$9, ROW(Detail!$B$4:$B$45913)-ROW(Detail!$B$4)+1), ROWS(C$12:C30))))) ->  | D30: =IF($B$9 = "", "", IF(ROWS(D$12:D30) > $D$2, "", INDEX(Detail!G$4:G$45913, SMALL(IF(Detail!$B$4:$B$45913=$B$9, ROW(Detail!$B$4:$B$45913)-ROW(Detail!$B$4)+1), ROWS(D$12:D30))))) ->  | E30: =IF($B$9 = "", "", IF(ROWS(E$12:E30) > $D$2, "", INDEX(Detail!H$4:H$45913, SMALL(IF(Detail!$B$4:$B$45913=$B$9, ROW(Detail!$B$4:$B$45913)-ROW(Detail!$B$4)+1), ROWS(E$12:E30))))) ->  | F30: =IF($B$9 = "", "", IF(ROWS(F$12:F30) > $D$2, "", INDEX(Detail!K$4:K$45913, SMALL(IF(Detail!$B$4:$B$45913=$B$9, ROW(Detail!$B$4:$B$45913)-ROW(Detail!$B$4)+1), ROWS(F$12:F30))))) ->  | G30: =IF($B$9 = "", "", IF(ROWS(G$12:G30) > $D$2, "", INDEX(Detail!N$4:N$45913, SMALL(IF(Detail!$B$4:$B$45913=$B$9, ROW(Detail!$B$4:$B$45913)-ROW(Detail!$B$4)+1), ROWS(G$12:G30))))) ->  | H30: =IF($B$9 = "", "", IF(ROWS(H$12:H30) > $D$2, "", INDEX(Detail!O$4:O$45913, SMALL(IF(Detail!$B$4:$B$45913=$B$9, ROW(Detail!$B$4:$B$45913)-ROW(Detail!$B$4)+1), ROWS(H$12:H30))))) ->  | I30: =IF($B$9 = "", "", IF(ROWS(I$12:I30) > $D$2, "", INDEX(Detail!Q$4:Q$45913, SMALL(IF(Detail!$B$4:$B$45913=$B$9, ROW(Detail!$B$4:$B$45913)-ROW(Detail!$B$4)+1), ROWS(I$12:I30))))) ->  | J30: =IF($B$9 = "", "", IF(ROWS(J$12:J30) > $D$2, "", INDEX(Detail!U$4:U$45913, SMALL(IF(Detail!$B$4:$B$45913=$B$9, ROW(Detail!$B$4:$B$45913)-ROW(Detail!$B$4)+1), ROWS(J$12:J30))))) ->  | K30: =IF($B$9 = "", "", IF(ROWS(K$12:K30) > $D$2, "", INDEX(Detail!W$4:W$45913, SMALL(IF(Detail!$B$4:$B$45913=$B$9, ROW(Detail!$B$4:$B$45913)-ROW(Detail!$B$4)+1), ROWS(K$12:K30))))) ->  | L30: =IF($B$9 = "", "", IF(ROWS(L$12:L30) > $D$2, "", INDEX(Detail!X$4:X$45913, SMALL(IF(Detail!$B$4:$B$45913=$B$9, ROW(Detail!$B$4:$B$45913)-ROW(Detail!$B$4)+1), ROWS(L$12:L30))))) -> 
A31: =IF($B$9 = "", "", IF(ROWS(A$12:A31) > $D$2, "", INDEX(Detail!B$4:B$45913, SMALL(IF(Detail!$B$4:$B$45913=$B$9, ROW(Detail!$B$4:$B$45913)-ROW(Detail!$B$4)+1), ROWS(A$12:A31))))) ->  | B31: =IF($B$9 = "", "", IF(ROWS(B$12:B31) > $D$2, "", INDEX(Detail!E$4:E$45913, SMALL(IF(Detail!$B$4:$B$45913=$B$9, ROW(Detail!$B$4:$B$45913)-ROW(Detail!$B$4)+1), ROWS(B$12:B31))))) ->  | C31: =IF($B$9 = "", "", IF(ROWS(C$12:C31) > $D$2, "", INDEX(Detail!F$4:F$45913, SMALL(IF(Detail!$B$4:$B$45913=$B$9, ROW(Detail!$B$4:$B$45913)-ROW(Detail!$B$4)+1), ROWS(C$12:C31))))) ->  | D31: =IF($B$9 = "", "", IF(ROWS(D$12:D31) > $D$2, "", INDEX(Detail!G$4:G$45913, SMALL(IF(Detail!$B$4:$B$45913=$B$9, ROW(Detail!$B$4:$B$45913)-ROW(Detail!$B$4)+1), ROWS(D$12:D31))))) ->  | E31: =IF($B$9 = "", "", IF(ROWS(E$12:E31) > $D$2, "", INDEX(Detail!H$4:H$45913, SMALL(IF(Detail!$B$4:$B$45913=$B$9, ROW(Detail!$B$4:$B$45913)-ROW(Detail!$B$4)+1), ROWS(E$12:E31))))) ->  | F31: =IF($B$9 = "", "", IF(ROWS(F$12:F31) > $D$2, "", INDEX(Detail!K$4:K$45913, SMALL(IF(Detail!$B$4:$B$45913=$B$9, ROW(Detail!$B$4:$B$45913)-ROW(Detail!$B$4)+1), ROWS(F$12:F31))))) ->  | G31: =IF($B$9 = "", "", IF(ROWS(G$12:G31) > $D$2, "", INDEX(Detail!N$4:N$45913, SMALL(IF(Detail!$B$4:$B$45913=$B$9, ROW(Detail!$B$4:$B$45913)-ROW(Detail!$B$4)+1), ROWS(G$12:G31))))) ->  | H31: =IF($B$9 = "", "", IF(ROWS(H$12:H31) > $D$2, "", INDEX(Detail!O$4:O$45913, SMALL(IF(Detail!$B$4:$B$45913=$B$9, ROW(Detail!$B$4:$B$45913)-ROW(Detail!$B$4)+1), ROWS(H$12:H31))))) ->  | I31: =IF($B$9 = "", "", IF(ROWS(I$12:I31) > $D$2, "", INDEX(Detail!Q$4:Q$45913, SMALL(IF(Detail!$B$4:$B$45913=$B$9, ROW(Detail!$B$4:$B$45913)-ROW(Detail!$B$4)+1), ROWS(I$12:I31))))) ->  | J31: =IF($B$9 = "", "", IF(ROWS(J$12:J31) > $D$2, "", INDEX(Detail!U$4:U$45913, SMALL(IF(Detail!$B$4:$B$45913=$B$9, ROW(Detail!$B$4:$B$45913)-ROW(Detail!$B$4)+1), ROWS(J$12:J31))))) ->  | K31: =IF($B$9 = "", "", IF(ROWS(K$12:K31) > $D$2, "", INDEX(Detail!W$4:W$45913, SMALL(IF(Detail!$B$4:$B$45913=$B$9, ROW(Detail!$B$4:$B$45913)-ROW(Detail!$B$4)+1), ROWS(K$12:K31))))) ->  | L31: =IF($B$9 = "", "", IF(ROWS(L$12:L31) > $D$2, "", INDEX(Detail!X$4:X$45913, SMALL(IF(Detail!$B$4:$B$45913=$B$9, ROW(Detail!$B$4:$B$45913)-ROW(Detail!$B$4)+1), ROWS(L$12:L31))))) -> 
A32: =IF($B$9 = "", "", IF(ROWS(A$12:A32) > $D$2, "", INDEX(Detail!B$4:B$45913, SMALL(IF(Detail!$B$4:$B$45913=$B$9, ROW(Detail!$B$4:$B$45913)-ROW(Detail!$B$4)+1), ROWS(A$12:A32))))) ->  | B32: =IF($B$9 = "", "", IF(ROWS(B$12:B32) > $D$2, "", INDEX(Detail!E$4:E$45913, SMALL(IF(Detail!$B$4:$B$45913=$B$9, ROW(Detail!$B$4:$B$45913)-ROW(Detail!$B$4)+1), ROWS(B$12:B32))))) ->  | C32: =IF($B$9 = "", "", IF(ROWS(C$12:C32) > $D$2, "", INDEX(Detail!F$4:F$45913, SMALL(IF(Detail!$B$4:$B$45913=$B$9, ROW(Detail!$B$4:$B$45913)-ROW(Detail!$B$4)+1), ROWS(C$12:C32))))) ->  | D32: =IF($B$9 = "", "", IF(ROWS(D$12:D32) > $D$2, "", INDEX(Detail!G$4:G$45913, SMALL(IF(Detail!$B$4:$B$45913=$B$9, ROW(Detail!$B$4:$B$45913)-ROW(Detail!$B$4)+1), ROWS(D$12:D32))))) ->  | E32: =IF($B$9 = "", "", IF(ROWS(E$12:E32) > $D$2, "", INDEX(Detail!H$4:H$45913, SMALL(IF(Detail!$B$4:$B$45913=$B$9, ROW(Detail!$B$4:$B$45913)-ROW(Detail!$B$4)+1), ROWS(E$12:E32))))) ->  | F32: =IF($B$9 = "", "", IF(ROWS(F$12:F32) > $D$2, "", INDEX(Detail!K$4:K$45913, SMALL(IF(Detail!$B$4:$B$45913=$B$9, ROW(Detail!$B$4:$B$45913)-ROW(Detail!$B$4)+1), ROWS(F$12:F32))))) ->  | G32: =IF($B$9 = "", "", IF(ROWS(G$12:G32) > $D$2, "", INDEX(Detail!N$4:N$45913, SMALL(IF(Detail!$B$4:$B$45913=$B$9, ROW(Detail!$B$4:$B$45913)-ROW(Detail!$B$4)+1), ROWS(G$12:G32))))) ->  | H32: =IF($B$9 = "", "", IF(ROWS(H$12:H32) > $D$2, "", INDEX(Detail!O$4:O$45913, SMALL(IF(Detail!$B$4:$B$45913=$B$9, ROW(Detail!$B$4:$B$45913)-ROW(Detail!$B$4)+1), ROWS(H$12:H32))))) ->  | I32: =IF($B$9 = "", "", IF(ROWS(I$12:I32) > $D$2, "", INDEX(Detail!Q$4:Q$45913, SMALL(IF(Detail!$B$4:$B$45913=$B$9, ROW(Detail!$B$4:$B$45913)-ROW(Detail!$B$4)+1), ROWS(I$12:I32))))) ->  | J32: =IF($B$9 = "", "", IF(ROWS(J$12:J32) > $D$2, "", INDEX(Detail!U$4:U$45913, SMALL(IF(Detail!$B$4:$B$45913=$B$9, ROW(Detail!$B$4:$B$45913)-ROW(Detail!$B$4)+1), ROWS(J$12:J32))))) ->  | K32: =IF($B$9 = "", "", IF(ROWS(K$12:K32) > $D$2, "", INDEX(Detail!W$4:W$45913, SMALL(IF(Detail!$B$4:$B$45913=$B$9, ROW(Detail!$B$4:$B$45913)-ROW(Detail!$B$4)+1), ROWS(K$12:K32))))) ->  | L32: =IF($B$9 = "", "", IF(ROWS(L$12:L32) > $D$2, "", INDEX(Detail!X$4:X$45913, SMALL(IF(Detail!$B$4:$B$45913=$B$9, ROW(Detail!$B$4:$B$45913)-ROW(Detail!$B$4)+1), ROWS(L$12:L32))))) -> 
A33: =IF($B$9 = "", "", IF(ROWS(A$12:A33) > $D$2, "", INDEX(Detail!B$4:B$45913, SMALL(IF(Detail!$B$4:$B$45913=$B$9, ROW(Detail!$B$4:$B$45913)-ROW(Detail!$B$4)+1), ROWS(A$12:A33))))) ->  | B33: =IF($B$9 = "", "", IF(ROWS(B$12:B33) > $D$2, "", INDEX(Detail!E$4:E$45913, SMALL(IF(Detail!$B$4:$B$45913=$B$9, ROW(Detail!$B$4:$B$45913)-ROW(Detail!$B$4)+1), ROWS(B$12:B33))))) ->  | C33: =IF($B$9 = "", "", IF(ROWS(C$12:C33) > $D$2, "", INDEX(Detail!F$4:F$45913, SMALL(IF(Detail!$B$4:$B$45913=$B$9, ROW(Detail!$B$4:$B$45913)-ROW(Detail!$B$4)+1), ROWS(C$12:C33))))) ->  | D33: =IF($B$9 = "", "", IF(ROWS(D$12:D33) > $D$2, "", INDEX(Detail!G$4:G$45913, SMALL(IF(Detail!$B$4:$B$45913=$B$9, ROW(Detail!$B$4:$B$45913)-ROW(Detail!$B$4)+1), ROWS(D$12:D33))))) ->  | E33: =IF($B$9 = "", "", IF(ROWS(E$12:E33) > $D$2, "", INDEX(Detail!H$4:H$45913, SMALL(IF(Detail!$B$4:$B$45913=$B$9, ROW(Detail!$B$4:$B$45913)-ROW(Detail!$B$4)+1), ROWS(E$12:E33))))) ->  | F33: =IF($B$9 = "", "", IF(ROWS(F$12:F33) > $D$2, "", INDEX(Detail!K$4:K$45913, SMALL(IF(Detail!$B$4:$B$45913=$B$9, ROW(Detail!$B$4:$B$45913)-ROW(Detail!$B$4)+1), ROWS(F$12:F33))))) ->  | G33: =IF($B$9 = "", "", IF(ROWS(G$12:G33) > $D$2, "", INDEX(Detail!N$4:N$45913, SMALL(IF(Detail!$B$4:$B$45913=$B$9, ROW(Detail!$B$4:$B$45913)-ROW(Detail!$B$4)+1), ROWS(G$12:G33))))) ->  | H33: =IF($B$9 = "", "", IF(ROWS(H$12:H33) > $D$2, "", INDEX(Detail!O$4:O$45913, SMALL(IF(Detail!$B$4:$B$45913=$B$9, ROW(Detail!$B$4:$B$45913)-ROW(Detail!$B$4)+1), ROWS(H$12:H33))))) ->  | I33: =IF($B$9 = "", "", IF(ROWS(I$12:I33) > $D$2, "", INDEX(Detail!Q$4:Q$45913, SMALL(IF(Detail!$B$4:$B$45913=$B$9, ROW(Detail!$B$4:$B$45913)-ROW(Detail!$B$4)+1), ROWS(I$12:I33))))) ->  | J33: =IF($B$9 = "", "", IF(ROWS(J$12:J33) > $D$2, "", INDEX(Detail!U$4:U$45913, SMALL(IF(Detail!$B$4:$B$45913=$B$9, ROW(Detail!$B$4:$B$45913)-ROW(Detail!$B$4)+1), ROWS(J$12:J33))))) ->  | K33: =IF($B$9 = "", "", IF(ROWS(K$12:K33) > $D$2, "", INDEX(Detail!W$4:W$45913, SMALL(IF(Detail!$B$4:$B$45913=$B$9, ROW(Detail!$B$4:$B$45913)-ROW(Detail!$B$4)+1), ROWS(K$12:K33))))) ->  | L33: =IF($B$9 = "", "", IF(ROWS(L$12:L33) > $D$2, "", INDEX(Detail!X$4:X$45913, SMALL(IF(Detail!$B$4:$B$45913=$B$9, ROW(Detail!$B$4:$B$45913)-ROW(Detail!$B$4)+1), ROWS(L$12:L33))))) -> 
A34: =IF($B$9 = "", "", IF(ROWS(A$12:A34) > $D$2, "", INDEX(Detail!B$4:B$45913, SMALL(IF(Detail!$B$4:$B$45913=$B$9, ROW(Detail!$B$4:$B$45913)-ROW(Detail!$B$4)+1), ROWS(A$12:A34))))) ->  | B34: =IF($B$9 = "", "", IF(ROWS(B$12:B34) > $D$2, "", INDEX(Detail!E$4:E$45913, SMALL(IF(Detail!$B$4:$B$45913=$B$9, ROW(Detail!$B$4:$B$45913)-ROW(Detail!$B$4)+1), ROWS(B$12:B34))))) ->  | C34: =IF($B$9 = "", "", IF(ROWS(C$12:C34) > $D$2, "", INDEX(Detail!F$4:F$45913, SMALL(IF(Detail!$B$4:$B$45913=$B$9, ROW(Detail!$B$4:$B$45913)-ROW(Detail!$B$4)+1), ROWS(C$12:C34))))) ->  | D34: =IF($B$9 = "", "", IF(ROWS(D$12:D34) > $D$2, "", INDEX(Detail!G$4:G$45913, SMALL(IF(Detail!$B$4:$B$45913=$B$9, ROW(Detail!$B$4:$B$45913)-ROW(Detail!$B$4)+1), ROWS(D$12:D34))))) ->  | E34: =IF($B$9 = "", "", IF(ROWS(E$12:E34) > $D$2, "", INDEX(Detail!H$4:H$45913, SMALL(IF(Detail!$B$4:$B$45913=$B$9, ROW(Detail!$B$4:$B$45913)-ROW(Detail!$B$4)+1), ROWS(E$12:E34))))) ->  | F34: =IF($B$9 = "", "", IF(ROWS(F$12:F34) > $D$2, "", INDEX(Detail!K$4:K$45913, SMALL(IF(Detail!$B$4:$B$45913=$B$9, ROW(Detail!$B$4:$B$45913)-ROW(Detail!$B$4)+1), ROWS(F$12:F34))))) ->  | G34: =IF($B$9 = "", "", IF(ROWS(G$12:G34) > $D$2, "", INDEX(Detail!N$4:N$45913, SMALL(IF(Detail!$B$4:$B$45913=$B$9, ROW(Detail!$B$4:$B$45913)-ROW(Detail!$B$4)+1), ROWS(G$12:G34))))) ->  | H34: =IF($B$9 = "", "", IF(ROWS(H$12:H34) > $D$2, "", INDEX(Detail!O$4:O$45913, SMALL(IF(Detail!$B$4:$B$45913=$B$9, ROW(Detail!$B$4:$B$45913)-ROW(Detail!$B$4)+1), ROWS(H$12:H34))))) ->  | I34: =IF($B$9 = "", "", IF(ROWS(I$12:I34) > $D$2, "", INDEX(Detail!Q$4:Q$45913, SMALL(IF(Detail!$B$4:$B$45913=$B$9, ROW(Detail!$B$4:$B$45913)-ROW(Detail!$B$4)+1), ROWS(I$12:I34))))) ->  | J34: =IF($B$9 = "", "", IF(ROWS(J$12:J34) > $D$2, "", INDEX(Detail!U$4:U$45913, SMALL(IF(Detail!$B$4:$B$45913=$B$9, ROW(Detail!$B$4:$B$45913)-ROW(Detail!$B$4)+1), ROWS(J$12:J34))))) ->  | K34: =IF($B$9 = "", "", IF(ROWS(K$12:K34) > $D$2, "", INDEX(Detail!W$4:W$45913, SMALL(IF(Detail!$B$4:$B$45913=$B$9, ROW(Detail!$B$4:$B$45913)-ROW(Detail!$B$4)+1), ROWS(K$12:K34))))) ->  | L34: =IF($B$9 = "", "", IF(ROWS(L$12:L34) > $D$2, "", INDEX(Detail!X$4:X$45913, SMALL(IF(Detail!$B$4:$B$45913=$B$9, ROW(Detail!$B$4:$B$45913)-ROW(Detail!$B$4)+1), ROWS(L$12:L34))))) -> 
A35: =IF($B$9 = "", "", IF(ROWS(A$12:A35) > $D$2, "", INDEX(Detail!B$4:B$45913, SMALL(IF(Detail!$B$4:$B$45913=$B$9, ROW(Detail!$B$4:$B$45913)-ROW(Detail!$B$4)+1), ROWS(A$12:A35))))) ->  | B35: =IF($B$9 = "", "", IF(ROWS(B$12:B35) > $D$2, "", INDEX(Detail!E$4:E$45913, SMALL(IF(Detail!$B$4:$B$45913=$B$9, ROW(Detail!$B$4:$B$45913)-ROW(Detail!$B$4)+1), ROWS(B$12:B35))))) ->  | C35: =IF($B$9 = "", "", IF(ROWS(C$12:C35) > $D$2, "", INDEX(Detail!F$4:F$45913, SMALL(IF(Detail!$B$4:$B$45913=$B$9, ROW(Detail!$B$4:$B$45913)-ROW(Detail!$B$4)+1), ROWS(C$12:C35))))) ->  | D35: =IF($B$9 = "", "", IF(ROWS(D$12:D35) > $D$2, "", INDEX(Detail!G$4:G$45913, SMALL(IF(Detail!$B$4:$B$45913=$B$9, ROW(Detail!$B$4:$B$45913)-ROW(Detail!$B$4)+1), ROWS(D$12:D35))))) ->  | E35: =IF($B$9 = "", "", IF(ROWS(E$12:E35) > $D$2, "", INDEX(Detail!H$4:H$45913, SMALL(IF(Detail!$B$4:$B$45913=$B$9, ROW(Detail!$B$4:$B$45913)-ROW(Detail!$B$4)+1), ROWS(E$12:E35))))) ->  | F35: =IF($B$9 = "", "", IF(ROWS(F$12:F35) > $D$2, "", INDEX(Detail!K$4:K$45913, SMALL(IF(Detail!$B$4:$B$45913=$B$9, ROW(Detail!$B$4:$B$45913)-ROW(Detail!$B$4)+1), ROWS(F$12:F35))))) ->  | G35: =IF($B$9 = "", "", IF(ROWS(G$12:G35) > $D$2, "", INDEX(Detail!N$4:N$45913, SMALL(IF(Detail!$B$4:$B$45913=$B$9, ROW(Detail!$B$4:$B$45913)-ROW(Detail!$B$4)+1), ROWS(G$12:G35))))) ->  | H35: =IF($B$9 = "", "", IF(ROWS(H$12:H35) > $D$2, "", INDEX(Detail!O$4:O$45913, SMALL(IF(Detail!$B$4:$B$45913=$B$9, ROW(Detail!$B$4:$B$45913)-ROW(Detail!$B$4)+1), ROWS(H$12:H35))))) ->  | I35: =IF($B$9 = "", "", IF(ROWS(I$12:I35) > $D$2, "", INDEX(Detail!Q$4:Q$45913, SMALL(IF(Detail!$B$4:$B$45913=$B$9, ROW(Detail!$B$4:$B$45913)-ROW(Detail!$B$4)+1), ROWS(I$12:I35))))) ->  | J35: =IF($B$9 = "", "", IF(ROWS(J$12:J35) > $D$2, "", INDEX(Detail!U$4:U$45913, SMALL(IF(Detail!$B$4:$B$45913=$B$9, ROW(Detail!$B$4:$B$45913)-ROW(Detail!$B$4)+1), ROWS(J$12:J35))))) ->  | K35: =IF($B$9 = "", "", IF(ROWS(K$12:K35) > $D$2, "", INDEX(Detail!W$4:W$45913, SMALL(IF(Detail!$B$4:$B$45913=$B$9, ROW(Detail!$B$4:$B$45913)-ROW(Detail!$B$4)+1), ROWS(K$12:K35))))) ->  | L35: =IF($B$9 = "", "", IF(ROWS(L$12:L35) > $D$2, "", INDEX(Detail!X$4:X$45913, SMALL(IF(Detail!$B$4:$B$45913=$B$9, ROW(Detail!$B$4:$B$45913)-ROW(Detail!$B$4)+1), ROWS(L$12:L35))))) -> 
A36: =IF($B$9 = "", "", IF(ROWS(A$12:A36) > $D$2, "", INDEX(Detail!B$4:B$45913, SMALL(IF(Detail!$B$4:$B$45913=$B$9, ROW(Detail!$B$4:$B$45913)-ROW(Detail!$B$4)+1), ROWS(A$12:A36))))) ->  | B36: =IF($B$9 = "", "", IF(ROWS(B$12:B36) > $D$2, "", INDEX(Detail!E$4:E$45913, SMALL(IF(Detail!$B$4:$B$45913=$B$9, ROW(Detail!$B$4:$B$45913)-ROW(Detail!$B$4)+1), ROWS(B$12:B36))))) ->  | C36: =IF($B$9 = "", "", IF(ROWS(C$12:C36) > $D$2, "", INDEX(Detail!F$4:F$45913, SMALL(IF(Detail!$B$4:$B$45913=$B$9, ROW(Detail!$B$4:$B$45913)-ROW(Detail!$B$4)+1), ROWS(C$12:C36))))) ->  | D36: =IF($B$9 = "", "", IF(ROWS(D$12:D36) > $D$2, "", INDEX(Detail!G$4:G$45913, SMALL(IF(Detail!$B$4:$B$45913=$B$9, ROW(Detail!$B$4:$B$45913)-ROW(Detail!$B$4)+1), ROWS(D$12:D36))))) ->  | E36: =IF($B$9 = "", "", IF(ROWS(E$12:E36) > $D$2, "", INDEX(Detail!H$4:H$45913, SMALL(IF(Detail!$B$4:$B$45913=$B$9, ROW(Detail!$B$4:$B$45913)-ROW(Detail!$B$4)+1), ROWS(E$12:E36))))) ->  | F36: =IF($B$9 = "", "", IF(ROWS(F$12:F36) > $D$2, "", INDEX(Detail!K$4:K$45913, SMALL(IF(Detail!$B$4:$B$45913=$B$9, ROW(Detail!$B$4:$B$45913)-ROW(Detail!$B$4)+1), ROWS(F$12:F36))))) ->  | G36: =IF($B$9 = "", "", IF(ROWS(G$12:G36) > $D$2, "", INDEX(Detail!N$4:N$45913, SMALL(IF(Detail!$B$4:$B$45913=$B$9, ROW(Detail!$B$4:$B$45913)-ROW(Detail!$B$4)+1), ROWS(G$12:G36))))) ->  | H36: =IF($B$9 = "", "", IF(ROWS(H$12:H36) > $D$2, "", INDEX(Detail!O$4:O$45913, SMALL(IF(Detail!$B$4:$B$45913=$B$9, ROW(Detail!$B$4:$B$45913)-ROW(Detail!$B$4)+1), ROWS(H$12:H36))))) ->  | I36: =IF($B$9 = "", "", IF(ROWS(I$12:I36) > $D$2, "", INDEX(Detail!Q$4:Q$45913, SMALL(IF(Detail!$B$4:$B$45913=$B$9, ROW(Detail!$B$4:$B$45913)-ROW(Detail!$B$4)+1), ROWS(I$12:I36))))) ->  | J36: =IF($B$9 = "", "", IF(ROWS(J$12:J36) > $D$2, "", INDEX(Detail!U$4:U$45913, SMALL(IF(Detail!$B$4:$B$45913=$B$9, ROW(Detail!$B$4:$B$45913)-ROW(Detail!$B$4)+1), ROWS(J$12:J36))))) ->  | K36: =IF($B$9 = "", "", IF(ROWS(K$12:K36) > $D$2, "", INDEX(Detail!W$4:W$45913, SMALL(IF(Detail!$B$4:$B$45913=$B$9, ROW(Detail!$B$4:$B$45913)-ROW(Detail!$B$4)+1), ROWS(K$12:K36))))) ->  | L36: =IF($B$9 = "", "", IF(ROWS(L$12:L36) > $D$2, "", INDEX(Detail!X$4:X$45913, SMALL(IF(Detail!$B$4:$B$45913=$B$9, ROW(Detail!$B$4:$B$45913)-ROW(Detail!$B$4)+1), ROWS(L$12:L36))))) -> 

Sheet Detail (hidden)
B1: TAXING UNIT DATA | E1: MILLAGE DATA | J1: ESSENTIAL SERVICES | N1: STEL | O1: QUALIFIED LOSS | U1: 2017 DISTRIBUTION
R2: 2.924676587
B3: TAXING UNIT CODE | C3: TAXING UNIT | D3: TAXING UNIT TYPE | E3: MILLAGE NAME | F3: MILLAGE PURPOSE | G3: MILLAGE TYPE | H3: LOWEST MILLAGE RATE 2012-2016 | I3: Unadjusted Loss | J3: TOTAL 2017 ESSENTIAL SERVICES DISTRIBUTION | K3: ESSENTIAL SERVICES DISTRIBUTION LIMITED TO TOTAL UNADJUSTED LOSS | L3: 2017 Increased Value from General Operating Millage | M3: 2017 Increased Value from Restricted Essential Service Millage | N3: TOTAL 2017 STEL DISTRIBUTION | O3: QUALIFIED LOSS @ 100% | P3: % of Qualified Loss | Q3: QUALIFIED LOSS ADDITIONAL 192% | R3: QUALIFIED LOSS PRORATED @ 292% DISTRIBUTION | S3: 2017 REIMBURSEMENT w/ 100% QUALIFIED LOSS | T3: ADDITIONAL REIMBURSEMENT (185% QUALIFIED LOSS) | U3: TOTAL 2017 REIMBURSEMENT w/ 285% QUALIFIED LOSS DISTRIBUTION | V3: Summer or Winter Levy? | W3: November 2017 Distribution | X3: February 2018 Distribution
A4: ALCONACOUNTYALCONA | B4: 01-0000 | C4: ALCONA | D4: COUNTY | E4: ALLOC/CHARTER | F4: GENERAL OPERATING | G4: PART ES | H4: 4.1782 | I4: 3965.95 | J4: 1988.04 | K4: =IF(SUMIFS(I:I,B:B,B4)<SUMIFS(J:J,B:B,B4),(J4/SUMIFS(J:J,B:B,B4))*SUMIFS(I:I,B:B,B4), J4) -> 1988.04 | L4: 0 | M4: 0 | N4: 4263.96 | O4: 1977.91 | P4: =$O4/$O$5915 -> 2.423137831e-05 | Q4: =R4-O4 -> 3806.84 | R4: =ROUND($O4*$R$2, 2) -> 5784.75 | S4: =K4+N4+O4 -> 8229.91 | T4: =Q4 -> 3806.84 | U4: =S4+T4 -> 12036.75 | V4: Summer | W4: =IF(V4="Summer", U4, 0) -> 12036.75 | X4: =IF(V4="Winter", U4, 0) -> 0
A5: ALCONACOUNTYALCONA | B5: 01-0000 | C5: ALCONA | D5: COUNTY | E5: AMBULANCE | F5: OPERATING | G5: ES | H5: 1 | I5: 949.2 | J5: 1108.44 | K5: =IF(SUMIFS(I:I,B:B,B5)<SUMIFS(J:J,B:B,B5),(J5/SUMIFS(J:J,B:B,B5))*SUMIFS(I:I,B:B,B5), J5) -> 1108.44 | L5: 0 | M5: 0 | N5: 1020.52 | O5: -159.24 | P5: =$O5/$O$5915 -> -1.950849474e-06 | Q5: =R5-O5 -> -306.49 | R5: =ROUND($O5*$R$2, 2) -> -465.73 | S5: =K5+N5+O5 -> 1969.72 | T5: =Q5 -> -306.49 | U5: =S5+T5 -> 1663.23 | V5: Winter | W5: =IF(V5="Summer", U5, 0) -> 0 | X5: =IF(V5="Winter", U5, 0) -> 1663.23
A6: ALCONACOUNTYALCONA | B6: 01-0000 | C6: ALCONA | D6: COUNTY | E6: LIBRARY | F6: OPERATING | G6: NON-ES | H6: 0.5 | I6: 474.6 | J6: 0 | K6: 0 | L6: 0 | M6: 0 | N6: 510.26 | O6: 474.6 | P6: 5.814325297e-06 | Q6: 913.45 | R6: 1388.05 | S6: 984.86 | T6: 913.45 | U6: 1898.31 | V6: Winter | W6: 0 | X6: 1898.31
A7: ALCONACOUNTYALCONA | B7: 01-0000 | C7: ALCONA | D7: COUNTY | E7: MSU EXTENSION | F7: OPERATING | G7: NON-ES | H7: 0.14 | I7: 132.89 | J7: 0 | K7: 0 | L7: 0 | M7: 0 | N7: 142.88 | O7: 132.89 | P7: 1.628035585e-06 | Q7: 255.77 | R7: 388.66 | S7: 275.77 | T7: 255.77 | U7: 531.54 | V7: Winter | W7: 0 | X7: 531.54
A8: ALCONACOUNTYALCONA | B8: 01-0000 | C8: ALCONA | D8: COUNTY | E8: ROADS | F8: OPERATING | G8: NON-ES | H8: 0 | I8: 0 | J8: 0 | K8: 0 | L8: 0 | M8: 0 | N8: 0 | O8: 0 | P8: 0 | Q8: 0 | R8: 0 | S8: 0 | T8: 0 | U8: 0 | V8: N/A | W8: 0 | X8: 0
A9: ALCONACOUNTYALCONA | B9: 01-0000 | C9: ALCONA | D9: COUNTY | E9: SENIORS | F9: OPERATING | G9: NON-ES | H9: 0.125 | I9: 118.65 | J9: 0 | K9: 0 | L9: 0 | M9: 0 | N9: 127.57 | O9: 118.65 | P9: 1.453581324e-06 | Q9: 228.36 | R9: 347.01 | S9: 246.22 | T9: 228.36 | U9: 474.58 | V9: Winter | W9: 0 | X9: 474.58
A10: ALCONACOUNTYALCONA | B10: 01-0000 | C10: ALCONA | D10: COUNTY | E10: SENIORS 2 | F10: OPERATING | G10: NON-ES | H10: 0.375 | I10: 355.95 | J10: 0 | K10: 0 | L10: 0 | M10: 0 | N10: 382.7 | O10: 355.95 | P10: 4.360743973e-06 | Q10: 685.09 | R10: 1041.04 | S10: 738.65 | T10: 685.09 | U10: 1423.74 | V10: Winter | W10: 0 | X10: 1423.74
A11: ALGERCOUNTYALGER | B11: 02-0000 | C11: ALGER | D11: COUNTY | E11: ALLOC/CHARTER | F11: GENERAL OPERATING | G11: PART ES | H11: 5.0602 | I11: 56383.85 | J11: 8425.84 | K11: 8425.84 | L11: 0 | M11: 0 | N11: 9171.02 | O11: 47958.01 | P11: 0.0005875336509 | Q11: 92303.66 | R11: 140261.67 | S11: 65554.87 | T11: 92303.66 | U11: 157858.53 | V11: Summer | W11: 157858.53 | X11: 0
A12: ALGERCOUNTYALGER | B12: 02-0000 | C12: ALGER | D12: COUNTY | E12: AMBULANCE | F12: OPERATING | G12: ES | H12: 0.9967 | I12: 11104.71 | J12: 5693.84 | K12: 5693.84 | L12: 0 | M12: 0 | N12: 1806.4 | O12: 5410.87 | P12: 6.628857631e-05 | Q12: 10414.17 | R12: 15825.04 | S12: 12911.11 | T12: 10414.17 | U12: 23325.28 | V12: Winter | W12: 0 | X12: 23325.28
A13: ALGERCOUNTYALGER | B13: 02-0000 | C13: ALGER | D13: COUNTY | E13: E 911/CENTRAL DISPATCH | F13: OPERATING | G13: NON-ES | H13: 0 | I13: 0 | J13: 0 | K13: 0 | L13: 0 | M13: 0 | N13: 0 | O13: 0 | P13: 0 | Q13: 0 | R13: 0 | S13: 0 | T13: 0 | U13: 0 | V13: N/A | W13: 0 | X13: 0
A14: ALGERCOUNTYALGER | B14: 02-0000 | C14: ALGER | D14: COUNTY | E14: LIBRARY | F14: OPERATING | G14: NON-ES | H14: 0.299 | I14: 3331.13 | J14: 0 | K14: 0 | L14: 0 | M14: 0 | N14: 541.91 | O14: 3331.13 | P14: 4.080967852e-05 | Q14: 6411.35 | R14: 9742.48 | S14: 3873.04 | T14: 6411.35 | U14: 10284.39 | V14: Winter | W14: 0 | X14: 10284.39
A15: ALGERCOUNTYALGER | B15: 02-0000 | C15: ALGER | D15: COUNTY | E15: MSU EXTENSION | F15: OPERATING | G15: NON-ES | H15: 0.2491 | I15: 2776.02 | J15: 0 | K15: 0 | L15: 0 | M15: 0 | N15: 451.46 | O15: 2776.02 | P15: 3.40090251e-05 | Q15: 5342.94 | R15: 8118.96 | S15: 3227.48 | T15: 5342.94 | U15: 8570.42 | V15: Winter | W15: 0 | X15: 8570.42
A16: ALGERCOUNTYALGER | B16: 02-0000 | C16: ALGER | D16: COUNTY | E16: SENIORS | F16: OPERATING | G16: NON-ES | H16: 0.4983 | I16: 5552.62 | J16: 0 | K16: 0 | L16: 0 | M16: 0 | N16: 903.11 | O16: 5552.62 | P16: 6.802515577e-05 | Q16: 10687 | R16: 16239.62 | S16: 6455.73 | T16: 10687 | U16: 17142.73 | V16: Winter | W16: 0 | X16: 17142.73
A17: ALGERCOUNTYALGER | B17: 02-0000 | C17: ALGER | D17: COUNTY | E17: VETERANS | F17: OPERATING | G17: NON-ES | H17: 0 | I17: 0 | J17: 0 | K17: 0 | L17: 0 | M17: 0 | N17: 0 | O17: 0 | P17: 0 | Q17: 0 | R17: 0 | S17: 0 | T17: 0 | U17: 0 | V17: N/A | W17: 0 | X17: 0
A18: ALLEGANCOUNTYALLEGAN | B18: 03-0000 | C18: ALLEGAN | D18: COUNTY | E18: ALLOC/CHARTER | F18: GENERAL OPERATING | G18: PART ES | H18: 4.6302 | I18: 0 | J18: 157054.86 | K18: 0 | L18: 0 | M18: 0 | N18: 63746.67 | O18: 0 | P18: 0 | Q18: 0 | R18: 0 | S18: 63746.67 | T18: 0 | U18: 63746.67 | V18: Summer | W18: 63746.67 | X18: 0
A19: ALLEGANCOUNTYALLEGAN | B19: 03-0000 | C19: ALLEGAN | D19: COUNTY | E19: ROADS | F19: OPERATING | G19: NON-ES | H19: 0.9984 | I19: 0 | J19: 0 | K19: 0 | L19: 0 | M19: 0 | N19: 13747.71 | O19: 0 | P19: 0 | Q19: 0 | R19: 0 | S19: 13747.71 | T19: 0 | U19: 13747.71 | V19: Winter | W19: 0 | X19: 13747.71
A20: ALLEGANCOUNTYALLEGAN | B20: 03-0000 | C20: ALLEGAN | D20: COUNTY | E20: SENIORS | F20: OPERATING | G20: NON-ES | H20: 0.24 | I20: 0 | J20: 0 | K20: 0 | L20: 0 | M20: 0 | N20: 3352.83 | O20: 0 | P20: 0 | Q20: 0 | R20: 0 | S20: 3352.83 | T20: 0 | U20: 3352.83 | V20: Winter | W20: 0 | X20: 3352.83
A21: ALLEGANCOUNTYALLEGAN | B21: 03-0000 | C21: ALLEGAN | D21: COUNTY | E21: VETERANS | F21: OPERATING | G21: NON-ES | H21: 0.02 | I21: 0 | J21: 0 | K21: 0 | L21: 0 | M21: 0 | N21: 327.54 | O21: 0 | P21: 0 | Q21: 0 | R21: 0 | S21: 327.54 | T21: 0 | U21: 327.54 | V21: Winter | W21: 0 | X21: 327.54
A22: ALPENACOUNTYALPENA | B22: 04-0000 | C22: ALPENA | D22: COUNTY | E22: ALLOC/CHARTER | F22: GENERAL OPERATING | G22: PART ES | H22: 4.8004 | I22: 53247.44 | J22: 24188.09 | K22: 24188.09 | L22: 0 | M22: 0 | N22: 8220.18 | O22: 29059.35 | P22: 0.0003560061395 | Q22: 55929.85 | R22: 84989.2 | S22: 61467.62 | T22: 55929.85 | U22: 117397.47 | V22: Summer | W22: 117397.47 | X22: 0
A23: ALPENACOUNTYALPENA | B23: 04-0000 | C23: ALPENA | D23: COUNTY | E23: AMBULANCE | F23: OPERATING | G23: ES | H23: 0.972 | I23: 10781.71 | J23: 19846.82 | K23: 19846.82 | L23: 0 | M23: 0 | N23: 1664.45 | O23: -9065.11 | P23: -0.0001110566759 | Q23: -17447.4 | R23: -26512.51 | S23: 12446.16 | T23: -17447.4 | U23: -5001.24 | V23: Winter | W23: 0 | X23: -5001.24
A24: ALPENACOUNTYALPENA | B24: 04-0000 | C24: ALPENA | D24: COUNTY | E24: HOSPITAL | F24: OPERATING | G24: NON-ES | H24: 0 | I24: 0 | J24: 0 | K24: 0 | L24: 0 | M24: 0 | N24: 0 | O24: 0 | P24: 0 | Q24: 0 | R24: 0 | S24: 0 | T24: 0 | U24: 0 | V24: N/A | W24: 0 | X24: 0
A25: ALPENACOUNTYALPENA | B25: 04-0000 | C25: ALPENA | D25: COUNTY | E25: LIBRARY | F25: OPERATING | G25: NON-ES | H25: 0 | I25: 0 | J25: 0 | K25: 0 | L25: 0 | M25: 0 | N25: 0 | O25: 0 | P25: 0 | Q25: 0 | R25: 0 | S25: 0 | T25: 0 | U25: 0 | V25: N/A | W25: 0 | X25: 0
A26: ALPENACOUNTYALPENA | B26: 04-0000 | C26: ALPENA | D26: COUNTY | E26: LIBRARY 2 | F26: OPERATING | G26: NON-ES | H26: 0.7457 | I26: 8271.51 | J26: 0 | K26: 0 | L26: 0 | M26: 0 | N26: 1276.94 | O26: 8271.51 | P26: 0.0001013342812 | Q26: 15919.98 | R26: 24191.49 | S26: 9548.45 | T26: 15919.98 | U26: 25468.43 | V26: Winter | W26: 0 | X26: 25468.43
A27: ALPENACOUNTYALPENA | B27: 04-0000 | C27: ALPENA | D27: COUNTY | E27: RECREATION | F27: OPERATING | G27: NON-ES | H27: 0.5 | I27: 5546.14 | J27: 0 | K27: 0 | L27: 0 | M27: 0 | N27: 856.2 | O27: 5546.14 | P27: 6.794576928e-05 | Q27: 10674.53 | R27: 16220.67 | S27: 6402.34 | T27: 10674.53 | U27: 17076.87 | V27: Winter | W27: 0 | X27: 17076.87
A28: ALPENACOUNTYALPENA | B28: 04-0000 | C28: ALPENA | D28: COUNTY | E28: SENIORS | F28: OPERATING | G28: NON-ES | H28: 0.5394 | I28: 5983.18 | J28: 0 | K28: 0 | L28: 0 | M28: 0 | N28: 923.67 | O28: 5983.18 | P28: 7.329994697e-05 | Q28: 11515.69 | R28: 17498.87 | S28: 6906.85 | T28: 11515.69 | U28: 18422.54 | V28: Winter | W28: 0 | X28: 18422.54
A29: ALPENACOUNTYALPENA | B29: 04-0000 | C29: ALPENA | D29: COUNTY | E29: SENIORS 2 | F29: OPERATING | G29: NON-ES | H29: 0.0106 | I29: 117.58 | J29: 0 | K29: 0 | L29: 0 | M29: 0 | N29: 18.15 | O29: 117.58 | P29: 1.440472753e-06 | Q29: 226.3 | R29: 343.88 | S29: 135.73 | T29: 226.3 | U29: 362.03 | V29: Winter | W29: 0 | X29: 362.03
A30: ALPENACOUNTYALPENA | B30: 04-0000 | C30: ALPENA | D30: COUNTY | E30: VETERANS | F30: OPERATING | G30: NON-ES | H30: 0.125 | I30: 1386.54 | J30: 0 | K30: 0 | L30: 0 | M30: 0 | N30: 214.05 | O30: 1386.54 | P30: 1.698650358e-05 | Q30: 2668.64 | R30: 4055.18 | S30: 1600.59 | T30: 2668.64 | U30: 4269.23 | V30: Winter | W30: 0 | X30: 4269.23
A31: ANTRIMCOUNTYANTRIM | B31: 05-0000 | C31: ANTRIM | D31: COUNTY | E31: ALLOC/CHARTER | F31: GENERAL OPERATING | G31: PART ES | H31: 5.4 | I31: 11162.88 | J31: 3584.13 | K31: 3584.13 | L31: 0 | M31: 0 | N31: 21123.88 | O31: 7578.75 | P31: 9.284727738e-05 | Q31: 14586.64 | R31: 22165.39 | S31: 32286.76 | T31: 14586.64 | U31: 46873.4 | V31: Summer | W31: 46873.4 | X31: 0
A32: ANTRIMCOUNTYANTRIM | B32: 05-0000 | C32: ANTRIM | D32: COUNTY | E32: E 911/CENTRAL DISPATCH | F32: OPERATING | G32: NON-ES | H32: 0.273 | I32: 564.34 | J32: 0 | K32: 0 | L32: 0 | M32: 0 | N32: 1067.93 | O32: 564.34 | P32: 6.913730169e-06 | Q32: 1086.17 | R32: 1650.51 | S32: 1632.27 | T32: 1086.17 | U32: 2718.44 | V32: Winter | W32: 0 | X32: 2718.44
A33: ANTRIMCOUNTYANTRIM | B33: 05-0000 | C33: ANTRIM | D33: COUNTY | E33: MEADOWBROOK RETIREMENT CENTER | F33: OPERATING | G33: NON-ES | H33: 1 | I33: 2067.2 | J33: 0 | K33: 0 | L33: 0 | M33: 0 | N33: 3911.83 | O33: 2067.2 | P33: 2.532527024e-05 | Q33: 3978.69 | R33: 6045.89 | S33: 5979.03 | T33: 3978.69 | U33: 9957.72 | V33: Winter | W33: 0 | X33: 9957.72
A34: ANTRIMCOUNTYANTRIM | B34: 05-0000 | C34: ANTRIM | D34: COUNTY | E34: SENIORS | F34: OPERATING | G34: NON-ES | H34: 0.4 | I34: 826.88 | J34: 0 | K34: 0 | L34: 0 | M34: 0 | N34: 1564.73 | O34: 826.88 | P34: 1.013010809e-05 | Q34: 1591.48 | R34: 2418.36 | S34: 2391.61 | T34: 1591.48 | U34: 3983.09 | V34: Winter | W34: 0 | X34: 3983.09
A35: ARENACCOUNTYARENAC | B35: 06-0000 | C35: ARENAC | D35: COUNTY | E35: ALLOC/CHARTER | F35: GENERAL OPERATING | G35: PART ES | H35: 4.9073 | I35: 0 | J35: 0 | K35: 0 | L35: 0 | M35: 0 | N35: 17893.7 | O35: 0 | P35: 0 | Q35: 0 | R35: 0 | S35: 17893.7 | T35: 0 | U35: 17893.7 | V35: Summer | W35: 17893.7 | X35: 0
A36: ARENACCOUNTYARENAC | B36: 06-0000 | C36: ARENAC | D36: COUNTY | E36: AMBULANCE | F36: OPERATING | G36: ES | H36: 0.499 | I36: 361.64 | J36: 474.24 | K36: 474.24 | L36: 0 | M36: 0 | N36: 2147.25 | O36: -112.6 | P36: -1.379462765e-06 | Q36: -216.72 | R36: -329.32 | S36: 2508.89 | T36: -216.72 | U36: 2292.17 | V36: Winter | W36: 0 | X36: 2292.17
A37: ARENACCOUNTYARENAC | B37: 06-0000 | C37: ARENAC | D37: COUNTY | E37: E 911/CENTRAL DISPATCH | F37: OPERATING | G37: NON-ES | H37: 0.6 | I37: 0 | J37: 0 | K37: 0 | L37: 0 | M37: 0 | N37: 2187.8 | O37: 0 | P37: 0 | Q37: 0 | R37: 0 | S37: 2187.8 | T37: 0 | U37: 2187.8 | V37: Winter | W37: 0 | X37: 2187.8
A38: ARENACCOUNTYARENAC | B38: 06-0000 | C38: ARENAC | D38: COUNTY | E38: POLICE | F38: OPERATING | G38: ES | H38: 0.9979 | I38: 0 | J38: 0 | K38: 0 | L38: 0 | M38: 0 | N38: 3638.68 | O38: 0 | P38: 0 | Q38: 0 | R38: 0 | S38: 3638.68 | T38: 0 | U38: 3638.68 | V38: Winter | W38: 0 | X38: 3638.68
A39: ARENACCOUNTYARENAC | B39: 06-0000 | C39: ARENAC | D39: COUNTY | E39: ROADS | F39: OPERATING | G39: NON-ES | H39: 0 | I39: 0 | J39: 0 | K39: 0 | L39: 0 | M39: 0 | N39: 0 | O39: 0 | P39: 0 | Q39: 0 | R39: 0 | S39: 0 | T39: 0 | U39: 0 | V39: N/A | W39: 0 | X39: 0
A40: ARENACCOUNTYARENAC | B40: 06-0000 | C40: ARENAC | D40: COUNTY | E40: SENIORS | F40: OPERATING | G40: NON-ES | H40: 0.7484 | I40: 542.38 | J40: 0 | K40: 0 | L40: 0 | M40: 0 | N40: 3220.45 | O40: 542.38 | P40: 6.644698176e-06 | Q40: 1043.91 | R40: 1586.29 | S40: 3762.83 | T40: 1043.91 | U40: 4806.74 | V40: Winter | W40: 0 | X40: 4806.74
A41: BARAGACOUNTYBARAGA | B41: 07-0000 | C41: BARAGA | D41: COUNTY | E41: ALLOC/CHARTER | F41: GENERAL OPERATING | G41: PART ES | H41: 8.6 | I41: 29664.24 | J41: 11364.99 | K41: 11364.99 | L41: 0 | M41: 0 | N41: 25396.52 | O41: 18299.25 | P41: 0.0002241841386 | Q41: 35220.14 | R41: 53519.39 | S41: 55060.76 | T41: 35220.14 | U41: 90280.9 | V41: Summer | W41: 90280.9 | X41: 0
A42: BARAGACOUNTYBARAGA | B42: 07-0000 | C42: BARAGA | D42: COUNTY | E42: ROADS | F42: OPERATING | G42: NON-ES | H42: 2 | I42: 6898.66 | J42: 0 | K42: 0 | L42: 0 | M42: 0 | N42: 5906.16 | O42: 6898.66 | P42: 8.451549379e-05 | Q42: 13277.69 | R42: 20176.35 | S42: 12804.82 | T42: 13277.69 | U42: 26082.51 | V42: Winter | W42: 0 | X42: 26082.51
A43: BARAGACOUNTYBARAGA | B43: 07-0000 | C43: BARAGA | D43: COUNTY | E43: SENIORS | F43: OPERATING | G43: NON-ES | H43: 0.9572 | I43: 3301.7 | J43: 0 | K43: 0 | L43: 0 | M43: 0 | N43: 2826.69 | O43: 3301.7 | P43: 4.044913155e-05 | Q43: 6354.7 | R43: 9656.4 | S43: 6128.39 | T43: 6354.7 | U43: 12483.09 | V43: Winter | W43: 0 | X43: 12483.09
A44: BARRYCOUNTYBARRY | B44: 08-0000 | C44: BARRY | D44: COUNTY | E44: ALLOC/CHARTER | F44: GENERAL OPERATING | G44: PART ES | H44: 5.4165 | I44: 75366.3 | J44: 15600.61 | K44: 15600.61 | L44: 0 | M44: 0 | N44: 0 | O44: 59765.69 | P44: 0.0007321895559 | Q44: 115029.62 | R44: 174795.31 | S44: 75366.3 | T44: 115029.62 | U44: 190395.92 | V44: Summer | W44: 190395.92 | X44: 0
A45: BARRYCOUNTYBARRY | B45: 08-0000 | C45: BARRY | D45: COUNTY | E45: E 911/CENTRAL DISPATCH | F45: OPERATING | G45: NON-ES | H45: 0.6 | I45: 16662.96 | J45: 0 | K45: 0 | L45: 0 | M45: 0 | N45: 0 | O45: 16662.96 | P45: 0.0002041379474 | Q45: 32070.81 | R45: 48733.77 | S45: 16662.96 | T45: 32070.81 | U45: 48733.77 | V45: Winter | W45: 0 | X45: 48733.77
A46: BARRYCOUNTYBARRY | B46: 08-0000 | C46: BARRY | D46: COUNTY | E46: MEDICAL CARE FACILITY DEBT | F46: DEBT | G46: NON-ES | H46: 0.6755 | I46: 22283.5 | J46: 0 | K46: 0 | L46: 0 | M46: 0 | N46: 0 | O46: 22283.5 | P46: 0.0002729951912 | Q46: 42888.53 | R46: 65172.03 | S46: 22283.5 | T46: 42888.53 | U46: 65172.03 | V46: Winter | W46: 0 | X46: 65172.03
A47: BARRYCOUNTYBARRY | B47: 08-0000 | C47: BARRY | D47: COUNTY | E47: PARKS/REC | F47: OPERATING | G47: NON-ES | H47: 0.2253 | I47: 6260.41 | J47: 0 | K47: 0 | L47: 0 | M47: 0 | N47: 0 | O47: 6260.41 | P47: 7.66962921e-05 | Q47: 12049.26 | R47: 18309.67 | S47: 6260.41 | T47: 12049.26 | U47: 18309.67 | V47: Winter | W47: 0 | X47: 18309.67
A48: BARRYCOUNTYBARRY | B48: 08-0000 | C48: BARRY | D48: COUNTY | E48: SENIORS | F48: OPERATING | G48: NON-ES | H48: 0.4895 | I48: 13601.15 | J48: 0 | K48: 0 | L48: 0 | M48: 0 | N48: 0 | O48: 13601.15 | P48: 0.0001666277086 | Q48: 26177.81 | R48: 39778.96 | S48: 13601.15 | T48: 26177.81 | U48: 39778.96 | V48: Winter | W48: 0 | X48: 39778.96
A49: BARRYCOUNTYBARRY | B49: 08-0000 | C49: BARRY | D49: COUNTY | E49: TRANSIT | F49: OPERATING | G49: NON-ES | H49: 0.2475 | I49: 6876.95 | J49: 0 | K49: 0 | L49: 0 | M49: 0 | N49: 0 | O49: 6876.95 | P49: 8.424952455e-05 | Q49: 13235.9 | R49: 20112.85 | S49: 6876.95 | T49: 13235.9 | U49: 20112.85 | V49: Winter | W49: 0 | X49: 20112.85
A50: BAYCOUNTYBAY | B50: 09-0000 | C50: BAY | D50: COUNTY | E50: ALLOC/CHARTER | F50: GENERAL OPERATING | G50: PART ES | H50: 5.7257 | I50: 384052.76 | J50: 94108.1 | K50: 94108.1 | L50: 0 | M50: 0 | N50: 53854.19 | O50: 289944.66 | P50: 0.003552112455 | Q50: 558049.7 | R50: 847994.36 | S50: 437906.95 | T50: 558049.7 | U50: 995956.65 | V50: Summer | W50: 995956.65 | X50: 0
A51: BAYCOUNTYBAY | B51: 09-0000 | C51: BAY | D51: COUNTY | E51: E 911/CENTRAL DISPATCH | F51: OPERATING | G51: NON-ES | H51: 0.7 | I51: 46952.68 | J51: 0 | K51: 0 | L51: 0 | M51: 0 | N51: 6583.99 | O51: 46952.68 | P51: 0.0005752173516 | Q51: 90368.72 | R51: 137321.4 | S51: 53536.67 | T51: 90368.72 | U51: 143905.39 | V51: Winter | W51: 0 | X51: 143905.39
A52: BAYCOUNTYBAY | B52: 09-0000 | C52: BAY | D52: COUNTY | E52: GYPSY MOTH | F52: OPERATING | G52: NON-ES | H52: 0.1 | I52: 6707.52 | J52: 0 | K52: 0 | L52: 0 | M52: 0 | N52: 940.57 | O52: 6707.52 | P52: 8.217383737e-05 | Q52: 12909.81 | R52: 19617.33 | S52: 7648.09 | T52: 12909.81 | U52: 20557.9 | V52: Winter | W52: 0 | X52: 20557.9
A53: BAYCOUNTYBAY | B53: 09-0000 | C53: BAY | D53: COUNTY | E53: HISTORICAL PRESERVATION | F53: OPERATING | G53: NON-ES | H53: 0.0952 | I53: 6385.57 | J53: 0 | K53: 0 | L53: 0 | M53: 0 | N53: 895.42 | O53: 6385.57 | P53: 7.822962745e-05 | Q53: 12290.16 | R53: 18675.73 | S53: 7280.99 | T53: 12290.16 | U53: 19571.15 | V53: Winter | W53: 0 | X53: 19571.15
A54: BAYCOUNTYBAY | B54: 09-0000 | C54: BAY | D54: COUNTY | E54: LIBRARY | F54: OPERATING | G54: NON-ES | H54: 1 | I54: 67075.24 | J54: 0 | K54: 0 | L54: 0 | M54: 0 | N54: 9405.7 | O54: 67075.24 | P54: 0.0008217388637 | Q54: 129098.14 | R54: 196173.38 | S54: 76480.94 | T54: 129098.14 | U54: 205579.08 | V54: Winter | W54: 0 | X54: 205579.08
A55: BAYCOUNTYBAY | B55: 09-0000 | C55: BAY | D55: COUNTY | E55: LIBRARY 2 | F55: OPERATING | G55: NON-ES | H55: 0.9953 | I55: 66760 | J55: 0 | K55: 0 | L55: 0 | M55: 0 | N55: 9361.49 | O55: 66760 | P55: 0.000817876858 | Q55: 128491.41 | R55: 195251.41 | S55: 76121.49 | T55: 128491.41 | U55: 204612.9 | V55: Winter | W55: 0 | X55: 204612.9
A56: BAYCOUNTYBAY | B56: 09-0000 | C56: BAY | D56: COUNTY | E56: MEDICAL | F56: OPERATING | G56: NON-ES | H56: 0.75 | I56: 50306.43 | J56: 0 | K56: 0 | L56: 0 | M56: 0 | N56: 7054.27 | O56: 50306.43 | P56: 0.0006163041478 | Q56: 96823.61 | R56: 147130.04 | S56: 57360.7 | T56: 96823.61 | U56: 154184.31 | V56: Winter | W56: 0 | X56: 154184.31
A57: BAYCOUNTYBAY | B57: 09-0000 | C57: BAY | D57: COUNTY | E57: MOSQUITO | F57: OPERATING | G57: NON-ES | H57: 0.45 | I57: 30183.87 | J57: 0 | K57: 0 | L57: 0 | M57: 0 | N57: 4232.56 | O57: 30183.87 | P57: 0.0003697826357 | Q57: 58094.19 | R57: 88278.06 | S57: 34416.43 | T57: 58094.19 | U57: 92510.62 | V57: Winter | W57: 0 | X57: 92510.62
A58: BAYCOUNTYBAY | B58: 09-0000 | C58: BAY | D58: COUNTY | E58: SENIORS | F58: OPERATING | G58: NON-ES | H58: 0.5 | I58: 33537.62 | J58: 0 | K58: 0 | L58: 0 | M58: 0 | N58: 4702.85 | O58: 33537.62 | P58: 0.0004108694319 | Q58: 64549.07 | R58: 98086.69 | S58: 38240.47 | T58: 64549.07 | U58: 102789.54 | V58: Winter | W58: 0 | X58: 102789.54
A59: BAYCOUNTYBAY | B59: 09-0000 | C59: BAY | D59: COUNTY | E59: SENIORS 2 | F59: OPERATING | G59: NON-ES | H59: 0.3 | I59: 20122.57 | J59: 0 | K59: 0 | L59: 0 | M59: 0 | N59: 2821.71 | O59: 20122.57 | P59: 0.0002465216346 | Q59: 38729.44 | R59: 58852.01 | S59: 22944.28 | T59: 38729.44 | U59: 61673.72 | V59: Winter | W59: 0 | X59: 61673.72
A60: BAYCOUNTYBAY | B60: 09-0000 | C60: BAY | D60: COUNTY | E60: VETERANS | F60: OPERATING | G60: NON-ES | H60: 0.1 | I60: 6707.52 | J60: 0 | K60: 0 | L60: 0 | M60: 0 | N60: 940.57 | O60: 6707.52 | P60: 8.217383737e-05 | Q60: 12909.81 | R60: 19617.33 | S60: 7648.09 | T60: 12909.81 | U60: 20557.9 | V60: Winter | W60: 0 | X60: 20557.9
A61: BENZIECOUNTYBENZIE | B61: 10-0000 | C61: BENZIE | D61: COUNTY | E61: ALLOC/CHARTER | F61: GENERAL OPERATING | G61: PART ES | H61: 3.4919 | I61: 0 | J61: 0 | K61: 0 | L61: 0 | M61: 0 | N61: 29385.77 | O61: 0 | P61: 0 | Q61: 0 | R61: 0 | S61: 29385.77 | T61: 0 | U61: 29385.77 | V61: Summer | W61: 29385.77 | X61: 0
A62: BENZIECOUNTYBENZIE | B62: 10-0000 | C62: BENZIE | D62: COUNTY | E62: AMBULANCE/ALS/EMS | F62: OPERATING | G62: ES | H62: 0.5795 | I62: 0 | J62: 0 | K62: 0 | L62: 0 | M62: 0 | N62: 4864.89 | O62: 0 | P62: 0 | Q62: 0 | R62: 0 | S62: 4864.89 | T62: 0 | U62: 4864.89 | V62: Winter | W62: 0 | X62: 4864.89
A63: BENZIECOUNTYBENZIE | B63: 10-0000 | C63: BENZIE | D63: COUNTY | E63: ANIMAL CONTROL/SHELTER | F63: OPERATING | G63: NON-ES | H63: 0.0975 | I63: 0 | J63: 0 | K63: 0 | L63: 0 | M63: 0 | N63: 820.73 | O63: 0 | P63: 0 | Q63: 0 | R63: 0 | S63: 820.73 | T63: 0 | U63: 820.73 | V63: Winter | W63: 0 | X63: 820.73
A64: BENZIECOUNTYBENZIE | B64: 10-0000 | C64: BENZIE | D64: COUNTY | E64: CONSERVATION DISTRICT | F64: OPERATING | G64: NON-ES | H64: 0.0993 | I64: 0 | J64: 0 | K64: 0 | L64: 0 | M64: 0 | N64: 835.84 | O64: 0 | P64: 0 | Q64: 0 | R64: 0 | S64: 835.84 | T64: 0 | U64: 835.84 | V64: Winter | W64: 0 | X64: 835.84
A65: BENZIECOUNTYBENZIE | B65: 10-0000 | C65: BENZIE | D65: COUNTY | E65: JAIL | F65: OPERATING | G65: ES | H65: 0.8942 | I65: 0 | J65: 0 | K65: 0 | L65: 0 | M65: 0 | N65: 7525.18 | O65: 0 | P65: 0 | Q65: 0 | R65: 0 | S65: 7525.18 | T65: 0 | U65: 7525.18 | V65: Winter | W65: 0 | X65: 7525.18
A66: BENZIECOUNTYBENZIE | B66: 10-0000 | C66: BENZIE | D66: COUNTY | E66: MEDICAL CARE FACILITY | F66: OPERATING | G66: NON-ES | H66: 0.3626 | I66: 0 | J66: 0 | K66: 0 | L66: 0 | M66: 0 | N66: 3051.63 | O66: 0 | P66: 0 | Q66: 0 | R66: 0 | S66: 3051.63 | T66: 0 | U66: 3051.63 | V66: Winter | W66: 0 | X66: 3051.63
A67: BENZIECOUNTYBENZIE | B67: 10-0000 | C67: BENZIE | D67: COUNTY | E67: MEDICAL CARE FACILITY DEBT | F67: DEBT | G67: NON-ES | H67: 0.635 | I67: 0 | J67: 0 | K67: 0 | L67: 0 | M67: 0 | N67: 5912.79 | O67: 0 | P67: 0 | Q67: 0 | R67: 0 | S67: 5912.79 | T67: 0 | U67: 5912.79 | V67: Winter | W67: 0 | X67: 5912.79
A68: BENZIECOUNTYBENZIE | B68: 10-0000 | C68: BENZIE | D68: COUNTY | E68: ROADS | F68: OPERATING | G68: NON-ES | H68: 0 | I68: 0 | J68: 0 | K68: 0 | L68: 0 | M68: 0 | N68: 0 | O68: 0 | P68: 0 | Q68: 0 | R68: 0 | S68: 0 | T68: 0 | U68: 0 | V68: N/A | W68: 0 | X68: 0
A69: BENZIECOUNTYBENZIE | B69: 10-0000 | C69: BENZIE | D69: COUNTY | E69: SENIORS | F69: OPERATING | G69: NON-ES | H69: 0.6536 | I69: 0 | J69: 0 | K69: =IF(SUMIFS(I:I,B:B,B69)<SUMIFS(J:J,B:B,B69),(J69/SUMIFS(J:J,B:B,B69))*SUMIFS(I:I,B:B,B69), J69) -> 0 | L69: 0 | M69: 0 | N69: 5486.95 | O69: 0 | P69: =$O69/$O$5915 -> 0 | Q69: =R69-O69 -> 0 | R69: =ROUND($O69*$R$2, 2) -> 0 | S69: =K69+N69+O69 -> 5486.95 | T69: =Q69 -> 0 | U69: =S69+T69 -> 5486.95 | V69: Winter | W69: =IF(V69="Summer", U69, 0) -> 0 | X69: =IF(V69="Winter", U69, 0) -> 5486.95
A70: BENZIECOUNTYBENZIE | B70: 10-0000 | C70: BENZIE | D70: COUNTY | E70: TNT - NARCOTICS | F70: OPERATING | G70: NON-ES | H70: 0 | I70: 0 | J70: 0 | K70: 0 | L70: 0 | M70: 0 | N70: 0 | O70: 0 | P70: 0 | Q70: 0 | R70: 0 | S70: 0 | T70: 0 | U70: 0 | V70: N/A | W70: 0 | X70: 0
A71: BENZIECOUNTYBENZIE | B71: 10-0000 | C71: BENZIE | D71: COUNTY | E71: VETERANS | F71: OPERATING | G71: NON-ES | H71: 0.04 | I71: 0 | J71: 0 | K71: 0 | L71: 0 | M71: 0 | N71: 399.22 | O71: 0 | P71: 0 | Q71: 0 | R71: 0 | S71: 399.22 | T71: 0 | U71: 399.22 | V71: Winter | W71: 0 | X71: 399.22
A72: BERRIENCOUNTYBERRIEN | B72: 11-0000 | C72: BERRIEN | D72: COUNTY | E72: ALLOC/CHARTER | F72: GENERAL OPERATING | G72: PART ES | H72: 4.7723 | I72: 333500.24 | J72: 151096.97 | K72: 151096.97 | L72: 0 | M72: 0 | N72: 0 | O72: 182403.27 | P72: 0.002234622729 | Q72: 351067.3 | R72: 533470.57 | S72: 333500.24 | T72: 351067.3 | U72: 684567.54 | V72: Summer | W72: 684567.54 | X72: 0
A73: BERRIENCOUNTYBERRIEN | B73: 11-0000 | C73: BERRIEN | D73: COUNTY | E73: E 911/CENTRAL DISPATCH | F73: OPERATING | G73: NON-ES | H73: 0.25 | I73: 17470.62 | J73: 0 | K73: 0 | L73: 0 | M73: 0 | N73: 0 | O73: 17470.62 | P73: 0.0002140325913 | Q73: 33625.29 | R73: 51095.91 | S73: 17470.62 | T73: 33625.29 | U73: 51095.91 | V73: Winter | W73: 0 | X73: 51095.91
A74: BERRIENCOUNTYBERRIEN | B74: 11-0000 | C74: BERRIEN | D74: COUNTY | E74: LAW ENFORCEMENT | F74: OPERATING | G74: ES | H74: 0.35 | I74: 24458.88 | J74: 24882.17 | K74: 24882.17 | L74: 0 | M74: 0 | N74: 0 | O74: -423.29 | P74: -5.185726412e-06 | Q74: -814.7 | R74: -1237.99 | S74: 24458.88 | T74: -814.7 | U74: 23644.18 | V74: Winter | W74: 0 | X74: 23644.18
A75: BERRIENCOUNTYBERRIEN | B75: 11-0000 | C75: BERRIEN | D75: COUNTY | E75: PARKS | F75: OPERATING | G75: NON-ES | H75: 0.1 | I75: 6988.26 | J75: 0 | K75: 0 | L75: 0 | M75: 0 | N75: 0 | O75: 6988.26 | P75: 8.561318352e-05 | Q75: 13450.14 | R75: 20438.4 | S75: 6988.26 | T75: 13450.14 | U75: 20438.4 | V75: Winter | W75: 0 | X75: 20438.4
A76: BERRIENCOUNTYBERRIEN | B76: 11-0000 | C76: BERRIEN | D76: COUNTY | E76: SENIORS | F76: OPERATING | G76: NON-ES | H76: 0.3 | I76: 20964.75 | J76: 0 | K76: 0 | L76: 0 | M76: 0 | N76: 0 | O76: 20964.75 | P76: 0.000256839183 | Q76: 40350.36 | R76: 61315.11 | S76: 20964.75 | T76: 40350.36 | U76: 61315.11 | V76: Winter | W76: 0 | X76: 61315.11
A77: BRANCHCOUNTYBRANCH | B77: 12-0000 | C77: BRANCH | D77: COUNTY | E77: ALLOC/CHARTER | F77: GENERAL OPERATING | G77: PART ES | H77: 4.7562 | I77: 159651.43 | J77: 60050.43 | K77: 60050.43 | L77: 0 | M77: 0 | N77: 3718.27 | O77: 99601 | P77: 0.001220211997 | Q77: 191699.71 | R77: 291300.71 | S77: 163369.7 | T77: 191699.71 | U77: 355069.41 | V77: Summer | W77: 355069.41 | X77: 0
A78: BRANCHCOUNTYBRANCH | B78: 12-0000 | C78: BRANCH | D78: COUNTY | E78: E 911/CENTRAL DISPATCH | F78: OPERATING | G78: NON-ES | H78: 1 | I78: 33567.01 | J78: 0 | K78: 0 | L78: 0 | M78: 0 | N78: 781.77 | O78: 33567.01 | P78: 0.0004112294888 | Q78: 64605.64 | R78: 98172.65 | S78: 34348.78 | T78: 64605.64 | U78: 98954.42 | V78: Winter | W78: 0 | X78: 98954.42
A79: BRANCHCOUNTYBRANCH | B79: 12-0000 | C79: BRANCH | D79: COUNTY | E79: JAIL/LAW ENFORCEMENT | F79: OPERATING | G79: ES | H79: 0.5 | I79: 16783.51 | J79: 17717.42 | K79: 17717.42 | L79: 0 | M79: 0 | N79: 390.88 | O79: -933.91 | P79: -1.144133278e-05 | Q79: -1797.47 | R79: -2731.38 | S79: 17174.39 | T79: -1797.47 | U79: 15376.92 | V79: Winter | W79: 0 | X79: 15376.92
A80: BRANCHCOUNTYBRANCH | B80: 12-0000 | C80: BRANCH | D80: COUNTY | E80: SENIORS | F80: OPERATING | G80: NON-ES | H80: 0.4908 | I80: 16474.69 | J80: 0 | K80: 0 | L80: 0 | M80: 0 | N80: 383.7 | O80: 16474.69 | P80: 0.0002018314514 | Q80: 31708.45 | R80: 48183.14 | S80: 16858.39 | T80: 31708.45 | U80: 48566.84 | V80: Winter | W80: 0 | X80: 48566.84
A81: BRANCHCOUNTYBRANCH | B81: 12-0000 | C81: BRANCH | D81: COUNTY | E81: SENIORS 2 | F81: OPERATING | G81: NON-ES | H81: 0.2425 | I81: 8140 | J81: 0 | K81: 0 | L81: 0 | M81: 0 | N81: 189.58 | O81: 8140 | P81: 9.972315195e-05 | Q81: 15666.87 | R81: 23806.87 | S81: 8329.58 | T81: 15666.87 | U81: 23996.45 | V81: Winter | W81: 0 | X81: 23996.45
A82: BRANCHCOUNTYBRANCH | B82: 12-0000 | C82: BRANCH | D82: COUNTY | E82: VETERANS | F82: OPERATING | G82: NON-ES | H82: 0.1 | I82: 3356.71 | J82: 0 | K82: 0 | L82: 0 | M82: 0 | N82: 78.18 | O82: 3356.71 | P82: 4.112305914e-05 | Q82: 6460.58 | R82: 9817.29 | S82: 3434.89 | T82: 6460.58 | U82: 9895.47 | V82: Winter | W82: 0 | X82: 9895.47
A83: CALHOUNCOUNTYCALHOUN | B83: 13-0000 | C83: CALHOUN | D83: COUNTY | E83: ALLOC/CHARTER | F83: GENERAL OPERATING | G83: PART ES | H83: 5.3779 | I83: 1010614.58 | J83: 409092.43 | K83: 409092.43 | L83: 0 | M83: 0 | N83: 0 | O83: 601522.15 | P83: 0.007369248743 | Q83: 1157735.6 | R83: 1759257.75 | S83: 1010614.58 | T83: 1157735.6 | U83: 2168350.18 | V83: Summer | W83: 2168350.18 | X83: 0
A84: CALHOUNCOUNTYCALHOUN | B84: 13-0000 | C84: CALHOUN | D84: COUNTY | E84: MEDICAL | F84: OPERATING | G84: NON-ES | H84: 0.2482 | I84: 62663.78 | J84: 0 | K84: 0 | L84: 0 | M84: 0 | N84: 0 | O84: 62663.78 | P84: 0.0007676940608 | Q84: 120607.51 | R84: 183271.29 | S84: 62663.78 | T84: 120607.51 | U84: 183271.29 | V84: Winter | W84: 0 | X84: 183271.29
A85: CALHOUNCOUNTYCALHOUN | B85: 13-0000 | C85: CALHOUN | D85: COUNTY | E85: SENIORS | F85: OPERATING | G85: NON-ES | H85: 0.7452 | I85: 189803.37 | J85: 0 | K85: 0 | L85: 0 | M85: 0 | N85: 0 | O85: 189803.37 | P85: 0.002325281365 | Q85: 365310.1 | R85: 555113.47 | S85: 189803.37 | T85: 365310.1 | U85: 555113.47 | V85: Winter | W85: 0 | X85: 555113.47
A86: CALHOUNCOUNTYCALHOUN | B86: 13-0000 | C86: CALHOUN | D86: COUNTY | E86: VETERANS | F86: OPERATING | G86: NON-ES | H86: 0 | I86: 0 | J86: 0 | K86: 0 | L86: 0 | M86: 0 | N86: 0 | O86: 0 | P86: 0 | Q86: 0 | R86: 0 | S86: 0 | T86: 0 | U86: 0 | V86: N/A | W86: 0 | X86: 0
A87: CASSCOUNTYCASS | B87: 14-0000 | C87: CASS | D87: COUNTY | E87: ALLOC/CHARTER | F87: GENERAL OPERATING | G87: PART ES | H87: 4.6359 | I87: 99929.57 | J87: 32584.14 | K87: 32584.14 | L87: 0 | M87: 0 | N87: 0 | O87: 67345.43 | P87: 0.0008250489618 | Q87: 129618.17 | R87: 196963.6 | S87: 99929.57 | T87: 129618.17 | U87: 229547.74 | V87: Summer | W87: 229547.74 | X87: 0
A88: CASSCOUNTYCASS | B88: 14-0000 | C88: CASS | D88: COUNTY | E88: DRUG ENFORCEMENT | F88: OPERATING | G88: NON-ES | H88: 0.4805 | I88: 10357.46 | J88: 0 | K88: 0 | L88: 0 | M88: 0 | N88: 0 | O88: 10357.46 | P88: 0.0001268892577 | Q88: 19934.76 | R88: 30292.22 | S88: 10357.46 | T88: 19934.76 | U88: 30292.22 | V88: Winter | W88: 0 | X88: 30292.22
A89: CASSCOUNTYCASS | B89: 14-0000 | C89: CASS | D89: COUNTY | E89: E 911/CENTRAL DISPATCH | F89: OPERATING | G89: NON-ES | H89: 0.2 | I89: 4311.11 | J89: 0 | K89: 0 | L89: 0 | M89: 0 | N89: 0 | O89: 4311.11 | P89: 5.281541494e-05 | Q89: 8297.49 | R89: 12608.6 | S89: 4311.11 | T89: 8297.49 | U89: 12608.6 | V89: Winter | W89: 0 | X89: 12608.6
A90: CASSCOUNTYCASS | B90: 14-0000 | C90: CASS | D90: COUNTY | E90: SENIORS | F90: OPERATING | G90: NON-ES | H90: 0.9036 | I90: 19477.63 | J90: 0 | K90: 0 | L90: 0 | M90: 0 | N90: 0 | O90: 19477.63 | P90: 0.0002386204737 | Q90: 37488.14 | R90: 56965.77 | S90: 19477.63 | T90: 37488.14 | U90: 56965.77 | V90: Winter | W90: 0 | X90: 56965.77
A91: CHARLEVOIXCOUNTYCHARLEVOIX | B91: 15-0000 | C91: CHARLEVOIX | D91: COUNTY | E91: ALLOC/CHARTER | F91: GENERAL OPERATING | G91: PART ES | H91: 4.6 | I91: 105653.39 | J91: 34889.17 | K91: 34889.17 | L91: 0 | M91: 0 | N91: 30892.85 | O91: 70764.22 | P91: 0.0008669325631 | Q91: 136198.24 | R91: 206962.46 | S91: 136546.24 | T91: 136198.24 | U91: 272744.48 | V91: Summer | W91: 272744.48 | X91: 0
A92: CHARLEVOIXCOUNTYCHARLEVOIX | B92: 15-0000 | C92: CHARLEVOIX | D92: COUNTY | E92: MEDICAL | F92: OPERATING | G92: NON-ES | H92: 0.7493 | I92: 17207.2 | J92: 0 | K92: 0 | L92: 0 | M92: 0 | N92: 5034.9 | O92: 17207.2 | P92: 0.0002108054325 | Q92: 33118.29 | R92: 50325.49 | S92: 22242.1 | T92: 33118.29 | U92: 55360.39 | V92: Winter | W92: 0 | X92: 55360.39
A93: CHARLEVOIXCOUNTYCHARLEVOIX | B93: 15-0000 | C93: CHARLEVOIX | D93: COUNTY | E93: PARKS/REC | F93: OPERATING | G93: NON-ES | H93: 0 | I93: 0 | J93: 0 | K93: 0 | L93: 0 | M93: 0 | N93: 0 | O93: 0 | P93: 0 | Q93: 0 | R93: 0 | S93: 0 | T93: 0 | U93: 0 | V93: N/A | W93: 0 | X93: 0
A94: CHARLEVOIXCOUNTYCHARLEVOIX | B94: 15-0000 | C94: CHARLEVOIX | D94: COUNTY | E94: RECYCLING | F94: OPERATING | G94: NON-ES | H94: 0.1498 | I94: 4510.66 | J94: 0 | K94: 0 | L94: 0 | M94: 0 | N94: 1006.56 | O94: 4510.66 | P94: 5.526010228e-05 | Q94: 8681.56 | R94: 13192.22 | S94: 5517.22 | T94: 8681.56 | U94: 14198.78 | V94: Winter | W94: 0 | X94: 14198.78
A95: CHARLEVOIXCOUNTYCHARLEVOIX | B95: 15-0000 | C95: CHARLEVOIX | D95: COUNTY | E95: ROADS | F95: OPERATING | G95: NON-ES | H95: 0.9991 | I95: 30084 | J95: 0 | K95: 0 | L95: 0 | M95: 0 | N95: 6713.43 | O95: 30084 | P95: 0.0003685591282 | Q95: 57901.97 | R95: 87985.97 | S95: 36797.43 | T95: 57901.97 | U95: 94699.4 | V95: Winter | W95: 0 | X95: 94699.4
A96: CHARLEVOIXCOUNTYCHARLEVOIX | B96: 15-0000 | C96: CHARLEVOIX | D96: COUNTY | E96: SENIORS | F96: OPERATING | G96: NON-ES | H96: 0.6 | I96: 18066.56 | J96: 0 | K96: 0 | L96: 0 | M96: 0 | N96: 4031.78 | O96: 18066.56 | P96: 0.0002213334531 | Q96: 34772.29 | R96: 52838.85 | S96: 22098.34 | T96: 34772.29 | U96: 56870.63 | V96: Winter | W96: 0 | X96: 56870.63
A97: CHARLEVOIXCOUNTYCHARLEVOIX | B97: 15-0000 | C97: CHARLEVOIX | D97: COUNTY | E97: TRANSIT | F97: OPERATING | G97: NON-ES | H97: 0.2497 | I97: 5734.21 | J97: 0 | K97: 0 | L97: 0 | M97: 0 | N97: 1677.84 | O97: 5734.21 | P97: 7.024981513e-05 | Q97: 11036.5 | R97: 16770.71 | S97: 7412.05 | T97: 11036.5 | U97: 18448.55 | V97: Winter | W97: 0 | X97: 18448.55
A98: CHARLEVOIXCOUNTYCHARLEVOIX | B98: 15-0000 | C98: CHARLEVOIX | D98: COUNTY | E98: VETERANS | F98: OPERATING | G98: NON-ES | H98: 0 | I98: 0 | J98: 0 | K98: 0 | L98: 0 | M98: 0 | N98: 0 | O98: 0 | P98: 0 | Q98: 0 | R98: 0 | S98: 0 | T98: 0 | U98: 0 | V98: N/A | W98: 0 | X98: 0
A99: CHEBOYGANCOUNTYCHEBOYGAN | B99: 16-0000 | C99: CHEBOYGAN | D99: COUNTY | E99: ALLOC/CHARTER | F99: GENERAL OPERATING | G99: PART ES | H99: 5.6592 | I99: 0 | J99: 0 | K99: 0 | L99: 0 | M99: 0 | N99: 22292.85 | O99: 0 | P99: 0 | Q99: 0 | R99: 0 | S99: 22292.85 | T99: 0 | U99: 22292.85 | V99: Summer | W99: 22292.85 | X99: 0
A100: CHEBOYGANCOUNTYCHEBOYGAN | B100: 16-0000 | C100: CHEBOYGAN | D100: COUNTY | E100: AMBULANCE | F100: OPERATING | G100: ES | H100: 0.25 | I100: 0 | J100: 0 | K100: 0 | L100: 0 | M100: 0 | N100: 984.8 | O100: 0 | P100: 0 | Q100: 0 | R100: 0 | S100: 984.8 | T100: 0 | U100: 984.8 | V100: Winter | W100: 0 | X100: 984.8
A101: CHEBOYGANCOUNTYCHEBOYGAN | B101: 16-0000 | C101: CHEBOYGAN | D101: COUNTY | E101: ROADS | F101: OPERATING | G101: NON-ES | H101: 0 | I101: 0 | J101: 0 | K101: 0 | L101: 0 | M101: 0 | N101: 0 | O101: 0 | P101: 0 | Q101: 0 | R101: 0 | S101: 0 | T101: 0 | U101: 0 | V101: N/A | W101: 0 | X101: 0
A102: CHEBOYGANCOUNTYCHEBOYGAN | B102: 16-0000 | C102: CHEBOYGAN | D102: COUNTY | E102: SENIORS | F102: OPERATING | G102: NON-ES | H102: 0.5 | I102: 0 | J102: 0 | K102: 0 | L102: 0 | M102: 0 | N102: 1969.61 | O102: 0 | P102: 0 | Q102: 0 | R102: 0 | S102: 1969.61 | T102: 0 | U102: 1969.61 | V102: Winter | W102: 0 | X102: 1969.61
A103: CHIPPEWACOUNTYCHIPPEWA | B103: 17-0000 | C103: CHIPPEWA | D103: COUNTY | E103: ALLOC/CHARTER | F103: GENERAL OPERATING | G103: PART ES | H103: 6.15 | I103: 0 | J103: 0 | K103: 0 | L103: 0 | M103: 0 | N103: 34091.14 | O103: 0 | P103: 0 | Q103: 0 | R103: 0 | S103: 34091.14 | T103: 0 | U103: 34091.14 | V103: Summer | W103: 34091.14 | X103: 0
A104: CHIPPEWACOUNTYCHIPPEWA | B104: 17-0000 | C104: CHIPPEWA | D104: COUNTY | E104: ANIMAL SHELTER | F104: OPERATING | G104: NON-ES | H104: 0 | I104: 0 | J104: 0 | K104: 0 | L104: 0 | M104: 0 | N104: 0 | O104: 0 | P104: 0 | Q104: 0 | R104: 0 | S104: 0 | T104: 0 | U104: 0 | V104: N/A | W104: 0 | X104: 0
A105: CHIPPEWACOUNTYCHIPPEWA | B105: 17-0000 | C105: CHIPPEWA | D105: COUNTY | E105: FIRE/AMBULANCE | F105: OPERATING | G105: ES | H105: 0.4275 | I105: 0 | J105: 0 | K105: 0 | L105: 0 | M105: 0 | N105: 2369.74 | O105: 0 | P105: 0 | Q105: 0 | R105: 0 | S105: 2369.74 | T105: 0 | U105: 2369.74 | V105: Winter | W105: 0 | X105: 2369.74
A106: CHIPPEWACOUNTYCHIPPEWA | B106: 17-0000 | C106: CHIPPEWA | D106: COUNTY | E106: JAIL | F106: OPERATING | G106: ES | H106: 0.6 | I106: 0 | J106: 0 | K106: 0 | L106: 0 | M106: 0 | N106: 3325.96 | O106: 0 | P106: 0 | Q106: 0 | R106: 0 | S106: 3325.96 | T106: 0 | U106: 3325.96 | V106: Winter | W106: 0 | X106: 3325.96
A107: CHIPPEWACOUNTYCHIPPEWA | B107: 17-0000 | C107: CHIPPEWA | D107: COUNTY | E107: RECYCLING | F107: OPERATING | G107: NON-ES | H107: 0.5 | I107: 0 | J107: 0 | K107: 0 | L107: 0 | M107: 0 | N107: 2771.63 | O107: 0 | P107: 0 | Q107: 0 | R107: 0 | S107: 2771.63 | T107: 0 | U107: 2771.63 | V107: Winter | W107: 0 | X107: 2771.63
A108: CHIPPEWACOUNTYCHIPPEWA | B108: 17-0000 | C108: CHIPPEWA | D108: COUNTY | E108: ROADS | F108: OPERATING | G108: NON-ES | H108: 0.9879 | I108: 0 | J108: 0 | K108: 0 | L108: 0 | M108: 0 | N108: 5476.19 | O108: 0 | P108: 0 | Q108: 0 | R108: 0 | S108: 5476.19 | T108: 0 | U108: 5476.19 | V108: Winter | W108: 0 | X108: 5476.19
A109: CHIPPEWACOUNTYCHIPPEWA | B109: 17-0000 | C109: CHIPPEWA | D109: COUNTY | E109: SENIORS | F109: OPERATING | G109: NON-ES | H109: 0.4994 | I109: 0 | J109: 0 | K109: 0 | L109: 0 | M109: 0 | N109: 2768.31 | O109: 0 | P109: 0 | Q109: 0 | R109: 0 | S109: 2768.31 | T109: 0 | U109: 2768.31 | V109: Winter | W109: 0 | X109: 2768.31
A110: CLARECOUNTYCLARE | B110: 18-0000 | C110: CLARE | D110: COUNTY | E110: ALLOC/CHARTER | F110: GENERAL OPERATING | G110: PART ES | H110: 4.7072 | I110: 0 | J110: 0 | K110: 0 | L110: 0 | M110: 0 | N110: 55731.99 | O110: 0 | P110: 0 | Q110: 0 | R110: 0 | S110: 55731.99 | T110: 0 | U110: 55731.99 | V110: Summer | W110: 55731.99 | X110: 0
A111: CLARECOUNTYCLARE | B111: 18-0000 | C111: CLARE | D111: COUNTY | E111: E 911/CENTRAL DISPATCH | F111: OPERATING | G111: NON-ES | H111: 0.35 | I111: 0 | J111: 0 | K111: 0 | L111: 0 | M111: 0 | N111: 4143.9 | O111: 0 | P111: 0 | Q111: 0 | R111: 0 | S111: 4143.9 | T111: 0 | U111: 4143.9 | V111: Winter | W111: 0 | X111: 4143.9
A112: CLARECOUNTYCLARE | B112: 18-0000 | C112: CLARE | D112: COUNTY | E112: SENIORS | F112: OPERATING | G112: NON-ES | H112: 0.48 | I112: 0 | J112: 0 | K112: 0 | L112: 0 | M112: 0 | N112: 5683.08 | O112: 0 | P112: 0 | Q112: 0 | R112: 0 | S112: 5683.08 | T112: 0 | U112: 5683.08 | V112: Winter | W112: 0 | X112: 5683.08
A113: CLARECOUNTYCLARE | B113: 18-0000 | C113: CLARE | D113: COUNTY | E113: SENIORS 2 | F113: OPERATING | G113: NON-ES | H113: 0 | I113: 0 | J113: 0 | K113: 0 | L113: 0 | M113: 0 | N113: 0 | O113: 0 | P113: 0 | Q113: 0 | R113: 0 | S113: 0 | T113: 0 | U113: 0 | V113: N/A | W113: 0 | X113: 0
A114: CLARECOUNTYCLARE | B114: 18-0000 | C114: CLARE | D114: COUNTY | E114: TRANSIT | F114: OPERATING | G114: NON-ES | H114: 0.3 | I114: 0 | J114: 0 | K114: 0 | L114: 0 | M114: 0 | N114: 3551.92 | O114: 0 | P114: 0 | Q114: 0 | R114: 0 | S114: 3551.92 | T114: 0 | U114: 3551.92 | V114: Winter | W114: 0 | X114: 3551.92
A115: CLINTONCOUNTYCLINTON | B115: 19-0000 | C115: CLINTON | D115: COUNTY | E115: ALLOC/CHARTER | F115: GENERAL OPERATING | G115: PART ES | H115: 5.7953 | I115: 59619.4 | J115: 20660.03 | K115: 20660.03 | L115: 0 | M115: 0 | N115: 35949.34 | O115: 38959.37 | P115: 0.0004772912991 | Q115: 74984.19 | R115: 113943.56 | S115: 95568.74 | T115: 74984.19 | U115: 170552.93 | V115: Summer | W115: 170552.93 | X115: 0
A116: CRAWFORDCOUNTYCRAWFORD | B116: 20-0000 | C116: CRAWFORD | D116: COUNTY | E116: ALLOC/CHARTER | F116: GENERAL OPERATING | G116: PART ES | H116: 6.0925 | I116: 119765.76 | J116: 52623.85 | K116: 52623.85 | L116: 0 | M116: 0 | N116: 0 | O116: 67141.91 | P116: 0.000822555638 | Q116: 129226.46 | R116: 196368.37 | S116: 119765.76 | T116: 129226.46 | U116: 248992.22 | V116: Summer | W116: 248992.22 | X116: 0
A117: CRAWFORDCOUNTYCRAWFORD | B117: 20-0000 | C117: CRAWFORD | D117: COUNTY | E117: ANIMAL CONTROL/SHELTER | F117: OPERATING | G117: NON-ES | H117: 0 | I117: 0 | J117: 0 | K117: 0 | L117: 0 | M117: 0 | N117: 0 | O117: 0 | P117: 0 | Q117: 0 | R117: 0 | S117: 0 | T117: 0 | U117: 0 | V117: N/A | W117: 0 | X117: 0
A118: CRAWFORDCOUNTYCRAWFORD | B118: 20-0000 | C118: CRAWFORD | D118: COUNTY | E118: CRAWFORD COUNTY LIBRARY | F118: OPERATING | G118: NON-ES | H118: 0.4458 | I118: 8763.49 | J118: 0 | K118: 0 | L118: 0 | M118: 0 | N118: 0 | O118: 8763.49 | P118: 0.0001073615289 | Q118: 16866.88 | R118: 25630.37 | S118: 8763.49 | T118: 16866.88 | U118: 25630.37 | V118: Winter | W118: 0 | X118: 25630.37
A119: CRAWFORDCOUNTYCRAWFORD | B119: 20-0000 | C119: CRAWFORD | D119: COUNTY | E119: LIBRARY BLDG DEBT | F119: DEBT | G119: NON-ES | H119: 0 | I119: 0 | J119: 0 | K119: 0 | L119: 0 | M119: 0 | N119: 0 | O119: 0 | P119: 0 | Q119: 0 | R119: 0 | S119: 0 | T119: 0 | U119: 0 | V119: N/A | W119: 0 | X119: 0
A120: CRAWFORDCOUNTYCRAWFORD | B120: 20-0000 | C120: CRAWFORD | D120: COUNTY | E120: PUBLIC TRANSPORTATION | F120: OPERATING | G120: NON-ES | H120: 0.7027 | I120: 13813.61 | J120: 0 | K120: 0 | L120: 0 | M120: 0 | N120: 0 | O120: 13813.61 | P120: 0.0001692305564 | Q120: 26586.73 | R120: 40400.34 | S120: 13813.61 | T120: 26586.73 | U120: 40400.34 | V120: Winter | W120: 0 | X120: 40400.34
A121: CRAWFORDCOUNTYCRAWFORD | B121: 20-0000 | C121: CRAWFORD | D121: COUNTY | E121: RECREATION AUTHORITY | F121: OPERATING | G121: NON-ES | H121: 0.4845 | I121: 9524.25 | J121: 0 | K121: 0 | L121: 0 | M121: 0 | N121: 0 | O121: 9524.25 | P121: 0.0001166816007 | Q121: 18331.1 | R121: 27855.35 | S121: 9524.25 | T121: 18331.1 | U121: 27855.35 | V121: Winter | W121: 0 | X121: 27855.35
A122: CRAWFORDCOUNTYCRAWFORD | B122: 20-0000 | C122: CRAWFORD | D122: COUNTY | E122: ROADS | F122: OPERATING | G122: NON-ES | H122: 1 | I122: 19657.9 | J122: 0 | K122: 0 | L122: 0 | M122: 0 | N122: 0 | O122: 19657.9 | P122: 0.0002408289618 | Q122: 37835.1 | R122: 57493 | S122: 19657.9 | T122: 37835.1 | U122: 57493 | V122: Winter | W122: 0 | X122: 57493
A123: CRAWFORDCOUNTYCRAWFORD | B123: 20-0000 | C123: CRAWFORD | D123: COUNTY | E123: SENIORS | F123: OPERATING | G123: NON-ES | H123: 0.4685 | I123: 9209.73 | J123: 0 | K123: 0 | L123: 0 | M123: 0 | N123: 0 | O123: 9209.73 | P123: 0.0001128284158 | Q123: 17725.75 | R123: 26935.48 | S123: 9209.73 | T123: 17725.75 | U123: 26935.48 | V123: Winter | W123: 0 | X123: 26935.48
A124: CRAWFORDCOUNTYCRAWFORD | B124: 20-0000 | C124: CRAWFORD | D124: COUNTY | E124: SENIORS 2 | F124: OPERATING | G124: NON-ES | H124: 0.25 | I124: 4914.48 | J124: 0 | K124: 0 | L124: 0 | M124: 0 | N124: 0 | O124: 4914.48 | P124: 6.02073017e-05 | Q124: 9458.78 | R124: 14373.26 | S124: 4914.48 | T124: 9458.78 | U124: 14373.26 | V124: Winter | W124: 0 | X124: 14373.26
A125: CRAWFORDCOUNTYCRAWFORD | B125: 20-0000 | C125: CRAWFORD | D125: COUNTY | E125: SHERIFF | F125: OPERATING | G125: ES | H125: 0.8917 | I125: 17528.95 | J125: 17559.74 | K125: 17559.74 | L125: 0 | M125: 0 | N125: 0 | O125: -30.79 | P125: -3.772083352e-07 | Q125: -59.26 | R125: -90.05 | S125: 17528.95 | T125: -59.26 | U125: 17469.69 | V125: Winter | W125: 0 | X125: 17469.69
A126: CRAWFORDCOUNTYCRAWFORD | B126: 20-0000 | C126: CRAWFORD | D126: COUNTY | E126: VETERANS | F126: OPERATING | G126: NON-ES | H126: 0 | I126: 0 | J126: 0 | K126: 0 | L126: 0 | M126: 0 | N126: 0 | O126: 0 | P126: 0 | Q126: 0 | R126: 0 | S126: 0 | T126: 0 | U126: 0 | V126: N/A | W126: 0 | X126: 0
A127: DELTACOUNTYDELTA | B127: 21-0000 | C127: DELTA | D127: COUNTY | E127: ALLOC/CHARTER | F127: GENERAL OPERATING | G127: PART ES | H127: 5.0317 | I127: 487854.99 | J127: 108659.27 | K127: 108659.27 | L127: 0 | M127: 0 | N127: 59227.2 | O127: 379195.72 | P127: 0.004645527322 | Q127: 729829.12 | R127: 1109024.84 | S127: 547082.19 | T127: 729829.12 | U127: 1276911.31 | V127: Summer | W127: 1276911.31 | X127: 0
A128: DELTACOUNTYDELTA | B128: 21-0000 | C128: DELTA | D128: COUNTY | E128: COMMUNITY ACTION | F128: OPERATING | G128: NON-ES | H128: 0.6 | I128: 58173.77 | J128: 0 | K128: 0 | L128: 0 | M128: 0 | N128: 7062.48 | O128: 58173.77 | P128: 0.0007126869417 | Q128: 111965.69 | R128: 170139.46 | S128: 65236.25 | T128: 111965.69 | U128: 177201.94 | V128: Winter | W128: 0 | X128: 177201.94
A129: DELTACOUNTYDELTA | B129: 21-0000 | C129: DELTA | D129: COUNTY | E129: E 911/CENTRAL DISPATCH | F129: OPERATING | G129: NON-ES | H129: 0.2 | I129: 19391.25 | J129: 0 | K129: 0 | L129: 0 | M129: 0 | N129: 2354.16 | O129: 19391.25 | P129: 0.0002375622322 | Q129: 37321.88 | R129: 56713.13 | S129: 21745.41 | T129: 37321.88 | U129: 59067.29 | V129: Winter | W129: 0 | X129: 59067.29
A130: DELTACOUNTYDELTA | B130: 21-0000 | C130: DELTA | D130: COUNTY | E130: POLICE | F130: OPERATING | G130: ES | H130: 0.9 | I130: 87260.67 | J130: 88994.46 | K130: 88994.46 | L130: 0 | M130: 0 | N130: 10593.73 | O130: -1733.79 | P130: -2.124066384e-05 | Q130: -3336.99 | R130: -5070.78 | S130: 97854.4 | T130: -3336.99 | U130: 94517.41 | V130: Winter | W130: 0 | X130: 94517.41
A131: DELTACOUNTYDELTA | B131: 21-0000 | C131: DELTA | D131: COUNTY | E131: RECYCLING | F131: OPERATING | G131: NON-ES | H131: 0 | I131: 0 | J131: 0 | K131: 0 | L131: 0 | M131: 0 | N131: 0 | O131: 0 | P131: 0 | Q131: 0 | R131: 0 | S131: 0 | T131: 0 | U131: 0 | V131: N/A | W131: 0 | X131: 0
A132: DICKINSONCOUNTYDICKINSON | B132: 22-0000 | C132: DICKINSON | D132: COUNTY | E132: ALLOC/CHARTER | F132: GENERAL OPERATING | G132: PART ES | H132: 6.1203 | I132: 381886.4 | J132: 142091.72 | K132: 142091.72 | L132: 0 | M132: 0 | N132: 66438.77 | O132: 239794.68 | P132: 0.002937724977 | Q132: 461527.21 | R132: 701321.89 | S132: 448325.17 | T132: 461527.21 | U132: 909852.38 | V132: Summer | W132: 909852.38 | X132: 0
A133: DICKINSONCOUNTYDICKINSON | B133: 22-0000 | C133: DICKINSON | D133: COUNTY | E133: BAY COLLEGE EXT | F133: OPERATING | G133: NON-ES | H133: 1 | I133: 62396.68 | J133: 0 | K133: =IF(SUMIFS(I:I,B:B,B133)<SUMIFS(J:J,B:B,B133),(J133/SUMIFS(J:J,B:B,B133))*SUMIFS(I:I,B:B,B133), J133) -> 0 | L133: 0 | M133: 0 | N133: 10855.48 | O133: 62396.68 | P133: =$O133/$O$5915 -> 0.0007644218183 | Q133: =R133-O133 -> 120093.43 | R133: =ROUND($O133*$R$2, 2) -> 182490.11 | S133: =K133+N133+O133 -> 73252.16 | T133: =Q133 -> 120093.43 | U133: =S133+T133 -> 193345.59 | V133: Winter | W133: =IF(V133="Summer", U133, 0) -> 0 | X133: =IF(V133="Winter", U133, 0) -> 193345.59
A134: DICKINSONCOUNTYDICKINSON | B134: 22-0000 | C134: DICKINSON | D134: COUNTY | E134: E 911/CENTRAL DISPATCH | F134: OPERATING | G134: NON-ES | H134: 0 | I134: 0 | J134: 0 | K134: 0 | L134: 0 | M134: 0 | N134: 0 | O134: 0 | P134: 0 | Q134: 0 | R134: 0 | S134: 0 | T134: 0 | U134: 0 | V134: N/A | W134: 0 | X134: 0
A135: DICKINSONCOUNTYDICKINSON | B135: 22-0000 | C135: DICKINSON | D135: COUNTY | E135: HEALTH DEPT. SERVICES | F135: OPERATING | G135: NON-ES | H135: 0.35 | I135: 21838.83 | J135: 0 | K135: 0 | L135: 0 | M135: 0 | N135: 3799.42 | O135: 21838.83 | P135: 0.0002675475384 | Q135: 42032.68 | R135: 63871.51 | S135: 25638.25 | T135: 42032.68 | U135: 67670.93 | V135: Winter | W135: 0 | X135: 67670.93
A136: DICKINSONCOUNTYDICKINSON | B136: 22-0000 | C136: DICKINSON | D136: COUNTY | E136: LIBRARY | F136: OPERATING | G136: NON-ES | H136: 0.9 | I136: 56157.01 | J136: 0 | K136: 0 | L136: 0 | M136: 0 | N136: 9769.93 | O136: 56157.01 | P136: 0.000687979612 | Q136: 108084.08 | R136: 164241.09 | S136: 65926.94 | T136: 108084.08 | U136: 174011.02 | V136: Winter | W136: 0 | X136: 174011.02
A137: DICKINSONCOUNTYDICKINSON | B137: 22-0000 | C137: DICKINSON | D137: COUNTY | E137: ROADS | F137: OPERATING | G137: NON-ES | H137: 0.5 | I137: 32892.99 | J137: 0 | K137: 0 | L137: 0 | M137: 0 | N137: 5427.74 | O137: 32892.99 | P137: 0.0004029720688 | Q137: 63308.37 | R137: 96201.36 | S137: 38320.73 | T137: 63308.37 | U137: 101629.1 | V137: Winter | W137: 0 | X137: 101629.1
A138: DICKINSONCOUNTYDICKINSON | B138: 22-0000 | C138: DICKINSON | D138: COUNTY | E138: SENIORS | F138: OPERATING | G138: NON-ES | H138: 0.4 | I138: 24958.67 | J138: 0 | K138: 0 | L138: 0 | M138: 0 | N138: 4342.19 | O138: 24958.67 | P138: 0.0003057687028 | Q138: 48037.37 | R138: 72996.04 | S138: 29300.86 | T138: 48037.37 | U138: 77338.23 | V138: Winter | W138: 0 | X138: 77338.23
A139: EATONCOUNTYEATON | B139: 23-0000 | C139: EATON | D139: COUNTY | E139: ALLOC/CHARTER | F139: GENERAL OPERATING | G139: PART ES | H139: 5.2149 | I139: 28651.12 | J139: 14800.09 | K139: 14800.09 | L139: 0 | M139: 0 | N139: 20070.2 | O139: 13851.03 | P139: 0.0001696889889 | Q139: 26658.75 | R139: 40509.78 | S139: 48721.32 | T139: 26658.75 | U139: 75380.07 | V139: Summer | W139: 75380.07 | X139: 0
A140: EATONCOUNTYEATON | B140: 23-0000 | C140: EATON | D140: COUNTY | E140: E 911/CENTRAL DISPATCH | F140: OPERATING | G140: NON-ES | H140: 0.95 | I140: 5219.39 | J140: 0 | K140: 0 | L140: 0 | M140: 0 | N140: 3656.2 | O140: 5219.39 | P140: 6.394275455e-05 | Q140: 10045.64 | R140: 15265.03 | S140: 8875.59 | T140: 10045.64 | U140: 18921.23 | V140: Winter | W140: 0 | X140: 18921.23
A141: EATONCOUNTYEATON | B141: 23-0000 | C141: EATON | D141: COUNTY | E141: JAIL | F141: OPERATING | G141: ES | H141: 0.7 | I141: 3845.87 | J141: 5123.59 | K141: 5123.59 | L141: 0 | M141: 0 | N141: 2694.04 | O141: -1277.72 | P141: -1.56533496e-05 | Q141: -2459.2 | R141: -3736.92 | S141: 6539.91 | T141: -2459.2 | U141: 4080.71 | V141: Winter | W141: 0 | X141: 4080.71
A142: EATONCOUNTYEATON | B142: 23-0000 | C142: EATON | D142: COUNTY | E142: JUVENILE | F142: OPERATING | G142: NON-ES | H142: 0.35 | I142: 1922.93 | J142: 0 | K142: 0 | L142: 0 | M142: 0 | N142: 1347.02 | O142: 1922.93 | P142: 2.355781825e-05 | Q142: 3701.02 | R142: 5623.95 | S142: 3269.95 | T142: 3701.02 | U142: 6970.97 | V142: Winter | W142: 0 | X142: 6970.97
A143: EATONCOUNTYEATON | B143: 23-0000 | C143: EATON | D143: COUNTY | E143: MEDICAL CARE | F143: OPERATING | G143: NON-ES | H143: 0.125 | I143: 686.76 | J143: 0 | K143: 0 | L143: 0 | M143: 0 | N143: 481.08 | O143: 686.76 | P143: 8.413497768e-06 | Q143: 1321.79 | R143: 2008.55 | S143: 1167.84 | T143: 1321.79 | U143: 2489.63 | V143: Winter | W143: 0 | X143: 2489.63
A144: EATONCOUNTYEATON | B144: 23-0000 | C144: EATON | D144: COUNTY | E144: ROADS | F144: OPERATING | G144: NON-ES | H144: 0 | I144: 0 | J144: 0 | K144: 0 | L144: 0 | M144: 0 | N144: 0 | O144: 0 | P144: 0 | Q144: 0 | R144: 0 | S144: 0 | T144: 0 | U144: 0 | V144: N/A | W144: 0 | X144: 0
A145: EATONCOUNTYEATON | B145: 23-0000 | C145: EATON | D145: COUNTY | E145: TRANSIT - EATRAN | F145: OPERATING | G145: NON-ES | H145: 0.25 | I145: 1373.52 | J145: 0 | K145: 0 | L145: 0 | M145: 0 | N145: 962.16 | O145: 1373.52 | P145: 1.682699554e-05 | Q145: 2643.58 | R145: 4017.1 | S145: 2335.68 | T145: 2643.58 | U145: 4979.26 | V145: Winter | W145: 0 | X145: 4979.26
A146: EMMETCOUNTYEMMET | B146: 24-0000 | C146: EMMET | D146: COUNTY | E146: ALLOC/CHARTER | F146: GENERAL OPERATING | G146: PART ES | H146: 4.85 | I146: 41556.9 | J146: 15211.46 | K146: 15211.46 | L146: 0 | M146: 0 | N146: 55898.15 | O146: 26345.44 | P146: 0.0003227580241 | Q146: 50706.45 | R146: 77051.89 | S146: 97455.05 | T146: 50706.45 | U146: 148161.5 | V146: Summer | W146: 148161.5 | X146: 0
A147: EMMETCOUNTYEMMET | B147: 24-0000 | C147: EMMET | D147: COUNTY | E147: AMBULANCE/ALS/EMS | F147: OPERATING | G147: ES | H147: 0.2491 | I147: 2162.87 | J147: 2400.76 | K147: 2400.76 | L147: 0 | M147: 0 | N147: 2871.9 | O147: -237.89 | P147: -2.914390739e-06 | Q147: -457.86 | R147: -695.75 | S147: 5034.77 | T147: -457.86 | U147: 4576.91 | V147: Winter | W147: 0 | X147: 4576.91
A148: EMMETCOUNTYEMMET | B148: 24-0000 | C148: EMMET | D148: COUNTY | E148: SENIORS | F148: OPERATING | G148: NON-ES | H148: 0.42 | I148: 3598.74 | J148: 0 | K148: 0 | L148: 0 | M148: 0 | N148: 4840.66 | O148: 3598.74 | P148: 4.408816902e-05 | Q148: 6926.41 | R148: 10525.15 | S148: 8439.4 | T148: 6926.41 | U148: 15365.81 | V148: Winter | W148: 0 | X148: 15365.81
A149: GENESEECOUNTYGENESEE | B149: 25-0000 | C149: GENESEE | D149: COUNTY | E149: ALLOC/CHARTER | F149: GENERAL OPERATING | G149: PART ES | H149: 5.5072 | I149: 338420.41 | J149: 77144.77 | K149: 77144.77 | L149: 0 | M149: 0 | N149: 297607.2 | O149: 261275.64 | P149: 0.003200888249 | Q149: 502871.11 | R149: 764146.75 | S149: 636027.61 | T149: 502871.11 | U149: 1138898.72 | V149: Summer | W149: 1138898.72 | X149: 0
A150: GENESEECOUNTYGENESEE | B150: 25-0000 | C150: GENESEE | D150: COUNTY | E150: ANIMAL CONTROL/SHELTER | F150: OPERATING | G150: NON-ES | H150: 0 | I150: 0 | J150: 0 | K150: 0 | L150: 0 | M150: 0 | N150: 0 | O150: 0 | P150: 0 | Q150: 0 | R150: 0 | S150: 0 | T150: 0 | U150: 0 | V150: N/A | W150: 0 | X150: 0
A151: GENESEECOUNTYGENESEE | B151: 25-0000 | C151: GENESEE | D151: COUNTY | E151: HEALTH DEPT. SERVICES | F151: OPERATING | G151: NON-ES | H151: 1 | I151: 61450.54 | J151: 0 | K151: 0 | L151: 0 | M151: 0 | N151: 54039.66 | O151: 61450.54 | P151: 0.0007528306558 | Q151: 118272.42 | R151: 179722.96 | S151: 115490.2 | T151: 118272.42 | U151: 233762.62 | V151: Winter | W151: 0 | X151: 233762.62
A152: GENESEECOUNTYGENESEE | B152: 25-0000 | C152: GENESEE | D152: COUNTY | E152: MSU EXTENSION | F152: OPERATING | G152: NON-ES | H152: 0 | I152: 0 | J152: 0 | K152: 0 | L152: 0 | M152: 0 | N152: 0 | O152: 0 | P152: 0 | Q152: 0 | R152: 0 | S152: 0 | T152: 0 | U152: 0 | V152: N/A | W152: 0 | X152: 0
A153: GENESEECOUNTYGENESEE | B153: 25-0000 | C153: GENESEE | D153: COUNTY | E153: PARAMEDICS | F153: OPERATING | G153: ES | H153: 0.4847 | I153: 29785.07 | J153: 33109.03 | K153: 33109.03 | L153: 0 | M153: 0 | N153: 26193.02 | O153: -3323.96 | P153: -4.072183884e-05 | Q153: -6397.55 | R153: -9721.51 | S153: 55978.09 | T153: -6397.55 | U153: 49580.54 | V153: Winter | W153: 0 | X153: 49580.54
A154: GENESEECOUNTYGENESEE | B154: 25-0000 | C154: GENESEE | D154: COUNTY | E154: PARKS/REC | F154: OPERATING | G154: NON-ES | H154: 0.4847 | I154: 29785.07 | J154: 0 | K154: 0 | L154: 0 | M154: 0 | N154: 26193.02 | O154: 29785.07 | P154: 0.0003648969363 | Q154: 57326.63 | R154: 87111.7 | S154: 55978.09 | T154: 57326.63 | U154: 113304.72 | V154: Winter | W154: 0 | X154: 113304.72
A155: GENESEECOUNTYGENESEE | B155: 25-0000 | C155: GENESEE | D155: COUNTY | E155: SENIORS | F155: OPERATING | G155: NON-ES | H155: 0.7 | I155: 43015.37 | J155: 0 | K155: 0 | L155: 0 | M155: 0 | N155: 37827.76 | O155: 43015.37 | P155: 0.000526981361 | Q155: 82790.68 | R155: 125806.05 | S155: 80843.13 | T155: 82790.68 | U155: 163633.81 | V155: Winter | W155: 0 | X155: 163633.81
A156: GENESEECOUNTYGENESEE | B156: 25-0000 | C156: GENESEE | D156: COUNTY | E156: VETERANS | F156: OPERATING | G156: NON-ES | H156: 0.1 | I156: 6145.05 | J156: 0 | K156: 0 | L156: 0 | M156: 0 | N156: 5403.96 | O156: 6145.05 | P156: 7.528301657e-05 | Q156: 11827.23 | R156: 17972.28 | S156: 11549.01 | T156: 11827.23 | U156: 23376.24 | V156: Winter | W156: 0 | X156: 23376.24
A157: GLADWINCOUNTYGLADWIN | B157: 26-0000 | C157: GLADWIN | D157: COUNTY | E157: ALLOC/CHARTER | F157: GENERAL OPERATING | G157: PART ES | H157: 4.4052 | I157: 0 | J157: 0 | K157: 0 | L157: 0 | M157: 0 | N157: 37770.65 | O157: 0 | P157: 0 | Q157: 0 | R157: 0 | S157: 37770.65 | T157: 0 | U157: 37770.65 | V157: Summer | W157: 37770.65 | X157: 0
A158: GLADWINCOUNTYGLADWIN | B158: 26-0000 | C158: GLADWIN | D158: COUNTY | E158: DIAL-A-RIDE | F158: OPERATING | G158: NON-ES | H158: 0.5 | I158: 0 | J158: 0 | K158: 0 | L158: 0 | M158: 0 | N158: 4287.06 | O158: 0 | P158: 0 | Q158: 0 | R158: 0 | S158: 4287.06 | T158: 0 | U158: 4287.06 | V158: Winter | W158: 0 | X158: 4287.06
A159: GLADWINCOUNTYGLADWIN | B159: 26-0000 | C159: GLADWIN | D159: COUNTY | E159: E 911/CENTRAL DISPATCH | F159: OPERATING | G159: NON-ES | H159: 0.75 | I159: 0 | J159: 0 | K159: 0 | L159: 0 | M159: 0 | N159: 6430.58 | O159: 0 | P159: 0 | Q159: 0 | R159: 0 | S159: 6430.58 | T159: 0 | U159: 6430.58 | V159: Winter | W159: 0 | X159: 6430.58
A160: GLADWINCOUNTYGLADWIN | B160: 26-0000 | C160: GLADWIN | D160: COUNTY | E160: EMS | F160: OPERATING | G160: ES | H160: 0 | I160: 0 | J160: 0 | K160: 0 | L160: 0 | M160: 0 | N160: 0 | O160: 0 | P160: 0 | Q160: 0 | R160: 0 | S160: 0 | T160: 0 | U160: 0 | V160: N/A | W160: 0 | X160: 0
A161: GLADWINCOUNTYGLADWIN | B161: 26-0000 | C161: GLADWIN | D161: COUNTY | E161: MSU EXTENSION | F161: OPERATING | G161: NON-ES | H161: 0 | I161: 0 | J161: 0 | K161: 0 | L161: 0 | M161: 0 | N161: 0 | O161: 0 | P161: 0 | Q161: 0 | R161: 0 | S161: 0 | T161: 0 | U161: 0 | V161: N/A | W161: 0 | X161: 0
A162: GLADWINCOUNTYGLADWIN | B162: 26-0000 | C162: GLADWIN | D162: COUNTY | E162: ROADS / BRIDGES | F162: OPERATING | G162: NON-ES | H162: 2 | I162: 0 | J162: 0 | K162: 0 | L162: 0 | M162: 0 | N162: 17148.21 | O162: 0 | P162: 0 | Q162: 0 | R162: 0 | S162: 17148.21 | T162: 0 | U162: 17148.21 | V162: Winter | W162: 0 | X162: 17148.21
A163: GLADWINCOUNTYGLADWIN | B163: 26-0000 | C163: GLADWIN | D163: COUNTY | E163: SENIORS | F163: OPERATING | G163: NON-ES | H163: 0.5 | I163: 0 | J163: 0 | K163: 0 | L163: 0 | M163: 0 | N163: 4287.06 | O163: 0 | P163: 0 | Q163: 0 | R163: 0 | S163: 4287.06 | T163: 0 | U163: 4287.06 | V163: Winter | W163: 0 | X163: 4287.06
A164: GOGEBICCOUNTYGOGEBIC | B164: 27-0000 | C164: GOGEBIC | D164: COUNTY | E164: ALLOC/CHARTER | F164: GENERAL OPERATING | G164: PART ES | H164: 6.6678 | I164: 0 | J164: 0 | K164: 0 | L164: 0 | M164: 0 | N164: 10900.3 | O164: 0 | P164: 0 | Q164: 0 | R164: 0 | S164: 10900.3 | T164: 0 | U164: 10900.3 | V164: Summer | W164: 10900.3 | X164: 0
A165: GOGEBICCOUNTYGOGEBIC | B165: 27-0000 | C165: GOGEBIC | D165: COUNTY | E165: ANIMAL CONTROL/SHELTER | F165: OPERATING | G165: NON-ES | H165: 0.2 | I165: 0 | J165: 0 | K165: 0 | L165: 0 | M165: 0 | N165: 326.96 | O165: 0 | P165: 0 | Q165: 0 | R165: 0 | S165: 326.96 | T165: 0 | U165: 326.96 | V165: Winter | W165: 0 | X165: 326.96
A166: GOGEBICCOUNTYGOGEBIC | B166: 27-0000 | C166: GOGEBIC | D166: COUNTY | E166: MEDICAL CARE BLDG SITE | F166: OPERATING | G166: NON-ES | H166: 0.4 | I166: 0 | J166: 0 | K166: 0 | L166: 0 | M166: 0 | N166: 653.9 | O166: 0 | P166: 0 | Q166: 0 | R166: 0 | S166: 653.9 | T166: 0 | U166: 653.9 | V166: Winter | W166: 0 | X166: 653.9
A167: GOGEBICCOUNTYGOGEBIC | B167: 27-0000 | C167: GOGEBIC | D167: COUNTY | E167: MEDICAL CARE M.O.E. | F167: OPERATING | G167: NON-ES | H167: 0.2 | I167: 0 | J167: 0 | K167: 0 | L167: 0 | M167: 0 | N167: 326.96 | O167: 0 | P167: 0 | Q167: 0 | R167: 0 | S167: 326.96 | T167: 0 | U167: 326.96 | V167: Winter | W167: 0 | X167: 326.96
A168: GOGEBICCOUNTYGOGEBIC | B168: 27-0000 | C168: GOGEBIC | D168: COUNTY | E168: SENIORS | F168: OPERATING | G168: NON-ES | H168: 0.6 | I168: 0 | J168: 0 | K168: 0 | L168: 0 | M168: 0 | N168: 980.86 | O168: 0 | P168: 0 | Q168: 0 | R168: 0 | S168: 980.86 | T168: 0 | U168: 980.86 | V168: Winter | W168: 0 | X168: 980.86
A169: GOGEBICCOUNTYGOGEBIC | B169: 27-0000 | C169: GOGEBIC | D169: COUNTY | E169: TRANSIT | F169: OPERATING | G169: NON-ES | H169: 0.3226 | I169: 0 | J169: 0 | K169: 0 | L169: 0 | M169: 0 | N169: 527.38 | O169: 0 | P169: 0 | Q169: 0 | R169: 0 | S169: 527.38 | T169: 0 | U169: 527.38 | V169: Winter | W169: 0 | X169: 527.38
A170: GRAND TRAVERSECOUNTYGRAND TRAVERSE | B170: 28-0000 | C170: GRAND TRAVERSE | D170: COUNTY | E170: ALLOC/CHARTER | F170: GENERAL OPERATING | G170: PART ES | H170: 4.9823 | I170: 127366.05 | J170: 54260.58 | K170: 54260.58 | L170: 0 | M170: 0 | N170: 84213.82 | O170: 73105.47 | P170: 0.0008956152203 | Q170: 140704.39 | R170: 213809.86 | S170: 211579.87 | T170: 140704.39 | U170: 352284.26 | V170: Summer | W170: 352284.26 | X170: 0
A171: GRAND TRAVERSECOUNTYGRAND TRAVERSE | B171: 28-0000 | C171: GRAND TRAVERSE | D171: COUNTY | E171: MEDICAL DEBT | F171: DEBT | G171: NON-ES | H171: 0 | I171: 0 | J171: 0 | K171: 0 | L171: 0 | M171: 0 | N171: 0 | O171: 0 | P171: 0 | Q171: 0 | R171: 0 | S171: 0 | T171: 0 | U171: 0 | V171: N/A | W171: 0 | X171: 0
A172: GRAND TRAVERSECOUNTYGRAND TRAVERSE | B172: 28-0000 | C172: GRAND TRAVERSE | D172: COUNTY | E172: ROADS | F172: OPERATING | G172: NON-ES | H172: 0 | I172: 0 | J172: 0 | K172: 0 | L172: 0 | M172: 0 | N172: 0 | O172: 0 | P172: 0 | Q172: 0 | R172: 0 | S172: 0 | T172: 0 | U172: 0 | V172: N/A | W172: 0 | X172: 0
A173: GRAND TRAVERSECOUNTYGRAND TRAVERSE | B173: 28-0000 | C173: GRAND TRAVERSE | D173: COUNTY | E173: SENIOR CENTER | F173: OPERATING | G173: NON-ES | H173: 0.0999 | I173: 2553.75 | J173: 0 | K173: 0 | L173: 0 | M173: 0 | N173: 1688.71 | O173: 2553.75 | P173: 3.1285995e-05 | Q173: 4915.14 | R173: 7468.89 | S173: 4242.46 | T173: 4915.14 | U173: 9157.6 | V173: Winter | W173: 0 | X173: 9157.6
A174: GRAND TRAVERSECOUNTYGRAND TRAVERSE | B174: 28-0000 | C174: GRAND TRAVERSE | D174: COUNTY | E174: SENIORS | F174: OPERATING | G174: NON-ES | H174: 0.4998 | I174: 12776.7 | J174: 0 | K174: 0 | L174: 0 | M174: 0 | N174: 8448.02 | O174: 12776.7 | P174: 0.0001565273705 | Q174: 24591.02 | R174: 37367.72 | S174: 21224.72 | T174: 24591.02 | U174: 45815.74 | V174: Winter | W174: 0 | X174: 45815.74
A175: GRAND TRAVERSECOUNTYGRAND TRAVERSE | B175: 28-0000 | C175: GRAND TRAVERSE | D175: COUNTY | E175: VETERANS | F175: OPERATING | G175: NON-ES | H175: 0 | I175: 0 | J175: 0 | K175: 0 | L175: 0 | M175: 0 | N175: 0 | O175: 0 | P175: 0 | Q175: 0 | R175: 0 | S175: 0 | T175: 0 | U175: 0 | V175: N/A | W175: 0 | X175: 0
A176: GRATIOTCOUNTYGRATIOT | B176: 29-0000 | C176: GRATIOT | D176: COUNTY | E176: ALLOC/CHARTER | F176: GENERAL OPERATING | G176: PART ES | H176: 5.5306 | I176: 0 | J176: 0 | K176: 0 | L176: 0 | M176: 0 | N176: 438356.24 | O176: 0 | P176: 0 | Q176: 0 | R176: 0 | S176: 438356.24 | T176: 0 | U176: 438356.24 | V176: Summer | W176: 438356.24 | X176: 0
A177: GRATIOTCOUNTYGRATIOT | B177: 29-0000 | C177: GRATIOT | D177: COUNTY | E177: LIBRARY | F177: OPERATING | G177: NON-ES | H177: 0 | I177: 0 | J177: 0 | K177: 0 | L177: 0 | M177: 0 | N177: 0 | O177: 0 | P177: 0 | Q177: 0 | R177: 0 | S177: 0 | T177: 0 | U177: 0 | V177: N/A | W177: 0 | X177: 0
A178: GRATIOTCOUNTYGRATIOT | B178: 29-0000 | C178: GRATIOT | D178: COUNTY | E178: PARKS/REC | F178: OPERATING | G178: NON-ES | H178: 0.3493 | I178: 0 | J178: 0 | K178: 0 | L178: 0 | M178: 0 | N178: 27687.08 | O178: 0 | P178: 0 | Q178: 0 | R178: 0 | S178: 27687.08 | T178: 0 | U178: 27687.08 | V178: Winter | W178: 0 | X178: 27687.08
A179: GRATIOTCOUNTYGRATIOT | B179: 29-0000 | C179: GRATIOT | D179: COUNTY | E179: POLICE | F179: OPERATING | G179: ES | H179: 0.4494 | I179: 0 | J179: 0 | K179: 0 | L179: 0 | M179: 0 | N179: 35620.6 | O179: 0 | P179: 0 | Q179: 0 | R179: 0 | S179: 35620.6 | T179: 0 | U179: 35620.6 | V179: Winter | W179: 0 | X179: 35620.6
A180: GRATIOTCOUNTYGRATIOT | B180: 29-0000 | C180: GRATIOT | D180: COUNTY | E180: PROMOTION / ADVERTISING - PA 359/PA88 | F180: OPERATING | G180: NON-ES | H180: 0.4247 | I180: 0 | J180: 0 | K180: 0 | L180: 0 | M180: 0 | N180: 33795.65 | O180: 0 | P180: 0 | Q180: 0 | R180: 0 | S180: 33795.65 | T180: 0 | U180: 33795.65 | V180: Winter | W180: 0 | X180: 33795.65
A181: GRATIOTCOUNTYGRATIOT | B181: 29-0000 | C181: GRATIOT | D181: COUNTY | E181: SENIORS | F181: OPERATING | G181: NON-ES | H181: 0.6492 | I181: 0 | J181: 0 | K181: 0 | L181: 0 | M181: 0 | N181: 51455.96 | O181: 0 | P181: 0 | Q181: 0 | R181: 0 | S181: 51455.96 | T181: 0 | U181: 51455.96 | V181: Winter | W181: 0 | X181: 51455.96
A182: HILLSDALECOUNTYHILLSDALE | B182: 30-0000 | C182: HILLSDALE | D182: COUNTY | E182: ALLOC/CHARTER | F182: GENERAL OPERATING | G182: PART ES | H182: 4.9552 | I182: 118057.3 | J182: 26642.96 | K182: 26642.96 | L182: 0 | M182: 0 | N182: 0 | O182: 91414.34 | P182: 0.001119917214 | Q182: 175943.04 | R182: 267357.38 | S182: 118057.3 | T182: 175943.04 | U182: 294000.34 | V182: Summer | W182: 294000.34 | X182: 0
A183: HILLSDALECOUNTYHILLSDALE | B183: 30-0000 | C183: HILLSDALE | D183: COUNTY | E183: AMBULANCE | F183: OPERATING | G183: ES | H183: 0.25 | I183: 5956.24 | J183: 5191.81 | K183: 5191.81 | L183: 0 | M183: 0 | N183: 0 | O183: 764.43 | P183: 9.365033052e-06 | Q183: 1471.28 | R183: 2235.71 | S183: 5956.24 | T183: 1471.28 | U183: 7427.52 | V183: Winter | W183: 0 | X183: 7427.52
A184: HILLSDALECOUNTYHILLSDALE | B184: 30-0000 | C184: HILLSDALE | D184: COUNTY | E184: AMBULANCE 2 | F184: OPERATING | G184: ES | H184: 0.15 | I184: 3573.74 | J184: 3115.09 | K184: 3115.09 | L184: 0 | M184: 0 | N184: 0 | O184: 458.65 | P184: 5.618921823e-06 | Q184: 882.75 | R184: 1341.4 | S184: 3573.74 | T184: 882.75 | U184: 4456.49 | V184: Winter | W184: 0 | X184: 4456.49
A185: HILLSDALECOUNTYHILLSDALE | B185: 30-0000 | C185: HILLSDALE | D185: COUNTY | E185: MEDICAL CARE FACILITY | F185: OPERATING | G185: NON-ES | H185: 0.6 | I185: 14294.96 | J185: 0 | K185: 0 | L185: 0 | M185: 0 | N185: 0 | O185: 14294.96 | P185: 0.0001751275759 | Q185: 27513.17 | R185: 41808.13 | S185: 14294.96 | T185: 27513.17 | U185: 41808.13 | V185: Winter | W185: 0 | X185: 41808.13
A186: HILLSDALECOUNTYHILLSDALE | B186: 30-0000 | C186: HILLSDALE | D186: COUNTY | E186: MEDICAL CARE FACILITY DEBT | F186: DEBT | G186: NON-ES | H186: 0.35 | I186: 18780.3 | J186: 0 | K186: 0 | L186: 0 | M186: 0 | N186: 0 | O186: 18780.3 | P186: 0.0002300774829 | Q186: 36146 | R186: 54926.3 | S186: 18780.3 | T186: 36146 | U186: 54926.3 | V186: Winter | W186: 0 | X186: 54926.3
A187: HILLSDALECOUNTYHILLSDALE | B187: 30-0000 | C187: HILLSDALE | D187: COUNTY | E187: SENIORS | F187: OPERATING | G187: NON-ES | H187: 0.4968 | I187: 11836.23 | J187: 0 | K187: 0 | L187: 0 | M187: 0 | N187: 0 | O187: 11836.23 | P187: 0.0001450056711 | Q187: 22780.91 | R187: 34617.14 | S187: 11836.23 | T187: 22780.91 | U187: 34617.14 | V187: Winter | W187: 0 | X187: 34617.14
A188: HILLSDALECOUNTYHILLSDALE | B188: 30-0000 | C188: HILLSDALE | D188: COUNTY | E188: SENIORS 2 | F188: OPERATING | G188: NON-ES | H188: 0.5 | I188: 11912.47 | J188: 0 | K188: 0 | L188: 0 | M188: 0 | N188: 0 | O188: 11912.47 | P188: 0.0001459396875 | Q188: 22927.65 | R188: 34840.12 | S188: 11912.47 | T188: 22927.65 | U188: 34840.12 | V188: Winter | W188: 0 | X188: 34840.12
A189: HOUGHTONCOUNTYHOUGHTON | B189: 31-0000 | C189: HOUGHTON | D189: COUNTY | E189: ALLOC/CHARTER | F189: GENERAL OPERATING | G189: PART ES | H189: 6.1767 | I189: 12829.76 | J189: 1301.71 | K189: 1301.71 | L189: 0 | M189: 0 | N189: 0 | O189: 11528.05 | P189: 0.0001412301575 | Q189: 22187.77 | R189: 33715.82 | S189: 12829.76 | T189: 22187.77 | U189: 35017.53 | V189: Summer | W189: 35017.53 | X189: 0
A190: HOUGHTONCOUNTYHOUGHTON | B190: 31-0000 | C190: HOUGHTON | D190: COUNTY | E190: MEDICAL | F190: OPERATING | G190: NON-ES | H190: 2.5531 | I190: 5303.09 | J190: 0 | K190: 0 | L190: 0 | M190: 0 | N190: 0 | O190: 5303.09 | P190: 6.496816338e-05 | Q190: 10206.73 | R190: 15509.82 | S190: 5303.09 | T190: 10206.73 | U190: 15509.82 | V190: Winter | W190: 0 | X190: 15509.82
A191: HOUGHTONCOUNTYHOUGHTON | B191: 31-0000 | C191: HOUGHTON | D191: COUNTY | E191: ROADS | F191: OPERATING | G191: NON-ES | H191: 1.3088 | I191: 2724.9 | J191: 0 | K191: 0 | L191: 0 | M191: 0 | N191: 0 | O191: 2724.9 | P191: 3.33827539e-05 | Q191: 5244.55 | R191: 7969.45 | S191: 2724.9 | T191: 5244.55 | U191: 7969.45 | V191: Winter | W191: 0 | X191: 7969.45
A192: HOUGHTONCOUNTYHOUGHTON | B192: 31-0000 | C192: HOUGHTON | D192: COUNTY | E192: VETERANS | F192: OPERATING | G192: NON-ES | H192: 0.0981 | I192: 204.29 | J192: 0 | K192: 0 | L192: 0 | M192: 0 | N192: 0 | O192: 204.29 | P192: 2.50275709e-06 | Q192: 393.19 | R192: 597.48 | S192: 204.29 | T192: 393.19 | U192: 597.48 | V192: Winter | W192: 0 | X192: 597.48
A193: HURONCOUNTYHURON | B193: 32-0000 | C193: HURON | D193: COUNTY | E193: ALLOC/CHARTER | F193: GENERAL OPERATING | G193: PART ES | H193: 4.3807 | I193: 0 | J193: 0 | K193: 0 | L193: 0 | M193: 0 | N193: 0 | O193: 0 | P193: 0 | Q193: 0 | R193: 0 | S193: 0 | T193: 0 | U193: 0 | V193: N/A | W193: 0 | X193: 0
A194: HURONCOUNTYHURON | B194: 32-0000 | C194: HURON | D194: COUNTY | E194: MEDICAL | F194: OPERATING | G194: NON-ES | H194: 0.5 | I194: 0 | J194: 0 | K194: 0 | L194: 0 | M194: 0 | N194: 0 | O194: 0 | P194: 0 | Q194: 0 | R194: 0 | S194: 0 | T194: 0 | U194: 0 | V194: N/A | W194: 0 | X194: 0
A195: HURONCOUNTYHURON | B195: 32-0000 | C195: HURON | D195: COUNTY | E195: ROADS | F195: OPERATING | G195: NON-ES | H195: 1 | I195: 0 | J195: 0 | K195: 0 | L195: 0 | M195: 0 | N195: 0 | O195: 0 | P195: 0 | Q195: 0 | R195: 0 | S195: 0 | T195: 0 | U195: 0 | V195: N/A | W195: 0 | X195: 0
A196: HURONCOUNTYHURON | B196: 32-0000 | C196: HURON | D196: COUNTY | E196: SENIORS | F196: OPERATING | G196: NON-ES | H196: 0.2 | I196: 0 | J196: 0 | K196: 0 | L196: 0 | M196: 0 | N196: 0 | O196: 0 | P196: 0 | Q196: 0 | R196: 0 | S196: 0 | T196: 0 | U196: 0 | V196: N/A | W196: 0 | X196: 0
A197: HURONCOUNTYHURON | B197: 32-0000 | C197: HURON | D197: COUNTY | E197: SENIORS 2 | F197: OPERATING | G197: NON-ES | H197: 0.05 | I197: 0 | J197: 0 | K197: =IF(SUMIFS(I:I,B:B,B197)<SUMIFS(J:J,B:B,B197),(J197/SUMIFS(J:J,B:B,B197))*SUMIFS(I:I,B:B,B197), J197) -> 0 | L197: 0 | M197: 0 | N197: 0 | O197: 0 | P197: =$O197/$O$5915 -> 0 | Q197: =R197-O197 -> 0 | R197: =ROUND($O197*$R$2, 2) -> 0 | S197: =K197+N197+O197 -> 0 | T197: =Q197 -> 0 | U197: =S197+T197 -> 0 | V197: N/A | W197: =IF(V197="Summer", U197, 0) -> 0 | X197: =IF(V197="Winter", U197, 0) -> 0
A198: HURONCOUNTYHURON | B198: 32-0000 | C198: HURON | D198: COUNTY | E198: TRANSIT | F198: OPERATING | G198: NON-ES | H198: 0.2 | I198: 0 | J198: 0 | K198: 0 | L198: 0 | M198: 0 | N198: 0 | O198: 0 | P198: 0 | Q198: 0 | R198: 0 | S198: 0 | T198: 0 | U198: 0 | V198: N/A | W198: 0 | X198: 0
A199: HURONCOUNTYHURON | B199: 32-0000 | C199: HURON | D199: COUNTY | E199: VETERANS | F199: OPERATING | G199: NON-ES | H199: 0.08 | I199: 0 | J199: 0 | K199: 0 | L199: 0 | M199: 0 | N199: 0 | O199: 0 | P199: 0 | Q199: 0 | R199: 0 | S199: 0 | T199: 0 | U199: 0 | V199: N/A | W199: 0 | X199: 0
A200: INGHAMCOUNTYINGHAM | B200: 33-0000 | C200: INGHAM | D200: COUNTY | E200: ALLOC/CHARTER | F200: GENERAL OPERATING | G200: PART ES | H200: 6.3512 | I200: 625533.24 | J200: 63938.28 | K200: 63938.28 | L200: 0 | M200: 0 | N200: 127828.37 | O200: 561594.96 | P200: 0.00688010068 | Q200: 1080888.67 | R200: 1642483.63 | S200: 753361.61 | T200: 1080888.67 | U200: 1834250.28 | V200: Summer | W200: 1834250.28 | X200: 0
... 2049 more rows

Sheet Lists (hidden)
D1: =COUNTIF(AllMunicipalities!$A:$A, Lists!D$2) -> 1 | E1: =COUNTIF(AllMunicipalities!$A:$A, Lists!E$2) -> 1 | F1: =COUNTIF(AllMunicipalities!$A:$A, Lists!F$2) -> 1 | G1: =COUNTIF(AllMunicipalities!$A:$A, Lists!G$2) -> 11 | H1: =COUNTIF(AllMunicipalities!$A:$A, Lists!H$2) -> 0 | I1: =COUNTIF(AllMunicipalities!$A:$A, Lists!I$2) -> 0 | K1: =COUNTIF(AllMunicipalities!$A:$A, Lists!K$2) -> 1 | L1: =COUNTIF(AllMunicipalities!$A:$A, Lists!L$2) -> 1 | M1: =COUNTIF(AllMunicipalities!$A:$A, Lists!M$2) -> 1 | N1: =COUNTIF(AllMunicipalities!$A:$A, Lists!N$2) -> 8 | O1: =COUNTIF(AllMunicipalities!$A:$A, Lists!O$2) -> 0 | P1: =COUNTIF(AllMunicipalities!$A:$A, Lists!P$2) -> 0 | R1: =COUNTIF(AllMunicipalities!$A:$A, Lists!R$2) -> 1 | S1: =COUNTIF(AllMunicipalities!$A:$A, Lists!S$2) -> 9 | T1: =COUNTIF(AllMunicipalities!$A:$A, Lists!T$2) -> 2 | U1: =COUNTIF(AllMunicipalities!$A:$A, Lists!U$2) -> 24 | V1: =COUNTIF(AllMunicipalities!$A:$A, Lists!V$2) -> 0 | W1: =COUNTIF(AllMunicipalities!$A:$A, Lists!W$2) -> 8 | Y1: =COUNTIF(AllMunicipalities!$A:$A, Lists!Y$2) -> 1 | Z1: =COUNTIF(AllMunicipalities!$A:$A, Lists!Z$2) -> 1 | AA1: =COUNTIF(AllMunicipalities!$A:$A, Lists!AA$2) -> 1 | AB1: =COUNTIF(AllMunicipalities!$A:$A, Lists!AB$2) -> 8 | AC1: =COUNTIF(AllMunicipalities!$A:$A, Lists!AC$2) -> 1 | AD1: =COUNTIF(AllMunicipalities!$A:$A, Lists!AD$2) -> 0 | AF1: =COUNTIF(AllMunicipalities!$A:$A, Lists!AF$2) -> 1 | AG1: =COUNTIF(AllMunicipalities!$A:$A, Lists!AG$2) -> 0 | AH1: =COUNTIF(AllMunicipalities!$A:$A, Lists!AH$2) -> 5 | AI1: =COUNTIF(AllMunicipalities!$A:$A, Lists!AI$2) -> 15 | AJ1: =COUNTIF(AllMunicipalities!$A:$A, Lists!AJ$2) -> 0 | AK1: =COUNTIF(AllMunicipalities!$A:$A, Lists!AK$2) -> 5 | AM1: =COUNTIF(AllMunicipalities!$A:$A, Lists!AM$2) -> 1 | AN1: =COUNTIF(AllMunicipalities!$A:$A, Lists!AN$2) -> 3 | AO1: =COUNTIF(AllMunicipalities!$A:$A, Lists!AO$2) -> 3 | AP1: =COUNTIF(AllMunicipalities!$A:$A, Lists!AP$2) -> 12 | AQ1: =COUNTIF(AllMunicipalities!$A:$A, Lists!AQ$2) -> 0 | AR1: =COUNTIF(AllMunicipalities!$A:$A, Lists!AR$2) -> 1 | AT1: =COUNTIF(AllMunicipalities!$A:$A, Lists!AT$2) -> 1 | AU1: =COUNTIF(AllMunicipalities!$A:$A, Lists!AU$2) -> 0 | AV1: =COUNTIF(AllMunicipalities!$A:$A, Lists!AV$2) -> 2 | AW1: =COUNTIF(AllMunicipalities!$A:$A, Lists!AW$2) -> 5 | AX1: =COUNTIF(AllMunicipalities!$A:$A, Lists!AX$2) -> 0 | AY1: =COUNTIF(AllMunicipalities!$A:$A, Lists!AY$2) -> 0 | BA1: =COUNTIF(AllMunicipalities!$A:$A, Lists!BA$2) -> 1 | BB1: =COUNTIF(AllMunicipalities!$A:$A, Lists!BB$2) -> 1 | BC1: =COUNTIF(AllMunicipalities!$A:$A, Lists!BC$2) -> 4 | BD1: =COUNTIF(AllMunicipalities!$A:$A, Lists!BD$2) -> 16 | BE1: =COUNTIF(AllMunicipalities!$A:$A, Lists!BE$2) -> 0 | BF1: =COUNTIF(AllMunicipalities!$A:$A, Lists!BF$2) -> 2 | BH1: =COUNTIF(AllMunicipalities!$A:$A, Lists!BH$2) -> 1 | BI1: =COUNTIF(AllMunicipalities!$A:$A, Lists!BI$2) -> 5 | BJ1: =COUNTIF(AllMunicipalities!$A:$A, Lists!BJ$2) -> 0 | BK1: =COUNTIF(AllMunicipalities!$A:$A, Lists!BK$2) -> 14 | BL1: =COUNTIF(AllMunicipalities!$A:$A, Lists!BL$2) -> 1 | BM1: =COUNTIF(AllMunicipalities!$A:$A, Lists!BM$2) -> 1 | BO1: =COUNTIF(AllMunicipalities!$A:$A, Lists!BO$2) -> 1 | BP1: =COUNTIF(AllMunicipalities!$A:$A, Lists!BP$2) -> 1 | BQ1: =COUNTIF(AllMunicipalities!$A:$A, Lists!BQ$2) -> 6 | BR1: =COUNTIF(AllMunicipalities!$A:$A, Lists!BR$2) -> 12 | BS1: =COUNTIF(AllMunicipalities!$A:$A, Lists!BS$2) -> 0 | BT1: =COUNTIF(AllMunicipalities!$A:$A, Lists!BT$2) -> 3 | BV1: =COUNTIF(AllMunicipalities!$A:$A, Lists!BV$2) -> 1 | BW1: =COUNTIF(AllMunicipalities!$A:$A, Lists!BW$2) -> 8 | BX1: =COUNTIF(AllMunicipalities!$A:$A, Lists!BX$2) -> 9 | BY1: =COUNTIF(AllMunicipalities!$A:$A, Lists!BY$2) -> 22 | BZ1: =COUNTIF(AllMunicipalities!$A:$A, Lists!BZ$2) -> 1 | CA1: =COUNTIF(AllMunicipalities!$A:$A, Lists!CA$2) -> 7 | CC1: =COUNTIF(AllMunicipalities!$A:$A, Lists!CC$2) -> 1 | CD1: =COUNTIF(AllMunicipalities!$A:$A, Lists!CD$2) -> 2 | CE1: =COUNTIF(AllMunicipalities!$A:$A, Lists!CE$2) -> 3 | CF1: =COUNTIF(AllMunicipalities!$A:$A, Lists!CF$2) -> 16 | CG1: =COUNTIF(AllMunicipalities!$A:$A, Lists!CG$2) -> 0 | CH1: =COUNTIF(AllMunicipalities!$A:$A, Lists!CH$2) -> 2 | CJ1: =COUNTIF(AllMunicipalities!$A:$A, Lists!CJ$2) -> 1 | CK1: =COUNTIF(AllMunicipalities!$A:$A, Lists!CK$2) -> 4 | CL1: =COUNTIF(AllMunicipalities!$A:$A, Lists!CL$2) -> 5 | CM1: =COUNTIF(AllMunicipalities!$A:$A, Lists!CM$2) -> 19 | CN1: =COUNTIF(AllMunicipalities!$A:$A, Lists!CN$2) -> 1 | CO1: =COUNTIF(AllMunicipalities!$A:$A, Lists!CO$2) -> 4 | CQ1: =COUNTIF(AllMunicipalities!$A:$A, Lists!CQ$2) -> 1 | CR1: =COUNTIF(AllMunicipalities!$A:$A, Lists!CR$2) -> 2 | CS1: =COUNTIF(AllMunicipalities!$A:$A, Lists!CS$2) -> 4 | CT1: =COUNTIF(AllMunicipalities!$A:$A, Lists!CT$2) -> 15 | CU1: =COUNTIF(AllMunicipalities!$A:$A, Lists!CU$2) -> 1 | CV1: =COUNTIF(AllMunicipalities!$A:$A, Lists!CV$2) -> 3 | CX1: =COUNTIF(AllMunicipalities!$A:$A, Lists!CX$2) -> 1 | CY1: =COUNTIF(AllMunicipalities!$A:$A, Lists!CY$2) -> 3 | CZ1: =COUNTIF(AllMunicipalities!$A:$A, Lists!CZ$2) -> 1 | DA1: =COUNTIF(AllMunicipalities!$A:$A, Lists!DA$2) -> 15 | DB1: =COUNTIF(AllMunicipalities!$A:$A, Lists!DB$2) -> 0 | DC1: =COUNTIF(AllMunicipalities!$A:$A, Lists!DC$2) -> 7 | DE1: =COUNTIF(AllMunicipalities!$A:$A, Lists!DE$2) -> 1 | DF1: =COUNTIF(AllMunicipalities!$A:$A, Lists!DF$2) -> 1 | DG1: =COUNTIF(AllMunicipalities!$A:$A, Lists!DG$2) -> 2 | DH1: =COUNTIF(AllMunicipalities!$A:$A, Lists!DH$2) -> 19 | DI1: =COUNTIF(AllMunicipalities!$A:$A, Lists!DI$2) -> 0 | DJ1: =COUNTIF(AllMunicipalities!$A:$A, Lists!DJ$2) -> 2 | DL1: =COUNTIF(AllMunicipalities!$A:$A, Lists!DL$2) -> 1 | DM1: =COUNTIF(AllMunicipalities!$A:$A, Lists!DM$2) -> 1 | DN1: =COUNTIF(AllMunicipalities!$A:$A, Lists!DN$2) -> 1 | DO1: =COUNTIF(AllMunicipalities!$A:$A, Lists!DO$2) -> 16 | DP1: =COUNTIF(AllMunicipalities!$A:$A, Lists!DP$2) -> 0 | DQ1: =COUNTIF(AllMunicipalities!$A:$A, Lists!DQ$2) -> 1 | DS1: =COUNTIF(AllMunicipalities!$A:$A, Lists!DS$2) -> 1 | DT1: =COUNTIF(AllMunicipalities!$A:$A, Lists!DT$2) -> 2 | DU1: =COUNTIF(AllMunicipalities!$A:$A, Lists!DU$2) -> 1 | DV1: =COUNTIF(AllMunicipalities!$A:$A, Lists!DV$2) -> 16 | DW1: =COUNTIF(AllMunicipalities!$A:$A, Lists!DW$2) -> 1 | DX1: =COUNTIF(AllMunicipalities!$A:$A, Lists!DX$2) -> 2 | DZ1: =COUNTIF(AllMunicipalities!$A:$A, Lists!DZ$2) -> 1 | EA1: =COUNTIF(AllMunicipalities!$A:$A, Lists!EA$2) -> 6 | EB1: =COUNTIF(AllMunicipalities!$A:$A, Lists!EB$2) -> 6 | EC1: =COUNTIF(AllMunicipalities!$A:$A, Lists!EC$2) -> 16 | ED1: =COUNTIF(AllMunicipalities!$A:$A, Lists!ED$2) -> 0 | EE1: =COUNTIF(AllMunicipalities!$A:$A, Lists!EE$2) -> 5 | EG1: =COUNTIF(AllMunicipalities!$A:$A, Lists!EG$2) -> 1 | EH1: =COUNTIF(AllMunicipalities!$A:$A, Lists!EH$2) -> 1 | EI1: =COUNTIF(AllMunicipalities!$A:$A, Lists!EI$2) -> 0 | EJ1: =COUNTIF(AllMunicipalities!$A:$A, Lists!EJ$2) -> 6 | EK1: =COUNTIF(AllMunicipalities!$A:$A, Lists!EK$2) -> 1 | EL1: =COUNTIF(AllMunicipalities!$A:$A, Lists!EL$2) -> 0 | EN1: =COUNTIF(AllMunicipalities!$A:$A, Lists!EN$2) -> 1 | EO1: =COUNTIF(AllMunicipalities!$A:$A, Lists!EO$2) -> 2 | EP1: =COUNTIF(AllMunicipalities!$A:$A, Lists!EP$2) -> 1 | EQ1: =COUNTIF(AllMunicipalities!$A:$A, Lists!EQ$2) -> 14 | ER1: =COUNTIF(AllMunicipalities!$A:$A, Lists!ER$2) -> 1 | ES1: =COUNTIF(AllMunicipalities!$A:$A, Lists!ES$2) -> 7 | EU1: =COUNTIF(AllMunicipalities!$A:$A, Lists!EU$2) -> 1 | EV1: =COUNTIF(AllMunicipalities!$A:$A, Lists!EV$2) -> 3 | EW1: =COUNTIF(AllMunicipalities!$A:$A, Lists!EW$2) -> 0 | EX1: =COUNTIF(AllMunicipalities!$A:$A, Lists!EX$2) -> 7 | EY1: =COUNTIF(AllMunicipalities!$A:$A, Lists!EY$2) -> 0 | EZ1: =COUNTIF(AllMunicipalities!$A:$A, Lists!EZ$2) -> 2 | FB1: =COUNTIF(AllMunicipalities!$A:$A, Lists!FB$2) -> 1 | FC1: =COUNTIF(AllMunicipalities!$A:$A, Lists!FC$2) -> 6 | FD1: =COUNTIF(AllMunicipalities!$A:$A, Lists!FD$2) -> 5 | FE1: =COUNTIF(AllMunicipalities!$A:$A, Lists!FE$2) -> 16 | FF1: =COUNTIF(AllMunicipalities!$A:$A, Lists!FF$2) -> 0 | FG1: =COUNTIF(AllMunicipalities!$A:$A, Lists!FG$2) -> 7 | FI1: =COUNTIF(AllMunicipalities!$A:$A, Lists!FI$2) -> 1 | FJ1: =COUNTIF(AllMunicipalities!$A:$A, Lists!FJ$2) -> 2 | FK1: =COUNTIF(AllMunicipalities!$A:$A, Lists!FK$2) -> 3 | FL1: =COUNTIF(AllMunicipalities!$A:$A, Lists!FL$2) -> 16 | FM1: =COUNTIF(AllMunicipalities!$A:$A, Lists!FM$2) -> 1 | FN1: =COUNTIF(AllMunicipalities!$A:$A, Lists!FN$2) -> 3 | FP1: =COUNTIF(AllMunicipalities!$A:$A, Lists!FP$2) -> 1 | FQ1: =COUNTIF(AllMunicipalities!$A:$A, Lists!FQ$2) -> 11 | FR1: =COUNTIF(AllMunicipalities!$A:$A, Lists!FR$2) -> 5 | FS1: =COUNTIF(AllMunicipalities!$A:$A, Lists!FS$2) -> 17 | FT1: =COUNTIF(AllMunicipalities!$A:$A, Lists!FT$2) -> 1 | FU1: =COUNTIF(AllMunicipalities!$A:$A, Lists!FU$2) -> 6 | FW1: =COUNTIF(AllMunicipalities!$A:$A, Lists!FW$2) -> 1 | FX1: =COUNTIF(AllMunicipalities!$A:$A, Lists!FX$2) -> 2 | FY1: =COUNTIF(AllMunicipalities!$A:$A, Lists!FY$2) -> 0 | FZ1: =COUNTIF(AllMunicipalities!$A:$A, Lists!FZ$2) -> 15 | GA1: =COUNTIF(AllMunicipalities!$A:$A, Lists!GA$2) -> 0 | GB1: =COUNTIF(AllMunicipalities!$A:$A, Lists!GB$2) -> 1 | GD1: =COUNTIF(AllMunicipalities!$A:$A, Lists!GD$2) -> 1 | GE1: =COUNTIF(AllMunicipalities!$A:$A, Lists!GE$2) -> 3 | GF1: =COUNTIF(AllMunicipalities!$A:$A, Lists!GF$2) -> 0 | GG1: =COUNTIF(AllMunicipalities!$A:$A, Lists!GG$2) -> 6 | GH1: =COUNTIF(AllMunicipalities!$A:$A, Lists!GH$2) -> 1 | GI1: =COUNTIF(AllMunicipalities!$A:$A, Lists!GI$2) -> 0 | GK1: =COUNTIF(AllMunicipalities!$A:$A, Lists!GK$2) -> 1 | GL1: =COUNTIF(AllMunicipalities!$A:$A, Lists!GL$2) -> 1 | GM1: =COUNTIF(AllMunicipalities!$A:$A, Lists!GM$2) -> 2 | GN1: =COUNTIF(AllMunicipalities!$A:$A, Lists!GN$2) -> 13 | GO1: =COUNTIF(AllMunicipalities!$A:$A, Lists!GO$2) -> 1 | GP1: =COUNTIF(AllMunicipalities!$A:$A, Lists!GP$2) -> 3 | GR1: =COUNTIF(AllMunicipalities!$A:$A, Lists!GR$2) -> 1 | GS1: =COUNTIF(AllMunicipalities!$A:$A, Lists!GS$2) -> 3 | GT1: =COUNTIF(AllMunicipalities!$A:$A, Lists!GT$2) -> 3 | GU1: =COUNTIF(AllMunicipalities!$A:$A, Lists!GU$2) -> 16 | GV1: =COUNTIF(AllMunicipalities!$A:$A, Lists!GV$2) -> 0 | GW1: =COUNTIF(AllMunicipalities!$A:$A, Lists!GW$2) -> 0 | GY1: =COUNTIF(AllMunicipalities!$A:$A, Lists!GY$2) -> 1 | GZ1: =COUNTIF(AllMunicipalities!$A:$A, Lists!GZ$2) -> 4 | HA1: =COUNTIF(AllMunicipalities!$A:$A, Lists!HA$2) -> 5 | HB1: =COUNTIF(AllMunicipalities!$A:$A, Lists!HB$2) -> 18 | HC1: =COUNTIF(AllMunicipalities!$A:$A, Lists!HC$2) -> 0 | HD1: =COUNTIF(AllMunicipalities!$A:$A, Lists!HD$2) -> 5 | HF1: =COUNTIF(AllMunicipalities!$A:$A, Lists!HF$2) -> 1 | HG1: =COUNTIF(AllMunicipalities!$A:$A, Lists!HG$2) -> 2 | HH1: =COUNTIF(AllMunicipalities!$A:$A, Lists!HH$2) -> 5 | HI1: =COUNTIF(AllMunicipalities!$A:$A, Lists!HI$2) -> 14 | HJ1: =COUNTIF(AllMunicipalities!$A:$A, Lists!HJ$2) -> 0 | HK1: =COUNTIF(AllMunicipalities!$A:$A, Lists!HK$2) -> 7 | HM1: =COUNTIF(AllMunicipalities!$A:$A, Lists!HM$2) -> 1 | HN1: =COUNTIF(AllMunicipalities!$A:$A, Lists!HN$2) -> 3 | HO1: =COUNTIF(AllMunicipalities!$A:$A, Lists!HO$2) -> 8 | HP1: =COUNTIF(AllMunicipalities!$A:$A, Lists!HP$2) -> 28 | HQ1: =COUNTIF(AllMunicipalities!$A:$A, Lists!HQ$2) -> 0 | HR1: =COUNTIF(AllMunicipalities!$A:$A, Lists!HR$2) -> 3 | HT1: =COUNTIF(AllMunicipalities!$A:$A, Lists!HT$2) -> 1 | HU1: =COUNTIF(AllMunicipalities!$A:$A, Lists!HU$2) -> 5 | HV1: =COUNTIF(AllMunicipalities!$A:$A, Lists!HV$2) -> 3 | HW1: =COUNTIF(AllMunicipalities!$A:$A, Lists!HW$2) -> 16 | HX1: =COUNTIF(AllMunicipalities!$A:$A, Lists!HX$2) -> 1 | HY1: =COUNTIF(AllMunicipalities!$A:$A, Lists!HY$2) -> 5 | IA1: =COUNTIF(AllMunicipalities!$A:$A, Lists!IA$2) -> 1 | IB1: =COUNTIF(AllMunicipalities!$A:$A, Lists!IB$2) -> 3 | IC1: =COUNTIF(AllMunicipalities!$A:$A, Lists!IC$2) -> 7 | ID1: =COUNTIF(AllMunicipalities!$A:$A, Lists!ID$2) -> 16 | IE1: =COUNTIF(AllMunicipalities!$A:$A, Lists!IE$2) -> 0 | IF1: =COUNTIF(AllMunicipalities!$A:$A, Lists!IF$2) -> 2 | IH1: =COUNTIF(AllMunicipalities!$A:$A, Lists!IH$2) -> 1 | II1: =COUNTIF(AllMunicipalities!$A:$A, Lists!II$2) -> 3 | IJ1: =COUNTIF(AllMunicipalities!$A:$A, Lists!IJ$2) -> 0 | IK1: =COUNTIF(AllMunicipalities!$A:$A, Lists!IK$2) -> 11 | IL1: =COUNTIF(AllMunicipalities!$A:$A, Lists!IL$2) -> 0 | IM1: =COUNTIF(AllMunicipalities!$A:$A, Lists!IM$2) -> 1 | IO1: =COUNTIF(AllMunicipalities!$A:$A, Lists!IO$2) -> 1 | IP1: =COUNTIF(AllMunicipalities!$A:$A, Lists!IP$2) -> 4 | IQ1: =COUNTIF(AllMunicipalities!$A:$A, Lists!IQ$2) -> 1 | IR1: =COUNTIF(AllMunicipalities!$A:$A, Lists!IR$2) -> 7 | IS1: =COUNTIF(AllMunicipalities!$A:$A, Lists!IS$2) -> 0 | IT1: =COUNTIF(AllMunicipalities!$A:$A, Lists!IT$2) -> 3 | IV1: =COUNTIF(AllMunicipalities!$A:$A, Lists!IV$2) -> 1 | IW1: =COUNTIF(AllMunicipalities!$A:$A, Lists!IW$2) -> 2 | IX1: =COUNTIF(AllMunicipalities!$A:$A, Lists!IX$2) -> 3 | IY1: =COUNTIF(AllMunicipalities!$A:$A, Lists!IY$2) -> 16 | IZ1: =COUNTIF(AllMunicipalities!$A:$A, Lists!IZ$2) -> 0 | JA1: =COUNTIF(AllMunicipalities!$A:$A, Lists!JA$2) -> 1 | JC1: =COUNTIF(AllMunicipalities!$A:$A, Lists!JC$2) -> 1 | JD1: =COUNTIF(AllMunicipalities!$A:$A, Lists!JD$2) -> 1 | JE1: =COUNTIF(AllMunicipalities!$A:$A, Lists!JE$2) -> 7 | JF1: =COUNTIF(AllMunicipalities!$A:$A, Lists!JF$2) -> 19 | JG1: =COUNTIF(AllMunicipalities!$A:$A, Lists!JG$2) -> 1 | JH1: =COUNTIF(AllMunicipalities!$A:$A, Lists!JH$2) -> 2 | JJ1: =COUNTIF(AllMunicipalities!$A:$A, Lists!JJ$2) -> 1 | JK1: =COUNTIF(AllMunicipalities!$A:$A, Lists!JK$2) -> 4 | JL1: =COUNTIF(AllMunicipalities!$A:$A, Lists!JL$2) -> 5 | JM1: =COUNTIF(AllMunicipalities!$A:$A, Lists!JM$2) -> 15 | JN1: =COUNTIF(AllMunicipalities!$A:$A, Lists!JN$2) -> 1 | JO1: =COUNTIF(AllMunicipalities!$A:$A, Lists!JO$2) -> 10 | JQ1: =COUNTIF(AllMunicipalities!$A:$A, Lists!JQ$2) -> 1 | JR1: =COUNTIF(AllMunicipalities!$A:$A, Lists!JR$2) -> 0 | JS1: =COUNTIF(AllMunicipalities!$A:$A, Lists!JS$2) -> 1 | JT1: =COUNTIF(AllMunicipalities!$A:$A, Lists!JT$2) -> 12 | JU1: =COUNTIF(AllMunicipalities!$A:$A, Lists!JU$2) -> 0 | JV1: =COUNTIF(AllMunicipalities!$A:$A, Lists!JV$2) -> 0 | JX1: =COUNTIF(AllMunicipalities!$A:$A, Lists!JX$2) -> 1 | JY1: =COUNTIF(AllMunicipalities!$A:$A, Lists!JY$2) -> 9 | JZ1: =COUNTIF(AllMunicipalities!$A:$A, Lists!JZ$2) -> 5 | KA1: =COUNTIF(AllMunicipalities!$A:$A, Lists!KA$2) -> 21 | KB1: =COUNTIF(AllMunicipalities!$A:$A, Lists!KB$2) -> 1 | KC1: =COUNTIF(AllMunicipalities!$A:$A, Lists!KC$2) -> 2 | KE1: =COUNTIF(AllMunicipalities!$A:$A, Lists!KE$2) -> 1 | KF1: =COUNTIF(AllMunicipalities!$A:$A, Lists!KF$2) -> 0 | KG1: =COUNTIF(AllMunicipalities!$A:$A, Lists!KG$2) -> 1 | KH1: =COUNTIF(AllMunicipalities!$A:$A, Lists!KH$2) -> 5 | KI1: =COUNTIF(AllMunicipalities!$A:$A, Lists!KI$2) -> 0 | KJ1: =COUNTIF(AllMunicipalities!$A:$A, Lists!KJ$2) -> 0 | KL1: =COUNTIF(AllMunicipalities!$A:$A, Lists!KL$2) -> 1 | KM1: =COUNTIF(AllMunicipalities!$A:$A, Lists!KM$2) -> 0 | KN1: =COUNTIF(AllMunicipalities!$A:$A, Lists!KN$2) -> 2 | KO1: =COUNTIF(AllMunicipalities!$A:$A, Lists!KO$2) -> 15 | KP1: =COUNTIF(AllMunicipalities!$A:$A, Lists!KP$2) -> 0 | KQ1: =COUNTIF(AllMunicipalities!$A:$A, Lists!KQ$2) -> 1 | KS1: =COUNTIF(AllMunicipalities!$A:$A, Lists!KS$2) -> 1 | KT1: =COUNTIF(AllMunicipalities!$A:$A, Lists!KT$2) -> 3 | KU1: =COUNTIF(AllMunicipalities!$A:$A, Lists!KU$2) -> 7 | KV1: =COUNTIF(AllMunicipalities!$A:$A, Lists!KV$2) -> 18 | KW1: =COUNTIF(AllMunicipalities!$A:$A, Lists!KW$2) -> 0 | KX1: =COUNTIF(AllMunicipalities!$A:$A, Lists!KX$2) -> 4 | KZ1: =COUNTIF(AllMunicipalities!$A:$A, Lists!KZ$2) -> 1 | LA1: =COUNTIF(AllMunicipalities!$A:$A, Lists!LA$2) -> 1 | LB1: =COUNTIF(AllMunicipalities!$A:$A, Lists!LB$2) -> 3 | LC1: =COUNTIF(AllMunicipalities!$A:$A, Lists!LC$2) -> 11 | LD1: =COUNTIF(AllMunicipalities!$A:$A, Lists!LD$2) -> 0 | LE1: =COUNTIF(AllMunicipalities!$A:$A, Lists!LE$2) -> 3 | LG1: =COUNTIF(AllMunicipalities!$A:$A, Lists!LG$2) -> 1 | LH1: =COUNTIF(AllMunicipalities!$A:$A, Lists!LH$2) -> 4 | LI1: =COUNTIF(AllMunicipalities!$A:$A, Lists!LI$2) -> 8 | LJ1: =COUNTIF(AllMunicipalities!$A:$A, Lists!LJ$2) -> 22 | LK1: =COUNTIF(AllMunicipalities!$A:$A, Lists!LK$2) -> 0 | LL1: =COUNTIF(AllMunicipalities!$A:$A, Lists!LL$2) -> 6 | LN1: =COUNTIF(AllMunicipalities!$A:$A, Lists!LN$2) -> 1 | LO1: =COUNTIF(AllMunicipalities!$A:$A, Lists!LO$2) -> 3 | LP1: =COUNTIF(AllMunicipalities!$A:$A, Lists!LP$2) -> 2 | LQ1: =COUNTIF(AllMunicipalities!$A:$A, Lists!LQ$2) -> 16 | LR1: =COUNTIF(AllMunicipalities!$A:$A, Lists!LR$2) -> 0 | LS1: =COUNTIF(AllMunicipalities!$A:$A, Lists!LS$2) -> 9 | LU1: =COUNTIF(AllMunicipalities!$A:$A, Lists!LU$2) -> 1 | LV1: =COUNTIF(AllMunicipalities!$A:$A, Lists!LV$2) -> 0 | LW1: =COUNTIF(AllMunicipalities!$A:$A, Lists!LW$2) -> 1 | LX1: =COUNTIF(AllMunicipalities!$A:$A, Lists!LX$2) -> 4 | LY1: =COUNTIF(AllMunicipalities!$A:$A, Lists!LY$2) -> 0 | LZ1: =COUNTIF(AllMunicipalities!$A:$A, Lists!LZ$2) -> 0 | MB1: =COUNTIF(AllMunicipalities!$A:$A, Lists!MB$2) -> 1 | MC1: =COUNTIF(AllMunicipalities!$A:$A, Lists!MC$2) -> 2 | MD1: =COUNTIF(AllMunicipalities!$A:$A, Lists!MD$2) -> 0 | ME1: =COUNTIF(AllMunicipalities!$A:$A, Lists!ME$2) -> 11 | MF1: =COUNTIF(AllMunicipalities!$A:$A, Lists!MF$2) -> 0 | MG1: =COUNTIF(AllMunicipalities!$A:$A, Lists!MG$2) -> 0 | MI1: =COUNTIF(AllMunicipalities!$A:$A, Lists!MI$2) -> 1 | MJ1: =COUNTIF(AllMunicipalities!$A:$A, Lists!MJ$2) -> 13 | MK1: =COUNTIF(AllMunicipalities!$A:$A, Lists!MK$2) -> 3 | ML1: =COUNTIF(AllMunicipalities!$A:$A, Lists!ML$2) -> 11 | MM1: =COUNTIF(AllMunicipalities!$A:$A, Lists!MM$2) -> 1 | MN1: =COUNTIF(AllMunicipalities!$A:$A, Lists!MN$2) -> 11 | MP1: =COUNTIF(AllMunicipalities!$A:$A, Lists!MP$2) -> 1 | MQ1: =COUNTIF(AllMunicipalities!$A:$A, Lists!MQ$2) -> 1 | MR1: =COUNTIF(AllMunicipalities!$A:$A, Lists!MR$2) -> 5 | MS1: =COUNTIF(AllMunicipalities!$A:$A, Lists!MS$2) -> 14 | MT1: =COUNTIF(AllMunicipalities!$A:$A, Lists!MT$2) -> 1 | MU1: =COUNTIF(AllMunicipalities!$A:$A, Lists!MU$2) -> 0 | MW1: =COUNTIF(AllMunicipalities!$A:$A, Lists!MW$2) -> 1 | MX1: =COUNTIF(AllMunicipalities!$A:$A, Lists!MX$2) -> 3 | MY1: =COUNTIF(AllMunicipalities!$A:$A, Lists!MY$2) -> 0 | MZ1: =COUNTIF(AllMunicipalities!$A:$A, Lists!MZ$2) -> 19 | NA1: =COUNTIF(AllMunicipalities!$A:$A, Lists!NA$2) -> 0 | NB1: =COUNTIF(AllMunicipalities!$A:$A, Lists!NB$2) -> 1 | ND1: =COUNTIF(AllMunicipalities!$A:$A, Lists!ND$2) -> 1 | NE1: =COUNTIF(AllMunicipalities!$A:$A, Lists!NE$2) -> 2 | NF1: =COUNTIF(AllMunicipalities!$A:$A, Lists!NF$2) -> 3 | NG1: =COUNTIF(AllMunicipalities!$A:$A, Lists!NG$2) -> 15 | NH1: =COUNTIF(AllMunicipalities!$A:$A, Lists!NH$2) -> 0 | NI1: =COUNTIF(AllMunicipalities!$A:$A, Lists!NI$2) -> 5 | NK1: =COUNTIF(AllMunicipalities!$A:$A, Lists!NK$2) -> 1 | NL1: =COUNTIF(AllMunicipalities!$A:$A, Lists!NL$2) -> 1 | NM1: =COUNTIF(AllMunicipalities!$A:$A, Lists!NM$2) -> 4 | NN1: =COUNTIF(AllMunicipalities!$A:$A, Lists!NN$2) -> 16 | NO1: =COUNTIF(AllMunicipalities!$A:$A, Lists!NO$2) -> 0 | NP1: =COUNTIF(AllMunicipalities!$A:$A, Lists!NP$2) -> 1 | NR1: =COUNTIF(AllMunicipalities!$A:$A, Lists!NR$2) -> 1 | NS1: =COUNTIF(AllMunicipalities!$A:$A, Lists!NS$2) -> 2 | NT1: =COUNTIF(AllMunicipalities!$A:$A, Lists!NT$2) -> 3 | NU1: =COUNTIF(AllMunicipalities!$A:$A, Lists!NU$2) -> 14 | NV1: =COUNTIF(AllMunicipalities!$A:$A, Lists!NV$2) -> 0 | NW1: =COUNTIF(AllMunicipalities!$A:$A, Lists!NW$2) -> 0 | NY1: =COUNTIF(AllMunicipalities!$A:$A, Lists!NY$2) -> 1 | NZ1: =COUNTIF(AllMunicipalities!$A:$A, Lists!NZ$2) -> 2 | OA1: =COUNTIF(AllMunicipalities!$A:$A, Lists!OA$2) -> 1 | OB1: =COUNTIF(AllMunicipalities!$A:$A, Lists!OB$2) -> 16 | OC1: =COUNTIF(AllMunicipalities!$A:$A, Lists!OC$2) -> 0 | OD1: =COUNTIF(AllMunicipalities!$A:$A, Lists!OD$2) -> 1 | OF1: =COUNTIF(AllMunicipalities!$A:$A, Lists!OF$2) -> 1 | OG1: =COUNTIF(AllMunicipalities!$A:$A, Lists!OG$2) -> 2 | OH1: =COUNTIF(AllMunicipalities!$A:$A, Lists!OH$2) -> 0 | OI1: =COUNTIF(AllMunicipalities!$A:$A, Lists!OI$2) -> 15 | OJ1: =COUNTIF(AllMunicipalities!$A:$A, Lists!OJ$2) -> 0 | OK1: =COUNTIF(AllMunicipalities!$A:$A, Lists!OK$2) -> 1 | OM1: =COUNTIF(AllMunicipalities!$A:$A, Lists!OM$2) -> 1 | ON1: =COUNTIF(AllMunicipalities!$A:$A, Lists!ON$2) -> 4 | OO1: =COUNTIF(AllMunicipalities!$A:$A, Lists!OO$2) -> 5 | OP1: =COUNTIF(AllMunicipalities!$A:$A, Lists!OP$2) -> 15 | OQ1: =COUNTIF(AllMunicipalities!$A:$A, Lists!OQ$2) -> 1 | OR1: =COUNTIF(AllMunicipalities!$A:$A, Lists!OR$2) -> 2 | OT1: =COUNTIF(AllMunicipalities!$A:$A, Lists!OT$2) -> 1 | OU1: =COUNTIF(AllMunicipalities!$A:$A, Lists!OU$2) -> 3 | OV1: =COUNTIF(AllMunicipalities!$A:$A, Lists!OV$2) -> 6 | OW1: =COUNTIF(AllMunicipalities!$A:$A, Lists!OW$2) -> 20 | OX1: =COUNTIF(AllMunicipalities!$A:$A, Lists!OX$2) -> 1 | OY1: =COUNTIF(AllMunicipalities!$A:$A, Lists!OY$2) -> 2 | PA1: =COUNTIF(AllMunicipalities!$A:$A, Lists!PA$2) -> 1 | PB1: =COUNTIF(AllMunicipalities!$A:$A, Lists!PB$2) -> 0 | PC1: =COUNTIF(AllMunicipalities!$A:$A, Lists!PC$2) -> 1 | PD1: =COUNTIF(AllMunicipalities!$A:$A, Lists!PD$2) -> 8 | PE1: =COUNTIF(AllMunicipalities!$A:$A, Lists!PE$2) -> 0 | PF1: =COUNTIF(AllMunicipalities!$A:$A, Lists!PF$2) -> 0 | PH1: =COUNTIF(AllMunicipalities!$A:$A, Lists!PH$2) -> 1 | PI1: =COUNTIF(AllMunicipalities!$A:$A, Lists!PI$2) -> 7 | PJ1: =COUNTIF(AllMunicipalities!$A:$A, Lists!PJ$2) -> 4 | PK1: =COUNTIF(AllMunicipalities!$A:$A, Lists!PK$2) -> 16 | PL1: =COUNTIF(AllMunicipalities!$A:$A, Lists!PL$2) -> 1 | PM1: =COUNTIF(AllMunicipalities!$A:$A, Lists!PM$2) -> 7 | PO1: =COUNTIF(AllMunicipalities!$A:$A, Lists!PO$2) -> 1 | PP1: =COUNTIF(AllMunicipalities!$A:$A, Lists!PP$2) -> 4 | PQ1: =COUNTIF(AllMunicipalities!$A:$A, Lists!PQ$2) -> 1 | PR1: =COUNTIF(AllMunicipalities!$A:$A, Lists!PR$2) -> 24 | PS1: =COUNTIF(AllMunicipalities!$A:$A, Lists!PS$2) -> 0 | PT1: =COUNTIF(AllMunicipalities!$A:$A, Lists!PT$2) -> 6 | PV1: =COUNTIF(AllMunicipalities!$A:$A, Lists!PV$2) -> 1 | PW1: =COUNTIF(AllMunicipalities!$A:$A, Lists!PW$2) -> 31 | PX1: =COUNTIF(AllMunicipalities!$A:$A, Lists!PX$2) -> 10 | PY1: =COUNTIF(AllMunicipalities!$A:$A, Lists!PY$2) -> 21 | PZ1: =COUNTIF(AllMunicipalities!$A:$A, Lists!PZ$2) -> 1 | QA1: =COUNTIF(AllMunicipalities!$A:$A, Lists!QA$2) -> 11 | QC1: =COUNTIF(AllMunicipalities!$A:$A, Lists!QC$2) -> 1 | QD1: =COUNTIF(AllMunicipalities!$A:$A, Lists!QD$2) -> 1 | QE1: =COUNTIF(AllMunicipalities!$A:$A, Lists!QE$2) -> 6 | QF1: =COUNTIF(AllMunicipalities!$A:$A, Lists!QF$2) -> 16 | QG1: =COUNTIF(AllMunicipalities!$A:$A, Lists!QG$2) -> 0 | QH1: =COUNTIF(AllMunicipalities!$A:$A, Lists!QH$2) -> 2 | QJ1: =COUNTIF(AllMunicipalities!$A:$A, Lists!QJ$2) -> 1 | QK1: =COUNTIF(AllMunicipalities!$A:$A, Lists!QK$2) -> 2 | QL1: =COUNTIF(AllMunicipalities!$A:$A, Lists!QL$2) -> 1 | QM1: =COUNTIF(AllMunicipalities!$A:$A, Lists!QM$2) -> 14 | QN1: =COUNTIF(AllMunicipalities!$A:$A, Lists!QN$2) -> 0 | QO1: =COUNTIF(AllMunicipalities!$A:$A, Lists!QO$2) -> 4 | QQ1: =COUNTIF(AllMunicipalities!$A:$A, Lists!QQ$2) -> 1 | QR1: =COUNTIF(AllMunicipalities!$A:$A, Lists!QR$2) -> 0 | QS1: =COUNTIF(AllMunicipalities!$A:$A, Lists!QS$2) -> 1 | QT1: =COUNTIF(AllMunicipalities!$A:$A, Lists!QT$2) -> 11 | QU1: =COUNTIF(AllMunicipalities!$A:$A, Lists!QU$2) -> 0 | QV1: =COUNTIF(AllMunicipalities!$A:$A, Lists!QV$2) -> 0 | QX1: =COUNTIF(AllMunicipalities!$A:$A, Lists!QX$2) -> 1 | QY1: =COUNTIF(AllMunicipalities!$A:$A, Lists!QY$2) -> 2 | QZ1: =COUNTIF(AllMunicipalities!$A:$A, Lists!QZ$2) -> 4 | RA1: =COUNTIF(AllMunicipalities!$A:$A, Lists!RA$2) -> 16 | RB1: =COUNTIF(AllMunicipalities!$A:$A, Lists!RB$2) -> 0 | RC1: =COUNTIF(AllMunicipalities!$A:$A, Lists!RC$2) -> 1 | RE1: =COUNTIF(AllMunicipalities!$A:$A, Lists!RE$2) -> 1 | RF1: =COUNTIF(AllMunicipalities!$A:$A, Lists!RF$2) -> 0 | RG1: =COUNTIF(AllMunicipalities!$A:$A, Lists!RG$2) -> 0 | RH1: =COUNTIF(AllMunicipalities!$A:$A, Lists!RH$2) -> 6 | RI1: =COUNTIF(AllMunicipalities!$A:$A, Lists!RI$2) -> 0 | RJ1: =COUNTIF(AllMunicipalities!$A:$A, Lists!RJ$2) -> 0 | RL1: =COUNTIF(AllMunicipalities!$A:$A, Lists!RL$2) -> 1 | RM1: =COUNTIF(AllMunicipalities!$A:$A, Lists!RM$2) -> 1 | RN1: =COUNTIF(AllMunicipalities!$A:$A, Lists!RN$2) -> 1 | RO1: =COUNTIF(AllMunicipalities!$A:$A, Lists!RO$2) -> 9 | RP1: =COUNTIF(AllMunicipalities!$A:$A, Lists!RP$2) -> 0 | RQ1: =COUNTIF(AllMunicipalities!$A:$A, Lists!RQ$2) -> 2 | RS1: =COUNTIF(AllMunicipalities!$A:$A, Lists!RS$2) -> 1 | RT1: =COUNTIF(AllMunicipalities!$A:$A, Lists!RT$2) -> 6 | RU1: =COUNTIF(AllMunicipalities!$A:$A, Lists!RU$2) -> 1 | RV1: =COUNTIF(AllMunicipalities!$A:$A, Lists!RV$2) -> 17 | RW1: =COUNTIF(AllMunicipalities!$A:$A, Lists!RW$2) -> 0 | RX1: =COUNTIF(AllMunicipalities!$A:$A, Lists!RX$2) -> 5 | RZ1: =COUNTIF(AllMunicipalities!$A:$A, Lists!RZ$2) -> 1 | SA1: =COUNTIF(AllMunicipalities!$A:$A, Lists!SA$2) -> 2 | SB1: =COUNTIF(AllMunicipalities!$A:$A, Lists!SB$2) -> 2 | SC1: =COUNTIF(AllMunicipalities!$A:$A, Lists!SC$2) -> 14 | SD1: =COUNTIF(AllMunicipalities!$A:$A, Lists!SD$2) -> 0 | SE1: =COUNTIF(AllMunicipalities!$A:$A, Lists!SE$2) -> 4 | SG1: =COUNTIF(AllMunicipalities!$A:$A, Lists!SG$2) -> 1 | SH1: =COUNTIF(AllMunicipalities!$A:$A, Lists!SH$2) -> 0 | SI1: =COUNTIF(AllMunicipalities!$A:$A, Lists!SI$2) -> 1 | SJ1: =COUNTIF(AllMunicipalities!$A:$A, Lists!SJ$2) -> 11 | SK1: =COUNTIF(AllMunicipalities!$A:$A, Lists!SK$2) -> 0 | SL1: =COUNTIF(AllMunicipalities!$A:$A, Lists!SL$2) -> 4 | SN1: =COUNTIF(AllMunicipalities!$A:$A, Lists!SN$2) -> 1 | SO1: =COUNTIF(AllMunicipalities!$A:$A, Lists!SO$2) -> 3 | SP1: =COUNTIF(AllMunicipalities!$A:$A, Lists!SP$2) -> 6 | SQ1: =COUNTIF(AllMunicipalities!$A:$A, Lists!SQ$2) -> 27 | SR1: =COUNTIF(AllMunicipalities!$A:$A, Lists!SR$2) -> 0 | SS1: =COUNTIF(AllMunicipalities!$A:$A, Lists!SS$2) -> 8 | SU1: =COUNTIF(AllMunicipalities!$A:$A, Lists!SU$2) -> 1 | SV1: =COUNTIF(AllMunicipalities!$A:$A, Lists!SV$2) -> 8 | SW1: =COUNTIF(AllMunicipalities!$A:$A, Lists!SW$2) -> 2 | SX1: =COUNTIF(AllMunicipalities!$A:$A, Lists!SX$2) -> 23 | SY1: =COUNTIF(AllMunicipalities!$A:$A, Lists!SY$2) -> 1 | SZ1: =COUNTIF(AllMunicipalities!$A:$A, Lists!SZ$2) -> 0 | TB1: =COUNTIF(AllMunicipalities!$A:$A, Lists!TB$2) -> 1 | TC1: =COUNTIF(AllMunicipalities!$A:$A, Lists!TC$2) -> 2 | TD1: =COUNTIF(AllMunicipalities!$A:$A, Lists!TD$2) -> 6 | TE1: =COUNTIF(AllMunicipalities!$A:$A, Lists!TE$2) -> 16 | TF1: =COUNTIF(AllMunicipalities!$A:$A, Lists!TF$2) -> 1 | TG1: =COUNTIF(AllMunicipalities!$A:$A, Lists!TG$2) -> 1 | TI1: =COUNTIF(AllMunicipalities!$A:$A, Lists!TI$2) -> 1 | TJ1: =COUNTIF(AllMunicipalities!$A:$A, Lists!TJ$2) -> 4 | TK1: =COUNTIF(AllMunicipalities!$A:$A, Lists!TK$2) -> 9 | TL1: =COUNTIF(AllMunicipalities!$A:$A, Lists!TL$2) -> 26 | TM1: =COUNTIF(AllMunicipalities!$A:$A, Lists!TM$2) -> 0 | TN1: =COUNTIF(AllMunicipalities!$A:$A, Lists!TN$2) -> 5 | TP1: =COUNTIF(AllMunicipalities!$A:$A, Lists!TP$2) -> 1 | TQ1: =COUNTIF(AllMunicipalities!$A:$A, Lists!TQ$2) -> 1 | TR1: =COUNTIF(AllMunicipalities!$A:$A, Lists!TR$2) -> 0 | TS1: =COUNTIF(AllMunicipalities!$A:$A, Lists!TS$2) -> 8 | TT1: =COUNTIF(AllMunicipalities!$A:$A, Lists!TT$2) -> 0 | TU1: =COUNTIF(AllMunicipalities!$A:$A, Lists!TU$2) -> 0 | TW1: =COUNTIF(AllMunicipalities!$A:$A, Lists!TW$2) -> 1 | TX1: =COUNTIF(AllMunicipalities!$A:$A, Lists!TX$2) -> 6 | TY1: =COUNTIF(AllMunicipalities!$A:$A, Lists!TY$2) -> 6 | TZ1: =COUNTIF(AllMunicipalities!$A:$A, Lists!TZ$2) -> 16 | UA1: =COUNTIF(AllMunicipalities!$A:$A, Lists!UA$2) -> 0 | UB1: =COUNTIF(AllMunicipalities!$A:$A, Lists!UB$2) -> 3 | UD1: =COUNTIF(AllMunicipalities!$A:$A, Lists!UD$2) -> 1 | UE1: =COUNTIF(AllMunicipalities!$A:$A, Lists!UE$2) -> 2 | UF1: =COUNTIF(AllMunicipalities!$A:$A, Lists!UF$2) -> 9 | UG1: =COUNTIF(AllMunicipalities!$A:$A, Lists!UG$2) -> 23 | UH1: =COUNTIF(AllMunicipalities!$A:$A, Lists!UH$2) -> 0 | UI1: =COUNTIF(AllMunicipalities!$A:$A, Lists!UI$2) -> 8 | UK1: =COUNTIF(AllMunicipalities!$A:$A, Lists!UK$2) -> 1 | UL1: =COUNTIF(AllMunicipalities!$A:$A, Lists!UL$2) -> 4 | UM1: =COUNTIF(AllMunicipalities!$A:$A, Lists!UM$2) -> 7 | UN1: =COUNTIF(AllMunicipalities!$A:$A, Lists!UN$2) -> 18 | UO1: =COUNTIF(AllMunicipalities!$A:$A, Lists!UO$2) -> 0 | UP1: =COUNTIF(AllMunicipalities!$A:$A, Lists!UP$2) -> 3 | UR1: =COUNTIF(AllMunicipalities!$A:$A, Lists!UR$2) -> 1 | US1: =COUNTIF(AllMunicipalities!$A:$A, Lists!US$2) -> 6 | UT1: =COUNTIF(AllMunicipalities!$A:$A, Lists!UT$2) -> 2 | UU1: =COUNTIF(AllMunicipalities!$A:$A, Lists!UU$2) -> 20 | UV1: =COUNTIF(AllMunicipalities!$A:$A, Lists!UV$2) -> 1 | UW1: =COUNTIF(AllMunicipalities!$A:$A, Lists!UW$2) -> 12 | UY1: =COUNTIF(AllMunicipalities!$A:$A, Lists!UY$2) -> 1 | UZ1: =COUNTIF(AllMunicipalities!$A:$A, Lists!UZ$2) -> 34 | VA1: =COUNTIF(AllMunicipalities!$A:$A, Lists!VA$2) -> 0 | VB1: =COUNTIF(AllMunicipalities!$A:$A, Lists!VB$2) -> 9 | VC1: =COUNTIF(AllMunicipalities!$A:$A, Lists!VC$2) -> 3 | VD1: =COUNTIF(AllMunicipalities!$A:$A, Lists!VD$2) -> 11 | VF1: =COUNTIF(AllMunicipalities!$A:$A, Lists!VF$2) -> 1 | VG1: =COUNTIF(AllMunicipalities!$A:$A, Lists!VG$2) -> 2 | VH1: =COUNTIF(AllMunicipalities!$A:$A, Lists!VH$2) -> 3 | VI1: =COUNTIF(AllMunicipalities!$A:$A, Lists!VI$2) -> 16 | VJ1: =COUNTIF(AllMunicipalities!$A:$A, Lists!VJ$2) -> 0 | VK1: =COUNTIF(AllMunicipalities!$A:$A, Lists!VK$2) -> 2
A2: County | C2: ALCONA | D2: =SUBSTITUTE(C2&C3, " ", "") -> ALCONACOUNTY | E2: =SUBSTITUTE(C2&C4, " ", "") -> ALCONACITY | F2: =SUBSTITUTE(C2&C5, " ", "") -> ALCONAVILLAGE | G2: =SUBSTITUTE(C2&C6, " ", "") -> ALCONATOWNSHIP | H2: =SUBSTITUTE(C2&C7, " ", "") -> ALCONACOMMUNITYCOLLEGE | I2: =SUBSTITUTE(C2&C8, " ", "") -> ALCONAAUTHORITY | J2: ALGER | K2: =SUBSTITUTE(J2&J3, " ", "") -> ALGERCOUNTY | L2: =SUBSTITUTE(J2&J4, " ", "") -> ALGERCITY | M2: =SUBSTITUTE(J2&J5, " ", "") -> ALGERVILLAGE | N2: =SUBSTITUTE(J2&J6, " ", "") -> ALGERTOWNSHIP | O2: =SUBSTITUTE(J2&J7, " ", "") -> ALGERCOMMUNITYCOLLEGE | P2: =SUBSTITUTE(J2&J8, " ", "") -> ALGERAUTHORITY | Q2: ALLEGAN | R2: =SUBSTITUTE(Q2&Q3, " ", "") -> ALLEGANCOUNTY | S2: =SUBSTITUTE(Q2&Q4, " ", "") -> ALLEGANCITY | T2: =SUBSTITUTE(Q2&Q5, " ", "") -> ALLEGANVILLAGE | U2: =SUBSTITUTE(Q2&Q6, " ", "") -> ALLEGANTOWNSHIP | V2: =SUBSTITUTE(Q2&Q7, " ", "") -> ALLEGANCOMMUNITYCOLLEGE | W2: =SUBSTITUTE(Q2&Q8, " ", "") -> ALLEGANAUTHORITY | X2: ALPENA | Y2: =SUBSTITUTE(X2&X3, " ", "") -> ALPENACOUNTY | Z2: =SUBSTITUTE(X2&X4, " ", "") -> ALPENACITY | AA2: =SUBSTITUTE(X2&X5, " ", "") -> ALPENAVILLAGE | AB2: =SUBSTITUTE(X2&X6, " ", "") -> ALPENATOWNSHIP | AC2: =SUBSTITUTE(X2&X7, " ", "") -> ALPENACOMMUNITYCOLLEGE | AD2: =SUBSTITUTE(X2&X8, " ", "") -> ALPENAAUTHORITY | AE2: ANTRIM | AF2: =SUBSTITUTE(AE2&AE3, " ", "") -> ANTRIMCOUNTY | AG2: =SUBSTITUTE(AE2&AE4, " ", "") -> ANTRIMCITY | AH2: =SUBSTITUTE(AE2&AE5, " ", "") -> ANTRIMVILLAGE | AI2: =SUBSTITUTE(AE2&AE6, " ", "") -> ANTRIMTOWNSHIP | AJ2: =SUBSTITUTE(AE2&AE7, " ", "") -> ANTRIMCOMMUNITYCOLLEGE | AK2: =SUBSTITUTE(AE2&AE8, " ", "") -> ANTRIMAUTHORITY | AL2: ARENAC | AM2: =SUBSTITUTE(AL2&AL3, " ", "") -> ARENACCOUNTY | AN2: =SUBSTITUTE(AL2&AL4, " ", "") -> ARENACCITY | AO2: =SUBSTITUTE(AL2&AL5, " ", "") -> ARENACVILLAGE | AP2: =SUBSTITUTE(AL2&AL6, " ", "") -> ARENACTOWNSHIP | AQ2: =SUBSTITUTE(AL2&AL7, " ", "") -> ARENACCOMMUNITYCOLLEGE | AR2: =SUBSTITUTE(AL2&AL8, " ", "") -> ARENACAUTHORITY | AS2: BARAGA | AT2: =SUBSTITUTE(AS2&AS3, " ", "") -> BARAGACOUNTY | AU2: =SUBSTITUTE(AS2&AS4, " ", "") -> BARAGACITY | AV2: =SUBSTITUTE(AS2&AS5, " ", "") -> BARAGAVILLAGE | AW2: =SUBSTITUTE(AS2&AS6, " ", "") -> BARAGATOWNSHIP | AX2: =SUBSTITUTE(AS2&AS7, " ", "") -> BARAGACOMMUNITYCOLLEGE | AY2: =SUBSTITUTE(AS2&AS8, " ", "") -> BARAGAAUTHORITY | AZ2: BARRY | BA2: =SUBSTITUTE(AZ2&AZ3, " ", "") -> BARRYCOUNTY | BB2: =SUBSTITUTE(AZ2&AZ4, " ", "") -> BARRYCITY | BC2: =SUBSTITUTE(AZ2&AZ5, " ", "") -> BARRYVILLAGE | BD2: =SUBSTITUTE(AZ2&AZ6, " ", "") -> BARRYTOWNSHIP | BE2: =SUBSTITUTE(AZ2&AZ7, " ", "") -> BARRYCOMMUNITYCOLLEGE | BF2: =SUBSTITUTE(AZ2&AZ8, " ", "") -> BARRYAUTHORITY | BG2: BAY | BH2: =SUBSTITUTE(BG2&BG3, " ", "") -> BAYCOUNTY | BI2: =SUBSTITUTE(BG2&BG4, " ", "") -> BAYCITY | BJ2: =SUBSTITUTE(BG2&BG5, " ", "") -> BAYVILLAGE | BK2: =SUBSTITUTE(BG2&BG6, " ", "") -> BAYTOWNSHIP | BL2: =SUBSTITUTE(BG2&BG7, " ", "") -> BAYCOMMUNITYCOLLEGE | BM2: =SUBSTITUTE(BG2&BG8, " ", "") -> BAYAUTHORITY | BN2: BENZIE | BO2: =SUBSTITUTE(BN2&BN3, " ", "") -> BENZIECOUNTY | BP2: =SUBSTITUTE(BN2&BN4, " ", "") -> BENZIECITY | BQ2: =SUBSTITUTE(BN2&BN5, " ", "") -> BENZIEVILLAGE | BR2: =SUBSTITUTE(BN2&BN6, " ", "") -> BENZIETOWNSHIP | BS2: =SUBSTITUTE(BN2&BN7, " ", "") -> BENZIECOMMUNITYCOLLEGE | BT2: =SUBSTITUTE(BN2&BN8, " ", "") -> BENZIEAUTHORITY | BU2: BERRIEN | BV2: =SUBSTITUTE(BU2&BU3, " ", "") -> BERRIENCOUNTY | BW2: =SUBSTITUTE(BU2&BU4, " ", "") -> BERRIENCITY | BX2: =SUBSTITUTE(BU2&BU5, " ", "") -> BERRIENVILLAGE | BY2: =SUBSTITUTE(BU2&BU6, " ", "") -> BERRIENTOWNSHIP | BZ2: =SUBSTITUTE(BU2&BU7, " ", "") -> BERRIENCOMMUNITYCOLLEGE | CA2: =SUBSTITUTE(BU2&BU8, " ", "") -> BERRIENAUTHORITY | CB2: BRANCH | CC2: =SUBSTITUTE(CB2&CB3, " ", "") -> BRANCHCOUNTY | CD2: =SUBSTITUTE(CB2&CB4, " ", "") -> BRANCHCITY | CE2: =SUBSTITUTE(CB2&CB5, " ", "") -> BRANCHVILLAGE | CF2: =SUBSTITUTE(CB2&CB6, " ", "") -> BRANCHTOWNSHIP | CG2: =SUBSTITUTE(CB2&CB7, " ", "") -> BRANCHCOMMUNITYCOLLEGE | CH2: =SUBSTITUTE(CB2&CB8, " ", "") -> BRANCHAUTHORITY | CI2: CALHOUN | CJ2: =SUBSTITUTE(CI2&CI3, " ", "") -> CALHOUNCOUNTY | CK2: =SUBSTITUTE(CI2&CI4, " ", "") -> CALHOUNCITY | CL2: =SUBSTITUTE(CI2&CI5, " ", "") -> CALHOUNVILLAGE | CM2: =SUBSTITUTE(CI2&CI6, " ", "") -> CALHOUNTOWNSHIP | CN2: =SUBSTITUTE(CI2&CI7, " ", "") -> CALHOUNCOMMUNITYCOLLEGE | CO2: =SUBSTITUTE(CI2&CI8, " ", "") -> CALHOUNAUTHORITY | CP2: CASS | CQ2: =SUBSTITUTE(CP2&CP3, " ", "") -> CASSCOUNTY | CR2: =SUBSTITUTE(CP2&CP4, " ", "") -> CASSCITY | CS2: =SUBSTITUTE(CP2&CP5, " ", "") -> CASSVILLAGE | CT2: =SUBSTITUTE(CP2&CP6, " ", "") -> CASSTOWNSHIP | CU2: =SUBSTITUTE(CP2&CP7, " ", "") -> CASSCOMMUNITYCOLLEGE | CV2: =SUBSTITUTE(CP2&CP8, " ", "") -> CASSAUTHORITY | CW2: CHARLEVOIX | CX2: =SUBSTITUTE(CW2&CW3, " ", "") -> CHARLEVOIXCOUNTY | CY2: =SUBSTITUTE(CW2&CW4, " ", "") -> CHARLEVOIXCITY | CZ2: =SUBSTITUTE(CW2&CW5, " ", "") -> CHARLEVOIXVILLAGE | DA2: =SUBSTITUTE(CW2&CW6, " ", "") -> CHARLEVOIXTOWNSHIP | DB2: =SUBSTITUTE(CW2&CW7, " ", "") -> CHARLEVOIXCOMMUNITYCOLLEGE | DC2: =SUBSTITUTE(CW2&CW8, " ", "") -> CHARLEVOIXAUTHORITY | DD2: CHEBOYGAN | DE2: =SUBSTITUTE(DD2&DD3, " ", "") -> CHEBOYGANCOUNTY | DF2: =SUBSTITUTE(DD2&DD4, " ", "") -> CHEBOYGANCITY | DG2: =SUBSTITUTE(DD2&DD5, " ", "") -> CHEBOYGANVILLAGE | DH2: =SUBSTITUTE(DD2&DD6, " ", "") -> CHEBOYGANTOWNSHIP | DI2: =SUBSTITUTE(DD2&DD7, " ", "") -> CHEBOYGANCOMMUNITYCOLLEGE | DJ2: =SUBSTITUTE(DD2&DD8, " ", "") -> CHEBOYGANAUTHORITY | DK2: CHIPPEWA | DL2: =SUBSTITUTE(DK2&DK3, " ", "") -> CHIPPEWACOUNTY | DM2: =SUBSTITUTE(DK2&DK4, " ", "") -> CHIPPEWACITY | DN2: =SUBSTITUTE(DK2&DK5, " ", "") -> CHIPPEWAVILLAGE | DO2: =SUBSTITUTE(DK2&DK6, " ", "") -> CHIPPEWATOWNSHIP | DP2: =SUBSTITUTE(DK2&DK7, " ", "") -> CHIPPEWACOMMUNITYCOLLEGE | DQ2: =SUBSTITUTE(DK2&DK8, " ", "") -> CHIPPEWAAUTHORITY | DR2: CLARE | DS2: =SUBSTITUTE(DR2&DR3, " ", "") -> CLARECOUNTY | DT2: =SUBSTITUTE(DR2&DR4, " ", "") -> CLARECITY | DU2: =SUBSTITUTE(DR2&DR5, " ", "") -> CLAREVILLAGE | DV2: =SUBSTITUTE(DR2&DR6, " ", "") -> CLARETOWNSHIP | DW2: =SUBSTITUTE(DR2&DR7, " ", "") -> CLARECOMMUNITYCOLLEGE | DX2: =SUBSTITUTE(DR2&DR8, " ", "") -> CLAREAUTHORITY | DY2: CLINTON | DZ2: =SUBSTITUTE(DY2&DY3, " ", "") -> CLINTONCOUNTY | EA2: =SUBSTITUTE(DY2&DY4, " ", "") -> CLINTONCITY | EB2: =SUBSTITUTE(DY2&DY5, " ", "") -> CLINTONVILLAGE | EC2: =SUBSTITUTE(DY2&DY6, " ", "") -> CLINTONTOWNSHIP | ED2: =SUBSTITUTE(DY2&DY7, " ", "") -> CLINTONCOMMUNITYCOLLEGE | EE2: =SUBSTITUTE(DY2&DY8, " ", "") -> CLINTONAUTHORITY | EF2: CRAWFORD | EG2: =SUBSTITUTE(EF2&EF3, " ", "") -> CRAWFORDCOUNTY | EH2: =SUBSTITUTE(EF2&EF4, " ", "") -> CRAWFORDCITY | EI2: =SUBSTITUTE(EF2&EF5, " ", "") -> CRAWFORDVILLAGE | EJ2: =SUBSTITUTE(EF2&EF6, " ", "") -> CRAWFORDTOWNSHIP | EK2: =SUBSTITUTE(EF2&EF7, " ", "") -> CRAWFORDCOMMUNITYCOLLEGE | EL2: =SUBSTITUTE(EF2&EF8, " ", "") -> CRAWFORDAUTHORITY | EM2: DELTA | EN2: =SUBSTITUTE(EM2&EM3, " ", "") -> DELTACOUNTY | EO2: =SUBSTITUTE(EM2&EM4, " ", "") -> DELTACITY | EP2: =SUBSTITUTE(EM2&EM5, " ", "") -> DELTAVILLAGE | EQ2: =SUBSTITUTE(EM2&EM6, " ", "") -> DELTATOWNSHIP | ER2: =SUBSTITUTE(EM2&EM7, " ", "") -> DELTACOMMUNITYCOLLEGE | ES2: =SUBSTITUTE(EM2&EM8, " ", "") -> DELTAAUTHORITY | ET2: DICKINSON | EU2: =SUBSTITUTE(ET2&ET3, " ", "") -> DICKINSONCOUNTY | EV2: =SUBSTITUTE(ET2&ET4, " ", "") -> DICKINSONCITY | EW2: =SUBSTITUTE(ET2&ET5, " ", "") -> DICKINSONVILLAGE | EX2: =SUBSTITUTE(ET2&ET6, " ", "") -> DICKINSONTOWNSHIP | EY2: =SUBSTITUTE(ET2&ET7, " ", "") -> DICKINSONCOMMUNITYCOLLEGE | EZ2: =SUBSTITUTE(ET2&ET8, " ", "") -> DICKINSONAUTHORITY | FA2: EATON | FB2: =SUBSTITUTE(FA2&FA3, " ", "") -> EATONCOUNTY | FC2: =SUBSTITUTE(FA2&FA4, " ", "") -> EATONCITY | FD2: =SUBSTITUTE(FA2&FA5, " ", "") -> EATONVILLAGE | FE2: =SUBSTITUTE(FA2&FA6, " ", "") -> EATONTOWNSHIP | FF2: =SUBSTITUTE(FA2&FA7, " ", "") -> EATONCOMMUNITYCOLLEGE | FG2: =SUBSTITUTE(FA2&FA8, " ", "") -> EATONAUTHORITY | FH2: EMMET | FI2: =SUBSTITUTE(FH2&FH3, " ", "") -> EMMETCOUNTY | FJ2: =SUBSTITUTE(FH2&FH4, " ", "") -> EMMETCITY | FK2: =SUBSTITUTE(FH2&FH5, " ", "") -> EMMETVILLAGE | FL2: =SUBSTITUTE(FH2&FH6, " ", "") -> EMMETTOWNSHIP | FM2: =SUBSTITUTE(FH2&FH7, " ", "") -> EMMETCOMMUNITYCOLLEGE | FN2: =SUBSTITUTE(FH2&FH8, " ", "") -> EMMETAUTHORITY | FO2: GENESEE | FP2: =SUBSTITUTE(FO2&FO3, " ", "") -> GENESEECOUNTY | FQ2: =SUBSTITUTE(FO2&FO4, " ", "") -> GENESEECITY | FR2: =SUBSTITUTE(FO2&FO5, " ", "") -> GENESEEVILLAGE | FS2: =SUBSTITUTE(FO2&FO6, " ", "") -> GENESEETOWNSHIP | FT2: =SUBSTITUTE(FO2&FO7, " ", "") -> GENESEECOMMUNITYCOLLEGE | FU2: =SUBSTITUTE(FO2&FO8, " ", "") -> GENESEEAUTHORITY | FV2: GLADWIN | FW2: =SUBSTITUTE(FV2&FV3, " ", "") -> GLADWINCOUNTY | FX2: =SUBSTITUTE(FV2&FV4, " ", "") -> GLADWINCITY | FY2: =SUBSTITUTE(FV2&FV5, " ", "") -> GLADWINVILLAGE | FZ2: =SUBSTITUTE(FV2&FV6, " ", "") -> GLADWINTOWNSHIP | GA2: =SUBSTITUTE(FV2&FV7, " ", "") -> GLADWINCOMMUNITYCOLLEGE | GB2: =SUBSTITUTE(FV2&FV8, " ", "") -> GLADWINAUTHORITY | GC2: GOGEBIC | GD2: =SUBSTITUTE(GC2&GC3, " ", "") -> GOGEBICCOUNTY | GE2: =SUBSTITUTE(GC2&GC4, " ", "") -> GOGEBICCITY | GF2: =SUBSTITUTE(GC2&GC5, " ", "") -> GOGEBICVILLAGE | GG2: =SUBSTITUTE(GC2&GC6, " ", "") -> GOGEBICTOWNSHIP | GH2: =SUBSTITUTE(GC2&GC7, " ", "") -> GOGEBICCOMMUNITYCOLLEGE | GI2: =SUBSTITUTE(GC2&GC8, " ", "") -> GOGEBICAUTHORITY | GJ2: GRAND TRAVERSE | GK2: =SUBSTITUTE(GJ2&GJ3, " ", "") -> GRANDTRAVERSECOUNTY | GL2: =SUBSTITUTE(GJ2&GJ4, " ", "") -> GRANDTRAVERSECITY | GM2: =SUBSTITUTE(GJ2&GJ5, " ", "") -> GRANDTRAVERSEVILLAGE | GN2: =SUBSTITUTE(GJ2&GJ6, " ", "") -> GRANDTRAVERSETOWNSHIP | GO2: =SUBSTITUTE(GJ2&GJ7, " ", "") -> GRANDTRAVERSECOMMUNITYCOLLEGE | GP2: =SUBSTITUTE(GJ2&GJ8, " ", "") -> GRANDTRAVERSEAUTHORITY | GQ2: GRATIOT | GR2: =SUBSTITUTE(GQ2&GQ3, " ", "") -> GRATIOTCOUNTY | GS2: =SUBSTITUTE(GQ2&GQ4, " ", "") -> GRATIOTCITY | GT2: =SUBSTITUTE(GQ2&GQ5, " ", "") -> GRATIOTVILLAGE | GU2: =SUBSTITUTE(GQ2&GQ6, " ", "") -> GRATIOTTOWNSHIP | GV2: =SUBSTITUTE(GQ2&GQ7, " ", "") -> GRATIOTCOMMUNITYCOLLEGE | GW2: =SUBSTITUTE(GQ2&GQ8, " ", "") -> GRATIOTAUTHORITY | GX2: HILLSDALE | GY2: =SUBSTITUTE(GX2&GX3, " ", "") -> HILLSDALECOUNTY | GZ2: =SUBSTITUTE(GX2&GX4, " ", "") -> HILLSDALECITY | HA2: =SUBSTITUTE(GX2&GX5, " ", "") -> HILLSDALEVILLAGE | HB2: =SUBSTITUTE(GX2&GX6, " ", "") -> HILLSDALETOWNSHIP | HC2: =SUBSTITUTE(GX2&GX7, " ", "") -> HILLSDALECOMMUNITYCOLLEGE | HD2: =SUBSTITUTE(GX2&GX8, " ", "") -> HILLSDALEAUTHORITY | HE2: HOUGHTON | HF2: =SUBSTITUTE(HE2&HE3, " ", "") -> HOUGHTONCOUNTY | HG2: =SUBSTITUTE(HE2&HE4, " ", "") -> HOUGHTONCITY | HH2: =SUBSTITUTE(HE2&HE5, " ", "") -> HOUGHTONVILLAGE | HI2: =SUBSTITUTE(HE2&HE6, " ", "") -> HOUGHTONTOWNSHIP | HJ2: =SUBSTITUTE(HE2&HE7, " ", "") -> HOUGHTONCOMMUNITYCOLLEGE | HK2: =SUBSTITUTE(HE2&HE8, " ", "") -> HOUGHTONAUTHORITY | HL2: HURON | HM2: =SUBSTITUTE(HL2&HL3, " ", "") -> HURONCOUNTY | HN2: =SUBSTITUTE(HL2&HL4, " ", "") -> HURONCITY | HO2: =SUBSTITUTE(HL2&HL5, " ", "") -> HURONVILLAGE | HP2: =SUBSTITUTE(HL2&HL6, " ", "") -> HURONTOWNSHIP | HQ2: =SUBSTITUTE(HL2&HL7, " ", "") -> HURONCOMMUNITYCOLLEGE | HR2: =SUBSTITUTE(HL2&HL8, " ", "") -> HURONAUTHORITY | HS2: INGHAM | HT2: =SUBSTITUTE(HS2&HS3, " ", "") -> INGHAMCOUNTY | HU2: =SUBSTITUTE(HS2&HS4, " ", "") -> INGHAMCITY | HV2: =SUBSTITUTE(HS2&HS5, " ", "") -> INGHAMVILLAGE | HW2: =SUBSTITUTE(HS2&HS6, " ", "") -> INGHAMTOWNSHIP | HX2: =SUBSTITUTE(HS2&HS7, " ", "") -> INGHAMCOMMUNITYCOLLEGE | HY2: =SUBSTITUTE(HS2&HS8, " ", "") -> INGHAMAUTHORITY | HZ2: IONIA | IA2: =SUBSTITUTE(HZ2&HZ3, " ", "") -> IONIACOUNTY | IB2: =SUBSTITUTE(HZ2&HZ4, " ", "") -> IONIACITY | IC2: =SUBSTITUTE(HZ2&HZ5, " ", "") -> IONIAVILLAGE | ID2: =SUBSTITUTE(HZ2&HZ6, " ", "") -> IONIATOWNSHIP | IE2: =SUBSTITUTE(HZ2&HZ7, " ", "") -> IONIACOMMUNITYCOLLEGE | IF2: =SUBSTITUTE(HZ2&HZ8, " ", "") -> IONIAAUTHORITY | IG2: IOSCO | IH2: =SUBSTITUTE(IG2&IG3, " ", "") -> IOSCOCOUNTY | II2: =SUBSTITUTE(IG2&IG4, " ", "") -> IOSCOCITY | IJ2: =SUBSTITUTE(IG2&IG5, " ", "") -> IOSCOVILLAGE | IK2: =SUBSTITUTE(IG2&IG6, " ", "") -> IOSCOTOWNSHIP | IL2: =SUBSTITUTE(IG2&IG7, " ", "") -> IOSCOCOMMUNITYCOLLEGE | IM2: =SUBSTITUTE(IG2&IG8, " ", "") -> IOSCOAUTHORITY | IN2: IRON | IO2: =SUBSTITUTE(IN2&IN3, " ", "") -> IRONCOUNTY | IP2: =SUBSTITUTE(IN2&IN4, " ", "") -> IRONCITY | IQ2: =SUBSTITUTE(IN2&IN5, " ", "") -> IRONVILLAGE | IR2: =SUBSTITUTE(IN2&IN6, " ", "") -> IRONTOWNSHIP | IS2: =SUBSTITUTE(IN2&IN7, " ", "") -> IRONCOMMUNITYCOLLEGE | IT2: =SUBSTITUTE(IN2&IN8, " ", "") -> IRONAUTHORITY | IU2: ISABELLA | IV2: =SUBSTITUTE(IU2&IU3, " ", "") -> ISABELLACOUNTY | IW2: =SUBSTITUTE(IU2&IU4, " ", "") -> ISABELLACITY | IX2: =SUBSTITUTE(IU2&IU5, " ", "") -> ISABELLAVILLAGE | IY2: =SUBSTITUTE(IU2&IU6, " ", "") -> ISABELLATOWNSHIP | IZ2: =SUBSTITUTE(IU2&IU7, " ", "") -> ISABELLACOMMUNITYCOLLEGE | JA2: =SUBSTITUTE(IU2&IU8, " ", "") -> ISABELLAAUTHORITY | JB2: JACKSON | JC2: =SUBSTITUTE(JB2&JB3, " ", "") -> JACKSONCOUNTY | JD2: =SUBSTITUTE(JB2&JB4, " ", "") -> JACKSONCITY | JE2: =SUBSTITUTE(JB2&JB5, " ", "") -> JACKSONVILLAGE | JF2: =SUBSTITUTE(JB2&JB6, " ", "") -> JACKSONTOWNSHIP | JG2: =SUBSTITUTE(JB2&JB7, " ", "") -> JACKSONCOMMUNITYCOLLEGE | JH2: =SUBSTITUTE(JB2&JB8, " ", "") -> JACKSONAUTHORITY | JI2: KALAMAZOO | JJ2: =SUBSTITUTE(JI2&JI3, " ", "") -> KALAMAZOOCOUNTY | JK2: =SUBSTITUTE(JI2&JI4, " ", "") -> KALAMAZOOCITY | JL2: =SUBSTITUTE(JI2&JI5, " ", "") -> KALAMAZOOVILLAGE | JM2: =SUBSTITUTE(JI2&JI6, " ", "") -> KALAMAZOOTOWNSHIP | JN2: =SUBSTITUTE(JI2&JI7, " ", "") -> KALAMAZOOCOMMUNITYCOLLEGE | JO2: =SUBSTITUTE(JI2&JI8, " ", "") -> KALAMAZOOAUTHORITY | JP2: KALKASKA | JQ2: =SUBSTITUTE(JP2&JP3, " ", "") -> KALKASKACOUNTY | JR2: =SUBSTITUTE(JP2&JP4, " ", "") -> KALKASKACITY | JS2: =SUBSTITUTE(JP2&JP5, " ", "") -> KALKASKAVILLAGE | JT2: =SUBSTITUTE(JP2&JP6, " ", "") -> KALKASKATOWNSHIP | JU2: =SUBSTITUTE(JP2&JP7, " ", "") -> KALKASKACOMMUNITYCOLLEGE | JV2: =SUBSTITUTE(JP2&JP8, " ", "") -> KALKASKAAUTHORITY | JW2: KENT | JX2: =SUBSTITUTE(JW2&JW3, " ", "") -> KENTCOUNTY | JY2: =SUBSTITUTE(JW2&JW4, " ", "") -> KENTCITY | JZ2: =SUBSTITUTE(JW2&JW5, " ", "") -> KENTVILLAGE | KA2: =SUBSTITUTE(JW2&JW6, " ", "") -> KENTTOWNSHIP | KB2: =SUBSTITUTE(JW2&JW7, " ", "") -> KENTCOMMUNITYCOLLEGE | KC2: =SUBSTITUTE(JW2&JW8, " ", "") -> KENTAUTHORITY | KD2: KEWEENAW | KE2: =SUBSTITUTE(KD2&KD3, " ", "") -> KEWEENAWCOUNTY | KF2: =SUBSTITUTE(KD2&KD4, " ", "") -> KEWEENAWCITY | KG2: =SUBSTITUTE(KD2&KD5, " ", "") -> KEWEENAWVILLAGE | KH2: =SUBSTITUTE(KD2&KD6, " ", "") -> KEWEENAWTOWNSHIP | KI2: =SUBSTITUTE(KD2&KD7, " ", "") -> KEWEENAWCOMMUNITYCOLLEGE | KJ2: =SUBSTITUTE(KD2&KD8, " ", "") -> KEWEENAWAUTHORITY | KK2: LAKE | KL2: =SUBSTITUTE(KK2&KK3, " ", "") -> LAKECOUNTY | KM2: =SUBSTITUTE(KK2&KK4, " ", "") -> LAKECITY | KN2: =SUBSTITUTE(KK2&KK5, " ", "") -> LAKEVILLAGE | KO2: =SUBSTITUTE(KK2&KK6, " ", "") -> LAKETOWNSHIP | KP2: =SUBSTITUTE(KK2&KK7, " ", "") -> LAKECOMMUNITYCOLLEGE | KQ2: =SUBSTITUTE(KK2&KK8, " ", "") -> LAKEAUTHORITY | KR2: LAPEER | KS2: =SUBSTITUTE(KR2&KR3, " ", "") -> LAPEERCOUNTY | KT2: =SUBSTITUTE(KR2&KR4, " ", "") -> LAPEERCITY | KU2: =SUBSTITUTE(KR2&KR5, " ", "") -> LAPEERVILLAGE | KV2: =SUBSTITUTE(KR2&KR6, " ", "") -> LAPEERTOWNSHIP | KW2: =SUBSTITUTE(KR2&KR7, " ", "") -> LAPEERCOMMUNITYCOLLEGE | KX2: =SUBSTITUTE(KR2&KR8, " ", "") -> LAPEERAUTHORITY | KY2: LEELANAU | KZ2: =SUBSTITUTE(KY2&KY3, " ", "") -> LEELANAUCOUNTY | LA2: =SUBSTITUTE(KY2&KY4, " ", "") -> LEELANAUCITY | LB2: =SUBSTITUTE(KY2&KY5, " ", "") -> LEELANAUVILLAGE | LC2: =SUBSTITUTE(KY2&KY6, " ", "") -> LEELANAUTOWNSHIP | LD2: =SUBSTITUTE(KY2&KY7, " ", "") -> LEELANAUCOMMUNITYCOLLEGE | LE2: =SUBSTITUTE(KY2&KY8, " ", "") -> LEELANAUAUTHORITY | LF2: LENAWEE | LG2: =SUBSTITUTE(LF2&LF3, " ", "") -> LENAWEECOUNTY | LH2: =SUBSTITUTE(LF2&LF4, " ", "") -> LENAWEECITY | LI2: =SUBSTITUTE(LF2&LF5, " ", "") -> LENAWEEVILLAGE | LJ2: =SUBSTITUTE(LF2&LF6, " ", "") -> LENAWEETOWNSHIP | LK2: =SUBSTITUTE(LF2&LF7, " ", "") -> LENAWEECOMMUNITYCOLLEGE | LL2: =SUBSTITUTE(LF2&LF8, " ", "") -> LENAWEEAUTHORITY | LM2: LIVINGSTON | LN2: =SUBSTITUTE(LM2&LM3, " ", "") -> LIVINGSTONCOUNTY | LO2: =SUBSTITUTE(LM2&LM4, " ", "") -> LIVINGSTONCITY | LP2: =SUBSTITUTE(LM2&LM5, " ", "") -> LIVINGSTONVILLAGE | LQ2: =SUBSTITUTE(LM2&LM6, " ", "") -> LIVINGSTONTOWNSHIP | LR2: =SUBSTITUTE(LM2&LM7, " ", "") -> LIVINGSTONCOMMUNITYCOLLEGE | LS2: =SUBSTITUTE(LM2&LM8, " ", "") -> LIVINGSTONAUTHORITY | LT2: LUCE | LU2: =SUBSTITUTE(LT2&LT3, " ", "") -> LUCECOUNTY | LV2: =SUBSTITUTE(LT2&LT4, " ", "") -> LUCECITY | LW2: =SUBSTITUTE(LT2&LT5, " ", "") -> LUCEVILLAGE | LX2: =SUBSTITUTE(LT2&LT6, " ", "") -> LUCETOWNSHIP | LY2: =SUBSTITUTE(LT2&LT7, " ", "") -> LUCECOMMUNITYCOLLEGE | LZ2: =SUBSTITUTE(LT2&LT8, " ", "") -> LUCEAUTHORITY | MA2: MACKINAC | MB2: =SUBSTITUTE(MA2&MA3, " ", "") -> MACKINACCOUNTY | MC2: =SUBSTITUTE(MA2&MA4, " ", "") -> MACKINACCITY | MD2: =SUBSTITUTE(MA2&MA5, " ", "") -> MACKINACVILLAGE | ME2: =SUBSTITUTE(MA2&MA6, " ", "") -> MACKINACTOWNSHIP | MF2: =SUBSTITUTE(MA2&MA7, " ", "") -> MACKINACCOMMUNITYCOLLEGE | MG2: =SUBSTITUTE(MA2&MA8, " ", "") -> MACKINACAUTHORITY | MH2: MACOMB | MI2: =SUBSTITUTE(MH2&MH3, " ", "") -> MACOMBCOUNTY | MJ2: =SUBSTITUTE(MH2&MH4, " ", "") -> MACOMBCITY | MK2: =SUBSTITUTE(MH2&MH5, " ", "") -> MACOMBVILLAGE | ML2: =SUBSTITUTE(MH2&MH6, " ", "") -> MACOMBTOWNSHIP | MM2: =SUBSTITUTE(MH2&MH7, " ", "") -> MACOMBCOMMUNITYCOLLEGE | MN2: =SUBSTITUTE(MH2&MH8, " ", "") -> MACOMBAUTHORITY | MO2: MANISTEE | MP2: =SUBSTITUTE(MO2&MO3, " ", "") -> MANISTEECOUNTY | MQ2: =SUBSTITUTE(MO2&MO4, " ", "") -> MANISTEECITY | MR2: =SUBSTITUTE(MO2&MO5, " ", "") -> MANISTEEVILLAGE | MS2: =SUBSTITUTE(MO2&MO6, " ", "") -> MANISTEETOWNSHIP | MT2: =SUBSTITUTE(MO2&MO7, " ", "") -> MANISTEECOMMUNITYCOLLEGE | MU2: =SUBSTITUTE(MO2&MO8, " ", "") -> MANISTEEAUTHORITY | MV2: MARQUETTE | MW2: =SUBSTITUTE(MV2&MV3, " ", "") -> MARQUETTECOUNTY | MX2: =SUBSTITUTE(MV2&MV4, " ", "") -> MARQUETTECITY | MY2: =SUBSTITUTE(MV2&MV5, " ", "") -> MARQUETTEVILLAGE | MZ2: =SUBSTITUTE(MV2&MV6, " ", "") -> MARQUETTETOWNSHIP | NA2: =SUBSTITUTE(MV2&MV7, " ", "") -> MARQUETTECOMMUNITYCOLLEGE | NB2: =SUBSTITUTE(MV2&MV8, " ", "") -> MARQUETTEAUTHORITY | NC2: MASON | ND2: =SUBSTITUTE(NC2&NC3, " ", "") -> MASONCOUNTY | NE2: =SUBSTITUTE(NC2&NC4, " ", "") -> MASONCITY | NF2: =SUBSTITUTE(NC2&NC5, " ", "") -> MASONVILLAGE | NG2: =SUBSTITUTE(NC2&NC6, " ", "") -> MASONTOWNSHIP | NH2: =SUBSTITUTE(NC2&NC7, " ", "") -> MASONCOMMUNITYCOLLEGE | NI2: =SUBSTITUTE(NC2&NC8, " ", "") -> MASONAUTHORITY | NJ2: MECOSTA | NK2: =SUBSTITUTE(NJ2&NJ3, " ", "") -> MECOSTACOUNTY | NL2: =SUBSTITUTE(NJ2&NJ4, " ", "") -> MECOSTACITY | NM2: =SUBSTITUTE(NJ2&NJ5, " ", "") -> MECOSTAVILLAGE | NN2: =SUBSTITUTE(NJ2&NJ6, " ", "") -> MECOSTATOWNSHIP | NO2: =SUBSTITUTE(NJ2&NJ7, " ", "") -> MECOSTACOMMUNITYCOLLEGE | NP2: =SUBSTITUTE(NJ2&NJ8, " ", "") -> MECOSTAAUTHORITY | NQ2: MENOMINEE | NR2: =SUBSTITUTE(NQ2&NQ3, " ", "") -> MENOMINEECOUNTY | NS2: =SUBSTITUTE(NQ2&NQ4, " ", "") -> MENOMINEECITY | NT2: =SUBSTITUTE(NQ2&NQ5, " ", "") -> MENOMINEEVILLAGE | NU2: =SUBSTITUTE(NQ2&NQ6, " ", "") -> MENOMINEETOWNSHIP | NV2: =SUBSTITUTE(NQ2&NQ7, " ", "") -> MENOMINEECOMMUNITYCOLLEGE | NW2: =SUBSTITUTE(NQ2&NQ8, " ", "") -> MENOMINEEAUTHORITY | NX2: MIDLAND | NY2: =SUBSTITUTE(NX2&NX3, " ", "") -> MIDLANDCOUNTY | NZ2: =SUBSTITUTE(NX2&NX4, " ", "") -> MIDLANDCITY | OA2: =SUBSTITUTE(NX2&NX5, " ", "") -> MIDLANDVILLAGE | OB2: =SUBSTITUTE(NX2&NX6, " ", "") -> MIDLANDTOWNSHIP | OC2: =SUBSTITUTE(NX2&NX7, " ", "") -> MIDLANDCOMMUNITYCOLLEGE | OD2: =SUBSTITUTE(NX2&NX8, " ", "") -> MIDLANDAUTHORITY | OE2: MISSAUKEE | OF2: =SUBSTITUTE(OE2&OE3, " ", "") -> MISSAUKEECOUNTY | OG2: =SUBSTITUTE(OE2&OE4, " ", "") -> MISSAUKEECITY | OH2: =SUBSTITUTE(OE2&OE5, " ", "") -> MISSAUKEEVILLAGE | OI2: =SUBSTITUTE(OE2&OE6, " ", "") -> MISSAUKEETOWNSHIP | OJ2: =SUBSTITUTE(OE2&OE7, " ", "") -> MISSAUKEECOMMUNITYCOLLEGE | OK2: =SUBSTITUTE(OE2&OE8, " ", "") -> MISSAUKEEAUTHORITY | OL2: MONROE | OM2: =SUBSTITUTE(OL2&OL3, " ", "") -> MONROECOUNTY | ON2: =SUBSTITUTE(OL2&OL4, " ", "") -> MONROECITY | OO2: =SUBSTITUTE(OL2&OL5, " ", "") -> MONROEVILLAGE | OP2: =SUBSTITUTE(OL2&OL6, " ", "") -> MONROETOWNSHIP | OQ2: =SUBSTITUTE(OL2&OL7, " ", "") -> MONROECOMMUNITYCOLLEGE | OR2: =SUBSTITUTE(OL2&OL8, " ", "") -> MONROEAUTHORITY | OS2: MONTCALM | OT2: =SUBSTITUTE(OS2&OS3, " ", "") -> MONTCALMCOUNTY | OU2: =SUBSTITUTE(OS2&OS4, " ", "") -> MONTCALMCITY | OV2: =SUBSTITUTE(OS2&OS5, " ", "") -> MONTCALMVILLAGE | OW2: =SUBSTITUTE(OS2&OS6, " ", "") -> MONTCALMTOWNSHIP | OX2: =SUBSTITUTE(OS2&OS7, " ", "") -> MONTCALMCOMMUNITYCOLLEGE | OY2: =SUBSTITUTE(OS2&OS8, " ", "") -> MONTCALMAUTHORITY | OZ2: MONTMORENCY | PA2: =SUBSTITUTE(OZ2&OZ3, " ", "") -> MONTMORENCYCOUNTY | PB2: =SUBSTITUTE(OZ2&OZ4, " ", "") -> MONTMORENCYCITY | PC2: =SUBSTITUTE(OZ2&OZ5, " ", "") -> MONTMORENCYVILLAGE | PD2: =SUBSTITUTE(OZ2&OZ6, " ", "") -> MONTMORENCYTOWNSHIP | PE2: =SUBSTITUTE(OZ2&OZ7, " ", "") -> MONTMORENCYCOMMUNITYCOLLEGE | PF2: =SUBSTITUTE(OZ2&OZ8, " ", "") -> MONTMORENCYAUTHORITY | PG2: MUSKEGON | PH2: =SUBSTITUTE(PG2&PG3, " ", "") -> MUSKEGONCOUNTY | PI2: =SUBSTITUTE(PG2&PG4, " ", "") -> MUSKEGONCITY | PJ2: =SUBSTITUTE(PG2&PG5, " ", "") -> MUSKEGONVILLAGE | PK2: =SUBSTITUTE(PG2&PG6, " ", "") -> MUSKEGONTOWNSHIP | PL2: =SUBSTITUTE(PG2&PG7, " ", "") -> MUSKEGONCOMMUNITYCOLLEGE | PM2: =SUBSTITUTE(PG2&PG8, " ", "") -> MUSKEGONAUTHORITY | PN2: NEWAYGO | PO2: =SUBSTITUTE(PN2&PN3, " ", "") -> NEWAYGOCOUNTY | PP2: =SUBSTITUTE(PN2&PN4, " ", "") -> NEWAYGOCITY | PQ2: =SUBSTITUTE(PN2&PN5, " ", "") -> NEWAYGOVILLAGE | PR2: =SUBSTITUTE(PN2&PN6, " ", "") -> NEWAYGOTOWNSHIP | PS2: =SUBSTITUTE(PN2&PN7, " ", "") -> NEWAYGOCOMMUNITYCOLLEGE | PT2: =SUBSTITUTE(PN2&PN8, " ", "") -> NEWAYGOAUTHORITY | PU2: OAKLAND | PV2: =SUBSTITUTE(PU2&PU3, " ", "") -> OAKLANDCOUNTY | PW2: =SUBSTITUTE(PU2&PU4, " ", "") -> OAKLANDCITY | PX2: =SUBSTITUTE(PU2&PU5, " ", "") -> OAKLANDVILLAGE | PY2: =SUBSTITUTE(PU2&PU6, " ", "") -> OAKLANDTOWNSHIP | PZ2: =SUBSTITUTE(PU2&PU7, " ", "") -> OAKLANDCOMMUNITYCOLLEGE | QA2: =SUBSTITUTE(PU2&PU8, " ", "") -> OAKLANDAUTHORITY | QB2: OCEANA | QC2: =SUBSTITUTE(QB2&QB3, " ", "") -> OCEANACOUNTY | QD2: =SUBSTITUTE(QB2&QB4, " ", "") -> OCEANACITY | QE2: =SUBSTITUTE(QB2&QB5, " ", "") -> OCEANAVILLAGE | QF2: =SUBSTITUTE(QB2&QB6, " ", "") -> OCEANATOWNSHIP | QG2: =SUBSTITUTE(QB2&QB7, " ", "") -> OCEANACOMMUNITYCOLLEGE | QH2: =SUBSTITUTE(QB2&QB8, " ", "") -> OCEANAAUTHORITY | QI2: OGEMAW | QJ2: =SUBSTITUTE(QI2&QI3, " ", "") -> OGEMAWCOUNTY | QK2: =SUBSTITUTE(QI2&QI4, " ", "") -> OGEMAWCITY | QL2: =SUBSTITUTE(QI2&QI5, " ", "") -> OGEMAWVILLAGE | QM2: =SUBSTITUTE(QI2&QI6, " ", "") -> OGEMAWTOWNSHIP | QN2: =SUBSTITUTE(QI2&QI7, " ", "") -> OGEMAWCOMMUNITYCOLLEGE | QO2: =SUBSTITUTE(QI2&QI8, " ", "") -> OGEMAWAUTHORITY | QP2: ONTONAGON | QQ2: =SUBSTITUTE(QP2&QP3, " ", "") -> ONTONAGONCOUNTY | QR2: =SUBSTITUTE(QP2&QP4, " ", "") -> ONTONAGONCITY | QS2: =SUBSTITUTE(QP2&QP5, " ", "") -> ONTONAGONVILLAGE | QT2: =SUBSTITUTE(QP2&QP6, " ", "") -> ONTONAGONTOWNSHIP | QU2: =SUBSTITUTE(QP2&QP7, " ", "") -> ONTONAGONCOMMUNITYCOLLEGE | QV2: =SUBSTITUTE(QP2&QP8, " ", "") -> ONTONAGONAUTHORITY | QW2: OSCEOLA | QX2: =SUBSTITUTE(QW2&QW3, " ", "") -> OSCEOLACOUNTY | QY2: =SUBSTITUTE(QW2&QW4, " ", "") -> OSCEOLACITY | QZ2: =SUBSTITUTE(QW2&QW5, " ", "") -> OSCEOLAVILLAGE | RA2: =SUBSTITUTE(QW2&QW6, " ", "") -> OSCEOLATOWNSHIP | RB2: =SUBSTITUTE(QW2&QW7, " ", "") -> OSCEOLACOMMUNITYCOLLEGE | RC2: =SUBSTITUTE(QW2&QW8, " ", "") -> OSCEOLAAUTHORITY | RD2: OSCODA | RE2: =SUBSTITUTE(RD2&RD3, " ", "") -> OSCODACOUNTY | RF2: =SUBSTITUTE(RD2&RD4, " ", "") -> OSCODACITY | RG2: =SUBSTITUTE(RD2&RD5, " ", "") -> OSCODAVILLAGE | RH2: =SUBSTITUTE(RD2&RD6, " ", "") -> OSCODATOWNSHIP | RI2: =SUBSTITUTE(RD2&RD7, " ", "") -> OSCODACOMMUNITYCOLLEGE | RJ2: =SUBSTITUTE(RD2&RD8, " ", "") -> OSCODAAUTHORITY | RK2: OTSEGO | RL2: =SUBSTITUTE(RK2&RK3, " ", "") -> OTSEGOCOUNTY | RM2: =SUBSTITUTE(RK2&RK4, " ", "") -> OTSEGOCITY | RN2: =SUBSTITUTE(RK2&RK5, " ", "") -> OTSEGOVILLAGE | RO2: =SUBSTITUTE(RK2&RK6, " ", "") -> OTSEGOTOWNSHIP | RP2: =SUBSTITUTE(RK2&RK7, " ", "") -> OTSEGOCOMMUNITYCOLLEGE | RQ2: =SUBSTITUTE(RK2&RK8, " ", "") -> OTSEGOAUTHORITY | RR2: OTTAWA | RS2: =SUBSTITUTE(RR2&RR3, " ", "") -> OTTAWACOUNTY | RT2: =SUBSTITUTE(RR2&RR4, " ", "") -> OTTAWACITY | RU2: =SUBSTITUTE(RR2&RR5, " ", "") -> OTTAWAVILLAGE | RV2: =SUBSTITUTE(RR2&RR6, " ", "") -> OTTAWATOWNSHIP | RW2: =SUBSTITUTE(RR2&RR7, " ", "") -> OTTAWACOMMUNITYCOLLEGE | RX2: =SUBSTITUTE(RR2&RR8, " ", "") -> OTTAWAAUTHORITY | RY2: PRESQUE ISLE | RZ2: =SUBSTITUTE(RY2&RY3, " ", "") -> PRESQUEISLECOUNTY | SA2: =SUBSTITUTE(RY2&RY4, " ", "") -> PRESQUEISLECITY | SB2: =SUBSTITUTE(RY2&RY5, " ", "") -> PRESQUEISLEVILLAGE | SC2: =SUBSTITUTE(RY2&RY6, " ", "") -> PRESQUEISLETOWNSHIP | SD2: =SUBSTITUTE(RY2&RY7, " ", "") -> PRESQUEISLECOMMUNITYCOLLEGE | SE2: =SUBSTITUTE(RY2&RY8, " ", "") -> PRESQUEISLEAUTHORITY | SF2: ROSCOMMON | SG2: =SUBSTITUTE(SF2&SF3, " ", "") -> ROSCOMMONCOUNTY | SH2: =SUBSTITUTE(SF2&SF4, " ", "") -> ROSCOMMONCITY | SI2: =SUBSTITUTE(SF2&SF5, " ", "") -> ROSCOMMONVILLAGE | SJ2: =SUBSTITUTE(SF2&SF6, " ", "") -> ROSCOMMONTOWNSHIP | SK2: =SUBSTITUTE(SF2&SF7, " ", "") -> ROSCOMMONCOMMUNITYCOLLEGE | SL2: =SUBSTITUTE(SF2&SF8, " ", "") -> ROSCOMMONAUTHORITY | SM2: SAGINAW | SN2: =SUBSTITUTE(SM2&SM3, " ", "") -> SAGINAWCOUNTY | SO2: =SUBSTITUTE(SM2&SM4, " ", "") -> SAGINAWCITY | SP2: =SUBSTITUTE(SM2&SM5, " ", "") -> SAGINAWVILLAGE | SQ2: =SUBSTITUTE(SM2&SM6, " ", "") -> SAGINAWTOWNSHIP | SR2: =SUBSTITUTE(SM2&SM7, " ", "") -> SAGINAWCOMMUNITYCOLLEGE | SS2: =SUBSTITUTE(SM2&SM8, " ", "") -> SAGINAWAUTHORITY | ST2: SAINT CLAIR | SU2: =SUBSTITUTE(ST2&ST3, " ", "") -> SAINTCLAIRCOUNTY | SV2: =SUBSTITUTE(ST2&ST4, " ", "") -> SAINTCLAIRCITY | SW2: =SUBSTITUTE(ST2&ST5, " ", "") -> SAINTCLAIRVILLAGE | SX2: =SUBSTITUTE(ST2&ST6, " ", "") -> SAINTCLAIRTOWNSHIP | SY2: =SUBSTITUTE(ST2&ST7, " ", "") -> SAINTCLAIRCOMMUNITYCOLLEGE | SZ2: =SUBSTITUTE(ST2&ST8, " ", "") -> SAINTCLAIRAUTHORITY | TA2: SAINT JOSEPH | TB2: =SUBSTITUTE(TA2&TA3, " ", "") -> SAINTJOSEPHCOUNTY | TC2: =SUBSTITUTE(TA2&TA4, " ", "") -> SAINTJOSEPHCITY | TD2: =SUBSTITUTE(TA2&TA5, " ", "") -> SAINTJOSEPHVILLAGE | TE2: =SUBSTITUTE(TA2&TA6, " ", "") -> SAINTJOSEPHTOWNSHIP | TF2: =SUBSTITUTE(TA2&TA7, " ", "") -> SAINTJOSEPHCOMMUNITYCOLLEGE | TG2: =SUBSTITUTE(TA2&TA8, " ", "") -> SAINTJOSEPHAUTHORITY | TH2: SANILAC | TI2: =SUBSTITUTE(TH2&TH3, " ", "") -> SANILACCOUNTY | TJ2: =SUBSTITUTE(TH2&TH4, " ", "") -> SANILACCITY | TK2: =SUBSTITUTE(TH2&TH5, " ", "") -> SANILACVILLAGE | TL2: =SUBSTITUTE(TH2&TH6, " ", "") -> SANILACTOWNSHIP | TM2: =SUBSTITUTE(TH2&TH7, " ", "") -> SANILACCOMMUNITYCOLLEGE | TN2: =SUBSTITUTE(TH2&TH8, " ", "") -> SANILACAUTHORITY | TO2: SCHOOLCRAFT | TP2: =SUBSTITUTE(TO2&TO3, " ", "") -> SCHOOLCRAFTCOUNTY | TQ2: =SUBSTITUTE(TO2&TO4, " ", "") -> SCHOOLCRAFTCITY | TR2: =SUBSTITUTE(TO2&TO5, " ", "") -> SCHOOLCRAFTVILLAGE | TS2: =SUBSTITUTE(TO2&TO6, " ", "") -> SCHOOLCRAFTTOWNSHIP | TT2: =SUBSTITUTE(TO2&TO7, " ", "") -> SCHOOLCRAFTCOMMUNITYCOLLEGE | TU2: =SUBSTITUTE(TO2&TO8, " ", "") -> SCHOOLCRAFTAUTHORITY | TV2: SHIAWASSEE | TW2: =SUBSTITUTE(TV2&TV3, " ", "") -> SHIAWASSEECOUNTY | TX2: =SUBSTITUTE(TV2&TV4, " ", "") -> SHIAWASSEECITY | TY2: =SUBSTITUTE(TV2&TV5, " ", "") -> SHIAWASSEEVILLAGE | TZ2: =SUBSTITUTE(TV2&TV6, " ", "") -> SHIAWASSEETOWNSHIP | UA2: =SUBSTITUTE(TV2&TV7, " ", "") -> SHIAWASSEECOMMUNITYCOLLEGE | UB2: =SUBSTITUTE(TV2&TV8, " ", "") -> SHIAWASSEEAUTHORITY | UC2: TUSCOLA | UD2: =SUBSTITUTE(UC2&UC3, " ", "") -> TUSCOLACOUNTY | UE2: =SUBSTITUTE(UC2&UC4, " ", "") -> TUSCOLACITY | UF2: =SUBSTITUTE(UC2&UC5, " ", "") -> TUSCOLAVILLAGE | UG2: =SUBSTITUTE(UC2&UC6, " ", "") -> TUSCOLATOWNSHIP | UH2: =SUBSTITUTE(UC2&UC7, " ", "") -> TUSCOLACOMMUNITYCOLLEGE | UI2: =SUBSTITUTE(UC2&UC8, " ", "") -> TUSCOLAAUTHORITY | UJ2: VAN BUREN | UK2: =SUBSTITUTE(UJ2&UJ3, " ", "") -> VANBURENCOUNTY | UL2: =SUBSTITUTE(UJ2&UJ4, " ", "") -> VANBURENCITY | UM2: =SUBSTITUTE(UJ2&UJ5, " ", "") -> VANBURENVILLAGE | UN2: =SUBSTITUTE(UJ2&UJ6, " ", "") -> VANBURENTOWNSHIP | UO2: =SUBSTITUTE(UJ2&UJ7, " ", "") -> VANBURENCOMMUNITYCOLLEGE | UP2: =SUBSTITUTE(UJ2&UJ8, " ", "") -> VANBURENAUTHORITY | UQ2: WASHTENAW | UR2: =SUBSTITUTE(UQ2&UQ3, " ", "") -> WASHTENAWCOUNTY | US2: =SUBSTITUTE(UQ2&UQ4, " ", "") -> WASHTENAWCITY | UT2: =SUBSTITUTE(UQ2&UQ5, " ", "") -> WASHTENAWVILLAGE | UU2: =SUBSTITUTE(UQ2&UQ6, " ", "") -> WASHTENAWTOWNSHIP | UV2: =SUBSTITUTE(UQ2&UQ7, " ", "") -> WASHTENAWCOMMUNITYCOLLEGE | UW2: =SUBSTITUTE(UQ2&UQ8, " ", "") -> WASHTENAWAUTHORITY | UX2: WAYNE | UY2: =SUBSTITUTE(UX2&UX3, " ", "") -> WAYNECOUNTY | UZ2: =SUBSTITUTE(UX2&UX4, " ", "") -> WAYNECITY | VA2: =SUBSTITUTE(UX2&UX5, " ", "") -> WAYNEVILLAGE | VB2: =SUBSTITUTE(UX2&UX6, " ", "") -> WAYNETOWNSHIP | VC2: =SUBSTITUTE(UX2&UX7, " ", "") -> WAYNECOMMUNITYCOLLEGE | VD2: =SUBSTITUTE(UX2&UX8, " ", "") -> WAYNEAUTHORITY | VE2: WEXFORD | VF2: =SUBSTITUTE(VE2&VE3, " ", "") -> WEXFORDCOUNTY | VG2: =SUBSTITUTE(VE2&VE4, " ", "") -> WEXFORDCITY | VH2: =SUBSTITUTE(VE2&VE5, " ", "") -> WEXFORDVILLAGE | VI2: =SUBSTITUTE(VE2&VE6, " ", "") -> WEXFORDTOWNSHIP | VJ2: =SUBSTITUTE(VE2&VE7, " ", "") -> WEXFORDCOMMUNITYCOLLEGE | VK2: =SUBSTITUTE(VE2&VE8, " ", "") -> WEXFORDAUTHORITY
A3: ALCONA | C3: COUNTY | D3: =IF(ROWS(D$3:D3)>D$1, "", INDEX(AllMunicipalities!$D$2:$D$2183, SMALL(IF(AllMunicipalities!$A$2:$A$2183=D$2, ROW(AllMunicipalities!$A$2:$A$2183) - ROW(A$2) + 1), ROWS(D$3:D3)))) -> ALCONA | E3: =IF(ROWS(E$3:E3)>E$1, "", INDEX(AllMunicipalities!$D$2:$D$2183, SMALL(IF(AllMunicipalities!$A$2:$A$2183=E$2, ROW(AllMunicipalities!$A$2:$A$2183) - ROW(B$2) + 1), ROWS(E$3:E3)))) -> HARRISVILLE | F3: =IF(ROWS(F$3:F3)>F$1, "", INDEX(AllMunicipalities!$D$2:$D$2183, SMALL(IF(AllMunicipalities!$A$2:$A$2183=F$2, ROW(AllMunicipalities!$A$2:$A$2183) - ROW(C$2) + 1), ROWS(F$3:F3)))) -> LINCOLN | G3: =IF(ROWS(G$3:G3)>G$1, "", INDEX(AllMunicipalities!$D$2:$D$2183, SMALL(IF(AllMunicipalities!$A$2:$A$2183=G$2, ROW(AllMunicipalities!$A$2:$A$2183) - ROW(D$2) + 1), ROWS(G$3:G3)))) -> ALCONA | H3: =IF(ROWS(H$3:H3)>H$1, "", INDEX(AllMunicipalities!$D$2:$D$2183, SMALL(IF(AllMunicipalities!$A$2:$A$2183=H$2, ROW(AllMunicipalities!$A$2:$A$2183) - ROW(E$2) + 1), ROWS(H$3:H3)))) ->  | I3: =IF(ROWS(I$3:I3)>I$1, "", INDEX(AllMunicipalities!$D$2:$D$2183, SMALL(IF(AllMunicipalities!$A$2:$A$2183=I$2, ROW(AllMunicipalities!$A$2:$A$2183) - ROW(F$2) + 1), ROWS(I$3:I3)))) ->  | J3: COUNTY | K3: =IF(ROWS(K$3:K3)>K$1, "", INDEX(AllMunicipalities!$D$2:$D$2183, SMALL(IF(AllMunicipalities!$A$2:$A$2183=K$2, ROW(AllMunicipalities!$A$2:$A$2183) - ROW(H$2) + 1), ROWS(K$3:K3)))) -> ALGER | L3: =IF(ROWS(L$3:L3)>L$1, "", INDEX(AllMunicipalities!$D$2:$D$2183, SMALL(IF(AllMunicipalities!$A$2:$A$2183=L$2, ROW(AllMunicipalities!$A$2:$A$2183) - ROW(I$2) + 1), ROWS(L$3:L3)))) -> MUNISING | M3: =IF(ROWS(M$3:M3)>M$1, "", INDEX(AllMunicipalities!$D$2:$D$2183, SMALL(IF(AllMunicipalities!$A$2:$A$2183=M$2, ROW(AllMunicipalities!$A$2:$A$2183) - ROW(J$2) + 1), ROWS(M$3:M3)))) -> CHATHAM | N3: =IF(ROWS(N$3:N3)>N$1, "", INDEX(AllMunicipalities!$D$2:$D$2183, SMALL(IF(AllMunicipalities!$A$2:$A$2183=N$2, ROW(AllMunicipalities!$A$2:$A$2183) - ROW(K$2) + 1), ROWS(N$3:N3)))) -> AU TRAIN | O3: =IF(ROWS(O$3:O3)>O$1, "", INDEX(AllMunicipalities!$D$2:$D$2183, SMALL(IF(AllMunicipalities!$A$2:$A$2183=O$2, ROW(AllMunicipalities!$A$2:$A$2183) - ROW(L$2) + 1), ROWS(O$3:O3)))) ->  | P3: =IF(ROWS(P$3:P3)>P$1, "", INDEX(AllMunicipalities!$D$2:$D$2183, SMALL(IF(AllMunicipalities!$A$2:$A$2183=P$2, ROW(AllMunicipalities!$A$2:$A$2183) - ROW(M$2) + 1), ROWS(P$3:P3)))) ->  | Q3: COUNTY | R3: =IF(ROWS(R$3:R3)>R$1, "", INDEX(AllMunicipalities!$D$2:$D$2183, SMALL(IF(AllMunicipalities!$A$2:$A$2183=R$2, ROW(AllMunicipalities!$A$2:$A$2183) - ROW(O$2) + 1), ROWS(R$3:R3)))) -> ALLEGAN | S3: =IF(ROWS(S$3:S3)>S$1, "", INDEX(AllMunicipalities!$D$2:$D$2183, SMALL(IF(AllMunicipalities!$A$2:$A$2183=S$2, ROW(AllMunicipalities!$A$2:$A$2183) - ROW(P$2) + 1), ROWS(S$3:S3)))) -> ALLEGAN | T3: =IF(ROWS(T$3:T3)>T$1, "", INDEX(AllMunicipalities!$D$2:$D$2183, SMALL(IF(AllMunicipalities!$A$2:$A$2183=T$2, ROW(AllMunicipalities!$A$2:$A$2183) - ROW(Q$2) + 1), ROWS(T$3:T3)))) -> HOPKINS | U3: =IF(ROWS(U$3:U3)>U$1, "", INDEX(AllMunicipalities!$D$2:$D$2183, SMALL(IF(AllMunicipalities!$A$2:$A$2183=U$2, ROW(AllMunicipalities!$A$2:$A$2183) - ROW(R$2) + 1), ROWS(U$3:U3)))) -> ALLEGAN | V3: =IF(ROWS(V$3:V3)>V$1, "", INDEX(AllMunicipalities!$D$2:$D$2183, SMALL(IF(AllMunicipalities!$A$2:$A$2183=V$2, ROW(AllMunicipalities!$A$2:$A$2183) - ROW(S$2) + 1), ROWS(V$3:V3)))) ->  | W3: =IF(ROWS(W$3:W3)>W$1, "", INDEX(AllMunicipalities!$D$2:$D$2183, SMALL(IF(AllMunicipalities!$A$2:$A$2183=W$2, ROW(AllMunicipalities!$A$2:$A$2183) - ROW(T$2) + 1), ROWS(W$3:W3)))) -> FENNVILLE DISTRICT LIBRARY | X3: COUNTY | Y3: =IF(ROWS(Y$3:Y3)>Y$1, "", INDEX(AllMunicipalities!$D$2:$D$2183, SMALL(IF(AllMunicipalities!$A$2:$A$2183=Y$2, ROW(AllMunicipalities!$A$2:$A$2183) - ROW(V$2) + 1), ROWS(Y$3:Y3)))) -> ALPENA | Z3: =IF(ROWS(Z$3:Z3)>Z$1, "", INDEX(AllMunicipalities!$D$2:$D$2183, SMALL(IF(AllMunicipalities!$A$2:$A$2183=Z$2, ROW(AllMunicipalities!$A$2:$A$2183) - ROW(W$2) + 1), ROWS(Z$3:Z3)))) -> ALPENA | AA3: =IF(ROWS(AA$3:AA3)>AA$1, "", INDEX(AllMunicipalities!$D$2:$D$2183, SMALL(IF(AllMunicipalities!$A$2:$A$2183=AA$2, ROW(AllMunicipalities!$A$2:$A$2183) - ROW(X$2) + 1), ROWS(AA$3:AA3)))) -> HILLMAN | AB3: =IF(ROWS(AB$3:AB3)>AB$1, "", INDEX(AllMunicipalities!$D$2:$D$2183, SMALL(IF(AllMunicipalities!$A$2:$A$2183=AB$2, ROW(AllMunicipalities!$A$2:$A$2183) - ROW(Y$2) + 1), ROWS(AB$3:AB3)))) -> ALPENA | AC3: =IF(ROWS(AC$3:AC3)>AC$1, "", INDEX(AllMunicipalities!$D$2:$D$2183, SMALL(IF(AllMunicipalities!$A$2:$A$2183=AC$2, ROW(AllMunicipalities!$A$2:$A$2183) - ROW(Z$2) + 1), ROWS(AC$3:AC3)))) -> ALPENA CC | AD3: =IF(ROWS(AD$3:AD3)>AD$1, "", INDEX(AllMunicipalities!$D$2:$D$2183, SMALL(IF(AllMunicipalities!$A$2:$A$2183=AD$2, ROW(AllMunicipalities!$A$2:$A$2183) - ROW(AA$2) + 1), ROWS(AD$3:AD3)))) ->  | AE3: COUNTY | AF3: =IF(ROWS(AF$3:AF3)>AF$1, "", INDEX(AllMunicipalities!$D$2:$D$2183, SMALL(IF(AllMunicipalities!$A$2:$A$2183=AF$2, ROW(AllMunicipalities!$A$2:$A$2183) - ROW(AC$2) + 1), ROWS(AF$3:AF3)))) -> ANTRIM | AG3: =IF(ROWS(AG$3:AG3)>AG$1, "", INDEX(AllMunicipalities!$D$2:$D$2183, SMALL(IF(AllMunicipalities!$A$2:$A$2183=AG$2, ROW(AllMunicipalities!$A$2:$A$2183) - ROW(AD$2) + 1), ROWS(AG$3:AG3)))) ->  | AH3: =IF(ROWS(AH$3:AH3)>AH$1, "", INDEX(AllMunicipalities!$D$2:$D$2183, SMALL(IF(AllMunicipalities!$A$2:$A$2183=AH$2, ROW(AllMunicipalities!$A$2:$A$2183) - ROW(AE$2) + 1), ROWS(AH$3:AH3)))) -> BELLAIRE | AI3: =IF(ROWS(AI$3:AI3)>AI$1, "", INDEX(AllMunicipalities!$D$2:$D$2183, SMALL(IF(AllMunicipalities!$A$2:$A$2183=AI$2, ROW(AllMunicipalities!$A$2:$A$2183) - ROW(AF$2) + 1), ROWS(AI$3:AI3)))) -> BANKS | AJ3: =IF(ROWS(AJ$3:AJ3)>AJ$1, "", INDEX(AllMunicipalities!$D$2:$D$2183, SMALL(IF(AllMunicipalities!$A$2:$A$2183=AJ$2, ROW(AllMunicipalities!$A$2:$A$2183) - ROW(AG$2) + 1), ROWS(AJ$3:AJ3)))) ->  | AK3: =IF(ROWS(AK$3:AK3)>AK$1, "", INDEX(AllMunicipalities!$D$2:$D$2183, SMALL(IF(AllMunicipalities!$A$2:$A$2183=AK$2, ROW(AllMunicipalities!$A$2:$A$2183) - ROW(AH$2) + 1), ROWS(AK$3:AK3)))) -> ANTRIM COUNTY AMBULANCE AUTHORITY | AL3: COUNTY | AM3: =IF(ROWS(AM$3:AM3)>AM$1, "", INDEX(AllMunicipalities!$D$2:$D$2183, SMALL(IF(AllMunicipalities!$A$2:$A$2183=AM$2, ROW(AllMunicipalities!$A$2:$A$2183) - ROW(AJ$2) + 1), ROWS(AM$3:AM3)))) -> ARENAC | AN3: =IF(ROWS(AN$3:AN3)>AN$1, "", INDEX(AllMunicipalities!$D$2:$D$2183, SMALL(IF(AllMunicipalities!$A$2:$A$2183=AN$2, ROW(AllMunicipalities!$A$2:$A$2183) - ROW(AK$2) + 1), ROWS(AN$3:AN3)))) -> AU GRES | AO3: =IF(ROWS(AO$3:AO3)>AO$1, "", INDEX(AllMunicipalities!$D$2:$D$2183, SMALL(IF(AllMunicipalities!$A$2:$A$2183=AO$2, ROW(AllMunicipalities!$A$2:$A$2183) - ROW(AL$2) + 1), ROWS(AO$3:AO3)))) -> STERLING | AP3: =IF(ROWS(AP$3:AP3)>AP$1, "", INDEX(AllMunicipalities!$D$2:$D$2183, SMALL(IF(AllMunicipalities!$A$2:$A$2183=AP$2, ROW(AllMunicipalities!$A$2:$A$2183) - ROW(AM$2) + 1), ROWS(AP$3:AP3)))) -> ADAMS | AQ3: =IF(ROWS(AQ$3:AQ3)>AQ$1, "", INDEX(AllMunicipalities!$D$2:$D$2183, SMALL(IF(AllMunicipalities!$A$2:$A$2183=AQ$2, ROW(AllMunicipalities!$A$2:$A$2183) - ROW(AN$2) + 1), ROWS(AQ$3:AQ3)))) ->  | AR3: =IF(ROWS(AR$3:AR3)>AR$1, "", INDEX(AllMunicipalities!$D$2:$D$2183, SMALL(IF(AllMunicipalities!$A$2:$A$2183=AR$2, ROW(AllMunicipalities!$A$2:$A$2183) - ROW(AO$2) + 1), ROWS(AR$3:AR3)))) -> AU GRES - SIMS WHITNEY FIRE AND RESCUE | AS3: COUNTY | AT3: =IF(ROWS(AT$3:AT3)>AT$1, "", INDEX(AllMunicipalities!$D$2:$D$2183, SMALL(IF(AllMunicipalities!$A$2:$A$2183=AT$2, ROW(AllMunicipalities!$A$2:$A$2183) - ROW(AQ$2) + 1), ROWS(AT$3:AT3)))) -> BARAGA | AU3: =IF(ROWS(AU$3:AU3)>AU$1, "", INDEX(AllMunicipalities!$D$2:$D$2183, SMALL(IF(AllMunicipalities!$A$2:$A$2183=AU$2, ROW(AllMunicipalities!$A$2:$A$2183) - ROW(AR$2) + 1), ROWS(AU$3:AU3)))) ->  | AV3: =IF(ROWS(AV$3:AV3)>AV$1, "", INDEX(AllMunicipalities!$D$2:$D$2183, SMALL(IF(AllMunicipalities!$A$2:$A$2183=AV$2, ROW(AllMunicipalities!$A$2:$A$2183) - ROW(AS$2) + 1), ROWS(AV$3:AV3)))) -> BARAGA | AW3: =IF(ROWS(AW$3:AW3)>AW$1, "", INDEX(AllMunicipalities!$D$2:$D$2183, SMALL(IF(AllMunicipalities!$A$2:$A$2183=AW$2, ROW(AllMunicipalities!$A$2:$A$2183) - ROW(AT$2) + 1), ROWS(AW$3:AW3)))) -> ARVON | AX3: =IF(ROWS(AX$3:AX3)>AX$1, "", INDEX(AllMunicipalities!$D$2:$D$2183, SMALL(IF(AllMunicipalities!$A$2:$A$2183=AX$2, ROW(AllMunicipalities!$A$2:$A$2183) - ROW(AU$2) + 1), ROWS(AX$3:AX3)))) ->  | AY3: =IF(ROWS(AY$3:AY3)>AY$1, "", INDEX(AllMunicipalities!$D$2:$D$2183, SMALL(IF(AllMunicipalities!$A$2:$A$2183=AY$2, ROW(AllMunicipalities!$A$2:$A$2183) - ROW(AV$2) + 1), ROWS(AY$3:AY3)))) ->  | AZ3: COUNTY | BA3: =IF(ROWS(BA$3:BA3)>BA$1, "", INDEX(AllMunicipalities!$D$2:$D$2183, SMALL(IF(AllMunicipalities!$A$2:$A$2183=BA$2, ROW(AllMunicipalities!$A$2:$A$2183) - ROW(AX$2) + 1), ROWS(BA$3:BA3)))) -> BARRY | BB3: =IF(ROWS(BB$3:BB3)>BB$1, "", INDEX(AllMunicipalities!$D$2:$D$2183, SMALL(IF(AllMunicipalities!$A$2:$A$2183=BB$2, ROW(AllMunicipalities!$A$2:$A$2183) - ROW(AY$2) + 1), ROWS(BB$3:BB3)))) -> HASTINGS | BC3: =IF(ROWS(BC$3:BC3)>BC$1, "", INDEX(AllMunicipalities!$D$2:$D$2183, SMALL(IF(AllMunicipalities!$A$2:$A$2183=BC$2, ROW(AllMunicipalities!$A$2:$A$2183) - ROW(AZ$2) + 1), ROWS(BC$3:BC3)))) -> FREEPORT | BD3: =IF(ROWS(BD$3:BD3)>BD$1, "", INDEX(AllMunicipalities!$D$2:$D$2183, SMALL(IF(AllMunicipalities!$A$2:$A$2183=BD$2, ROW(AllMunicipalities!$A$2:$A$2183) - ROW(BA$2) + 1), ROWS(BD$3:BD3)))) -> ASSYRIA | BE3: =IF(ROWS(BE$3:BE3)>BE$1, "", INDEX(AllMunicipalities!$D$2:$D$2183, SMALL(IF(AllMunicipalities!$A$2:$A$2183=BE$2, ROW(AllMunicipalities!$A$2:$A$2183) - ROW(BB$2) + 1), ROWS(BE$3:BE3)))) ->  | BF3: =IF(ROWS(BF$3:BF3)>BF$1, "", INDEX(AllMunicipalities!$D$2:$D$2183, SMALL(IF(AllMunicipalities!$A$2:$A$2183=BF$2, ROW(AllMunicipalities!$A$2:$A$2183) - ROW(BC$2) + 1), ROWS(BF$3:BF3)))) -> PUTNAM DISTRICT LIBRARY | BG3: COUNTY | BH3: =IF(ROWS(BH$3:BH3)>BH$1, "", INDEX(AllMunicipalities!$D$2:$D$2183, SMALL(IF(AllMunicipalities!$A$2:$A$2183=BH$2, ROW(AllMunicipalities!$A$2:$A$2183) - ROW(BE$2) + 1), ROWS(BH$3:BH3)))) -> BAY | BI3: =IF(ROWS(BI$3:BI3)>BI$1, "", INDEX(AllMunicipalities!$D$2:$D$2183, SMALL(IF(AllMunicipalities!$A$2:$A$2183=BI$2, ROW(AllMunicipalities!$A$2:$A$2183) - ROW(BF$2) + 1), ROWS(BI$3:BI3)))) -> AUBURN | BJ3: =IF(ROWS(BJ$3:BJ3)>BJ$1, "", INDEX(AllMunicipalities!$D$2:$D$2183, SMALL(IF(AllMunicipalities!$A$2:$A$2183=BJ$2, ROW(AllMunicipalities!$A$2:$A$2183) - ROW(BG$2) + 1), ROWS(BJ$3:BJ3)))) ->  | BK3: =IF(ROWS(BK$3:BK3)>BK$1, "", INDEX(AllMunicipalities!$D$2:$D$2183, SMALL(IF(AllMunicipalities!$A$2:$A$2183=BK$2, ROW(AllMunicipalities!$A$2:$A$2183) - ROW(BH$2) + 1), ROWS(BK$3:BK3)))) -> BANGOR | BL3: =IF(ROWS(BL$3:BL3)>BL$1, "", INDEX(AllMunicipalities!$D$2:$D$2183, SMALL(IF(AllMunicipalities!$A$2:$A$2183=BL$2, ROW(AllMunicipalities!$A$2:$A$2183) - ROW(BI$2) + 1), ROWS(BL$3:BL3)))) -> DELTA CC | BM3: =IF(ROWS(BM$3:BM3)>BM$1, "", INDEX(AllMunicipalities!$D$2:$D$2183, SMALL(IF(AllMunicipalities!$A$2:$A$2183=BM$2, ROW(AllMunicipalities!$A$2:$A$2183) - ROW(BJ$2) + 1), ROWS(BM$3:BM3)))) -> BAY METRO TRANSIT AUTHORITY | BN3: COUNTY | BO3: =IF(ROWS(BO$3:BO3)>BO$1, "", INDEX(AllMunicipalities!$D$2:$D$2183, SMALL(IF(AllMunicipalities!$A$2:$A$2183=BO$2, ROW(AllMunicipalities!$A$2:$A$2183) - ROW(BL$2) + 1), ROWS(BO$3:BO3)))) -> BENZIE | BP3: =IF(ROWS(BP$3:BP3)>BP$1, "", INDEX(AllMunicipalities!$D$2:$D$2183, SMALL(IF(AllMunicipalities!$A$2:$A$2183=BP$2, ROW(AllMunicipalities!$A$2:$A$2183) - ROW(BM$2) + 1), ROWS(BP$3:BP3)))) -> FRANKFORT | BQ3: =IF(ROWS(BQ$3:BQ3)>BQ$1, "", INDEX(AllMunicipalities!$D$2:$D$2183, SMALL(IF(AllMunicipalities!$A$2:$A$2183=BQ$2, ROW(AllMunicipalities!$A$2:$A$2183) - ROW(BN$2) + 1), ROWS(BQ$3:BQ3)))) -> BENZONIA | BR3: =IF(ROWS(BR$3:BR3)>BR$1, "", INDEX(AllMunicipalities!$D$2:$D$2183, SMALL(IF(AllMunicipalities!$A$2:$A$2183=BR$2, ROW(AllMunicipalities!$A$2:$A$2183) - ROW(BO$2) + 1), ROWS(BR$3:BR3)))) -> ALMIRA | BS3: =IF(ROWS(BS$3:BS3)>BS$1, "", INDEX(AllMunicipalities!$D$2:$D$2183, SMALL(IF(AllMunicipalities!$A$2:$A$2183=BS$2, ROW(AllMunicipalities!$A$2:$A$2183) - ROW(BP$2) + 1), ROWS(BS$3:BS3)))) ->  | BT3: =IF(ROWS(BT$3:BT3)>BT$1, "", INDEX(AllMunicipalities!$D$2:$D$2183, SMALL(IF(AllMunicipalities!$A$2:$A$2183=BT$2, ROW(AllMunicipalities!$A$2:$A$2183) - ROW(BQ$2) + 1), ROWS(BT$3:BT3)))) -> BENZIE SHORES DISTRICT LIBRARY | BU3: COUNTY | BV3: =IF(ROWS(BV$3:BV3)>BV$1, "", INDEX(AllMunicipalities!$D$2:$D$2183, SMALL(IF(AllMunicipalities!$A$2:$A$2183=BV$2, ROW(AllMunicipalities!$A$2:$A$2183) - ROW(BS$2) + 1), ROWS(BV$3:BV3)))) -> BERRIEN | BW3: =IF(ROWS(BW$3:BW3)>BW$1, "", INDEX(AllMunicipalities!$D$2:$D$2183, SMALL(IF(AllMunicipalities!$A$2:$A$2183=BW$2, ROW(AllMunicipalities!$A$2:$A$2183) - ROW(BT$2) + 1), ROWS(BW$3:BW3)))) -> BENTON HARBOR | BX3: =IF(ROWS(BX$3:BX3)>BX$1, "", INDEX(AllMunicipalities!$D$2:$D$2183, SMALL(IF(AllMunicipalities!$A$2:$A$2183=BX$2, ROW(AllMunicipalities!$A$2:$A$2183) - ROW(BU$2) + 1), ROWS(BX$3:BX3)))) -> BARODA | BY3: =IF(ROWS(BY$3:BY3)>BY$1, "", INDEX(AllMunicipalities!$D$2:$D$2183, SMALL(IF(AllMunicipalities!$A$2:$A$2183=BY$2, ROW(AllMunicipalities!$A$2:$A$2183) - ROW(BV$2) + 1), ROWS(BY$3:BY3)))) -> BAINBRIDGE | BZ3: =IF(ROWS(BZ$3:BZ3)>BZ$1, "", INDEX(AllMunicipalities!$D$2:$D$2183, SMALL(IF(AllMunicipalities!$A$2:$A$2183=BZ$2, ROW(AllMunicipalities!$A$2:$A$2183) - ROW(BW$2) + 1), ROWS(BZ$3:BZ3)))) -> LAKE MICHIGAN CC | CA3: =IF(ROWS(CA$3:CA3)>CA$1, "", INDEX(AllMunicipalities!$D$2:$D$2183, SMALL(IF(AllMunicipalities!$A$2:$A$2183=CA$2, ROW(AllMunicipalities!$A$2:$A$2183) - ROW(BX$2) + 1), ROWS(CA$3:CA3)))) -> BERRIEN SPRINGS COMMUNITY LIBRARY | CB3: COUNTY | CC3: =IF(ROWS(CC$3:CC3)>CC$1, "", INDEX(AllMunicipalities!$D$2:$D$2183, SMALL(IF(AllMunicipalities!$A$2:$A$2183=CC$2, ROW(AllMunicipalities!$A$2:$A$2183) - ROW(BZ$2) + 1), ROWS(CC$3:CC3)))) -> BRANCH | CD3: =IF(ROWS(CD$3:CD3)>CD$1, "", INDEX(AllMunicipalities!$D$2:$D$2183, SMALL(IF(AllMunicipalities!$A$2:$A$2183=CD$2, ROW(AllMunicipalities!$A$2:$A$2183) - ROW(CA$2) + 1), ROWS(CD$3:CD3)))) -> BRONSON | CE3: =IF(ROWS(CE$3:CE3)>CE$1, "", INDEX(AllMunicipalities!$D$2:$D$2183, SMALL(IF(AllMunicipalities!$A$2:$A$2183=CE$2, ROW(AllMunicipalities!$A$2:$A$2183) - ROW(CB$2) + 1), ROWS(CE$3:CE3)))) -> QUINCY | CF3: =IF(ROWS(CF$3:CF3)>CF$1, "", INDEX(AllMunicipalities!$D$2:$D$2183, SMALL(IF(AllMunicipalities!$A$2:$A$2183=CF$2, ROW(AllMunicipalities!$A$2:$A$2183) - ROW(CC$2) + 1), ROWS(CF$3:CF3)))) -> ALGANSEE | CG3: =IF(ROWS(CG$3:CG3)>CG$1, "", INDEX(AllMunicipalities!$D$2:$D$2183, SMALL(IF(AllMunicipalities!$A$2:$A$2183=CG$2, ROW(AllMunicipalities!$A$2:$A$2183) - ROW(CD$2) + 1), ROWS(CG$3:CG3)))) ->  | CH3: =IF(ROWS(CH$3:CH3)>CH$1, "", INDEX(AllMunicipalities!$D$2:$D$2183, SMALL(IF(AllMunicipalities!$A$2:$A$2183=CH$2, ROW(AllMunicipalities!$A$2:$A$2183) - ROW(CE$2) + 1), ROWS(CH$3:CH3)))) -> BRANCH AREA TRANSIT AUTHOURITY (BATA) | CI3: COUNTY | CJ3: =IF(ROWS(CJ$3:CJ3)>CJ$1, "", INDEX(AllMunicipalities!$D$2:$D$2183, SMALL(IF(AllMunicipalities!$A$2:$A$2183=CJ$2, ROW(AllMunicipalities!$A$2:$A$2183) - ROW(CG$2) + 1), ROWS(CJ$3:CJ3)))) -> CALHOUN | CK3: =IF(ROWS(CK$3:CK3)>CK$1, "", INDEX(AllMunicipalities!$D$2:$D$2183, SMALL(IF(AllMunicipalities!$A$2:$A$2183=CK$2, ROW(AllMunicipalities!$A$2:$A$2183) - ROW(CH$2) + 1), ROWS(CK$3:CK3)))) -> ALBION | CL3: =IF(ROWS(CL$3:CL3)>CL$1, "", INDEX(AllMunicipalities!$D$2:$D$2183, SMALL(IF(AllMunicipalities!$A$2:$A$2183=CL$2, ROW(AllMunicipalities!$A$2:$A$2183) - ROW(CI$2) + 1), ROWS(CL$3:CL3)))) -> ATHENS | CM3: =IF(ROWS(CM$3:CM3)>CM$1, "", INDEX(AllMunicipalities!$D$2:$D$2183, SMALL(IF(AllMunicipalities!$A$2:$A$2183=CM$2, ROW(AllMunicipalities!$A$2:$A$2183) - ROW(CJ$2) + 1), ROWS(CM$3:CM3)))) -> ALBION | CN3: =IF(ROWS(CN$3:CN3)>CN$1, "", INDEX(AllMunicipalities!$D$2:$D$2183, SMALL(IF(AllMunicipalities!$A$2:$A$2183=CN$2, ROW(AllMunicipalities!$A$2:$A$2183) - ROW(CK$2) + 1), ROWS(CN$3:CN3)))) -> KELLOGG CC | CO3: =IF(ROWS(CO$3:CO3)>CO$1, "", INDEX(AllMunicipalities!$D$2:$D$2183, SMALL(IF(AllMunicipalities!$A$2:$A$2183=CO$2, ROW(AllMunicipalities!$A$2:$A$2183) - ROW(CL$2) + 1), ROWS(CO$3:CO3)))) -> MARSHALL AREA AMBULANCE AUTHORITY | CP3: COUNTY | CQ3: =IF(ROWS(CQ$3:CQ3)>CQ$1, "", INDEX(AllMunicipalities!$D$2:$D$2183, SMALL(IF(AllMunicipalities!$A$2:$A$2183=CQ$2, ROW(AllMunicipalities!$A$2:$A$2183) - ROW(CN$2) + 1), ROWS(CQ$3:CQ3)))) -> CASS | CR3: =IF(ROWS(CR$3:CR3)>CR$1, "", INDEX(AllMunicipalities!$D$2:$D$2183, SMALL(IF(AllMunicipalities!$A$2:$A$2183=CR$2, ROW(AllMunicipalities!$A$2:$A$2183) - ROW(CO$2) + 1), ROWS(CR$3:CR3)))) -> DOWAGIAC | CS3: =IF(ROWS(CS$3:CS3)>CS$1, "", INDEX(AllMunicipalities!$D$2:$D$2183, SMALL(IF(AllMunicipalities!$A$2:$A$2183=CS$2, ROW(AllMunicipalities!$A$2:$A$2183) - ROW(CP$2) + 1), ROWS(CS$3:CS3)))) -> CASSOPOLIS | CT3: =IF(ROWS(CT$3:CT3)>CT$1, "", INDEX(AllMunicipalities!$D$2:$D$2183, SMALL(IF(AllMunicipalities!$A$2:$A$2183=CT$2, ROW(AllMunicipalities!$A$2:$A$2183) - ROW(CQ$2) + 1), ROWS(CT$3:CT3)))) -> CALVIN | CU3: =IF(ROWS(CU$3:CU3)>CU$1, "", INDEX(AllMunicipalities!$D$2:$D$2183, SMALL(IF(AllMunicipalities!$A$2:$A$2183=CU$2, ROW(AllMunicipalities!$A$2:$A$2183) - ROW(CR$2) + 1), ROWS(CU$3:CU3)))) -> SOUTHWESTERN MICH CC | CV3: =IF(ROWS(CV$3:CV3)>CV$1, "", INDEX(AllMunicipalities!$D$2:$D$2183, SMALL(IF(AllMunicipalities!$A$2:$A$2183=CV$2, ROW(AllMunicipalities!$A$2:$A$2183) - ROW(CS$2) + 1), ROWS(CV$3:CV3)))) -> CASS COUNTY DISTRICT LIBRARY | CW3: COUNTY | CX3: =IF(ROWS(CX$3:CX3)>CX$1, "", INDEX(AllMunicipalities!$D$2:$D$2183, SMALL(IF(AllMunicipalities!$A$2:$A$2183=CX$2, ROW(AllMunicipalities!$A$2:$A$2183) - ROW(CU$2) + 1), ROWS(CX$3:CX3)))) -> CHARLEVOIX | CY3: =IF(ROWS(CY$3:CY3)>CY$1, "", INDEX(AllMunicipalities!$D$2:$D$2183, SMALL(IF(AllMunicipalities!$A$2:$A$2183=CY$2, ROW(AllMunicipalities!$A$2:$A$2183) - ROW(CV$2) + 1), ROWS(CY$3:CY3)))) -> BOYNE CITY | CZ3: =IF(ROWS(CZ$3:CZ3)>CZ$1, "", INDEX(AllMunicipalities!$D$2:$D$2183, SMALL(IF(AllMunicipalities!$A$2:$A$2183=CZ$2, ROW(AllMunicipalities!$A$2:$A$2183) - ROW(CW$2) + 1), ROWS(CZ$3:CZ3)))) -> BOYNE FALLS | DA3: =IF(ROWS(DA$3:DA3)>DA$1, "", INDEX(AllMunicipalities!$D$2:$D$2183, SMALL(IF(AllMunicipalities!$A$2:$A$2183=DA$2, ROW(AllMunicipalities!$A$2:$A$2183) - ROW(CX$2) + 1), ROWS(DA$3:DA3)))) -> BAY | DB3: =IF(ROWS(DB$3:DB3)>DB$1, "", INDEX(AllMunicipalities!$D$2:$D$2183, SMALL(IF(AllMunicipalities!$A$2:$A$2183=DB$2, ROW(AllMunicipalities!$A$2:$A$2183) - ROW(CY$2) + 1), ROWS(DB$3:DB3)))) ->  | DC3: =IF(ROWS(DC$3:DC3)>DC$1, "", INDEX(AllMunicipalities!$D$2:$D$2183, SMALL(IF(AllMunicipalities!$A$2:$A$2183=DC$2, ROW(AllMunicipalities!$A$2:$A$2183) - ROW(CZ$2) + 1), ROWS(DC$3:DC3)))) -> BEAVER ISLAND DISTRICT LIBRARY | DD3: COUNTY | DE3: =IF(ROWS(DE$3:DE3)>DE$1, "", INDEX(AllMunicipalities!$D$2:$D$2183, SMALL(IF(AllMunicipalities!$A$2:$A$2183=DE$2, ROW(AllMunicipalities!$A$2:$A$2183) - ROW(DB$2) + 1), ROWS(DE$3:DE3)))) -> CHEBOYGAN | DF3: =IF(ROWS(DF$3:DF3)>DF$1, "", INDEX(AllMunicipalities!$D$2:$D$2183, SMALL(IF(AllMunicipalities!$A$2:$A$2183=DF$2, ROW(AllMunicipalities!$A$2:$A$2183) - ROW(DC$2) + 1), ROWS(DF$3:DF3)))) -> CHEBOYGAN | DG3: =IF(ROWS(DG$3:DG3)>DG$1, "", INDEX(AllMunicipalities!$D$2:$D$2183, SMALL(IF(AllMunicipalities!$A$2:$A$2183=DG$2, ROW(AllMunicipalities!$A$2:$A$2183) - ROW(DD$2) + 1), ROWS(DG$3:DG3)))) -> MACKINAW CITY | DH3: =IF(ROWS(DH$3:DH3)>DH$1, "", INDEX(AllMunicipalities!$D$2:$D$2183, SMALL(IF(AllMunicipalities!$A$2:$A$2183=DH$2, ROW(AllMunicipalities!$A$2:$A$2183) - ROW(DE$2) + 1), ROWS(DH$3:DH3)))) -> ALOHA | DI3: =IF(ROWS(DI$3:DI3)>DI$1, "", INDEX(AllMunicipalities!$D$2:$D$2183, SMALL(IF(AllMunicipalities!$A$2:$A$2183=DI$2, ROW(AllMunicipalities!$A$2:$A$2183) - ROW(DF$2) + 1), ROWS(DI$3:DI3)))) ->  | DJ3: =IF(ROWS(DJ$3:DJ3)>DJ$1, "", INDEX(AllMunicipalities!$D$2:$D$2183, SMALL(IF(AllMunicipalities!$A$2:$A$2183=DJ$2, ROW(AllMunicipalities!$A$2:$A$2183) - ROW(DG$2) + 1), ROWS(DJ$3:DJ3)))) -> CHEBOYGAN AREA PUBLIC LIBRARY | DK3: COUNTY | DL3: =IF(ROWS(DL$3:DL3)>DL$1, "", INDEX(AllMunicipalities!$D$2:$D$2183, SMALL(IF(AllMunicipalities!$A$2:$A$2183=DL$2, ROW(AllMunicipalities!$A$2:$A$2183) - ROW(DI$2) + 1), ROWS(DL$3:DL3)))) -> CHIPPEWA | DM3: =IF(ROWS(DM$3:DM3)>DM$1, "", INDEX(AllMunicipalities!$D$2:$D$2183, SMALL(IF(AllMunicipalities!$A$2:$A$2183=DM$2, ROW(AllMunicipalities!$A$2:$A$2183) - ROW(DJ$2) + 1), ROWS(DM$3:DM3)))) -> SAULT STE MARIE | DN3: =IF(ROWS(DN$3:DN3)>DN$1, "", INDEX(AllMunicipalities!$D$2:$D$2183, SMALL(IF(AllMunicipalities!$A$2:$A$2183=DN$2, ROW(AllMunicipalities!$A$2:$A$2183) - ROW(DK$2) + 1), ROWS(DN$3:DN3)))) -> DE TOUR | DO3: =IF(ROWS(DO$3:DO3)>DO$1, "", INDEX(AllMunicipalities!$D$2:$D$2183, SMALL(IF(AllMunicipalities!$A$2:$A$2183=DO$2, ROW(AllMunicipalities!$A$2:$A$2183) - ROW(DL$2) + 1), ROWS(DO$3:DO3)))) -> BAY MILLS | DP3: =IF(ROWS(DP$3:DP3)>DP$1, "", INDEX(AllMunicipalities!$D$2:$D$2183, SMALL(IF(AllMunicipalities!$A$2:$A$2183=DP$2, ROW(AllMunicipalities!$A$2:$A$2183) - ROW(DM$2) + 1), ROWS(DP$3:DP3)))) ->  | DQ3: =IF(ROWS(DQ$3:DQ3)>DQ$1, "", INDEX(AllMunicipalities!$D$2:$D$2183, SMALL(IF(AllMunicipalities!$A$2:$A$2183=DQ$2, ROW(AllMunicipalities!$A$2:$A$2183) - ROW(DN$2) + 1), ROWS(DQ$3:DQ3)))) -> SUPERIOR DISTRICT LIBRARY | DR3: COUNTY | DS3: =IF(ROWS(DS$3:DS3)>DS$1, "", INDEX(AllMunicipalities!$D$2:$D$2183, SMALL(IF(AllMunicipalities!$A$2:$A$2183=DS$2, ROW(AllMunicipalities!$A$2:$A$2183) - ROW(DP$2) + 1), ROWS(DS$3:DS3)))) -> CLARE | DT3: =IF(ROWS(DT$3:DT3)>DT$1, "", INDEX(AllMunicipalities!$D$2:$D$2183, SMALL(IF(AllMunicipalities!$A$2:$A$2183=DT$2, ROW(AllMunicipalities!$A$2:$A$2183) - ROW(DQ$2) + 1), ROWS(DT$3:DT3)))) -> CLARE | DU3: =IF(ROWS(DU$3:DU3)>DU$1, "", INDEX(AllMunicipalities!$D$2:$D$2183, SMALL(IF(AllMunicipalities!$A$2:$A$2183=DU$2, ROW(AllMunicipalities!$A$2:$A$2183) - ROW(DR$2) + 1), ROWS(DU$3:DU3)))) -> FARWELL | DV3: =IF(ROWS(DV$3:DV3)>DV$1, "", INDEX(AllMunicipalities!$D$2:$D$2183, SMALL(IF(AllMunicipalities!$A$2:$A$2183=DV$2, ROW(AllMunicipalities!$A$2:$A$2183) - ROW(DS$2) + 1), ROWS(DV$3:DV3)))) -> ARTHUR | DW3: =IF(ROWS(DW$3:DW3)>DW$1, "", INDEX(AllMunicipalities!$D$2:$D$2183, SMALL(IF(AllMunicipalities!$A$2:$A$2183=DW$2, ROW(AllMunicipalities!$A$2:$A$2183) - ROW(DT$2) + 1), ROWS(DW$3:DW3)))) -> MID MICHIGAN CC | DX3: =IF(ROWS(DX$3:DX3)>DX$1, "", INDEX(AllMunicipalities!$D$2:$D$2183, SMALL(IF(AllMunicipalities!$A$2:$A$2183=DX$2, ROW(AllMunicipalities!$A$2:$A$2183) - ROW(DU$2) + 1), ROWS(DX$3:DX3)))) -> PERE MARQUETTE DISTRICT LIBRARY | DY3: COUNTY | DZ3: =IF(ROWS(DZ$3:DZ3)>DZ$1, "", INDEX(AllMunicipalities!$D$2:$D$2183, SMALL(IF(AllMunicipalities!$A$2:$A$2183=DZ$2, ROW(AllMunicipalities!$A$2:$A$2183) - ROW(DW$2) + 1), ROWS(DZ$3:DZ3)))) -> CLINTON | EA3: =IF(ROWS(EA$3:EA3)>EA$1, "", INDEX(AllMunicipalities!$D$2:$D$2183, SMALL(IF(AllMunicipalities!$A$2:$A$2183=EA$2, ROW(AllMunicipalities!$A$2:$A$2183) - ROW(DX$2) + 1), ROWS(EA$3:EA3)))) -> DEWITT | EB3: =IF(ROWS(EB$3:EB3)>EB$1, "", INDEX(AllMunicipalities!$D$2:$D$2183, SMALL(IF(AllMunicipalities!$A$2:$A$2183=EB$2, ROW(AllMunicipalities!$A$2:$A$2183) - ROW(DY$2) + 1), ROWS(EB$3:EB3)))) -> EAGLE | EC3: =IF(ROWS(EC$3:EC3)>EC$1, "", INDEX(AllMunicipalities!$D$2:$D$2183, SMALL(IF(AllMunicipalities!$A$2:$A$2183=EC$2, ROW(AllMunicipalities!$A$2:$A$2183) - ROW(DZ$2) + 1), ROWS(EC$3:EC3)))) -> BATH | ED3: =IF(ROWS(ED$3:ED3)>ED$1, "", INDEX(AllMunicipalities!$D$2:$D$2183, SMALL(IF(AllMunicipalities!$A$2:$A$2183=ED$2, ROW(AllMunicipalities!$A$2:$A$2183) - ROW(EA$2) + 1), ROWS(ED$3:ED3)))) ->  | EE3: =IF(ROWS(EE$3:EE3)>EE$1, "", INDEX(AllMunicipalities!$D$2:$D$2183, SMALL(IF(AllMunicipalities!$A$2:$A$2183=EE$2, ROW(AllMunicipalities!$A$2:$A$2183) - ROW(EB$2) + 1), ROWS(EE$3:EE3)))) -> CLINTON AREA TRANSIT SYSTEM | EF3: COUNTY | EG3: =IF(ROWS(EG$3:EG3)>EG$1, "", INDEX(AllMunicipalities!$D$2:$D$2183, SMALL(IF(AllMunicipalities!$A$2:$A$2183=EG$2, ROW(AllMunicipalities!$A$2:$A$2183) - ROW(ED$2) + 1), ROWS(EG$3:EG3)))) -> CRAWFORD | EH3: =IF(ROWS(EH$3:EH3)>EH$1, "", INDEX(AllMunicipalities!$D$2:$D$2183, SMALL(IF(AllMunicipalities!$A$2:$A$2183=EH$2, ROW(AllMunicipalities!$A$2:$A$2183) - ROW(EE$2) + 1), ROWS(EH$3:EH3)))) -> GRAYLING | EI3: =IF(ROWS(EI$3:EI3)>EI$1, "", INDEX(AllMunicipalities!$D$2:$D$2183, SMALL(IF(AllMunicipalities!$A$2:$A$2183=EI$2, ROW(AllMunicipalities!$A$2:$A$2183) - ROW(EF$2) + 1), ROWS(EI$3:EI3)))) ->  | EJ3: =IF(ROWS(EJ$3:EJ3)>EJ$1, "", INDEX(AllMunicipalities!$D$2:$D$2183, SMALL(IF(AllMunicipalities!$A$2:$A$2183=EJ$2, ROW(AllMunicipalities!$A$2:$A$2183) - ROW(EG$2) + 1), ROWS(EJ$3:EJ3)))) -> BEAVER CREEK | EK3: =IF(ROWS(EK$3:EK3)>EK$1, "", INDEX(AllMunicipalities!$D$2:$D$2183, SMALL(IF(AllMunicipalities!$A$2:$A$2183=EK$2, ROW(AllMunicipalities!$A$2:$A$2183) - ROW(EH$2) + 1), ROWS(EK$3:EK3)))) -> KIRTLAND CC | EL3: =IF(ROWS(EL$3:EL3)>EL$1, "", INDEX(AllMunicipalities!$D$2:$D$2183, SMALL(IF(AllMunicipalities!$A$2:$A$2183=EL$2, ROW(AllMunicipalities!$A$2:$A$2183) - ROW(EI$2) + 1), ROWS(EL$3:EL3)))) ->  | EM3: COUNTY | EN3: =IF(ROWS(EN$3:EN3)>EN$1, "", INDEX(AllMunicipalities!$D$2:$D$2183, SMALL(IF(AllMunicipalities!$A$2:$A$2183=EN$2, ROW(AllMunicipalities!$A$2:$A$2183) - ROW(EK$2) + 1), ROWS(EN$3:EN3)))) -> DELTA | EO3: =IF(ROWS(EO$3:EO3)>EO$1, "", INDEX(AllMunicipalities!$D$2:$D$2183, SMALL(IF(AllMunicipalities!$A$2:$A$2183=EO$2, ROW(AllMunicipalities!$A$2:$A$2183) - ROW(EL$2) + 1), ROWS(EO$3:EO3)))) -> ESCANABA | EP3: =IF(ROWS(EP$3:EP3)>EP$1, "", INDEX(AllMunicipalities!$D$2:$D$2183, SMALL(IF(AllMunicipalities!$A$2:$A$2183=EP$2, ROW(AllMunicipalities!$A$2:$A$2183) - ROW(EM$2) + 1), ROWS(EP$3:EP3)))) -> GARDEN | EQ3: =IF(ROWS(EQ$3:EQ3)>EQ$1, "", INDEX(AllMunicipalities!$D$2:$D$2183, SMALL(IF(AllMunicipalities!$A$2:$A$2183=EQ$2, ROW(AllMunicipalities!$A$2:$A$2183) - ROW(EN$2) + 1), ROWS(EQ$3:EQ3)))) -> BALDWIN | ER3: =IF(ROWS(ER$3:ER3)>ER$1, "", INDEX(AllMunicipalities!$D$2:$D$2183, SMALL(IF(AllMunicipalities!$A$2:$A$2183=ER$2, ROW(AllMunicipalities!$A$2:$A$2183) - ROW(EO$2) + 1), ROWS(ER$3:ER3)))) -> BAY DE NOC CC | ES3: =IF(ROWS(ES$3:ES3)>ES$1, "", INDEX(AllMunicipalities!$D$2:$D$2183, SMALL(IF(AllMunicipalities!$A$2:$A$2183=ES$2, ROW(AllMunicipalities!$A$2:$A$2183) - ROW(EP$2) + 1), ROWS(ES$3:ES3)))) -> DELTA AREA TRANSIT AUTHORITY - ESCANABA CITY | ET3: COUNTY | EU3: =IF(ROWS(EU$3:EU3)>EU$1, "", INDEX(AllMunicipalities!$D$2:$D$2183, SMALL(IF(AllMunicipalities!$A$2:$A$2183=EU$2, ROW(AllMunicipalities!$A$2:$A$2183) - ROW(ER$2) + 1), ROWS(EU$3:EU3)))) -> DICKINSON | EV3: =IF(ROWS(EV$3:EV3)>EV$1, "", INDEX(AllMunicipalities!$D$2:$D$2183, SMALL(IF(AllMunicipalities!$A$2:$A$2183=EV$2, ROW(AllMunicipalities!$A$2:$A$2183) - ROW(ES$2) + 1), ROWS(EV$3:EV3)))) -> IRON MOUNTAIN | EW3: =IF(ROWS(EW$3:EW3)>EW$1, "", INDEX(AllMunicipalities!$D$2:$D$2183, SMALL(IF(AllMunicipalities!$A$2:$A$2183=EW$2, ROW(AllMunicipalities!$A$2:$A$2183) - ROW(ET$2) + 1), ROWS(EW$3:EW3)))) ->  | EX3: =IF(ROWS(EX$3:EX3)>EX$1, "", INDEX(AllMunicipalities!$D$2:$D$2183, SMALL(IF(AllMunicipalities!$A$2:$A$2183=EX$2, ROW(AllMunicipalities!$A$2:$A$2183) - ROW(EU$2) + 1), ROWS(EX$3:EX3)))) -> BREEN | EY3: =IF(ROWS(EY$3:EY3)>EY$1, "", INDEX(AllMunicipalities!$D$2:$D$2183, SMALL(IF(AllMunicipalities!$A$2:$A$2183=EY$2, ROW(AllMunicipalities!$A$2:$A$2183) - ROW(EV$2) + 1), ROWS(EY$3:EY3)))) ->  | EZ3: =IF(ROWS(EZ$3:EZ3)>EZ$1, "", INDEX(AllMunicipalities!$D$2:$D$2183, SMALL(IF(AllMunicipalities!$A$2:$A$2183=EZ$2, ROW(AllMunicipalities!$A$2:$A$2183) - ROW(EW$2) + 1), ROWS(EZ$3:EZ3)))) -> TRI TOWNSHIP AMBULANCE (NORDIC) | FA3: COUNTY | FB3: =IF(ROWS(FB$3:FB3)>FB$1, "", INDEX(AllMunicipalities!$D$2:$D$2183, SMALL(IF(AllMunicipalities!$A$2:$A$2183=FB$2, ROW(AllMunicipalities!$A$2:$A$2183) - ROW(EY$2) + 1), ROWS(FB$3:FB3)))) -> EATON | FC3: =IF(ROWS(FC$3:FC3)>FC$1, "", INDEX(AllMunicipalities!$D$2:$D$2183, SMALL(IF(AllMunicipalities!$A$2:$A$2183=FC$2, ROW(AllMunicipalities!$A$2:$A$2183) - ROW(EZ$2) + 1), ROWS(FC$3:FC3)))) -> CHARLOTTE | FD3: =IF(ROWS(FD$3:FD3)>FD$1, "", INDEX(AllMunicipalities!$D$2:$D$2183, SMALL(IF(AllMunicipalities!$A$2:$A$2183=FD$2, ROW(AllMunicipalities!$A$2:$A$2183) - ROW(FA$2) + 1), ROWS(FD$3:FD3)))) -> BELLEVUE | FE3: =IF(ROWS(FE$3:FE3)>FE$1, "", INDEX(AllMunicipalities!$D$2:$D$2183, SMALL(IF(AllMunicipalities!$A$2:$A$2183=FE$2, ROW(AllMunicipalities!$A$2:$A$2183) - ROW(FB$2) + 1), ROWS(FE$3:FE3)))) -> BELLEVUE | FF3: =IF(ROWS(FF$3:FF3)>FF$1, "", INDEX(AllMunicipalities!$D$2:$D$2183, SMALL(IF(AllMunicipalities!$A$2:$A$2183=FF$2, ROW(AllMunicipalities!$A$2:$A$2183) - ROW(FC$2) + 1), ROWS(FF$3:FF3)))) ->  | FG3: =IF(ROWS(FG$3:FG3)>FG$1, "", INDEX(AllMunicipalities!$D$2:$D$2183, SMALL(IF(AllMunicipalities!$A$2:$A$2183=FG$2, ROW(AllMunicipalities!$A$2:$A$2183) - ROW(FD$2) + 1), ROWS(FG$3:FG3)))) -> CHARLOTTE LIBRARY | FH3: COUNTY | FI3: =IF(ROWS(FI$3:FI3)>FI$1, "", INDEX(AllMunicipalities!$D$2:$D$2183, SMALL(IF(AllMunicipalities!$A$2:$A$2183=FI$2, ROW(AllMunicipalities!$A$2:$A$2183) - ROW(FF$2) + 1), ROWS(FI$3:FI3)))) -> EMMET | FJ3: =IF(ROWS(FJ$3:FJ3)>FJ$1, "", INDEX(AllMunicipalities!$D$2:$D$2183, SMALL(IF(AllMunicipalities!$A$2:$A$2183=FJ$2, ROW(AllMunicipalities!$A$2:$A$2183) - ROW(FG$2) + 1), ROWS(FJ$3:FJ3)))) -> HARBOR SPRINGS | FK3: =IF(ROWS(FK$3:FK3)>FK$1, "", INDEX(AllMunicipalities!$D$2:$D$2183, SMALL(IF(AllMunicipalities!$A$2:$A$2183=FK$2, ROW(AllMunicipalities!$A$2:$A$2183) - ROW(FH$2) + 1), ROWS(FK$3:FK3)))) -> ALANSON | FL3: =IF(ROWS(FL$3:FL3)>FL$1, "", INDEX(AllMunicipalities!$D$2:$D$2183, SMALL(IF(AllMunicipalities!$A$2:$A$2183=FL$2, ROW(AllMunicipalities!$A$2:$A$2183) - ROW(FI$2) + 1), ROWS(FL$3:FL3)))) -> BEAR CREEK | FM3: =IF(ROWS(FM$3:FM3)>FM$1, "", INDEX(AllMunicipalities!$D$2:$D$2183, SMALL(IF(AllMunicipalities!$A$2:$A$2183=FM$2, ROW(AllMunicipalities!$A$2:$A$2183) - ROW(FJ$2) + 1), ROWS(FM$3:FM3)))) -> NORTH CENTRAL MICHIGAN COLLEGE | FN3: =IF(ROWS(FN$3:FN3)>FN$1, "", INDEX(AllMunicipalities!$D$2:$D$2183, SMALL(IF(AllMunicipalities!$A$2:$A$2183=FN$2, ROW(AllMunicipalities!$A$2:$A$2183) - ROW(FK$2) + 1), ROWS(FN$3:FN3)))) -> NORTH EMMET EMERGENCY SERVICES AUTHORITY (NEESA) | FO3: COUNTY | FP3: =IF(ROWS(FP$3:FP3)>FP$1, "", INDEX(AllMunicipalities!$D$2:$D$2183, SMALL(IF(AllMunicipalities!$A$2:$A$2183=FP$2, ROW(AllMunicipalities!$A$2:$A$2183) - ROW(FM$2) + 1), ROWS(FP$3:FP3)))) -> GENESEE | FQ3: =IF(ROWS(FQ$3:FQ3)>FQ$1, "", INDEX(AllMunicipalities!$D$2:$D$2183, SMALL(IF(AllMunicipalities!$A$2:$A$2183=FQ$2, ROW(AllMunicipalities!$A$2:$A$2183) - ROW(FN$2) + 1), ROWS(FQ$3:FQ3)))) -> BURTON | FR3: =IF(ROWS(FR$3:FR3)>FR$1, "", INDEX(AllMunicipalities!$D$2:$D$2183, SMALL(IF(AllMunicipalities!$A$2:$A$2183=FR$2, ROW(AllMunicipalities!$A$2:$A$2183) - ROW(FO$2) + 1), ROWS(FR$3:FR3)))) -> GAINES | FS3: =IF(ROWS(FS$3:FS3)>FS$1, "", INDEX(AllMunicipalities!$D$2:$D$2183, SMALL(IF(AllMunicipalities!$A$2:$A$2183=FS$2, ROW(AllMunicipalities!$A$2:$A$2183) - ROW(FP$2) + 1), ROWS(FS$3:FS3)))) -> ARGENTINE | FT3: =IF(ROWS(FT$3:FT3)>FT$1, "", INDEX(AllMunicipalities!$D$2:$D$2183, SMALL(IF(AllMunicipalities!$A$2:$A$2183=FT$2, ROW(AllMunicipalities!$A$2:$A$2183) - ROW(FQ$2) + 1), ROWS(FT$3:FT3)))) -> MOTT CC | FU3: =IF(ROWS(FU$3:FU3)>FU$1, "", INDEX(AllMunicipalities!$D$2:$D$2183, SMALL(IF(AllMunicipalities!$A$2:$A$2183=FU$2, ROW(AllMunicipalities!$A$2:$A$2183) - ROW(FR$2) + 1), ROWS(FU$3:FU3)))) -> GENESEE COUNTY MASS TRANSPORTATION AUTHORITY | FV3: COUNTY | FW3: =IF(ROWS(FW$3:FW3)>FW$1, "", INDEX(AllMunicipalities!$D$2:$D$2183, SMALL(IF(AllMunicipalities!$A$2:$A$2183=FW$2, ROW(AllMunicipalities!$A$2:$A$2183) - ROW(FT$2) + 1), ROWS(FW$3:FW3)))) -> GLADWIN | FX3: =IF(ROWS(FX$3:FX3)>FX$1, "", INDEX(AllMunicipalities!$D$2:$D$2183, SMALL(IF(AllMunicipalities!$A$2:$A$2183=FX$2, ROW(AllMunicipalities!$A$2:$A$2183) - ROW(FU$2) + 1), ROWS(FX$3:FX3)))) -> BEAVERTON | FY3: =IF(ROWS(FY$3:FY3)>FY$1, "", INDEX(AllMunicipalities!$D$2:$D$2183, SMALL(IF(AllMunicipalities!$A$2:$A$2183=FY$2, ROW(AllMunicipalities!$A$2:$A$2183) - ROW(FV$2) + 1), ROWS(FY$3:FY3)))) ->  | FZ3: =IF(ROWS(FZ$3:FZ3)>FZ$1, "", INDEX(AllMunicipalities!$D$2:$D$2183, SMALL(IF(AllMunicipalities!$A$2:$A$2183=FZ$2, ROW(AllMunicipalities!$A$2:$A$2183) - ROW(FW$2) + 1), ROWS(FZ$3:FZ3)))) -> BEAVERTON | GA3: =IF(ROWS(GA$3:GA3)>GA$1, "", INDEX(AllMunicipalities!$D$2:$D$2183, SMALL(IF(AllMunicipalities!$A$2:$A$2183=GA$2, ROW(AllMunicipalities!$A$2:$A$2183) - ROW(FX$2) + 1), ROWS(GA$3:GA3)))) ->  | GB3: =IF(ROWS(GB$3:GB3)>GB$1, "", INDEX(AllMunicipalities!$D$2:$D$2183, SMALL(IF(AllMunicipalities!$A$2:$A$2183=GB$2, ROW(AllMunicipalities!$A$2:$A$2183) - ROW(FY$2) + 1), ROWS(GB$3:GB3)))) -> GLADWIN COUNTY DISTRICT LIBRARY | GC3: COUNTY | GD3: =IF(ROWS(GD$3:GD3)>GD$1, "", INDEX(AllMunicipalities!$D$2:$D$2183, SMALL(IF(AllMunicipalities!$A$2:$A$2183=GD$2, ROW(AllMunicipalities!$A$2:$A$2183) - ROW(GA$2) + 1), ROWS(GD$3:GD3)))) -> GOGEBIC | GE3: =IF(ROWS(GE$3:GE3)>GE$1, "", INDEX(AllMunicipalities!$D$2:$D$2183, SMALL(IF(AllMunicipalities!$A$2:$A$2183=GE$2, ROW(AllMunicipalities!$A$2:$A$2183) - ROW(GB$2) + 1), ROWS(GE$3:GE3)))) -> BESSEMER | GF3: =IF(ROWS(GF$3:GF3)>GF$1, "", INDEX(AllMunicipalities!$D$2:$D$2183, SMALL(IF(AllMunicipalities!$A$2:$A$2183=GF$2, ROW(AllMunicipalities!$A$2:$A$2183) - ROW(GC$2) + 1), ROWS(GF$3:GF3)))) ->  | GG3: =IF(ROWS(GG$3:GG3)>GG$1, "", INDEX(AllMunicipalities!$D$2:$D$2183, SMALL(IF(AllMunicipalities!$A$2:$A$2183=GG$2, ROW(AllMunicipalities!$A$2:$A$2183) - ROW(GD$2) + 1), ROWS(GG$3:GG3)))) -> BESSEMER | GH3: =IF(ROWS(GH$3:GH3)>GH$1, "", INDEX(AllMunicipalities!$D$2:$D$2183, SMALL(IF(AllMunicipalities!$A$2:$A$2183=GH$2, ROW(AllMunicipalities!$A$2:$A$2183) - ROW(GE$2) + 1), ROWS(GH$3:GH3)))) -> GOGEBIC CC | GI3: =IF(ROWS(GI$3:GI3)>GI$1, "", INDEX(AllMunicipalities!$D$2:$D$2183, SMALL(IF(AllMunicipalities!$A$2:$A$2183=GI$2, ROW(AllMunicipalities!$A$2:$A$2183) - ROW(GF$2) + 1), ROWS(GI$3:GI3)))) ->  | GJ3: COUNTY | GK3: =IF(ROWS(GK$3:GK3)>GK$1, "", INDEX(AllMunicipalities!$D$2:$D$2183, SMALL(IF(AllMunicipalities!$A$2:$A$2183=GK$2, ROW(AllMunicipalities!$A$2:$A$2183) - ROW(GH$2) + 1), ROWS(GK$3:GK3)))) -> GRAND TRAVERSE | GL3: =IF(ROWS(GL$3:GL3)>GL$1, "", INDEX(AllMunicipalities!$D$2:$D$2183, SMALL(IF(AllMunicipalities!$A$2:$A$2183=GL$2, ROW(AllMunicipalities!$A$2:$A$2183) - ROW(GI$2) + 1), ROWS(GL$3:GL3)))) -> TRAVERSE CITY | GM3: =IF(ROWS(GM$3:GM3)>GM$1, "", INDEX(AllMunicipalities!$D$2:$D$2183, SMALL(IF(AllMunicipalities!$A$2:$A$2183=GM$2, ROW(AllMunicipalities!$A$2:$A$2183) - ROW(GJ$2) + 1), ROWS(GM$3:GM3)))) -> FIFE LAKE | GN3: =IF(ROWS(GN$3:GN3)>GN$1, "", INDEX(AllMunicipalities!$D$2:$D$2183, SMALL(IF(AllMunicipalities!$A$2:$A$2183=GN$2, ROW(AllMunicipalities!$A$2:$A$2183) - ROW(GK$2) + 1), ROWS(GN$3:GN3)))) -> ACME | GO3: =IF(ROWS(GO$3:GO3)>GO$1, "", INDEX(AllMunicipalities!$D$2:$D$2183, SMALL(IF(AllMunicipalities!$A$2:$A$2183=GO$2, ROW(AllMunicipalities!$A$2:$A$2183) - ROW(GL$2) + 1), ROWS(GO$3:GO3)))) -> NORTHWESTERN MICHIGAN COLLEGE | GP3: =IF(ROWS(GP$3:GP3)>GP$1, "", INDEX(AllMunicipalities!$D$2:$D$2183, SMALL(IF(AllMunicipalities!$A$2:$A$2183=GP$2, ROW(AllMunicipalities!$A$2:$A$2183) - ROW(GM$2) + 1), ROWS(GP$3:GP3)))) -> TRAVERSE AREA DISTRICT LIBRARY | GQ3: COUNTY | GR3: =IF(ROWS(GR$3:GR3)>GR$1, "", INDEX(AllMunicipalities!$D$2:$D$2183, SMALL(IF(AllMunicipalities!$A$2:$A$2183=GR$2, ROW(AllMunicipalities!$A$2:$A$2183) - ROW(GO$2) + 1), ROWS(GR$3:GR3)))) -> GRATIOT | GS3: =IF(ROWS(GS$3:GS3)>GS$1, "", INDEX(AllMunicipalities!$D$2:$D$2183, SMALL(IF(AllMunicipalities!$A$2:$A$2183=GS$2, ROW(AllMunicipalities!$A$2:$A$2183) - ROW(GP$2) + 1), ROWS(GS$3:GS3)))) -> ALMA | GT3: =IF(ROWS(GT$3:GT3)>GT$1, "", INDEX(AllMunicipalities!$D$2:$D$2183, SMALL(IF(AllMunicipalities!$A$2:$A$2183=GT$2, ROW(AllMunicipalities!$A$2:$A$2183) - ROW(GQ$2) + 1), ROWS(GT$3:GT3)))) -> ASHLEY | GU3: =IF(ROWS(GU$3:GU3)>GU$1, "", INDEX(AllMunicipalities!$D$2:$D$2183, SMALL(IF(AllMunicipalities!$A$2:$A$2183=GU$2, ROW(AllMunicipalities!$A$2:$A$2183) - ROW(GR$2) + 1), ROWS(GU$3:GU3)))) -> ARCADA | GV3: =IF(ROWS(GV$3:GV3)>GV$1, "", INDEX(AllMunicipalities!$D$2:$D$2183, SMALL(IF(AllMunicipalities!$A$2:$A$2183=GV$2, ROW(AllMunicipalities!$A$2:$A$2183) - ROW(GS$2) + 1), ROWS(GV$3:GV3)))) ->  | GW3: =IF(ROWS(GW$3:GW3)>GW$1, "", INDEX(AllMunicipalities!$D$2:$D$2183, SMALL(IF(AllMunicipalities!$A$2:$A$2183=GW$2, ROW(AllMunicipalities!$A$2:$A$2183) - ROW(GT$2) + 1), ROWS(GW$3:GW3)))) ->  | GX3: COUNTY | GY3: =IF(ROWS(GY$3:GY3)>GY$1, "", INDEX(AllMunicipalities!$D$2:$D$2183, SMALL(IF(AllMunicipalities!$A$2:$A$2183=GY$2, ROW(AllMunicipalities!$A$2:$A$2183) - ROW(GV$2) + 1), ROWS(GY$3:GY3)))) -> HILLSDALE | GZ3: =IF(ROWS(GZ$3:GZ3)>GZ$1, "", INDEX(AllMunicipalities!$D$2:$D$2183, SMALL(IF(AllMunicipalities!$A$2:$A$2183=GZ$2, ROW(AllMunicipalities!$A$2:$A$2183) - ROW(GW$2) + 1), ROWS(GZ$3:GZ3)))) -> HILLSDALE | HA3: =IF(ROWS(HA$3:HA3)>HA$1, "", INDEX(AllMunicipalities!$D$2:$D$2183, SMALL(IF(AllMunicipalities!$A$2:$A$2183=HA$2, ROW(AllMunicipalities!$A$2:$A$2183) - ROW(GX$2) + 1), ROWS(HA$3:HA3)))) -> ALLEN | HB3: =IF(ROWS(HB$3:HB3)>HB$1, "", INDEX(AllMunicipalities!$D$2:$D$2183, SMALL(IF(AllMunicipalities!$A$2:$A$2183=HB$2, ROW(AllMunicipalities!$A$2:$A$2183) - ROW(GY$2) + 1), ROWS(HB$3:HB3)))) -> ADAMS | HC3: =IF(ROWS(HC$3:HC3)>HC$1, "", INDEX(AllMunicipalities!$D$2:$D$2183, SMALL(IF(AllMunicipalities!$A$2:$A$2183=HC$2, ROW(AllMunicipalities!$A$2:$A$2183) - ROW(GZ$2) + 1), ROWS(HC$3:HC3)))) ->  | HD3: =IF(ROWS(HD$3:HD3)>HD$1, "", INDEX(AllMunicipalities!$D$2:$D$2183, SMALL(IF(AllMunicipalities!$A$2:$A$2183=HD$2, ROW(AllMunicipalities!$A$2:$A$2183) - ROW(HA$2) + 1), ROWS(HD$3:HD3)))) -> LITCHFIELD DISTRICT LIBRARY | HE3: COUNTY | HF3: =IF(ROWS(HF$3:HF3)>HF$1, "", INDEX(AllMunicipalities!$D$2:$D$2183, SMALL(IF(AllMunicipalities!$A$2:$A$2183=HF$2, ROW(AllMunicipalities!$A$2:$A$2183) - ROW(HC$2) + 1), ROWS(HF$3:HF3)))) -> HOUGHTON | HG3: =IF(ROWS(HG$3:HG3)>HG$1, "", INDEX(AllMunicipalities!$D$2:$D$2183, SMALL(IF(AllMunicipalities!$A$2:$A$2183=HG$2, ROW(AllMunicipalities!$A$2:$A$2183) - ROW(HD$2) + 1), ROWS(HG$3:HG3)))) -> HANCOCK | HH3: =IF(ROWS(HH$3:HH3)>HH$1, "", INDEX(AllMunicipalities!$D$2:$D$2183, SMALL(IF(AllMunicipalities!$A$2:$A$2183=HH$2, ROW(AllMunicipalities!$A$2:$A$2183) - ROW(HE$2) + 1), ROWS(HH$3:HH3)))) -> CALUMET | HI3: =IF(ROWS(HI$3:HI3)>HI$1, "", INDEX(AllMunicipalities!$D$2:$D$2183, SMALL(IF(AllMunicipalities!$A$2:$A$2183=HI$2, ROW(AllMunicipalities!$A$2:$A$2183) - ROW(HF$2) + 1), ROWS(HI$3:HI3)))) -> ADAMS | HJ3: =IF(ROWS(HJ$3:HJ3)>HJ$1, "", INDEX(AllMunicipalities!$D$2:$D$2183, SMALL(IF(AllMunicipalities!$A$2:$A$2183=HJ$2, ROW(AllMunicipalities!$A$2:$A$2183) - ROW(HG$2) + 1), ROWS(HJ$3:HJ3)))) ->  | HK3: =IF(ROWS(HK$3:HK3)>HK$1, "", INDEX(AllMunicipalities!$D$2:$D$2183, SMALL(IF(AllMunicipalities!$A$2:$A$2183=HK$2, ROW(AllMunicipalities!$A$2:$A$2183) - ROW(HH$2) + 1), ROWS(HK$3:HK3)))) -> PORTAGE LAKE DISTRICT LIBRARY | HL3: COUNTY | HM3: =IF(ROWS(HM$3:HM3)>HM$1, "", INDEX(AllMunicipalities!$D$2:$D$2183, SMALL(IF(AllMunicipalities!$A$2:$A$2183=HM$2, ROW(AllMunicipalities!$A$2:$A$2183) - ROW(HJ$2) + 1), ROWS(HM$3:HM3)))) -> HURON | HN3: =IF(ROWS(HN$3:HN3)>HN$1, "", INDEX(AllMunicipalities!$D$2:$D$2183, SMALL(IF(AllMunicipalities!$A$2:$A$2183=HN$2, ROW(AllMunicipalities!$A$2:$A$2183) - ROW(HK$2) + 1), ROWS(HN$3:HN3)))) -> BAD AXE | HO3: =IF(ROWS(HO$3:HO3)>HO$1, "", INDEX(AllMunicipalities!$D$2:$D$2183, SMALL(IF(AllMunicipalities!$A$2:$A$2183=HO$2, ROW(AllMunicipalities!$A$2:$A$2183) - ROW(HL$2) + 1), ROWS(HO$3:HO3)))) -> ELKTON | HP3: =IF(ROWS(HP$3:HP3)>HP$1, "", INDEX(AllMunicipalities!$D$2:$D$2183, SMALL(IF(AllMunicipalities!$A$2:$A$2183=HP$2, ROW(AllMunicipalities!$A$2:$A$2183) - ROW(HM$2) + 1), ROWS(HP$3:HP3)))) -> BINGHAM | HQ3: =IF(ROWS(HQ$3:HQ3)>HQ$1, "", INDEX(AllMunicipalities!$D$2:$D$2183, SMALL(IF(AllMunicipalities!$A$2:$A$2183=HQ$2, ROW(AllMunicipalities!$A$2:$A$2183) - ROW(HN$2) + 1), ROWS(HQ$3:HQ3)))) ->  | HR3: =IF(ROWS(HR$3:HR3)>HR$1, "", INDEX(AllMunicipalities!$D$2:$D$2183, SMALL(IF(AllMunicipalities!$A$2:$A$2183=HR$2, ROW(AllMunicipalities!$A$2:$A$2183) - ROW(HO$2) + 1), ROWS(HR$3:HR3)))) -> BAD AXE AREA DISTRICT LIBRARY | HS3: COUNTY | HT3: =IF(ROWS(HT$3:HT3)>HT$1, "", INDEX(AllMunicipalities!$D$2:$D$2183, SMALL(IF(AllMunicipalities!$A$2:$A$2183=HT$2, ROW(AllMunicipalities!$A$2:$A$2183) - ROW(HQ$2) + 1), ROWS(HT$3:HT3)))) -> INGHAM | HU3: =IF(ROWS(HU$3:HU3)>HU$1, "", INDEX(AllMunicipalities!$D$2:$D$2183, SMALL(IF(AllMunicipalities!$A$2:$A$2183=HU$2, ROW(AllMunicipalities!$A$2:$A$2183) - ROW(HR$2) + 1), ROWS(HU$3:HU3)))) -> EAST LANSING | HV3: =IF(ROWS(HV$3:HV3)>HV$1, "", INDEX(AllMunicipalities!$D$2:$D$2183, SMALL(IF(AllMunicipalities!$A$2:$A$2183=HV$2, ROW(AllMunicipalities!$A$2:$A$2183) - ROW(HS$2) + 1), ROWS(HV$3:HV3)))) -> DANSVILLE | HW3: =IF(ROWS(HW$3:HW3)>HW$1, "", INDEX(AllMunicipalities!$D$2:$D$2183, SMALL(IF(AllMunicipalities!$A$2:$A$2183=HW$2, ROW(AllMunicipalities!$A$2:$A$2183) - ROW(HT$2) + 1), ROWS(HW$3:HW3)))) -> ALAIEDON | HX3: =IF(ROWS(HX$3:HX3)>HX$1, "", INDEX(AllMunicipalities!$D$2:$D$2183, SMALL(IF(AllMunicipalities!$A$2:$A$2183=HX$2, ROW(AllMunicipalities!$A$2:$A$2183) - ROW(HU$2) + 1), ROWS(HX$3:HX3)))) -> LANSING CC | HY3: =IF(ROWS(HY$3:HY3)>HY$1, "", INDEX(AllMunicipalities!$D$2:$D$2183, SMALL(IF(AllMunicipalities!$A$2:$A$2183=HY$2, ROW(AllMunicipalities!$A$2:$A$2183) - ROW(HV$2) + 1), ROWS(HY$3:HY3)))) -> INGHAM AIRPORT AUTHORITY | HZ3: COUNTY | IA3: =IF(ROWS(IA$3:IA3)>IA$1, "", INDEX(AllMunicipalities!$D$2:$D$2183, SMALL(IF(AllMunicipalities!$A$2:$A$2183=IA$2, ROW(AllMunicipalities!$A$2:$A$2183) - ROW(HX$2) + 1), ROWS(IA$3:IA3)))) -> IONIA | IB3: =IF(ROWS(IB$3:IB3)>IB$1, "", INDEX(AllMunicipalities!$D$2:$D$2183, SMALL(IF(AllMunicipalities!$A$2:$A$2183=IB$2, ROW(AllMunicipalities!$A$2:$A$2183) - ROW(HY$2) + 1), ROWS(IB$3:IB3)))) -> BELDING | IC3: =IF(ROWS(IC$3:IC3)>IC$1, "", INDEX(AllMunicipalities!$D$2:$D$2183, SMALL(IF(AllMunicipalities!$A$2:$A$2183=IC$2, ROW(AllMunicipalities!$A$2:$A$2183) - ROW(HZ$2) + 1), ROWS(IC$3:IC3)))) -> CLARKSVILLE | ID3: =IF(ROWS(ID$3:ID3)>ID$1, "", INDEX(AllMunicipalities!$D$2:$D$2183, SMALL(IF(AllMunicipalities!$A$2:$A$2183=ID$2, ROW(AllMunicipalities!$A$2:$A$2183) - ROW(IA$2) + 1), ROWS(ID$3:ID3)))) -> BERLIN | IE3: =IF(ROWS(IE$3:IE3)>IE$1, "", INDEX(AllMunicipalities!$D$2:$D$2183, SMALL(IF(AllMunicipalities!$A$2:$A$2183=IE$2, ROW(AllMunicipalities!$A$2:$A$2183) - ROW(IB$2) + 1), ROWS(IE$3:IE3)))) ->  | IF3: =IF(ROWS(IF$3:IF3)>IF$1, "", INDEX(AllMunicipalities!$D$2:$D$2183, SMALL(IF(AllMunicipalities!$A$2:$A$2183=IF$2, ROW(AllMunicipalities!$A$2:$A$2183) - ROW(IC$2) + 1), ROWS(IF$3:IF3)))) -> LAKE ODESSA LIBRARY | IG3: COUNTY | IH3: =IF(ROWS(IH$3:IH3)>IH$1, "", INDEX(AllMunicipalities!$D$2:$D$2183, SMALL(IF(AllMunicipalities!$A$2:$A$2183=IH$2, ROW(AllMunicipalities!$A$2:$A$2183) - ROW(IE$2) + 1), ROWS(IH$3:IH3)))) -> IOSCO | II3: =IF(ROWS(II$3:II3)>II$1, "", INDEX(AllMunicipalities!$D$2:$D$2183, SMALL(IF(AllMunicipalities!$A$2:$A$2183=II$2, ROW(AllMunicipalities!$A$2:$A$2183) - ROW(IF$2) + 1), ROWS(II$3:II3)))) -> EAST TAWAS | IJ3: =IF(ROWS(IJ$3:IJ3)>IJ$1, "", INDEX(AllMunicipalities!$D$2:$D$2183, SMALL(IF(AllMunicipalities!$A$2:$A$2183=IJ$2, ROW(AllMunicipalities!$A$2:$A$2183) - ROW(IG$2) + 1), ROWS(IJ$3:IJ3)))) ->  | IK3: =IF(ROWS(IK$3:IK3)>IK$1, "", INDEX(AllMunicipalities!$D$2:$D$2183, SMALL(IF(AllMunicipalities!$A$2:$A$2183=IK$2, ROW(AllMunicipalities!$A$2:$A$2183) - ROW(IH$2) + 1), ROWS(IK$3:IK3)))) -> ALABASTER | IL3: =IF(ROWS(IL$3:IL3)>IL$1, "", INDEX(AllMunicipalities!$D$2:$D$2183, SMALL(IF(AllMunicipalities!$A$2:$A$2183=IL$2, ROW(AllMunicipalities!$A$2:$A$2183) - ROW(II$2) + 1), ROWS(IL$3:IL3)))) ->  | IM3: =IF(ROWS(IM$3:IM3)>IM$1, "", INDEX(AllMunicipalities!$D$2:$D$2183, SMALL(IF(AllMunicipalities!$A$2:$A$2183=IM$2, ROW(AllMunicipalities!$A$2:$A$2183) - ROW(IJ$2) + 1), ROWS(IM$3:IM3)))) -> IOSCO-ARENAC DISTRICT LIBRARY | IN3: COUNTY | IO3: =IF(ROWS(IO$3:IO3)>IO$1, "", INDEX(AllMunicipalities!$D$2:$D$2183, SMALL(IF(AllMunicipalities!$A$2:$A$2183=IO$2, ROW(AllMunicipalities!$A$2:$A$2183) - ROW(IL$2) + 1), ROWS(IO$3:IO3)))) -> IRON | IP3: =IF(ROWS(IP$3:IP3)>IP$1, "", INDEX(AllMunicipalities!$D$2:$D$2183, SMALL(IF(AllMunicipalities!$A$2:$A$2183=IP$2, ROW(AllMunicipalities!$A$2:$A$2183) - ROW(IM$2) + 1), ROWS(IP$3:IP3)))) -> CASPIAN | IQ3: =IF(ROWS(IQ$3:IQ3)>IQ$1, "", INDEX(AllMunicipalities!$D$2:$D$2183, SMALL(IF(AllMunicipalities!$A$2:$A$2183=IQ$2, ROW(AllMunicipalities!$A$2:$A$2183) - ROW(IN$2) + 1), ROWS(IQ$3:IQ3)))) -> ALPHA | IR3: =IF(ROWS(IR$3:IR3)>IR$1, "", INDEX(AllMunicipalities!$D$2:$D$2183, SMALL(IF(AllMunicipalities!$A$2:$A$2183=IR$2, ROW(AllMunicipalities!$A$2:$A$2183) - ROW(IO$2) + 1), ROWS(IR$3:IR3)))) -> BATES | IS3: =IF(ROWS(IS$3:IS3)>IS$1, "", INDEX(AllMunicipalities!$D$2:$D$2183, SMALL(IF(AllMunicipalities!$A$2:$A$2183=IS$2, ROW(AllMunicipalities!$A$2:$A$2183) - ROW(IP$2) + 1), ROWS(IS$3:IS3)))) ->  | IT3: =IF(ROWS(IT$3:IT3)>IT$1, "", INDEX(AllMunicipalities!$D$2:$D$2183, SMALL(IF(AllMunicipalities!$A$2:$A$2183=IT$2, ROW(AllMunicipalities!$A$2:$A$2183) - ROW(IQ$2) + 1), ROWS(IT$3:IT3)))) -> CRYSTAL FALLS DISTRICT COMMUNITY LIBRARY | IU3: COUNTY | IV3: =IF(ROWS(IV$3:IV3)>IV$1, "", INDEX(AllMunicipalities!$D$2:$D$2183, SMALL(IF(AllMunicipalities!$A$2:$A$2183=IV$2, ROW(AllMunicipalities!$A$2:$A$2183) - ROW(IS$2) + 1), ROWS(IV$3:IV3)))) -> ISABELLA | IW3: =IF(ROWS(IW$3:IW3)>IW$1, "", INDEX(AllMunicipalities!$D$2:$D$2183, SMALL(IF(AllMunicipalities!$A$2:$A$2183=IW$2, ROW(AllMunicipalities!$A$2:$A$2183) - ROW(IT$2) + 1), ROWS(IW$3:IW3)))) -> CLARE | IX3: =IF(ROWS(IX$3:IX3)>IX$1, "", INDEX(AllMunicipalities!$D$2:$D$2183, SMALL(IF(AllMunicipalities!$A$2:$A$2183=IX$2, ROW(AllMunicipalities!$A$2:$A$2183) - ROW(IU$2) + 1), ROWS(IX$3:IX3)))) -> LAKE ISABELLA | IY3: =IF(ROWS(IY$3:IY3)>IY$1, "", INDEX(AllMunicipalities!$D$2:$D$2183, SMALL(IF(AllMunicipalities!$A$2:$A$2183=IY$2, ROW(AllMunicipalities!$A$2:$A$2183) - ROW(IV$2) + 1), ROWS(IY$3:IY3)))) -> BROOMFIELD | IZ3: =IF(ROWS(IZ$3:IZ3)>IZ$1, "", INDEX(AllMunicipalities!$D$2:$D$2183, SMALL(IF(AllMunicipalities!$A$2:$A$2183=IZ$2, ROW(AllMunicipalities!$A$2:$A$2183) - ROW(IW$2) + 1), ROWS(IZ$3:IZ3)))) ->  | JA3: =IF(ROWS(JA$3:JA3)>JA$1, "", INDEX(AllMunicipalities!$D$2:$D$2183, SMALL(IF(AllMunicipalities!$A$2:$A$2183=JA$2, ROW(AllMunicipalities!$A$2:$A$2183) - ROW(IX$2) + 1), ROWS(JA$3:JA3)))) -> CHIPPEWA RIVER DISTRICT LIBRARY | JB3: COUNTY | JC3: =IF(ROWS(JC$3:JC3)>JC$1, "", INDEX(AllMunicipalities!$D$2:$D$2183, SMALL(IF(AllMunicipalities!$A$2:$A$2183=JC$2, ROW(AllMunicipalities!$A$2:$A$2183) - ROW(IZ$2) + 1), ROWS(JC$3:JC3)))) -> JACKSON | JD3: =IF(ROWS(JD$3:JD3)>JD$1, "", INDEX(AllMunicipalities!$D$2:$D$2183, SMALL(IF(AllMunicipalities!$A$2:$A$2183=JD$2, ROW(AllMunicipalities!$A$2:$A$2183) - ROW(JA$2) + 1), ROWS(JD$3:JD3)))) -> JACKSON | JE3: =IF(ROWS(JE$3:JE3)>JE$1, "", INDEX(AllMunicipalities!$D$2:$D$2183, SMALL(IF(AllMunicipalities!$A$2:$A$2183=JE$2, ROW(AllMunicipalities!$A$2:$A$2183) - ROW(JB$2) + 1), ROWS(JE$3:JE3)))) -> BROOKLYN | JF3: =IF(ROWS(JF$3:JF3)>JF$1, "", INDEX(AllMunicipalities!$D$2:$D$2183, SMALL(IF(AllMunicipalities!$A$2:$A$2183=JF$2, ROW(AllMunicipalities!$A$2:$A$2183) - ROW(JC$2) + 1), ROWS(JF$3:JF3)))) -> BLACKMAN | JG3: =IF(ROWS(JG$3:JG3)>JG$1, "", INDEX(AllMunicipalities!$D$2:$D$2183, SMALL(IF(AllMunicipalities!$A$2:$A$2183=JG$2, ROW(AllMunicipalities!$A$2:$A$2183) - ROW(JD$2) + 1), ROWS(JG$3:JG3)))) -> JACKSON CC | JH3: =IF(ROWS(JH$3:JH3)>JH$1, "", INDEX(AllMunicipalities!$D$2:$D$2183, SMALL(IF(AllMunicipalities!$A$2:$A$2183=JH$2, ROW(AllMunicipalities!$A$2:$A$2183) - ROW(JE$2) + 1), ROWS(JH$3:JH3)))) -> JACKSON AREA TRANSPORTATION AUTHORITY | JI3: COUNTY | JJ3: =IF(ROWS(JJ$3:JJ3)>JJ$1, "", INDEX(AllMunicipalities!$D$2:$D$2183, SMALL(IF(AllMunicipalities!$A$2:$A$2183=JJ$2, ROW(AllMunicipalities!$A$2:$A$2183) - ROW(JG$2) + 1), ROWS(JJ$3:JJ3)))) -> KALAMAZOO | JK3: =IF(ROWS(JK$3:JK3)>JK$1, "", INDEX(AllMunicipalities!$D$2:$D$2183, SMALL(IF(AllMunicipalities!$A$2:$A$2183=JK$2, ROW(AllMunicipalities!$A$2:$A$2183) - ROW(JH$2) + 1), ROWS(JK$3:JK3)))) -> GALESBURG | JL3: =IF(ROWS(JL$3:JL3)>JL$1, "", INDEX(AllMunicipalities!$D$2:$D$2183, SMALL(IF(AllMunicipalities!$A$2:$A$2183=JL$2, ROW(AllMunicipalities!$A$2:$A$2183) - ROW(JI$2) + 1), ROWS(JL$3:JL3)))) -> AUGUSTA | JM3: =IF(ROWS(JM$3:JM3)>JM$1, "", INDEX(AllMunicipalities!$D$2:$D$2183, SMALL(IF(AllMunicipalities!$A$2:$A$2183=JM$2, ROW(AllMunicipalities!$A$2:$A$2183) - ROW(JJ$2) + 1), ROWS(JM$3:JM3)))) -> ALAMO | JN3: =IF(ROWS(JN$3:JN3)>JN$1, "", INDEX(AllMunicipalities!$D$2:$D$2183, SMALL(IF(AllMunicipalities!$A$2:$A$2183=JN$2, ROW(AllMunicipalities!$A$2:$A$2183) - ROW(JK$2) + 1), ROWS(JN$3:JN3)))) -> KALAMAZOO VALLEY CC | JO3: =IF(ROWS(JO$3:JO3)>JO$1, "", INDEX(AllMunicipalities!$D$2:$D$2183, SMALL(IF(AllMunicipalities!$A$2:$A$2183=JO$2, ROW(AllMunicipalities!$A$2:$A$2183) - ROW(JL$2) + 1), ROWS(JO$3:JO3)))) -> KALAMAZOO PUBLIC LIBRARY | JP3: COUNTY | JQ3: =IF(ROWS(JQ$3:JQ3)>JQ$1, "", INDEX(AllMunicipalities!$D$2:$D$2183, SMALL(IF(AllMunicipalities!$A$2:$A$2183=JQ$2, ROW(AllMunicipalities!$A$2:$A$2183) - ROW(JN$2) + 1), ROWS(JQ$3:JQ3)))) -> KALKASKA | JR3: =IF(ROWS(JR$3:JR3)>JR$1, "", INDEX(AllMunicipalities!$D$2:$D$2183, SMALL(IF(AllMunicipalities!$A$2:$A$2183=JR$2, ROW(AllMunicipalities!$A$2:$A$2183) - ROW(JO$2) + 1), ROWS(JR$3:JR3)))) ->  | JS3: =IF(ROWS(JS$3:JS3)>JS$1, "", INDEX(AllMunicipalities!$D$2:$D$2183, SMALL(IF(AllMunicipalities!$A$2:$A$2183=JS$2, ROW(AllMunicipalities!$A$2:$A$2183) - ROW(JP$2) + 1), ROWS(JS$3:JS3)))) -> KALKASKA | JT3: =IF(ROWS(JT$3:JT3)>JT$1, "", INDEX(AllMunicipalities!$D$2:$D$2183, SMALL(IF(AllMunicipalities!$A$2:$A$2183=JT$2, ROW(AllMunicipalities!$A$2:$A$2183) - ROW(JQ$2) + 1), ROWS(JT$3:JT3)))) -> BEAR LAKE | JU3: =IF(ROWS(JU$3:JU3)>JU$1, "", INDEX(AllMunicipalities!$D$2:$D$2183, SMALL(IF(AllMunicipalities!$A$2:$A$2183=JU$2, ROW(AllMunicipalities!$A$2:$A$2183) - ROW(JR$2) + 1), ROWS(JU$3:JU3)))) ->  | JV3: =IF(ROWS(JV$3:JV3)>JV$1, "", INDEX(AllMunicipalities!$D$2:$D$2183, SMALL(IF(AllMunicipalities!$A$2:$A$2183=JV$2, ROW(AllMunicipalities!$A$2:$A$2183) - ROW(JS$2) + 1), ROWS(JV$3:JV3)))) ->  | JW3: COUNTY | JX3: =IF(ROWS(JX$3:JX3)>JX$1, "", INDEX(AllMunicipalities!$D$2:$D$2183, SMALL(IF(AllMunicipalities!$A$2:$A$2183=JX$2, ROW(AllMunicipalities!$A$2:$A$2183) - ROW(JU$2) + 1), ROWS(JX$3:JX3)))) -> KENT | JY3: =IF(ROWS(JY$3:JY3)>JY$1, "", INDEX(AllMunicipalities!$D$2:$D$2183, SMALL(IF(AllMunicipalities!$A$2:$A$2183=JY$2, ROW(AllMunicipalities!$A$2:$A$2183) - ROW(JV$2) + 1), ROWS(JY$3:JY3)))) -> CEDAR SPRINGS | JZ3: =IF(ROWS(JZ$3:JZ3)>JZ$1, "", INDEX(AllMunicipalities!$D$2:$D$2183, SMALL(IF(AllMunicipalities!$A$2:$A$2183=JZ$2, ROW(AllMunicipalities!$A$2:$A$2183) - ROW(JW$2) + 1), ROWS(JZ$3:JZ3)))) -> CALEDONIA | KA3: =IF(ROWS(KA$3:KA3)>KA$1, "", INDEX(AllMunicipalities!$D$2:$D$2183, SMALL(IF(AllMunicipalities!$A$2:$A$2183=KA$2, ROW(AllMunicipalities!$A$2:$A$2183) - ROW(JX$2) + 1), ROWS(KA$3:KA3)))) -> ADA | KB3: =IF(ROWS(KB$3:KB3)>KB$1, "", INDEX(AllMunicipalities!$D$2:$D$2183, SMALL(IF(AllMunicipalities!$A$2:$A$2183=KB$2, ROW(AllMunicipalities!$A$2:$A$2183) - ROW(JY$2) + 1), ROWS(KB$3:KB3)))) -> GRAND RAPIDS CC | KC3: =IF(ROWS(KC$3:KC3)>KC$1, "", INDEX(AllMunicipalities!$D$2:$D$2183, SMALL(IF(AllMunicipalities!$A$2:$A$2183=KC$2, ROW(AllMunicipalities!$A$2:$A$2183) - ROW(JZ$2) + 1), ROWS(KC$3:KC3)))) -> INTERURBAN TRANSIT PARTNERSHIP | KD3: COUNTY | KE3: =IF(ROWS(KE$3:KE3)>KE$1, "", INDEX(AllMunicipalities!$D$2:$D$2183, SMALL(IF(AllMunicipalities!$A$2:$A$2183=KE$2, ROW(AllMunicipalities!$A$2:$A$2183) - ROW(KA$2) + 1), ROWS(KE$3:KE3)))) -> KEWEENAW | KF3: =IF(ROWS(KF$3:KF3)>KF$1, "", INDEX(AllMunicipalities!$D$2:$D$2183, SMALL(IF(AllMunicipalities!$A$2:$A$2183=KF$2, ROW(AllMunicipalities!$A$2:$A$2183) - ROW(KC$2) + 1), ROWS(KF$3:KF3)))) ->  | KG3: =IF(ROWS(KG$3:KG3)>KG$1, "", INDEX(AllMunicipalities!$D$2:$D$2183, SMALL(IF(AllMunicipalities!$A$2:$A$2183=KG$2, ROW(AllMunicipalities!$A$2:$A$2183) - ROW(KD$2) + 1), ROWS(KG$3:KG3)))) -> AHMEEK | KH3: =IF(ROWS(KH$3:KH3)>KH$1, "", INDEX(AllMunicipalities!$D$2:$D$2183, SMALL(IF(AllMunicipalities!$A$2:$A$2183=KH$2, ROW(AllMunicipalities!$A$2:$A$2183) - ROW(KE$2) + 1), ROWS(KH$3:KH3)))) -> ALLOUEZ | KI3: =IF(ROWS(KI$3:KI3)>KI$1, "", INDEX(AllMunicipalities!$D$2:$D$2183, SMALL(IF(AllMunicipalities!$A$2:$A$2183=KI$2, ROW(AllMunicipalities!$A$2:$A$2183) - ROW(KF$2) + 1), ROWS(KI$3:KI3)))) ->  | KJ3: =IF(ROWS(KJ$3:KJ3)>KJ$1, "", INDEX(AllMunicipalities!$D$2:$D$2183, SMALL(IF(AllMunicipalities!$A$2:$A$2183=KJ$2, ROW(AllMunicipalities!$A$2:$A$2183) - ROW(KG$2) + 1), ROWS(KJ$3:KJ3)))) ->  | KK3: COUNTY | KL3: =IF(ROWS(KL$3:KL3)>KL$1, "", INDEX(AllMunicipalities!$D$2:$D$2183, SMALL(IF(AllMunicipalities!$A$2:$A$2183=KL$2, ROW(AllMunicipalities!$A$2:$A$2183) - ROW(KI$2) + 1), ROWS(KL$3:KL3)))) -> LAKE | KM3: =IF(ROWS(KM$3:KM3)>KM$1, "", INDEX(AllMunicipalities!$D$2:$D$2183, SMALL(IF(AllMunicipalities!$A$2:$A$2183=KM$2, ROW(AllMunicipalities!$A$2:$A$2183) - ROW(KJ$2) + 1), ROWS(KM$3:KM3)))) ->  | KN3: =IF(ROWS(KN$3:KN3)>KN$1, "", INDEX(AllMunicipalities!$D$2:$D$2183, SMALL(IF(AllMunicipalities!$A$2:$A$2183=KN$2, ROW(AllMunicipalities!$A$2:$A$2183) - ROW(KK$2) + 1), ROWS(KN$3:KN3)))) -> BALDWIN | KO3: =IF(ROWS(KO$3:KO3)>KO$1, "", INDEX(AllMunicipalities!$D$2:$D$2183, SMALL(IF(AllMunicipalities!$A$2:$A$2183=KO$2, ROW(AllMunicipalities!$A$2:$A$2183) - ROW(KL$2) + 1), ROWS(KO$3:KO3)))) -> CHASE | KP3: =IF(ROWS(KP$3:KP3)>KP$1, "", INDEX(AllMunicipalities!$D$2:$D$2183, SMALL(IF(AllMunicipalities!$A$2:$A$2183=KP$2, ROW(AllMunicipalities!$A$2:$A$2183) - ROW(KM$2) + 1), ROWS(KP$3:KP3)))) ->  | KQ3: =IF(ROWS(KQ$3:KQ3)>KQ$1, "", INDEX(AllMunicipalities!$D$2:$D$2183, SMALL(IF(AllMunicipalities!$A$2:$A$2183=KQ$2, ROW(AllMunicipalities!$A$2:$A$2183) - ROW(KN$2) + 1), ROWS(KQ$3:KQ3)))) -> PLEASANT PLAINS TOWNSHIP ROAD | KR3: COUNTY | KS3: =IF(ROWS(KS$3:KS3)>KS$1, "", INDEX(AllMunicipalities!$D$2:$D$2183, SMALL(IF(AllMunicipalities!$A$2:$A$2183=KS$2, ROW(AllMunicipalities!$A$2:$A$2183) - ROW(KP$2) + 1), ROWS(KS$3:KS3)))) -> LAPEER | KT3: =IF(ROWS(KT$3:KT3)>KT$1, "", INDEX(AllMunicipalities!$D$2:$D$2183, SMALL(IF(AllMunicipalities!$A$2:$A$2183=KT$2, ROW(AllMunicipalities!$A$2:$A$2183) - ROW(KQ$2) + 1), ROWS(KT$3:KT3)))) -> BROWN CITY | KU3: =IF(ROWS(KU$3:KU3)>KU$1, "", INDEX(AllMunicipalities!$D$2:$D$2183, SMALL(IF(AllMunicipalities!$A$2:$A$2183=KU$2, ROW(AllMunicipalities!$A$2:$A$2183) - ROW(KR$2) + 1), ROWS(KU$3:KU3)))) -> ALMONT | KV3: =IF(ROWS(KV$3:KV3)>KV$1, "", INDEX(AllMunicipalities!$D$2:$D$2183, SMALL(IF(AllMunicipalities!$A$2:$A$2183=KV$2, ROW(AllMunicipalities!$A$2:$A$2183) - ROW(KS$2) + 1), ROWS(KV$3:KV3)))) -> ALMONT | KW3: =IF(ROWS(KW$3:KW3)>KW$1, "", INDEX(AllMunicipalities!$D$2:$D$2183, SMALL(IF(AllMunicipalities!$A$2:$A$2183=KW$2, ROW(AllMunicipalities!$A$2:$A$2183) - ROW(KT$2) + 1), ROWS(KW$3:KW3)))) ->  | KX3: =IF(ROWS(KX$3:KX3)>KX$1, "", INDEX(AllMunicipalities!$D$2:$D$2183, SMALL(IF(AllMunicipalities!$A$2:$A$2183=KX$2, ROW(AllMunicipalities!$A$2:$A$2183) - ROW(KU$2) + 1), ROWS(KX$3:KX3)))) -> GREATER LAPEER TRANSPORTATION AUTHORITY | KY3: COUNTY | KZ3: =IF(ROWS(KZ$3:KZ3)>KZ$1, "", INDEX(AllMunicipalities!$D$2:$D$2183, SMALL(IF(AllMunicipalities!$A$2:$A$2183=KZ$2, ROW(AllMunicipalities!$A$2:$A$2183) - ROW(KW$2) + 1), ROWS(KZ$3:KZ3)))) -> LEELANAU | LA3: =IF(ROWS(LA$3:LA3)>LA$1, "", INDEX(AllMunicipalities!$D$2:$D$2183, SMALL(IF(AllMunicipalities!$A$2:$A$2183=LA$2, ROW(AllMunicipalities!$A$2:$A$2183) - ROW(KX$2) + 1), ROWS(LA$3:LA3)))) -> TRAVERSE CITY | LB3: =IF(ROWS(LB$3:LB3)>LB$1, "", INDEX(AllMunicipalities!$D$2:$D$2183, SMALL(IF(AllMunicipalities!$A$2:$A$2183=LB$2, ROW(AllMunicipalities!$A$2:$A$2183) - ROW(KY$2) + 1), ROWS(LB$3:LB3)))) -> EMPIRE | LC3: =IF(ROWS(LC$3:LC3)>LC$1, "", INDEX(AllMunicipalities!$D$2:$D$2183, SMALL(IF(AllMunicipalities!$A$2:$A$2183=LC$2, ROW(AllMunicipalities!$A$2:$A$2183) - ROW(KZ$2) + 1), ROWS(LC$3:LC3)))) -> BINGHAM | LD3: =IF(ROWS(LD$3:LD3)>LD$1, "", INDEX(AllMunicipalities!$D$2:$D$2183, SMALL(IF(AllMunicipalities!$A$2:$A$2183=LD$2, ROW(AllMunicipalities!$A$2:$A$2183) - ROW(LA$2) + 1), ROWS(LD$3:LD3)))) ->  | LE3: =IF(ROWS(LE$3:LE3)>LE$1, "", INDEX(AllMunicipalities!$D$2:$D$2183, SMALL(IF(AllMunicipalities!$A$2:$A$2183=LE$2, ROW(AllMunicipalities!$A$2:$A$2183) - ROW(LB$2) + 1), ROWS(LE$3:LE3)))) -> SUTTONS BAY/BINGHAM FIRE & RESCUE | LF3: COUNTY | LG3: =IF(ROWS(LG$3:LG3)>LG$1, "", INDEX(AllMunicipalities!$D$2:$D$2183, SMALL(IF(AllMunicipalities!$A$2:$A$2183=LG$2, ROW(AllMunicipalities!$A$2:$A$2183) - ROW(LD$2) + 1), ROWS(LG$3:LG3)))) -> LENAWEE | LH3: =IF(ROWS(LH$3:LH3)>LH$1, "", INDEX(AllMunicipalities!$D$2:$D$2183, SMALL(IF(AllMunicipalities!$A$2:$A$2183=LH$2, ROW(AllMunicipalities!$A$2:$A$2183) - ROW(LE$2) + 1), ROWS(LH$3:LH3)))) -> ADRIAN | LI3: =IF(ROWS(LI$3:LI3)>LI$1, "", INDEX(AllMunicipalities!$D$2:$D$2183, SMALL(IF(AllMunicipalities!$A$2:$A$2183=LI$2, ROW(AllMunicipalities!$A$2:$A$2183) - ROW(LF$2) + 1), ROWS(LI$3:LI3)))) -> ADDISON | LJ3: =IF(ROWS(LJ$3:LJ3)>LJ$1, "", INDEX(AllMunicipalities!$D$2:$D$2183, SMALL(IF(AllMunicipalities!$A$2:$A$2183=LJ$2, ROW(AllMunicipalities!$A$2:$A$2183) - ROW(LG$2) + 1), ROWS(LJ$3:LJ3)))) -> ADRIAN | LK3: =IF(ROWS(LK$3:LK3)>LK$1, "", INDEX(AllMunicipalities!$D$2:$D$2183, SMALL(IF(AllMunicipalities!$A$2:$A$2183=LK$2, ROW(AllMunicipalities!$A$2:$A$2183) - ROW(LH$2) + 1), ROWS(LK$3:LK3)))) ->  | LL3: =IF(ROWS(LL$3:LL3)>LL$1, "", INDEX(AllMunicipalities!$D$2:$D$2183, SMALL(IF(AllMunicipalities!$A$2:$A$2183=LL$2, ROW(AllMunicipalities!$A$2:$A$2183) - ROW(LI$2) + 1), ROWS(LL$3:LL3)))) -> CLINTON TOWNSHIP PUBLIC LIBRARY | LM3: COUNTY | LN3: =IF(ROWS(LN$3:LN3)>LN$1, "", INDEX(AllMunicipalities!$D$2:$D$2183, SMALL(IF(AllMunicipalities!$A$2:$A$2183=LN$2, ROW(AllMunicipalities!$A$2:$A$2183) - ROW(LK$2) + 1), ROWS(LN$3:LN3)))) -> LIVINGSTON | LO3: =IF(ROWS(LO$3:LO3)>LO$1, "", INDEX(AllMunicipalities!$D$2:$D$2183, SMALL(IF(AllMunicipalities!$A$2:$A$2183=LO$2, ROW(AllMunicipalities!$A$2:$A$2183) - ROW(LL$2) + 1), ROWS(LO$3:LO3)))) -> BRIGHTON | LP3: =IF(ROWS(LP$3:LP3)>LP$1, "", INDEX(AllMunicipalities!$D$2:$D$2183, SMALL(IF(AllMunicipalities!$A$2:$A$2183=LP$2, ROW(AllMunicipalities!$A$2:$A$2183) - ROW(LM$2) + 1), ROWS(LP$3:LP3)))) -> FOWLERVILLE | LQ3: =IF(ROWS(LQ$3:LQ3)>LQ$1, "", INDEX(AllMunicipalities!$D$2:$D$2183, SMALL(IF(AllMunicipalities!$A$2:$A$2183=LQ$2, ROW(AllMunicipalities!$A$2:$A$2183) - ROW(LN$2) + 1), ROWS(LQ$3:LQ3)))) -> BRIGHTON | LR3: =IF(ROWS(LR$3:LR3)>LR$1, "", INDEX(AllMunicipalities!$D$2:$D$2183, SMALL(IF(AllMunicipalities!$A$2:$A$2183=LR$2, ROW(AllMunicipalities!$A$2:$A$2183) - ROW(LO$2) + 1), ROWS(LR$3:LR3)))) ->  | LS3: =IF(ROWS(LS$3:LS3)>LS$1, "", INDEX(AllMunicipalities!$D$2:$D$2183, SMALL(IF(AllMunicipalities!$A$2:$A$2183=LS$2, ROW(AllMunicipalities!$A$2:$A$2183) - ROW(LP$2) + 1), ROWS(LS$3:LS3)))) -> BRIGHTON AREA FIRE AUTHORITY | LT3: COUNTY | LU3: =IF(ROWS(LU$3:LU3)>LU$1, "", INDEX(AllMunicipalities!$D$2:$D$2183, SMALL(IF(AllMunicipalities!$A$2:$A$2183=LU$2, ROW(AllMunicipalities!$A$2:$A$2183) - ROW(LR$2) + 1), ROWS(LU$3:LU3)))) -> LUCE | LV3: =IF(ROWS(LV$3:LV3)>LV$1, "", INDEX(AllMunicipalities!$D$2:$D$2183, SMALL(IF(AllMunicipalities!$A$2:$A$2183=LV$2, ROW(AllMunicipalities!$A$2:$A$2183) - ROW(LS$2) + 1), ROWS(LV$3:LV3)))) ->  | LW3: =IF(ROWS(LW$3:LW3)>LW$1, "", INDEX(AllMunicipalities!$D$2:$D$2183, SMALL(IF(AllMunicipalities!$A$2:$A$2183=LW$2, ROW(AllMunicipalities!$A$2:$A$2183) - ROW(LT$2) + 1), ROWS(LW$3:LW3)))) -> NEWBERRY | LX3: =IF(ROWS(LX$3:LX3)>LX$1, "", INDEX(AllMunicipalities!$D$2:$D$2183, SMALL(IF(AllMunicipalities!$A$2:$A$2183=LX$2, ROW(AllMunicipalities!$A$2:$A$2183) - ROW(LU$2) + 1), ROWS(LX$3:LX3)))) -> COLUMBUS | LY3: =IF(ROWS(LY$3:LY3)>LY$1, "", INDEX(AllMunicipalities!$D$2:$D$2183, SMALL(IF(AllMunicipalities!$A$2:$A$2183=LY$2, ROW(AllMunicipalities!$A$2:$A$2183) - ROW(LV$2) + 1), ROWS(LY$3:LY3)))) ->  | LZ3: =IF(ROWS(LZ$3:LZ3)>LZ$1, "", INDEX(AllMunicipalities!$D$2:$D$2183, SMALL(IF(AllMunicipalities!$A$2:$A$2183=LZ$2, ROW(AllMunicipalities!$A$2:$A$2183) - ROW(LW$2) + 1), ROWS(LZ$3:LZ3)))) ->  | MA3: COUNTY | MB3: =IF(ROWS(MB$3:MB3)>MB$1, "", INDEX(AllMunicipalities!$D$2:$D$2183, SMALL(IF(AllMunicipalities!$A$2:$A$2183=MB$2, ROW(AllMunicipalities!$A$2:$A$2183) - ROW(LY$2) + 1), ROWS(MB$3:MB3)))) -> MACKINAC | MC3: =IF(ROWS(MC$3:MC3)>MC$1, "", INDEX(AllMunicipalities!$D$2:$D$2183, SMALL(IF(AllMunicipalities!$A$2:$A$2183=MC$2, ROW(AllMunicipalities!$A$2:$A$2183) - ROW(LZ$2) + 1), ROWS(MC$3:MC3)))) -> MACKINAC ISLAND | MD3: =IF(ROWS(MD$3:MD3)>MD$1, "", INDEX(AllMunicipalities!$D$2:$D$2183, SMALL(IF(AllMunicipalities!$A$2:$A$2183=MD$2, ROW(AllMunicipalities!$A$2:$A$2183) - ROW(MA$2) + 1), ROWS(MD$3:MD3)))) ->  | ME3: =IF(ROWS(ME$3:ME3)>ME$1, "", INDEX(AllMunicipalities!$D$2:$D$2183, SMALL(IF(AllMunicipalities!$A$2:$A$2183=ME$2, ROW(AllMunicipalities!$A$2:$A$2183) - ROW(MB$2) + 1), ROWS(ME$3:ME3)))) -> BOIS BLANC | MF3: =IF(ROWS(MF$3:MF3)>MF$1, "", INDEX(AllMunicipalities!$D$2:$D$2183, SMALL(IF(AllMunicipalities!$A$2:$A$2183=MF$2, ROW(AllMunicipalities!$A$2:$A$2183) - ROW(MC$2) + 1), ROWS(MF$3:MF3)))) ->  | MG3: =IF(ROWS(MG$3:MG3)>MG$1, "", INDEX(AllMunicipalities!$D$2:$D$2183, SMALL(IF(AllMunicipalities!$A$2:$A$2183=MG$2, ROW(AllMunicipalities!$A$2:$A$2183) - ROW(MD$2) + 1), ROWS(MG$3:MG3)))) ->  | MH3: COUNTY | MI3: =IF(ROWS(MI$3:MI3)>MI$1, "", INDEX(AllMunicipalities!$D$2:$D$2183, SMALL(IF(AllMunicipalities!$A$2:$A$2183=MI$2, ROW(AllMunicipalities!$A$2:$A$2183) - ROW(MF$2) + 1), ROWS(MI$3:MI3)))) -> MACOMB | MJ3: =IF(ROWS(MJ$3:MJ3)>MJ$1, "", INDEX(AllMunicipalities!$D$2:$D$2183, SMALL(IF(AllMunicipalities!$A$2:$A$2183=MJ$2, ROW(AllMunicipalities!$A$2:$A$2183) - ROW(MG$2) + 1), ROWS(MJ$3:MJ3)))) -> CENTER LINE | MK3: =IF(ROWS(MK$3:MK3)>MK$1, "", INDEX(AllMunicipalities!$D$2:$D$2183, SMALL(IF(AllMunicipalities!$A$2:$A$2183=MK$2, ROW(AllMunicipalities!$A$2:$A$2183) - ROW(MH$2) + 1), ROWS(MK$3:MK3)))) -> ARMADA | ML3: =IF(ROWS(ML$3:ML3)>ML$1, "", INDEX(AllMunicipalities!$D$2:$D$2183, SMALL(IF(AllMunicipalities!$A$2:$A$2183=ML$2, ROW(AllMunicipalities!$A$2:$A$2183) - ROW(MI$2) + 1), ROWS(ML$3:ML3)))) -> ARMADA | MM3: =IF(ROWS(MM$3:MM3)>MM$1, "", INDEX(AllMunicipalities!$D$2:$D$2183, SMALL(IF(AllMunicipalities!$A$2:$A$2183=MM$2, ROW(AllMunicipalities!$A$2:$A$2183) - ROW(MJ$2) + 1), ROWS(MM$3:MM3)))) -> MACOMB CC | MN3: =IF(ROWS(MN$3:MN3)>MN$1, "", INDEX(AllMunicipalities!$D$2:$D$2183, SMALL(IF(AllMunicipalities!$A$2:$A$2183=MN$2, ROW(AllMunicipalities!$A$2:$A$2183) - ROW(MK$2) + 1), ROWS(MN$3:MN3)))) -> MACOMB COUNTY ZOOLOGICAL AUTHORITY | MO3: COUNTY | MP3: =IF(ROWS(MP$3:MP3)>MP$1, "", INDEX(AllMunicipalities!$D$2:$D$2183, SMALL(IF(AllMunicipalities!$A$2:$A$2183=MP$2, ROW(AllMunicipalities!$A$2:$A$2183) - ROW(MM$2) + 1), ROWS(MP$3:MP3)))) -> MANISTEE | MQ3: =IF(ROWS(MQ$3:MQ3)>MQ$1, "", INDEX(AllMunicipalities!$D$2:$D$2183, SMALL(IF(AllMunicipalities!$A$2:$A$2183=MQ$2, ROW(AllMunicipalities!$A$2:$A$2183) - ROW(MN$2) + 1), ROWS(MQ$3:MQ3)))) -> MANISTEE | MR3: =IF(ROWS(MR$3:MR3)>MR$1, "", INDEX(AllMunicipalities!$D$2:$D$2183, SMALL(IF(AllMunicipalities!$A$2:$A$2183=MR$2, ROW(AllMunicipalities!$A$2:$A$2183) - ROW(MO$2) + 1), ROWS(MR$3:MR3)))) -> BEAR LAKE | MS3: =IF(ROWS(MS$3:MS3)>MS$1, "", INDEX(AllMunicipalities!$D$2:$D$2183, SMALL(IF(AllMunicipalities!$A$2:$A$2183=MS$2, ROW(AllMunicipalities!$A$2:$A$2183) - ROW(MP$2) + 1), ROWS(MS$3:MS3)))) -> ARCADIA | MT3: =IF(ROWS(MT$3:MT3)>MT$1, "", INDEX(AllMunicipalities!$D$2:$D$2183, SMALL(IF(AllMunicipalities!$A$2:$A$2183=MT$2, ROW(AllMunicipalities!$A$2:$A$2183) - ROW(MQ$2) + 1), ROWS(MT$3:MT3)))) -> WEST SHORE CC | MU3: =IF(ROWS(MU$3:MU3)>MU$1, "", INDEX(AllMunicipalities!$D$2:$D$2183, SMALL(IF(AllMunicipalities!$A$2:$A$2183=MU$2, ROW(AllMunicipalities!$A$2:$A$2183) - ROW(MR$2) + 1), ROWS(MU$3:MU3)))) ->  | MV3: COUNTY | MW3: =IF(ROWS(MW$3:MW3)>MW$1, "", INDEX(AllMunicipalities!$D$2:$D$2183, SMALL(IF(AllMunicipalities!$A$2:$A$2183=MW$2, ROW(AllMunicipalities!$A$2:$A$2183) - ROW(MT$2) + 1), ROWS(MW$3:MW3)))) -> MARQUETTE | MX3: =IF(ROWS(MX$3:MX3)>MX$1, "", INDEX(AllMunicipalities!$D$2:$D$2183, SMALL(IF(AllMunicipalities!$A$2:$A$2183=MX$2, ROW(AllMunicipalities!$A$2:$A$2183) - ROW(MU$2) + 1), ROWS(MX$3:MX3)))) -> ISHPEMING | MY3: =IF(ROWS(MY$3:MY3)>MY$1, "", INDEX(AllMunicipalities!$D$2:$D$2183, SMALL(IF(AllMunicipalities!$A$2:$A$2183=MY$2, ROW(AllMunicipalities!$A$2:$A$2183) - ROW(MV$2) + 1), ROWS(MY$3:MY3)))) ->  | MZ3: =IF(ROWS(MZ$3:MZ3)>MZ$1, "", INDEX(AllMunicipalities!$D$2:$D$2183, SMALL(IF(AllMunicipalities!$A$2:$A$2183=MZ$2, ROW(AllMunicipalities!$A$2:$A$2183) - ROW(MW$2) + 1), ROWS(MZ$3:MZ3)))) -> CHAMPION | NA3: =IF(ROWS(NA$3:NA3)>NA$1, "", INDEX(AllMunicipalities!$D$2:$D$2183, SMALL(IF(AllMunicipalities!$A$2:$A$2183=NA$2, ROW(AllMunicipalities!$A$2:$A$2183) - ROW(MX$2) + 1), ROWS(NA$3:NA3)))) ->  | NB3: =IF(ROWS(NB$3:NB3)>NB$1, "", INDEX(AllMunicipalities!$D$2:$D$2183, SMALL(IF(AllMunicipalities!$A$2:$A$2183=NB$2, ROW(AllMunicipalities!$A$2:$A$2183) - ROW(MY$2) + 1), ROWS(NB$3:NB3)))) -> IRON ORE HERITAGE RECREATION AUTHORITY | NC3: COUNTY | ND3: =IF(ROWS(ND$3:ND3)>ND$1, "", INDEX(AllMunicipalities!$D$2:$D$2183, SMALL(IF(AllMunicipalities!$A$2:$A$2183=ND$2, ROW(AllMunicipalities!$A$2:$A$2183) - ROW(NA$2) + 1), ROWS(ND$3:ND3)))) -> MASON | NE3: =IF(ROWS(NE$3:NE3)>NE$1, "", INDEX(AllMunicipalities!$D$2:$D$2183, SMALL(IF(AllMunicipalities!$A$2:$A$2183=NE$2, ROW(AllMunicipalities!$A$2:$A$2183) - ROW(NB$2) + 1), ROWS(NE$3:NE3)))) -> LUDINGTON | NF3: =IF(ROWS(NF$3:NF3)>NF$1, "", INDEX(AllMunicipalities!$D$2:$D$2183, SMALL(IF(AllMunicipalities!$A$2:$A$2183=NF$2, ROW(AllMunicipalities!$A$2:$A$2183) - ROW(NC$2) + 1), ROWS(NF$3:NF3)))) -> CUSTER | NG3: =IF(ROWS(NG$3:NG3)>NG$1, "", INDEX(AllMunicipalities!$D$2:$D$2183, SMALL(IF(AllMunicipalities!$A$2:$A$2183=NG$2, ROW(AllMunicipalities!$A$2:$A$2183) - ROW(ND$2) + 1), ROWS(NG$3:NG3)))) -> AMBER | NH3: =IF(ROWS(NH$3:NH3)>NH$1, "", INDEX(AllMunicipalities!$D$2:$D$2183, SMALL(IF(AllMunicipalities!$A$2:$A$2183=NH$2, ROW(AllMunicipalities!$A$2:$A$2183) - ROW(NE$2) + 1), ROWS(NH$3:NH3)))) ->  | NI3: =IF(ROWS(NI$3:NI3)>NI$1, "", INDEX(AllMunicipalities!$D$2:$D$2183, SMALL(IF(AllMunicipalities!$A$2:$A$2183=NI$2, ROW(AllMunicipalities!$A$2:$A$2183) - ROW(NF$2) + 1), ROWS(NI$3:NI3)))) -> MASON COUNTY DISTRICT LIBRARY | NJ3: COUNTY | NK3: =IF(ROWS(NK$3:NK3)>NK$1, "", INDEX(AllMunicipalities!$D$2:$D$2183, SMALL(IF(AllMunicipalities!$A$2:$A$2183=NK$2, ROW(AllMunicipalities!$A$2:$A$2183) - ROW(NH$2) + 1), ROWS(NK$3:NK3)))) -> MECOSTA | NL3: =IF(ROWS(NL$3:NL3)>NL$1, "", INDEX(AllMunicipalities!$D$2:$D$2183, SMALL(IF(AllMunicipalities!$A$2:$A$2183=NL$2, ROW(AllMunicipalities!$A$2:$A$2183) - ROW(NI$2) + 1), ROWS(NL$3:NL3)))) -> BIG RAPIDS | NM3: =IF(ROWS(NM$3:NM3)>NM$1, "", INDEX(AllMunicipalities!$D$2:$D$2183, SMALL(IF(AllMunicipalities!$A$2:$A$2183=NM$2, ROW(AllMunicipalities!$A$2:$A$2183) - ROW(NJ$2) + 1), ROWS(NM$3:NM3)))) -> BARRYTON | NN3: =IF(ROWS(NN$3:NN3)>NN$1, "", INDEX(AllMunicipalities!$D$2:$D$2183, SMALL(IF(AllMunicipalities!$A$2:$A$2183=NN$2, ROW(AllMunicipalities!$A$2:$A$2183) - ROW(NK$2) + 1), ROWS(NN$3:NN3)))) -> AETNA | NO3: =IF(ROWS(NO$3:NO3)>NO$1, "", INDEX(AllMunicipalities!$D$2:$D$2183, SMALL(IF(AllMunicipalities!$A$2:$A$2183=NO$2, ROW(AllMunicipalities!$A$2:$A$2183) - ROW(NL$2) + 1), ROWS(NO$3:NO3)))) ->  | NP3: =IF(ROWS(NP$3:NP3)>NP$1, "", INDEX(AllMunicipalities!$D$2:$D$2183, SMALL(IF(AllMunicipalities!$A$2:$A$2183=NP$2, ROW(AllMunicipalities!$A$2:$A$2183) - ROW(NM$2) + 1), ROWS(NP$3:NP3)))) -> BARRYTON LIBRARY | NQ3: COUNTY | NR3: =IF(ROWS(NR$3:NR3)>NR$1, "", INDEX(AllMunicipalities!$D$2:$D$2183, SMALL(IF(AllMunicipalities!$A$2:$A$2183=NR$2, ROW(AllMunicipalities!$A$2:$A$2183) - ROW(NO$2) + 1), ROWS(NR$3:NR3)))) -> MENOMINEE | NS3: =IF(ROWS(NS$3:NS3)>NS$1, "", INDEX(AllMunicipalities!$D$2:$D$2183, SMALL(IF(AllMunicipalities!$A$2:$A$2183=NS$2, ROW(AllMunicipalities!$A$2:$A$2183) - ROW(NP$2) + 1), ROWS(NS$3:NS3)))) -> MENOMINEE | NT3: =IF(ROWS(NT$3:NT3)>NT$1, "", INDEX(AllMunicipalities!$D$2:$D$2183, SMALL(IF(AllMunicipalities!$A$2:$A$2183=NT$2, ROW(AllMunicipalities!$A$2:$A$2183) - ROW(NQ$2) + 1), ROWS(NT$3:NT3)))) -> CARNEY | NU3: =IF(ROWS(NU$3:NU3)>NU$1, "", INDEX(AllMunicipalities!$D$2:$D$2183, SMALL(IF(AllMunicipalities!$A$2:$A$2183=NU$2, ROW(AllMunicipalities!$A$2:$A$2183) - ROW(NR$2) + 1), ROWS(NU$3:NU3)))) -> CEDARVILLE | NV3: =IF(ROWS(NV$3:NV3)>NV$1, "", INDEX(AllMunicipalities!$D$2:$D$2183, SMALL(IF(AllMunicipalities!$A$2:$A$2183=NV$2, ROW(AllMunicipalities!$A$2:$A$2183) - ROW(NS$2) + 1), ROWS(NV$3:NV3)))) ->  | NW3: =IF(ROWS(NW$3:NW3)>NW$1, "", INDEX(AllMunicipalities!$D$2:$D$2183, SMALL(IF(AllMunicipalities!$A$2:$A$2183=NW$2, ROW(AllMunicipalities!$A$2:$A$2183) - ROW(NT$2) + 1), ROWS(NW$3:NW3)))) ->  | NX3: COUNTY | NY3: =IF(ROWS(NY$3:NY3)>NY$1, "", INDEX(AllMunicipalities!$D$2:$D$2183, SMALL(IF(AllMunicipalities!$A$2:$A$2183=NY$2, ROW(AllMunicipalities!$A$2:$A$2183) - ROW(NV$2) + 1), ROWS(NY$3:NY3)))) -> MIDLAND | NZ3: =IF(ROWS(NZ$3:NZ3)>NZ$1, "", INDEX(AllMunicipalities!$D$2:$D$2183, SMALL(IF(AllMunicipalities!$A$2:$A$2183=NZ$2, ROW(AllMunicipalities!$A$2:$A$2183) - ROW(NW$2) + 1), ROWS(NZ$3:NZ3)))) -> COLEMAN | OA3: =IF(ROWS(OA$3:OA3)>OA$1, "", INDEX(AllMunicipalities!$D$2:$D$2183, SMALL(IF(AllMunicipalities!$A$2:$A$2183=OA$2, ROW(AllMunicipalities!$A$2:$A$2183) - ROW(NX$2) + 1), ROWS(OA$3:OA3)))) -> SANFORD | OB3: =IF(ROWS(OB$3:OB3)>OB$1, "", INDEX(AllMunicipalities!$D$2:$D$2183, SMALL(IF(AllMunicipalities!$A$2:$A$2183=OB$2, ROW(AllMunicipalities!$A$2:$A$2183) - ROW(NY$2) + 1), ROWS(OB$3:OB3)))) -> EDENVILLE | OC3: =IF(ROWS(OC$3:OC3)>OC$1, "", INDEX(AllMunicipalities!$D$2:$D$2183, SMALL(IF(AllMunicipalities!$A$2:$A$2183=OC$2, ROW(AllMunicipalities!$A$2:$A$2183) - ROW(NZ$2) + 1), ROWS(OC$3:OC3)))) ->  | OD3: =IF(ROWS(OD$3:OD3)>OD$1, "", INDEX(AllMunicipalities!$D$2:$D$2183, SMALL(IF(AllMunicipalities!$A$2:$A$2183=OD$2, ROW(AllMunicipalities!$A$2:$A$2183) - ROW(OA$2) + 1), ROWS(OD$3:OD3)))) -> COLEMAN AREA LIBRARY | OE3: COUNTY | OF3: =IF(ROWS(OF$3:OF3)>OF$1, "", INDEX(AllMunicipalities!$D$2:$D$2183, SMALL(IF(AllMunicipalities!$A$2:$A$2183=OF$2, ROW(AllMunicipalities!$A$2:$A$2183) - ROW(OC$2) + 1), ROWS(OF$3:OF3)))) -> MISSAUKEE | OG3: =IF(ROWS(OG$3:OG3)>OG$1, "", INDEX(AllMunicipalities!$D$2:$D$2183, SMALL(IF(AllMunicipalities!$A$2:$A$2183=OG$2, ROW(AllMunicipalities!$A$2:$A$2183) - ROW(OD$2) + 1), ROWS(OG$3:OG3)))) -> LAKE CITY | OH3: =IF(ROWS(OH$3:OH3)>OH$1, "", INDEX(AllMunicipalities!$D$2:$D$2183, SMALL(IF(AllMunicipalities!$A$2:$A$2183=OH$2, ROW(AllMunicipalities!$A$2:$A$2183) - ROW(OE$2) + 1), ROWS(OH$3:OH3)))) ->  | OI3: =IF(ROWS(OI$3:OI3)>OI$1, "", INDEX(AllMunicipalities!$D$2:$D$2183, SMALL(IF(AllMunicipalities!$A$2:$A$2183=OI$2, ROW(AllMunicipalities!$A$2:$A$2183) - ROW(OF$2) + 1), ROWS(OI$3:OI3)))) -> AETNA | OJ3: =IF(ROWS(OJ$3:OJ3)>OJ$1, "", INDEX(AllMunicipalities!$D$2:$D$2183, SMALL(IF(AllMunicipalities!$A$2:$A$2183=OJ$2, ROW(AllMunicipalities!$A$2:$A$2183) - ROW(OG$2) + 1), ROWS(OJ$3:OJ3)))) ->  | OK3: =IF(ROWS(OK$3:OK3)>OK$1, "", INDEX(AllMunicipalities!$D$2:$D$2183, SMALL(IF(AllMunicipalities!$A$2:$A$2183=OK$2, ROW(AllMunicipalities!$A$2:$A$2183) - ROW(OH$2) + 1), ROWS(OK$3:OK3)))) -> MISSAUKEE DISTRICT LIBRARY | OL3: COUNTY | OM3: =IF(ROWS(OM$3:OM3)>OM$1, "", INDEX(AllMunicipalities!$D$2:$D$2183, SMALL(IF(AllMunicipalities!$A$2:$A$2183=OM$2, ROW(AllMunicipalities!$A$2:$A$2183) - ROW(OJ$2) + 1), ROWS(OM$3:OM3)))) -> MONROE | ON3: =IF(ROWS(ON$3:ON3)>ON$1, "", INDEX(AllMunicipalities!$D$2:$D$2183, SMALL(IF(AllMunicipalities!$A$2:$A$2183=ON$2, ROW(AllMunicipalities!$A$2:$A$2183) - ROW(OK$2) + 1), ROWS(ON$3:ON3)))) -> LUNA PIER | OO3: =IF(ROWS(OO$3:OO3)>OO$1, "", INDEX(AllMunicipalities!$D$2:$D$2183, SMALL(IF(AllMunicipalities!$A$2:$A$2183=OO$2, ROW(AllMunicipalities!$A$2:$A$2183) - ROW(OL$2) + 1), ROWS(OO$3:OO3)))) -> CARLETON | OP3: =IF(ROWS(OP$3:OP3)>OP$1, "", INDEX(AllMunicipalities!$D$2:$D$2183, SMALL(IF(AllMunicipalities!$A$2:$A$2183=OP$2, ROW(AllMunicipalities!$A$2:$A$2183) - ROW(OM$2) + 1), ROWS(OP$3:OP3)))) -> ASH | OQ3: =IF(ROWS(OQ$3:OQ3)>OQ$1, "", INDEX(AllMunicipalities!$D$2:$D$2183, SMALL(IF(AllMunicipalities!$A$2:$A$2183=OQ$2, ROW(AllMunicipalities!$A$2:$A$2183) - ROW(ON$2) + 1), ROWS(OQ$3:OQ3)))) -> MONROE CC | OR3: =IF(ROWS(OR$3:OR3)>OR$1, "", INDEX(AllMunicipalities!$D$2:$D$2183, SMALL(IF(AllMunicipalities!$A$2:$A$2183=OR$2, ROW(AllMunicipalities!$A$2:$A$2183) - ROW(OO$2) + 1), ROWS(OR$3:OR3)))) -> MONROE COUNTY LIBRARY SYSTEM | OS3: COUNTY | OT3: =IF(ROWS(OT$3:OT3)>OT$1, "", INDEX(AllMunicipalities!$D$2:$D$2183, SMALL(IF(AllMunicipalities!$A$2:$A$2183=OT$2, ROW(AllMunicipalities!$A$2:$A$2183) - ROW(OQ$2) + 1), ROWS(OT$3:OT3)))) -> MONTCALM | OU3: =IF(ROWS(OU$3:OU3)>OU$1, "", INDEX(AllMunicipalities!$D$2:$D$2183, SMALL(IF(AllMunicipalities!$A$2:$A$2183=OU$2, ROW(AllMunicipalities!$A$2:$A$2183) - ROW(OR$2) + 1), ROWS(OU$3:OU3)))) -> CARSON CITY | OV3: =IF(ROWS(OV$3:OV3)>OV$1, "", INDEX(AllMunicipalities!$D$2:$D$2183, SMALL(IF(AllMunicipalities!$A$2:$A$2183=OV$2, ROW(AllMunicipalities!$A$2:$A$2183) - ROW(OS$2) + 1), ROWS(OV$3:OV3)))) -> EDMORE | OW3: =IF(ROWS(OW$3:OW3)>OW$1, "", INDEX(AllMunicipalities!$D$2:$D$2183, SMALL(IF(AllMunicipalities!$A$2:$A$2183=OW$2, ROW(AllMunicipalities!$A$2:$A$2183) - ROW(OT$2) + 1), ROWS(OW$3:OW3)))) -> BELVIDERE | OX3: =IF(ROWS(OX$3:OX3)>OX$1, "", INDEX(AllMunicipalities!$D$2:$D$2183, SMALL(IF(AllMunicipalities!$A$2:$A$2183=OX$2, ROW(AllMunicipalities!$A$2:$A$2183) - ROW(OU$2) + 1), ROWS(OX$3:OX3)))) -> MONTCALM CC | OY3: =IF(ROWS(OY$3:OY3)>OY$1, "", INDEX(AllMunicipalities!$D$2:$D$2183, SMALL(IF(AllMunicipalities!$A$2:$A$2183=OY$2, ROW(AllMunicipalities!$A$2:$A$2183) - ROW(OV$2) + 1), ROWS(OY$3:OY3)))) -> FLAT RIVER COMMUNITY LIBRARY | OZ3: COUNTY | PA3: =IF(ROWS(PA$3:PA3)>PA$1, "", INDEX(AllMunicipalities!$D$2:$D$2183, SMALL(IF(AllMunicipalities!$A$2:$A$2183=PA$2, ROW(AllMunicipalities!$A$2:$A$2183) - ROW(OX$2) + 1), ROWS(PA$3:PA3)))) -> MONTMORENCY | PB3: =IF(ROWS(PB$3:PB3)>PB$1, "", INDEX(AllMunicipalities!$D$2:$D$2183, SMALL(IF(AllMunicipalities!$A$2:$A$2183=PB$2, ROW(AllMunicipalities!$A$2:$A$2183) - ROW(OY$2) + 1), ROWS(PB$3:PB3)))) ->  | PC3: =IF(ROWS(PC$3:PC3)>PC$1, "", INDEX(AllMunicipalities!$D$2:$D$2183, SMALL(IF(AllMunicipalities!$A$2:$A$2183=PC$2, ROW(AllMunicipalities!$A$2:$A$2183) - ROW(OZ$2) + 1), ROWS(PC$3:PC3)))) -> HILLMAN | PD3: =IF(ROWS(PD$3:PD3)>PD$1, "", INDEX(AllMunicipalities!$D$2:$D$2183, SMALL(IF(AllMunicipalities!$A$2:$A$2183=PD$2, ROW(AllMunicipalities!$A$2:$A$2183) - ROW(PA$2) + 1), ROWS(PD$3:PD3)))) -> ALBERT | PE3: =IF(ROWS(PE$3:PE3)>PE$1, "", INDEX(AllMunicipalities!$D$2:$D$2183, SMALL(IF(AllMunicipalities!$A$2:$A$2183=PE$2, ROW(AllMunicipalities!$A$2:$A$2183) - ROW(PB$2) + 1), ROWS(PE$3:PE3)))) ->  | PF3: =IF(ROWS(PF$3:PF3)>PF$1, "", INDEX(AllMunicipalities!$D$2:$D$2183, SMALL(IF(AllMunicipalities!$A$2:$A$2183=PF$2, ROW(AllMunicipalities!$A$2:$A$2183) - ROW(PC$2) + 1), ROWS(PF$3:PF3)))) ->  | PG3: COUNTY | PH3: =IF(ROWS(PH$3:PH3)>PH$1, "", INDEX(AllMunicipalities!$D$2:$D$2183, SMALL(IF(AllMunicipalities!$A$2:$A$2183=PH$2, ROW(AllMunicipalities!$A$2:$A$2183) - ROW(PE$2) + 1), ROWS(PH$3:PH3)))) -> MUSKEGON | PI3: =IF(ROWS(PI$3:PI3)>PI$1, "", INDEX(AllMunicipalities!$D$2:$D$2183, SMALL(IF(AllMunicipalities!$A$2:$A$2183=PI$2, ROW(AllMunicipalities!$A$2:$A$2183) - ROW(PF$2) + 1), ROWS(PI$3:PI3)))) -> MONTAGUE | PJ3: =IF(ROWS(PJ$3:PJ3)>PJ$1, "", INDEX(AllMunicipalities!$D$2:$D$2183, SMALL(IF(AllMunicipalities!$A$2:$A$2183=PJ$2, ROW(AllMunicipalities!$A$2:$A$2183) - ROW(PG$2) + 1), ROWS(PJ$3:PJ3)))) -> CASNOVIA | PK3: =IF(ROWS(PK$3:PK3)>PK$1, "", INDEX(AllMunicipalities!$D$2:$D$2183, SMALL(IF(AllMunicipalities!$A$2:$A$2183=PK$2, ROW(AllMunicipalities!$A$2:$A$2183) - ROW(PH$2) + 1), ROWS(PK$3:PK3)))) -> BLUE LAKE | PL3: =IF(ROWS(PL$3:PL3)>PL$1, "", INDEX(AllMunicipalities!$D$2:$D$2183, SMALL(IF(AllMunicipalities!$A$2:$A$2183=PL$2, ROW(AllMunicipalities!$A$2:$A$2183) - ROW(PI$2) + 1), ROWS(PL$3:PL3)))) -> MUSKEGON CC | PM3: =IF(ROWS(PM$3:PM3)>PM$1, "", INDEX(AllMunicipalities!$D$2:$D$2183, SMALL(IF(AllMunicipalities!$A$2:$A$2183=PM$2, ROW(AllMunicipalities!$A$2:$A$2183) - ROW(PJ$2) + 1), ROWS(PM$3:PM3)))) -> WHITE LAKE AMBULANCE AUTHORITY | PN3: COUNTY | PO3: =IF(ROWS(PO$3:PO3)>PO$1, "", INDEX(AllMunicipalities!$D$2:$D$2183, SMALL(IF(AllMunicipalities!$A$2:$A$2183=PO$2, ROW(AllMunicipalities!$A$2:$A$2183) - ROW(PL$2) + 1), ROWS(PO$3:PO3)))) -> NEWAYGO | PP3: =IF(ROWS(PP$3:PP3)>PP$1, "", INDEX(AllMunicipalities!$D$2:$D$2183, SMALL(IF(AllMunicipalities!$A$2:$A$2183=PP$2, ROW(AllMunicipalities!$A$2:$A$2183) - ROW(PM$2) + 1), ROWS(PP$3:PP3)))) -> FREMONT | PQ3: =IF(ROWS(PQ$3:PQ3)>PQ$1, "", INDEX(AllMunicipalities!$D$2:$D$2183, SMALL(IF(AllMunicipalities!$A$2:$A$2183=PQ$2, ROW(AllMunicipalities!$A$2:$A$2183) - ROW(PN$2) + 1), ROWS(PQ$3:PQ3)))) -> HESPERIA | PR3: =IF(ROWS(PR$3:PR3)>PR$1, "", INDEX(AllMunicipalities!$D$2:$D$2183, SMALL(IF(AllMunicipalities!$A$2:$A$2183=PR$2, ROW(AllMunicipalities!$A$2:$A$2183) - ROW(PO$2) + 1), ROWS(PR$3:PR3)))) -> ASHLAND | PS3: =IF(ROWS(PS$3:PS3)>PS$1, "", INDEX(AllMunicipalities!$D$2:$D$2183, SMALL(IF(AllMunicipalities!$A$2:$A$2183=PS$2, ROW(AllMunicipalities!$A$2:$A$2183) - ROW(PP$2) + 1), ROWS(PS$3:PS3)))) ->  | PT3: =IF(ROWS(PT$3:PT3)>PT$1, "", INDEX(AllMunicipalities!$D$2:$D$2183, SMALL(IF(AllMunicipalities!$A$2:$A$2183=PT$2, ROW(AllMunicipalities!$A$2:$A$2183) - ROW(PQ$2) + 1), ROWS(PT$3:PT3)))) -> GRANT AREA DISTRICT LIBRARY | PU3: COUNTY | PV3: =IF(ROWS(PV$3:PV3)>PV$1, "", INDEX(AllMunicipalities!$D$2:$D$2183, SMALL(IF(AllMunicipalities!$A$2:$A$2183=PV$2, ROW(AllMunicipalities!$A$2:$A$2183) - ROW(PS$2) + 1), ROWS(PV$3:PV3)))) -> OAKLAND | PW3: =IF(ROWS(PW$3:PW3)>PW$1, "", INDEX(AllMunicipalities!$D$2:$D$2183, SMALL(IF(AllMunicipalities!$A$2:$A$2183=PW$2, ROW(AllMunicipalities!$A$2:$A$2183) - ROW(PT$2) + 1), ROWS(PW$3:PW3)))) -> AUBURN HILLS | PX3: =IF(ROWS(PX$3:PX3)>PX$1, "", INDEX(AllMunicipalities!$D$2:$D$2183, SMALL(IF(AllMunicipalities!$A$2:$A$2183=PX$2, ROW(AllMunicipalities!$A$2:$A$2183) - ROW(PU$2) + 1), ROWS(PX$3:PX3)))) -> BEVERLY HILLS | PY3: =IF(ROWS(PY$3:PY3)>PY$1, "", INDEX(AllMunicipalities!$D$2:$D$2183, SMALL(IF(AllMunicipalities!$A$2:$A$2183=PY$2, ROW(AllMunicipalities!$A$2:$A$2183) - ROW(PV$2) + 1), ROWS(PY$3:PY3)))) -> ADDISON | PZ3: =IF(ROWS(PZ$3:PZ3)>PZ$1, "", INDEX(AllMunicipalities!$D$2:$D$2183, SMALL(IF(AllMunicipalities!$A$2:$A$2183=PZ$2, ROW(AllMunicipalities!$A$2:$A$2183) - ROW(PW$2) + 1), ROWS(PZ$3:PZ3)))) -> OAKLAND CC | QA3: =IF(ROWS(QA$3:QA3)>QA$1, "", INDEX(AllMunicipalities!$D$2:$D$2183, SMALL(IF(AllMunicipalities!$A$2:$A$2183=QA$2, ROW(AllMunicipalities!$A$2:$A$2183) - ROW(PX$2) + 1), ROWS(QA$3:QA3)))) -> HURON-CLINTON METROPOLITAN AUTHORITY | QB3: COUNTY | QC3: =IF(ROWS(QC$3:QC3)>QC$1, "", INDEX(AllMunicipalities!$D$2:$D$2183, SMALL(IF(AllMunicipalities!$A$2:$A$2183=QC$2, ROW(AllMunicipalities!$A$2:$A$2183) - ROW(PZ$2) + 1), ROWS(QC$3:QC3)))) -> OCEANA | QD3: =IF(ROWS(QD$3:QD3)>QD$1, "", INDEX(AllMunicipalities!$D$2:$D$2183, SMALL(IF(AllMunicipalities!$A$2:$A$2183=QD$2, ROW(AllMunicipalities!$A$2:$A$2183) - ROW(QA$2) + 1), ROWS(QD$3:QD3)))) -> HART | QE3: =IF(ROWS(QE$3:QE3)>QE$1, "", INDEX(AllMunicipalities!$D$2:$D$2183, SMALL(IF(AllMunicipalities!$A$2:$A$2183=QE$2, ROW(AllMunicipalities!$A$2:$A$2183) - ROW(QB$2) + 1), ROWS(QE$3:QE3)))) -> HESPERIA | QF3: =IF(ROWS(QF$3:QF3)>QF$1, "", INDEX(AllMunicipalities!$D$2:$D$2183, SMALL(IF(AllMunicipalities!$A$2:$A$2183=QF$2, ROW(AllMunicipalities!$A$2:$A$2183) - ROW(QC$2) + 1), ROWS(QF$3:QF3)))) -> BENONA | QG3: =IF(ROWS(QG$3:QG3)>QG$1, "", INDEX(AllMunicipalities!$D$2:$D$2183, SMALL(IF(AllMunicipalities!$A$2:$A$2183=QG$2, ROW(AllMunicipalities!$A$2:$A$2183) - ROW(QD$2) + 1), ROWS(QG$3:QG3)))) ->  | QH3: =IF(ROWS(QH$3:QH3)>QH$1, "", INDEX(AllMunicipalities!$D$2:$D$2183, SMALL(IF(AllMunicipalities!$A$2:$A$2183=QH$2, ROW(AllMunicipalities!$A$2:$A$2183) - ROW(QE$2) + 1), ROWS(QH$3:QH3)))) -> HART AREA LIBRARY AUTHORITY | QI3: COUNTY | QJ3: =IF(ROWS(QJ$3:QJ3)>QJ$1, "", INDEX(AllMunicipalities!$D$2:$D$2183, SMALL(IF(AllMunicipalities!$A$2:$A$2183=QJ$2, ROW(AllMunicipalities!$A$2:$A$2183) - ROW(QG$2) + 1), ROWS(QJ$3:QJ3)))) -> OGEMAW | QK3: =IF(ROWS(QK$3:QK3)>QK$1, "", INDEX(AllMunicipalities!$D$2:$D$2183, SMALL(IF(AllMunicipalities!$A$2:$A$2183=QK$2, ROW(AllMunicipalities!$A$2:$A$2183) - ROW(QH$2) + 1), ROWS(QK$3:QK3)))) -> ROSE CITY | QL3: =IF(ROWS(QL$3:QL3)>QL$1, "", INDEX(AllMunicipalities!$D$2:$D$2183, SMALL(IF(AllMunicipalities!$A$2:$A$2183=QL$2, ROW(AllMunicipalities!$A$2:$A$2183) - ROW(QI$2) + 1), ROWS(QL$3:QL3)))) -> PRESCOTT | QM3: =IF(ROWS(QM$3:QM3)>QM$1, "", INDEX(AllMunicipalities!$D$2:$D$2183, SMALL(IF(AllMunicipalities!$A$2:$A$2183=QM$2, ROW(AllMunicipalities!$A$2:$A$2183) - ROW(QJ$2) + 1), ROWS(QM$3:QM3)))) -> CHURCHILL | QN3: =IF(ROWS(QN$3:QN3)>QN$1, "", INDEX(AllMunicipalities!$D$2:$D$2183, SMALL(IF(AllMunicipalities!$A$2:$A$2183=QN$2, ROW(AllMunicipalities!$A$2:$A$2183) - ROW(QK$2) + 1), ROWS(QN$3:QN3)))) ->  | QO3: =IF(ROWS(QO$3:QO3)>QO$1, "", INDEX(AllMunicipalities!$D$2:$D$2183, SMALL(IF(AllMunicipalities!$A$2:$A$2183=QO$2, ROW(AllMunicipalities!$A$2:$A$2183) - ROW(QL$2) + 1), ROWS(QO$3:QO3)))) -> OGEMAW COUNTY EMERGENCY MEDICAL SERVICES AUTHORITY | QP3: COUNTY | QQ3: =IF(ROWS(QQ$3:QQ3)>QQ$1, "", INDEX(AllMunicipalities!$D$2:$D$2183, SMALL(IF(AllMunicipalities!$A$2:$A$2183=QQ$2, ROW(AllMunicipalities!$A$2:$A$2183) - ROW(QN$2) + 1), ROWS(QQ$3:QQ3)))) -> ONTONAGON | QR3: =IF(ROWS(QR$3:QR3)>QR$1, "", INDEX(AllMunicipalities!$D$2:$D$2183, SMALL(IF(AllMunicipalities!$A$2:$A$2183=QR$2, ROW(AllMunicipalities!$A$2:$A$2183) - ROW(QO$2) + 1), ROWS(QR$3:QR3)))) ->  | QS3: =IF(ROWS(QS$3:QS3)>QS$1, "", INDEX(AllMunicipalities!$D$2:$D$2183, SMALL(IF(AllMunicipalities!$A$2:$A$2183=QS$2, ROW(AllMunicipalities!$A$2:$A$2183) - ROW(QP$2) + 1), ROWS(QS$3:QS3)))) -> ONTONAGON | QT3: =IF(ROWS(QT$3:QT3)>QT$1, "", INDEX(AllMunicipalities!$D$2:$D$2183, SMALL(IF(AllMunicipalities!$A$2:$A$2183=QT$2, ROW(AllMunicipalities!$A$2:$A$2183) - ROW(QQ$2) + 1), ROWS(QT$3:QT3)))) -> BERGLAND | QU3: =IF(ROWS(QU$3:QU3)>QU$1, "", INDEX(AllMunicipalities!$D$2:$D$2183, SMALL(IF(AllMunicipalities!$A$2:$A$2183=QU$2, ROW(AllMunicipalities!$A$2:$A$2183) - ROW(QR$2) + 1), ROWS(QU$3:QU3)))) ->  | QV3: =IF(ROWS(QV$3:QV3)>QV$1, "", INDEX(AllMunicipalities!$D$2:$D$2183, SMALL(IF(AllMunicipalities!$A$2:$A$2183=QV$2, ROW(AllMunicipalities!$A$2:$A$2183) - ROW(QS$2) + 1), ROWS(QV$3:QV3)))) ->  | QW3: COUNTY | QX3: =IF(ROWS(QX$3:QX3)>QX$1, "", INDEX(AllMunicipalities!$D$2:$D$2183, SMALL(IF(AllMunicipalities!$A$2:$A$2183=QX$2, ROW(AllMunicipalities!$A$2:$A$2183) - ROW(QU$2) + 1), ROWS(QX$3:QX3)))) -> OSCEOLA | QY3: =IF(ROWS(QY$3:QY3)>QY$1, "", INDEX(AllMunicipalities!$D$2:$D$2183, SMALL(IF(AllMunicipalities!$A$2:$A$2183=QY$2, ROW(AllMunicipalities!$A$2:$A$2183) - ROW(QV$2) + 1), ROWS(QY$3:QY3)))) -> EVART | QZ3: =IF(ROWS(QZ$3:QZ3)>QZ$1, "", INDEX(AllMunicipalities!$D$2:$D$2183, SMALL(IF(AllMunicipalities!$A$2:$A$2183=QZ$2, ROW(AllMunicipalities!$A$2:$A$2183) - ROW(QW$2) + 1), ROWS(QZ$3:QZ3)))) -> HERSEY | RA3: =IF(ROWS(RA$3:RA3)>RA$1, "", INDEX(AllMunicipalities!$D$2:$D$2183, SMALL(IF(AllMunicipalities!$A$2:$A$2183=RA$2, ROW(AllMunicipalities!$A$2:$A$2183) - ROW(QX$2) + 1), ROWS(RA$3:RA3)))) -> BURDELL | RB3: =IF(ROWS(RB$3:RB3)>RB$1, "", INDEX(AllMunicipalities!$D$2:$D$2183, SMALL(IF(AllMunicipalities!$A$2:$A$2183=RB$2, ROW(AllMunicipalities!$A$2:$A$2183) - ROW(QY$2) + 1), ROWS(RB$3:RB3)))) ->  | RC3: =IF(ROWS(RC$3:RC3)>RC$1, "", INDEX(AllMunicipalities!$D$2:$D$2183, SMALL(IF(AllMunicipalities!$A$2:$A$2183=RC$2, ROW(AllMunicipalities!$A$2:$A$2183) - ROW(QZ$2) + 1), ROWS(RC$3:RC3)))) -> REED CITY AREA DISTRICT LIBRARY | RD3: COUNTY | RE3: =IF(ROWS(RE$3:RE3)>RE$1, "", INDEX(AllMunicipalities!$D$2:$D$2183, SMALL(IF(AllMunicipalities!$A$2:$A$2183=RE$2, ROW(AllMunicipalities!$A$2:$A$2183) - ROW(RB$2) + 1), ROWS(RE$3:RE3)))) -> OSCODA | RF3: =IF(ROWS(RF$3:RF3)>RF$1, "", INDEX(AllMunicipalities!$D$2:$D$2183, SMALL(IF(AllMunicipalities!$A$2:$A$2183=RF$2, ROW(AllMunicipalities!$A$2:$A$2183) - ROW(RC$2) + 1), ROWS(RF$3:RF3)))) ->  | RG3: =IF(ROWS(RG$3:RG3)>RG$1, "", INDEX(AllMunicipalities!$D$2:$D$2183, SMALL(IF(AllMunicipalities!$A$2:$A$2183=RG$2, ROW(AllMunicipalities!$A$2:$A$2183) - ROW(RD$2) + 1), ROWS(RG$3:RG3)))) ->  | RH3: =IF(ROWS(RH$3:RH3)>RH$1, "", INDEX(AllMunicipalities!$D$2:$D$2183, SMALL(IF(AllMunicipalities!$A$2:$A$2183=RH$2, ROW(AllMunicipalities!$A$2:$A$2183) - ROW(RE$2) + 1), ROWS(RH$3:RH3)))) -> BIG CREEK | RI3: =IF(ROWS(RI$3:RI3)>RI$1, "", INDEX(AllMunicipalities!$D$2:$D$2183, SMALL(IF(AllMunicipalities!$A$2:$A$2183=RI$2, ROW(AllMunicipalities!$A$2:$A$2183) - ROW(RF$2) + 1), ROWS(RI$3:RI3)))) ->  | RJ3: =IF(ROWS(RJ$3:RJ3)>RJ$1, "", INDEX(AllMunicipalities!$D$2:$D$2183, SMALL(IF(AllMunicipalities!$A$2:$A$2183=RJ$2, ROW(AllMunicipalities!$A$2:$A$2183) - ROW(RG$2) + 1), ROWS(RJ$3:RJ3)))) ->  | RK3: COUNTY | RL3: =IF(ROWS(RL$3:RL3)>RL$1, "", INDEX(AllMunicipalities!$D$2:$D$2183, SMALL(IF(AllMunicipalities!$A$2:$A$2183=RL$2, ROW(AllMunicipalities!$A$2:$A$2183) - ROW(RI$2) + 1), ROWS(RL$3:RL3)))) -> OTSEGO | RM3: =IF(ROWS(RM$3:RM3)>RM$1, "", INDEX(AllMunicipalities!$D$2:$D$2183, SMALL(IF(AllMunicipalities!$A$2:$A$2183=RM$2, ROW(AllMunicipalities!$A$2:$A$2183) - ROW(RJ$2) + 1), ROWS(RM$3:RM3)))) -> GAYLORD | RN3: =IF(ROWS(RN$3:RN3)>RN$1, "", INDEX(AllMunicipalities!$D$2:$D$2183, SMALL(IF(AllMunicipalities!$A$2:$A$2183=RN$2, ROW(AllMunicipalities!$A$2:$A$2183) - ROW(RK$2) + 1), ROWS(RN$3:RN3)))) -> VANDERBILT | RO3: =IF(ROWS(RO$3:RO3)>RO$1, "", INDEX(AllMunicipalities!$D$2:$D$2183, SMALL(IF(AllMunicipalities!$A$2:$A$2183=RO$2, ROW(AllMunicipalities!$A$2:$A$2183) - ROW(RL$2) + 1), ROWS(RO$3:RO3)))) -> BAGLEY | RP3: =IF(ROWS(RP$3:RP3)>RP$1, "", INDEX(AllMunicipalities!$D$2:$D$2183, SMALL(IF(AllMunicipalities!$A$2:$A$2183=RP$2, ROW(AllMunicipalities!$A$2:$A$2183) - ROW(RM$2) + 1), ROWS(RP$3:RP3)))) ->  | RQ3: =IF(ROWS(RQ$3:RQ3)>RQ$1, "", INDEX(AllMunicipalities!$D$2:$D$2183, SMALL(IF(AllMunicipalities!$A$2:$A$2183=RQ$2, ROW(AllMunicipalities!$A$2:$A$2183) - ROW(RN$2) + 1), ROWS(RQ$3:RQ3)))) -> ELMIRA - WARNER FIRE AUTHORITY | RR3: COUNTY | RS3: =IF(ROWS(RS$3:RS3)>RS$1, "", INDEX(AllMunicipalities!$D$2:$D$2183, SMALL(IF(AllMunicipalities!$A$2:$A$2183=RS$2, ROW(AllMunicipalities!$A$2:$A$2183) - ROW(RP$2) + 1), ROWS(RS$3:RS3)))) -> OTTAWA | RT3: =IF(ROWS(RT$3:RT3)>RT$1, "", INDEX(AllMunicipalities!$D$2:$D$2183, SMALL(IF(AllMunicipalities!$A$2:$A$2183=RT$2, ROW(AllMunicipalities!$A$2:$A$2183) - ROW(RQ$2) + 1), ROWS(RT$3:RT3)))) -> COOPERSVILLE | RU3: =IF(ROWS(RU$3:RU3)>RU$1, "", INDEX(AllMunicipalities!$D$2:$D$2183, SMALL(IF(AllMunicipalities!$A$2:$A$2183=RU$2, ROW(AllMunicipalities!$A$2:$A$2183) - ROW(RR$2) + 1), ROWS(RU$3:RU3)))) -> SPRING LAKE | RV3: =IF(ROWS(RV$3:RV3)>RV$1, "", INDEX(AllMunicipalities!$D$2:$D$2183, SMALL(IF(AllMunicipalities!$A$2:$A$2183=RV$2, ROW(AllMunicipalities!$A$2:$A$2183) - ROW(RS$2) + 1), ROWS(RV$3:RV3)))) -> ALLENDALE | RW3: =IF(ROWS(RW$3:RW3)>RW$1, "", INDEX(AllMunicipalities!$D$2:$D$2183, SMALL(IF(AllMunicipalities!$A$2:$A$2183=RW$2, ROW(AllMunicipalities!$A$2:$A$2183) - ROW(RT$2) + 1), ROWS(RW$3:RW3)))) ->  | RX3: =IF(ROWS(RX$3:RX3)>RX$1, "", INDEX(AllMunicipalities!$D$2:$D$2183, SMALL(IF(AllMunicipalities!$A$2:$A$2183=RX$2, ROW(AllMunicipalities!$A$2:$A$2183) - ROW(RU$2) + 1), ROWS(RX$3:RX3)))) -> MACATAWA AREA EXPRESS TRANSPORTATION AUTHORITY (MAX) | RY3: COUNTY | RZ3: =IF(ROWS(RZ$3:RZ3)>RZ$1, "", INDEX(AllMunicipalities!$D$2:$D$2183, SMALL(IF(AllMunicipalities!$A$2:$A$2183=RZ$2, ROW(AllMunicipalities!$A$2:$A$2183) - ROW(RW$2) + 1), ROWS(RZ$3:RZ3)))) -> PRESQUE ISLE | SA3: =IF(ROWS(SA$3:SA3)>SA$1, "", INDEX(AllMunicipalities!$D$2:$D$2183, SMALL(IF(AllMunicipalities!$A$2:$A$2183=SA$2, ROW(AllMunicipalities!$A$2:$A$2183) - ROW(RX$2) + 1), ROWS(SA$3:SA3)))) -> ONAWAY | SB3: =IF(ROWS(SB$3:SB3)>SB$1, "", INDEX(AllMunicipalities!$D$2:$D$2183, SMALL(IF(AllMunicipalities!$A$2:$A$2183=SB$2, ROW(AllMunicipalities!$A$2:$A$2183) - ROW(RY$2) + 1), ROWS(SB$3:SB3)))) -> MILLERSBURG | SC3: =IF(ROWS(SC$3:SC3)>SC$1, "", INDEX(AllMunicipalities!$D$2:$D$2183, SMALL(IF(AllMunicipalities!$A$2:$A$2183=SC$2, ROW(AllMunicipalities!$A$2:$A$2183) - ROW(RZ$2) + 1), ROWS(SC$3:SC3)))) -> ALLIS | SD3: =IF(ROWS(SD$3:SD3)>SD$1, "", INDEX(AllMunicipalities!$D$2:$D$2183, SMALL(IF(AllMunicipalities!$A$2:$A$2183=SD$2, ROW(AllMunicipalities!$A$2:$A$2183) - ROW(SA$2) + 1), ROWS(SD$3:SD3)))) ->  | SE3: =IF(ROWS(SE$3:SE3)>SE$1, "", INDEX(AllMunicipalities!$D$2:$D$2183, SMALL(IF(AllMunicipalities!$A$2:$A$2183=SE$2, ROW(AllMunicipalities!$A$2:$A$2183) - ROW(SB$2) + 1), ROWS(SE$3:SE3)))) -> ROGERS CITY AREA AMBULANCE AUTHORITY | SF3: COUNTY | SG3: =IF(ROWS(SG$3:SG3)>SG$1, "", INDEX(AllMunicipalities!$D$2:$D$2183, SMALL(IF(AllMunicipalities!$A$2:$A$2183=SG$2, ROW(AllMunicipalities!$A$2:$A$2183) - ROW(SD$2) + 1), ROWS(SG$3:SG3)))) -> ROSCOMMON | SH3: =IF(ROWS(SH$3:SH3)>SH$1, "", INDEX(AllMunicipalities!$D$2:$D$2183, SMALL(IF(AllMunicipalities!$A$2:$A$2183=SH$2, ROW(AllMunicipalities!$A$2:$A$2183) - ROW(SE$2) + 1), ROWS(SH$3:SH3)))) ->  | SI3: =IF(ROWS(SI$3:SI3)>SI$1, "", INDEX(AllMunicipalities!$D$2:$D$2183, SMALL(IF(AllMunicipalities!$A$2:$A$2183=SI$2, ROW(AllMunicipalities!$A$2:$A$2183) - ROW(SF$2) + 1), ROWS(SI$3:SI3)))) -> ROSCOMMON | SJ3: =IF(ROWS(SJ$3:SJ3)>SJ$1, "", INDEX(AllMunicipalities!$D$2:$D$2183, SMALL(IF(AllMunicipalities!$A$2:$A$2183=SJ$2, ROW(AllMunicipalities!$A$2:$A$2183) - ROW(SG$2) + 1), ROWS(SJ$3:SJ3)))) -> AU SABLE | SK3: =IF(ROWS(SK$3:SK3)>SK$1, "", INDEX(AllMunicipalities!$D$2:$D$2183, SMALL(IF(AllMunicipalities!$A$2:$A$2183=SK$2, ROW(AllMunicipalities!$A$2:$A$2183) - ROW(SH$2) + 1), ROWS(SK$3:SK3)))) ->  | SL3: =IF(ROWS(SL$3:SL3)>SL$1, "", INDEX(AllMunicipalities!$D$2:$D$2183, SMALL(IF(AllMunicipalities!$A$2:$A$2183=SL$2, ROW(AllMunicipalities!$A$2:$A$2183) - ROW(SI$2) + 1), ROWS(SL$3:SL3)))) -> HOUGHTON LAKE AMBULANCE AUTHORITY | SM3: COUNTY | SN3: =IF(ROWS(SN$3:SN3)>SN$1, "", INDEX(AllMunicipalities!$D$2:$D$2183, SMALL(IF(AllMunicipalities!$A$2:$A$2183=SN$2, ROW(AllMunicipalities!$A$2:$A$2183) - ROW(SK$2) + 1), ROWS(SN$3:SN3)))) -> SAGINAW | SO3: =IF(ROWS(SO$3:SO3)>SO$1, "", INDEX(AllMunicipalities!$D$2:$D$2183, SMALL(IF(AllMunicipalities!$A$2:$A$2183=SO$2, ROW(AllMunicipalities!$A$2:$A$2183) - ROW(SL$2) + 1), ROWS(SO$3:SO3)))) -> FRANKENMUTH | SP3: =IF(ROWS(SP$3:SP3)>SP$1, "", INDEX(AllMunicipalities!$D$2:$D$2183, SMALL(IF(AllMunicipalities!$A$2:$A$2183=SP$2, ROW(AllMunicipalities!$A$2:$A$2183) - ROW(SM$2) + 1), ROWS(SP$3:SP3)))) -> BIRCH RUN | SQ3: =IF(ROWS(SQ$3:SQ3)>SQ$1, "", INDEX(AllMunicipalities!$D$2:$D$2183, SMALL(IF(AllMunicipalities!$A$2:$A$2183=SQ$2, ROW(AllMunicipalities!$A$2:$A$2183) - ROW(SN$2) + 1), ROWS(SQ$3:SQ3)))) -> ALBEE | SR3: =IF(ROWS(SR$3:SR3)>SR$1, "", INDEX(AllMunicipalities!$D$2:$D$2183, SMALL(IF(AllMunicipalities!$A$2:$A$2183=SR$2, ROW(AllMunicipalities!$A$2:$A$2183) - ROW(SO$2) + 1), ROWS(SR$3:SR3)))) ->  | SS3: =IF(ROWS(SS$3:SS3)>SS$1, "", INDEX(AllMunicipalities!$D$2:$D$2183, SMALL(IF(AllMunicipalities!$A$2:$A$2183=SS$2, ROW(AllMunicipalities!$A$2:$A$2183) - ROW(SP$2) + 1), ROWS(SS$3:SS3)))) -> SAGINAW TRANSIT AUTHORITY REGIONAL SERVICES | ST3: COUNTY | SU3: =IF(ROWS(SU$3:SU3)>SU$1, "", INDEX(AllMunicipalities!$D$2:$D$2183, SMALL(IF(AllMunicipalities!$A$2:$A$2183=SU$2, ROW(AllMunicipalities!$A$2:$A$2183) - ROW(SR$2) + 1), ROWS(SU$3:SU3)))) -> ST CLAIR | SV3: =IF(ROWS(SV$3:SV3)>SV$1, "", INDEX(AllMunicipalities!$D$2:$D$2183, SMALL(IF(AllMunicipalities!$A$2:$A$2183=SV$2, ROW(AllMunicipalities!$A$2:$A$2183) - ROW(SS$2) + 1), ROWS(SV$3:SV3)))) -> ALGONAC | SW3: =IF(ROWS(SW$3:SW3)>SW$1, "", INDEX(AllMunicipalities!$D$2:$D$2183, SMALL(IF(AllMunicipalities!$A$2:$A$2183=SW$2, ROW(AllMunicipalities!$A$2:$A$2183) - ROW(ST$2) + 1), ROWS(SW$3:SW3)))) -> CAPAC | SX3: =IF(ROWS(SX$3:SX3)>SX$1, "", INDEX(AllMunicipalities!$D$2:$D$2183, SMALL(IF(AllMunicipalities!$A$2:$A$2183=SX$2, ROW(AllMunicipalities!$A$2:$A$2183) - ROW(SU$2) + 1), ROWS(SX$3:SX3)))) -> BERLIN | SY3: =IF(ROWS(SY$3:SY3)>SY$1, "", INDEX(AllMunicipalities!$D$2:$D$2183, SMALL(IF(AllMunicipalities!$A$2:$A$2183=SY$2, ROW(AllMunicipalities!$A$2:$A$2183) - ROW(SV$2) + 1), ROWS(SY$3:SY3)))) -> ST CLAIR CC | SZ3: =IF(ROWS(SZ$3:SZ3)>SZ$1, "", INDEX(AllMunicipalities!$D$2:$D$2183, SMALL(IF(AllMunicipalities!$A$2:$A$2183=SZ$2, ROW(AllMunicipalities!$A$2:$A$2183) - ROW(SW$2) + 1), ROWS(SZ$3:SZ3)))) ->  | TA3: COUNTY | TB3: =IF(ROWS(TB$3:TB3)>TB$1, "", INDEX(AllMunicipalities!$D$2:$D$2183, SMALL(IF(AllMunicipalities!$A$2:$A$2183=TB$2, ROW(AllMunicipalities!$A$2:$A$2183) - ROW(SY$2) + 1), ROWS(TB$3:TB3)))) -> ST JOSEPH | TC3: =IF(ROWS(TC$3:TC3)>TC$1, "", INDEX(AllMunicipalities!$D$2:$D$2183, SMALL(IF(AllMunicipalities!$A$2:$A$2183=TC$2, ROW(AllMunicipalities!$A$2:$A$2183) - ROW(SZ$2) + 1), ROWS(TC$3:TC3)))) -> STURGIS | TD3: =IF(ROWS(TD$3:TD3)>TD$1, "", INDEX(AllMunicipalities!$D$2:$D$2183, SMALL(IF(AllMunicipalities!$A$2:$A$2183=TD$2, ROW(AllMunicipalities!$A$2:$A$2183) - ROW(TA$2) + 1), ROWS(TD$3:TD3)))) -> BURR OAK | TE3: =IF(ROWS(TE$3:TE3)>TE$1, "", INDEX(AllMunicipalities!$D$2:$D$2183, SMALL(IF(AllMunicipalities!$A$2:$A$2183=TE$2, ROW(AllMunicipalities!$A$2:$A$2183) - ROW(TB$2) + 1), ROWS(TE$3:TE3)))) -> BURR OAK | TF3: =IF(ROWS(TF$3:TF3)>TF$1, "", INDEX(AllMunicipalities!$D$2:$D$2183, SMALL(IF(AllMunicipalities!$A$2:$A$2183=TF$2, ROW(AllMunicipalities!$A$2:$A$2183) - ROW(TC$2) + 1), ROWS(TF$3:TF3)))) -> GLEN OAKS CC | TG3: =IF(ROWS(TG$3:TG3)>TG$1, "", INDEX(AllMunicipalities!$D$2:$D$2183, SMALL(IF(AllMunicipalities!$A$2:$A$2183=TG$2, ROW(AllMunicipalities!$A$2:$A$2183) - ROW(TD$2) + 1), ROWS(TG$3:TG3)))) -> STURGIS DISTRICT LIBRARY | TH3: COUNTY | TI3: =IF(ROWS(TI$3:TI3)>TI$1, "", INDEX(AllMunicipalities!$D$2:$D$2183, SMALL(IF(AllMunicipalities!$A$2:$A$2183=TI$2, ROW(AllMunicipalities!$A$2:$A$2183) - ROW(TF$2) + 1), ROWS(TI$3:TI3)))) -> SANILAC | TJ3: =IF(ROWS(TJ$3:TJ3)>TJ$1, "", INDEX(AllMunicipalities!$D$2:$D$2183, SMALL(IF(AllMunicipalities!$A$2:$A$2183=TJ$2, ROW(AllMunicipalities!$A$2:$A$2183) - ROW(TG$2) + 1), ROWS(TJ$3:TJ3)))) -> BROWN CITY | TK3: =IF(ROWS(TK$3:TK3)>TK$1, "", INDEX(AllMunicipalities!$D$2:$D$2183, SMALL(IF(AllMunicipalities!$A$2:$A$2183=TK$2, ROW(AllMunicipalities!$A$2:$A$2183) - ROW(TH$2) + 1), ROWS(TK$3:TK3)))) -> APPLEGATE | TL3: =IF(ROWS(TL$3:TL3)>TL$1, "", INDEX(AllMunicipalities!$D$2:$D$2183, SMALL(IF(AllMunicipalities!$A$2:$A$2183=TL$2, ROW(AllMunicipalities!$A$2:$A$2183) - ROW(TI$2) + 1), ROWS(TL$3:TL3)))) -> ARGYLE | TM3: =IF(ROWS(TM$3:TM3)>TM$1, "", INDEX(AllMunicipalities!$D$2:$D$2183, SMALL(IF(AllMunicipalities!$A$2:$A$2183=TM$2, ROW(AllMunicipalities!$A$2:$A$2183) - ROW(TJ$2) + 1), ROWS(TM$3:TM3)))) ->  | TN3: =IF(ROWS(TN$3:TN3)>TN$1, "", INDEX(AllMunicipalities!$D$2:$D$2183, SMALL(IF(AllMunicipalities!$A$2:$A$2183=TN$2, ROW(AllMunicipalities!$A$2:$A$2183) - ROW(TK$2) + 1), ROWS(TN$3:TN3)))) -> AITKIN MEMORIAL DISTRICT LIBRARY | TO3: COUNTY | TP3: =IF(ROWS(TP$3:TP3)>TP$1, "", INDEX(AllMunicipalities!$D$2:$D$2183, SMALL(IF(AllMunicipalities!$A$2:$A$2183=TP$2, ROW(AllMunicipalities!$A$2:$A$2183) - ROW(TM$2) + 1), ROWS(TP$3:TP3)))) -> SCHOOLCRAFT | TQ3: =IF(ROWS(TQ$3:TQ3)>TQ$1, "", INDEX(AllMunicipalities!$D$2:$D$2183, SMALL(IF(AllMunicipalities!$A$2:$A$2183=TQ$2, ROW(AllMunicipalities!$A$2:$A$2183) - ROW(TN$2) + 1), ROWS(TQ$3:TQ3)))) -> MANISTIQUE | TR3: =IF(ROWS(TR$3:TR3)>TR$1, "", INDEX(AllMunicipalities!$D$2:$D$2183, SMALL(IF(AllMunicipalities!$A$2:$A$2183=TR$2, ROW(AllMunicipalities!$A$2:$A$2183) - ROW(TO$2) + 1), ROWS(TR$3:TR3)))) ->  | TS3: =IF(ROWS(TS$3:TS3)>TS$1, "", INDEX(AllMunicipalities!$D$2:$D$2183, SMALL(IF(AllMunicipalities!$A$2:$A$2183=TS$2, ROW(AllMunicipalities!$A$2:$A$2183) - ROW(TP$2) + 1), ROWS(TS$3:TS3)))) -> DOYLE | TT3: =IF(ROWS(TT$3:TT3)>TT$1, "", INDEX(AllMunicipalities!$D$2:$D$2183, SMALL(IF(AllMunicipalities!$A$2:$A$2183=TT$2, ROW(AllMunicipalities!$A$2:$A$2183) - ROW(TQ$2) + 1), ROWS(TT$3:TT3)))) ->  | TU3: =IF(ROWS(TU$3:TU3)>TU$1, "", INDEX(AllMunicipalities!$D$2:$D$2183, SMALL(IF(AllMunicipalities!$A$2:$A$2183=TU$2, ROW(AllMunicipalities!$A$2:$A$2183) - ROW(TR$2) + 1), ROWS(TU$3:TU3)))) ->  | TV3: COUNTY | TW3: =IF(ROWS(TW$3:TW3)>TW$1, "", INDEX(AllMunicipalities!$D$2:$D$2183, SMALL(IF(AllMunicipalities!$A$2:$A$2183=TW$2, ROW(AllMunicipalities!$A$2:$A$2183) - ROW(TT$2) + 1), ROWS(TW$3:TW3)))) -> SHIAWASSEE | TX3: =IF(ROWS(TX$3:TX3)>TX$1, "", INDEX(AllMunicipalities!$D$2:$D$2183, SMALL(IF(AllMunicipalities!$A$2:$A$2183=TX$2, ROW(AllMunicipalities!$A$2:$A$2183) - ROW(TU$2) + 1), ROWS(TX$3:TX3)))) -> CORUNNA | TY3: =IF(ROWS(TY$3:TY3)>TY$1, "", INDEX(AllMunicipalities!$D$2:$D$2183, SMALL(IF(AllMunicipalities!$A$2:$A$2183=TY$2, ROW(AllMunicipalities!$A$2:$A$2183) - ROW(TV$2) + 1), ROWS(TY$3:TY3)))) -> BANCROFT | TZ3: =IF(ROWS(TZ$3:TZ3)>TZ$1, "", INDEX(AllMunicipalities!$D$2:$D$2183, SMALL(IF(AllMunicipalities!$A$2:$A$2183=TZ$2, ROW(AllMunicipalities!$A$2:$A$2183) - ROW(TW$2) + 1), ROWS(TZ$3:TZ3)))) -> ANTRIM | UA3: =IF(ROWS(UA$3:UA3)>UA$1, "", INDEX(AllMunicipalities!$D$2:$D$2183, SMALL(IF(AllMunicipalities!$A$2:$A$2183=UA$2, ROW(AllMunicipalities!$A$2:$A$2183) - ROW(TX$2) + 1), ROWS(UA$3:UA3)))) ->  | UB3: =IF(ROWS(UB$3:UB3)>UB$1, "", INDEX(AllMunicipalities!$D$2:$D$2183, SMALL(IF(AllMunicipalities!$A$2:$A$2183=UB$2, ROW(AllMunicipalities!$A$2:$A$2183) - ROW(TY$2) + 1), ROWS(UB$3:UB3)))) -> SOUTHWEST SHIAWASSEE EMERGENCY SERVICES ALLIANCE (SSESA) | UC3: COUNTY | UD3: =IF(ROWS(UD$3:UD3)>UD$1, "", INDEX(AllMunicipalities!$D$2:$D$2183, SMALL(IF(AllMunicipalities!$A$2:$A$2183=UD$2, ROW(AllMunicipalities!$A$2:$A$2183) - ROW(UA$2) + 1), ROWS(UD$3:UD3)))) -> TUSCOLA | UE3: =IF(ROWS(UE$3:UE3)>UE$1, "", INDEX(AllMunicipalities!$D$2:$D$2183, SMALL(IF(AllMunicipalities!$A$2:$A$2183=UE$2, ROW(AllMunicipalities!$A$2:$A$2183) - ROW(UB$2) + 1), ROWS(UE$3:UE3)))) -> CARO | UF3: =IF(ROWS(UF$3:UF3)>UF$1, "", INDEX(AllMunicipalities!$D$2:$D$2183, SMALL(IF(AllMunicipalities!$A$2:$A$2183=UF$2, ROW(AllMunicipalities!$A$2:$A$2183) - ROW(UC$2) + 1), ROWS(UF$3:UF3)))) -> AKRON | UG3: =IF(ROWS(UG$3:UG3)>UG$1, "", INDEX(AllMunicipalities!$D$2:$D$2183, SMALL(IF(AllMunicipalities!$A$2:$A$2183=UG$2, ROW(AllMunicipalities!$A$2:$A$2183) - ROW(UD$2) + 1), ROWS(UG$3:UG3)))) -> AKRON | UH3: =IF(ROWS(UH$3:UH3)>UH$1, "", INDEX(AllMunicipalities!$D$2:$D$2183, SMALL(IF(AllMunicipalities!$A$2:$A$2183=UH$2, ROW(AllMunicipalities!$A$2:$A$2183) - ROW(UE$2) + 1), ROWS(UH$3:UH3)))) ->  | UI3: =IF(ROWS(UI$3:UI3)>UI$1, "", INDEX(AllMunicipalities!$D$2:$D$2183, SMALL(IF(AllMunicipalities!$A$2:$A$2183=UI$2, ROW(AllMunicipalities!$A$2:$A$2183) - ROW(UF$2) + 1), ROWS(UI$3:UI3)))) -> BULLARD SANFORD MEMORIAL LIBRARY | UJ3: COUNTY | UK3: =IF(ROWS(UK$3:UK3)>UK$1, "", INDEX(AllMunicipalities!$D$2:$D$2183, SMALL(IF(AllMunicipalities!$A$2:$A$2183=UK$2, ROW(AllMunicipalities!$A$2:$A$2183) - ROW(UH$2) + 1), ROWS(UK$3:UK3)))) -> VAN BUREN | UL3: =IF(ROWS(UL$3:UL3)>UL$1, "", INDEX(AllMunicipalities!$D$2:$D$2183, SMALL(IF(AllMunicipalities!$A$2:$A$2183=UL$2, ROW(AllMunicipalities!$A$2:$A$2183) - ROW(UI$2) + 1), ROWS(UL$3:UL3)))) -> BANGOR | UM3: =IF(ROWS(UM$3:UM3)>UM$1, "", INDEX(AllMunicipalities!$D$2:$D$2183, SMALL(IF(AllMunicipalities!$A$2:$A$2183=UM$2, ROW(AllMunicipalities!$A$2:$A$2183) - ROW(UJ$2) + 1), ROWS(UM$3:UM3)))) -> BLOOMINGDALE | UN3: =IF(ROWS(UN$3:UN3)>UN$1, "", INDEX(AllMunicipalities!$D$2:$D$2183, SMALL(IF(AllMunicipalities!$A$2:$A$2183=UN$2, ROW(AllMunicipalities!$A$2:$A$2183) - ROW(UK$2) + 1), ROWS(UN$3:UN3)))) -> ALMENA | UO3: =IF(ROWS(UO$3:UO3)>UO$1, "", INDEX(AllMunicipalities!$D$2:$D$2183, SMALL(IF(AllMunicipalities!$A$2:$A$2183=UO$2, ROW(AllMunicipalities!$A$2:$A$2183) - ROW(UL$2) + 1), ROWS(UO$3:UO3)))) ->  | UP3: =IF(ROWS(UP$3:UP3)>UP$1, "", INDEX(AllMunicipalities!$D$2:$D$2183, SMALL(IF(AllMunicipalities!$A$2:$A$2183=UP$2, ROW(AllMunicipalities!$A$2:$A$2183) - ROW(UM$2) + 1), ROWS(UP$3:UP3)))) -> HARTFORD LIBRARY | UQ3: COUNTY | UR3: =IF(ROWS(UR$3:UR3)>UR$1, "", INDEX(AllMunicipalities!$D$2:$D$2183, SMALL(IF(AllMunicipalities!$A$2:$A$2183=UR$2, ROW(AllMunicipalities!$A$2:$A$2183) - ROW(UO$2) + 1), ROWS(UR$3:UR3)))) -> WASHTENAW | US3: =IF(ROWS(US$3:US3)>US$1, "", INDEX(AllMunicipalities!$D$2:$D$2183, SMALL(IF(AllMunicipalities!$A$2:$A$2183=US$2, ROW(AllMunicipalities!$A$2:$A$2183) - ROW(UP$2) + 1), ROWS(US$3:US3)))) -> ANN ARBOR | UT3: =IF(ROWS(UT$3:UT3)>UT$1, "", INDEX(AllMunicipalities!$D$2:$D$2183, SMALL(IF(AllMunicipalities!$A$2:$A$2183=UT$2, ROW(AllMunicipalities!$A$2:$A$2183) - ROW(UQ$2) + 1), ROWS(UT$3:UT3)))) -> BARTON HILLS | UU3: =IF(ROWS(UU$3:UU3)>UU$1, "", INDEX(AllMunicipalities!$D$2:$D$2183, SMALL(IF(AllMunicipalities!$A$2:$A$2183=UU$2, ROW(AllMunicipalities!$A$2:$A$2183) - ROW(UR$2) + 1), ROWS(UU$3:UU3)))) -> ANN ARBOR | UV3: =IF(ROWS(UV$3:UV3)>UV$1, "", INDEX(AllMunicipalities!$D$2:$D$2183, SMALL(IF(AllMunicipalities!$A$2:$A$2183=UV$2, ROW(AllMunicipalities!$A$2:$A$2183) - ROW(US$2) + 1), ROWS(UV$3:UV3)))) -> WASHTENAW CC | UW3: =IF(ROWS(UW$3:UW3)>UW$1, "", INDEX(AllMunicipalities!$D$2:$D$2183, SMALL(IF(AllMunicipalities!$A$2:$A$2183=UW$2, ROW(AllMunicipalities!$A$2:$A$2183) - ROW(UT$2) + 1), ROWS(UW$3:UW3)))) -> ANN ARBOR DISTRICT LIBRARY | UX3: COUNTY | UY3: =IF(ROWS(UY$3:UY3)>UY$1, "", INDEX(AllMunicipalities!$D$2:$D$2183, SMALL(IF(AllMunicipalities!$A$2:$A$2183=UY$2, ROW(AllMunicipalities!$A$2:$A$2183) - ROW(UV$2) + 1), ROWS(UY$3:UY3)))) -> WAYNE | UZ3: =IF(ROWS(UZ$3:UZ3)>UZ$1, "", INDEX(AllMunicipalities!$D$2:$D$2183, SMALL(IF(AllMunicipalities!$A$2:$A$2183=UZ$2, ROW(AllMunicipalities!$A$2:$A$2183) - ROW(UW$2) + 1), ROWS(UZ$3:UZ3)))) -> ALLEN PARK | VA3: =IF(ROWS(VA$3:VA3)>VA$1, "", INDEX(AllMunicipalities!$D$2:$D$2183, SMALL(IF(AllMunicipalities!$A$2:$A$2183=VA$2, ROW(AllMunicipalities!$A$2:$A$2183) - ROW(UX$2) + 1), ROWS(VA$3:VA3)))) ->  | VB3: =IF(ROWS(VB$3:VB3)>VB$1, "", INDEX(AllMunicipalities!$D$2:$D$2183, SMALL(IF(AllMunicipalities!$A$2:$A$2183=VB$2, ROW(AllMunicipalities!$A$2:$A$2183) - ROW(UY$2) + 1), ROWS(VB$3:VB3)))) -> BROWNSTOWN | VC3: =IF(ROWS(VC$3:VC3)>VC$1, "", INDEX(AllMunicipalities!$D$2:$D$2183, SMALL(IF(AllMunicipalities!$A$2:$A$2183=VC$2, ROW(AllMunicipalities!$A$2:$A$2183) - ROW(UZ$2) + 1), ROWS(VC$3:VC3)))) -> SCHOOLCRAFT CC | VD3: =IF(ROWS(VD$3:VD3)>VD$1, "", INDEX(AllMunicipalities!$D$2:$D$2183, SMALL(IF(AllMunicipalities!$A$2:$A$2183=VD$2, ROW(AllMunicipalities!$A$2:$A$2183) - ROW(VA$2) + 1), ROWS(VD$3:VD3)))) -> WAYNE COUNTY TRANSPORTATION AUTHORITY (SMART) | VE3: COUNTY | VF3: =IF(ROWS(VF$3:VF3)>VF$1, "", INDEX(AllMunicipalities!$D$2:$D$2183, SMALL(IF(AllMunicipalities!$A$2:$A$2183=VF$2, ROW(AllMunicipalities!$A$2:$A$2183) - ROW(VC$2) + 1), ROWS(VF$3:VF3)))) -> WEXFORD | VG3: =IF(ROWS(VG$3:VG3)>VG$1, "", INDEX(AllMunicipalities!$D$2:$D$2183, SMALL(IF(AllMunicipalities!$A$2:$A$2183=VG$2, ROW(AllMunicipalities!$A$2:$A$2183) - ROW(VD$2) + 1), ROWS(VG$3:VG3)))) -> CADILLAC | VH3: =IF(ROWS(VH$3:VH3)>VH$1, "", INDEX(AllMunicipalities!$D$2:$D$2183, SMALL(IF(AllMunicipalities!$A$2:$A$2183=VH$2, ROW(AllMunicipalities!$A$2:$A$2183) - ROW(VE$2) + 1), ROWS(VH$3:VH3)))) -> BUCKLEY | VI3: =IF(ROWS(VI$3:VI3)>VI$1, "", INDEX(AllMunicipalities!$D$2:$D$2183, SMALL(IF(AllMunicipalities!$A$2:$A$2183=VI$2, ROW(AllMunicipalities!$A$2:$A$2183) - ROW(VF$2) + 1), ROWS(VI$3:VI3)))) -> ANTIOCH | VJ3: =IF(ROWS(VJ$3:VJ3)>VJ$1, "", INDEX(AllMunicipalities!$D$2:$D$2183, SMALL(IF(AllMunicipalities!$A$2:$A$2183=VJ$2, ROW(AllMunicipalities!$A$2:$A$2183) - ROW(VG$2) + 1), ROWS(VJ$3:VJ3)))) ->  | VK3: =IF(ROWS(VK$3:VK3)>VK$1, "", INDEX(AllMunicipalities!$D$2:$D$2183, SMALL(IF(AllMunicipalities!$A$2:$A$2183=VK$2, ROW(AllMunicipalities!$A$2:$A$2183) - ROW(VH$2) + 1), ROWS(VK$3:VK3)))) -> WEXFORD COUNTY TRANSPORTATION AUTHORITY
